Workbook

Sheet INDICE
F1: ÁFRICA - DÉCADA
F2: Trocas comerciais com Portugal (PT) 2009-2018 Agroalimentar, Mar & Florestas
C3: Fonte
D4: Estatísticas do Comércio Internacional | F4: 1. África - Síntese
D5: dados: 2017 provisórios; 2018 preliminares | F5: 2. Evolução da balança comercial
F6: 3. Principais transações de Agroalimentar, Mar & Florestas (NC 2 e 4 dígitos)
C7: Data | D7: 2019-11-28T12:41:20.420 | F7: 3A Principais produtos agrícolas e agroalimentares transacionados (NC 2D)
F8: 3B Principais origens/destinos para Agroalimentar, Mar & Florestas
F9: 3C Principais origens/destinos produtos agrícolas e agroalimentares
F10: 4. Evolução da balança comercial por país e produto
F11: 4A Evolução da balança comercial por produto
F12: 5.1. Trocas comerciais por país
F13: 5.1A Trocas comerciais por país (produtos agrícolas e agroalimentares)
F14: 5.2. Trocas comerciais por produto (NC 2 dígitos)
C22: Lista de países
D23: África do Sul; Angola; Argélia; Benim; Botswana; Burquina Faso; Burundi; Cabo Verde; Camarões; Centro-Africana, República; Chade; Comores; Congo; República Democrática do Congo; Costa do Marfim; Egipto; Etiópia; Gabão; Gâmbia; Gana; Guiné; Guiné Equatorial; Guiné-Bissau; Djibuti; Lesoto, Libéria; Jamahira Árabe da Líbia; Madagáscar; Malavi; Mali; Marrocos; Maurícias; Mauritânia; Moçambique; Namíbia; Níger; Nigéria; Quénia; Ruanda; São Tomé e Príncipe; Senegal; Serra Leoa; Seychelles; Somália; Suazilândia; Sudão; Sudão do Sul; República Unida da Tanzânia; Togo; Tunísia; Uganda; Zâmbia; Zimbabwe

Sheet 1
A1: África - Síntese para Agroalimentar, Mar & Florestas 2009-2018
A3: • As trocas comerciais de bens transacionáveis (excluindo serviços) entre Portugal e África representam um total de 4,6 mil milhões de € em exportações e 3,8 mil milhões de € em importações, na média do período 2009-2018, correspondendo a um saldo positivo da balança comercial de cerca de 0,8 mil milhões.
A4: • No que respeita aos produtos dos setores agrícola e agroalimentar, mar e florestas, Portugal exportou para África 1,1 mil milhões de € em média anual, no mesmo período, enquanto as importações ascenderam a 0,4 mil milhões de € . Estes setores representam perto de 23,2% do total de exportações de bens transacionáveis e as importações 11,5% das correspondentes importações. Se nos referirmos apenas ao setor agrícola e agroalimentar, as exportações representam, em média, 731 milhões de € e as importações 236 milhões.
A5: • As principais exportações do setor Agroalimentar, Mar & Florestas (NC 4 dígitos) neste período são Papel e cartão p/ escrita, etc. (11%), Cervejas de malte (9%) e Vinhos de uvas frescas (8%). As importações mais relevantes do mesmo setor referem-se a Açúcares (cana/beterraba); sacarose pura (16%), Peixes congelados (10%) e Citrinos, frescos ou secos (9%).
A6: • Os principais destinos das exportações do setor Agroalimentar, Mar & Florestas no mesmo período são Angola (59%), Cabo Verde (7%) e Marrocos (7%). As principais origens das importações são África do Sul (18%), Marrocos (10%) e Moçambique (9%).
A8: Trocas PT-África (milhões de euros) Agroalimentar, Mar & Florestas | H8: Trocas PT-África (milhões de euros) produtos agrícolas e agroalimentares
B10: 2016 | C10: 2017 | D10: 2018 | E10: média 2009-2018 | F10: TVMA* 2009-2018 | G10: TVT* 2009-2018 | I10: 2016 | J10: 2017 | K10: 2018 | L10: média 2009-2018 | M10: TVMA* 2009-2018 | N10: TVT* 2009-2018
A11: Exportações | B11: 998.195115 | C11: 1053.906665 | D11: 1014.479777 | E11: 1059.659592 | F11: 0.03926220858 | G11: 0.4697766725 | H11: Exportações | I11: 641.525888 | J11: 705.247831 | K11: 618.341087 | L11: 731.30657 | M11: 0.01694318967 | N11: 0.1829514543
A12: Importações | B12: 471.910146 | C12: 505.558404 | D12: 518.224663 | E12: 431.3750257 | F12: 0.03353207197 | G12: 0.3907196131 | H12: Importações | I12: 227.439044 | J12: 233.394257 | K12: 248.96164 | L12: 235.5128363 | M12: 0.01061121004 | N12: 0.1113250729
A13: Saldo | B13: 526.284969 | C13: 548.348261 | D13: 496.255114 | E13: 628.2845662 | H13: Saldo | I13: 414.086844 | J13: 471.853574 | K13: 369.379447 | L13: 495.7937337
A14: *TVMA - Taxa de variação média anual; TVT - Taxa de variação total
C15: Saldo da Balança Comercial PT-África (milhões de euros)
C16: 2009 | D16: 2010 | E16: 2011 | F16: 2012 | G16: 2013 | H16: 2014 | I16: 2015 | J16: 2016 | K16: 2017 | L16: 2018 | M16: média 2009-2018
A17: Total bens transacionáveis* | C17: 605.95168 | D17: -366.459602 | E17: -19.965763 | F17: -196.18724 | G17: 125.951326 | H17: 1476.379224 | I17: 1458.191484 | J17: 1969.751436 | K17: 2303.516346 | L17: 724.028563 | M17: 808.1157454
A18: Agrícola e Agroalimentar (AA) | C18: 298.688113 | D18: 389.923723 | E18: 535.436225 | F18: 651.164792 | G18: 630.558979 | H18: 727.103757 | I18: 469.741883 | J18: 414.086844 | K18: 471.853574 | L18: 369.379447 | M18: 495.7937337
B19: Mar (M) | C19: -64.433253 | D19: -76.345113 | E19: -72.714724 | F19: -65.108235 | G19: -58.071433 | H19: -83.113912 | I19: -141.697816 | J19: -152.073442 | K19: -191.912379 | L19: -176.15992 | M19: -108.1630227
B20: Florestas (F) | C20: 83.341714 | D20: 153.26552 | E20: 226.822558 | F20: 256.756764 | G20: 273.205406 | H20: 295.702177 | I20: 281.730193 | J20: 264.271567 | K20: 268.407066 | L20: 303.035587 | M20: 240.6538552
B21: AA + M + F | C21: 317.596574 | D21: 466.84413 | E21: 689.544059 | F21: 842.813321 | G21: 845.692952 | H21: 939.692022 | I21: 609.77426 | J21: 526.284969 | K21: 548.348261 | L21: 496.255114 | M21: 628.2845662
B22: *exclui serviços
A23: Evolução das trocas comerciais PT-África (em milhões de euros 2009-2018)
F32: Exportações | H32: Importações | J32: Saldo
A33: Principais transações de Agroalimentar, Mar & Florestas (NC 2 dígitos)
A52: Principais origens e destinos em África para Agroalimentar, Mar & Florestas (média 2009-2018)
A67: Principais transações de Agroalimentar, Mar & Florestas (NC 4 dígitos - média 2009-2018)
A89: Fonte: GPP a partir de dados INE/Comércio Internacional (2017 provisórios; 2018 preliminares) | L89: 2019-11-28T12:41:20.420

Sheet 2
A1: Evolução da balança comercial Portugal-África 2009-2018 em milhões de euros
A3: Total de Bens Transacionáveis (BT)(1) | B3: 2009 | C3: 2010 | D3: 2011 | E3: 2012 | F3: 2013 | G3: 2014 | H3: 2015 | I3: 2016 | J3: 2017 | K3: 2018 | L3: média período | M3: var. 09/10 | N3: var. 10/11 | O3: var. 11/12 | P3: var. 12/13 | Q3: var. 13/14 | R3: var. 14/15 | S3: var. 15/16 | T3: var. 16/17 | U3: var. 17/18 | V3: TVMA* 2009-2018 | W3: TVT* 2009-2018
A4: Exportações | B4: 3475.048351 | C4: 3517.283206 | D4: 4340.997395 | E4: 5255.610613 | F4: 5962.595285 | G4: 5776.599701 | H4: 4880.760279 | I4: 4128.927254 | J4: 4363.642802 | K4: 4006.493166 | L4: 4570.795805 | M4: 0.012153746 | N4: 0.2341904648 | O4: 0.2106919527 | P4: 0.1345199871 | Q4: -0.03119372943 | R4: -0.1550807514 | S4: -0.1540401458 | T4: 0.05684661743 | U4: -0.08184667082 | V4: 0.01433253416 | W4: 0.1529316318
A5: Importações | B5: 2869.096671 | C5: 3883.742808 | D5: 4360.963158 | E5: 5451.797853 | F5: 5836.643959 | G5: 4300.220477 | H5: 3422.568795 | I5: 2159.175818 | J5: 2060.126456 | K5: 3282.464603 | L5: 3762.68006 | M5: 0.3536465492 | N5: 0.1228764039 | O5: 0.2501361868 | P5: 0.07059067786 | Q5: -0.2632374859 | R5: -0.2040945776 | S5: -0.3691358896 | T5: -0.04587368994 | U5: 0.59333161 | V5: 0.01355072117 | W5: 0.1440759861
A6: Saldo (exp-imp) | B6: 605.95168 | C6: -366.459602 | D6: -19.965763 | E6: -196.18724 | F6: 125.951326 | G6: 1476.379224 | H6: 1458.191484 | I6: 1969.751436 | J6: 2303.516346 | K6: 724.028563 | L6: 808.1157454
A7: Cobertura (exp/imp) | B7: 1.211199464 | C7: 0.9056426699 | D7: 0.9954217079 | E7: 0.9640142123 | F7: 1.021579409 | G7: 1.343326402 | H7: 1.426051767 | I7: 1.912270052 | J7: 2.11814318 | K7: 1.220574675 | L7: 1.214771315
A8: Exp BT África / Exp BT Mundo | B8: 0.1100935527 | C8: 0.09465404349 | D8: 0.1013336091 | E8: 0.1162183132 | F8: 0.1260099883 | G8: 0.1201950565 | H8: 0.09830107011 | I8: 0.08250155496 | J8: 0.07929941592 | K8: 0.06930169649 | L8: 0.09836001034 | V8: Exportações
A9: Imp BT África / Imp BT Mundo | B9: 0.05592896333 | C9: 0.06631708648 | D9: 0.07323012787 | E9: 0.09670752185 | F9: 0.1023742285 | G9: 0.07284543443 | H9: 0.05671688067 | I9: 0.03515198122 | J9: 0.02956190111 | K9: 0.04355485772 | L9: 0.06181968993 | V9: Importações
A10: Exp BT África / Exp TE Mundo | B10: 0.07313948373 | C10: 0.06543674845 | D10: 0.07185907645 | E10: 0.08276052325 | F10: 0.08861841975 | G10: 0.08328389155 | H10: 0.06718409743 | I10: 0.05533335131 | J10: 0.05251171495 | K10: 0.04559676596 | L10: 0.06721219199
A11: Imp BT África / Imp TE Mundo | B11: 0.04809471666 | C11: 0.05766455882 | D11: 0.06417717308 | E11: 0.08470918382 | F11: 0.08901026397 | G11: 0.06229202559 | H11: 0.04780084493 | I11: 0.02976401823 | J11: 0.02526573235 | K11: 0.03747842059 | L11: 0.05320625697
A12: (1) Todos os produtos transacionados entre PT e África (exclui serviços) | D12: TE - Total da Economia (bens e serviços) Fonte: INE/Contas Nacionais | M12: *TVMA - Taxa de variação média anual; TVT - Taxa de variação total
A24: Agro(1) + Mar + Florestas (AMF) | B24: 2009 | C24: 2010 | D24: 2011 | E24: 2012 | F24: 2013 | G24: 2014 | H24: 2015 | I24: 2016 | J24: 2017 | K24: 2018 | L24: média período | M24: var. 09/10 | N24: var. 10/11 | O24: var. 11/12 | P24: var. 12/13 | Q24: var. 13/14 | R24: var. 14/15 | S24: var. 15/16 | T24: var. 16/17 | U24: var. 17/18 | V24: TVMA* 2009-2018 | W24: TVT* 2009-2018
A25: Exportações | B25: 690.227159 | C25: 818.440517 | D25: 1071.445505 | E25: 1185.665554 | F25: 1292.083032 | G25: 1356.665085 | H25: 1115.48751 | I25: 998.195115 | J25: 1053.906665 | K25: 1014.479777 | L25: 1059.659592 | M25: 0.1857553073 | N25: 0.3091305755 | O25: 0.1066036942 | P25: 0.08975336902 | Q25: 0.04998289692 | R25: -0.1777723756 | S25: -0.1051489989 | T25: 0.05581228476 | U25: -0.0374102274 | V25: 0.03926220858 | W25: 0.4697766725
A26: Importações | B26: 372.630585 | C26: 351.596387 | D26: 381.901446 | E26: 342.852233 | F26: 446.39008 | G26: 416.973063 | H26: 505.71325 | I26: 471.910146 | J26: 505.558404 | K26: 518.224663 | L26: 431.3750257 | M26: -0.05644785706 | N26: 0.08619274862 | O26: -0.1022494505 | P26: 0.3019897117 | Q26: -0.06589980001 | R26: 0.2128199514 | S26: -0.06684243294 | T26: 0.07130225592 | U26: 0.02505399752 | V26: 0.03353207197 | W26: 0.3907196131
A27: Saldo (exp-imp) | B27: 317.596574 | C27: 466.84413 | D27: 689.544059 | E27: 842.813321 | F27: 845.692952 | G27: 939.692022 | H27: 609.77426 | I27: 526.284969 | J27: 548.348261 | K27: 496.255114 | L27: 628.2845662
A28: Cobertura (exp/imp) | B28: 1.852309464 | C28: 2.327784207 | D28: 2.805554983 | E28: 3.458240723 | F28: 2.894515559 | G28: 3.253603663 | H28: 2.20577078 | I28: 2.115222831 | J28: 2.084638801 | K28: 1.95760613 | L28: 2.456469496
A29: Exp AMF / Exp BT | B29: 0.1986237569 | C29: 0.2326911053 | D29: 0.2468201216 | E29: 0.2255999619 | F29: 0.2166980937 | G29: 0.2348553051 | H29: 0.2285478996 | I29: 0.2417565274 | J29: 0.241519921 | K29: 0.2532089124 | L29: 0.2318326254 | V29: Exportações
A30: Imp AMF / Imp BT | B30: 0.1298773195 | C30: 0.09053029626 | D30: 0.08757272927 | E30: 0.06288792106 | F30: 0.07648060823 | G30: 0.09696550799 | H30: 0.1477583886 | I30: 0.2185603146 | J30: 0.2454016366 | K30: 0.157876695 | L30: 0.1146456831 | V30: Importações
A31: Exp AMF África / Exp AMF Mundo | B31: 0.10298624 | C31: 0.1048033802 | D31: 0.1236052773 | E31: 0.132079741 | F31: 0.1357686406 | G31: 0.136085698 | H31: 0.1071943886 | I31: 0.09495388486 | J31: 0.09453336776 | K31: 0.0913456646 | L31: 0.1117599449
A32: Imp AMF África / Imp AMF Mundo | B32: 0.03930391859 | C32: 0.03400564754 | D32: 0.0340808988 | E32: 0.03238739038 | F32: 0.04048999126 | G32: 0.03788281711 | H32: 0.04400578376 | I32: 0.0395966268 | J32: 0.03878962012 | K32: 0.04104809096 | L32: 0.03827249311
A33: (1) Produtos agrícolas e agroalimentares | B33: BT - Total de Bens Transacionáveis (exclui serviços) | M33: *TVMA - Taxa de variação média anual; TVT - Taxa de variação total
A49: Agroalimentar (AA)(1) | B49: 2009 | C49: 2010 | D49: 2011 | E49: 2012 | F49: 2013 | G49: 2014 | H49: 2015 | I49: 2016 | J49: 2017 | K49: 2018 | L49: média período | M49: var. 09/10 | N49: var. 10/11 | O49: var. 11/12 | P49: var. 12/13 | Q49: var. 13/14 | R49: var. 14/15 | S49: var. 15/16 | T49: var. 16/17 | U49: var. 17/18 | V49: TVMA* 2009-2018 | W49: TVT* 2009-2018
A50: Exportações | B50: 522.71045 | C50: 580.10931 | D50: 767.504811 | E50: 847.27963 | F50: 915.374273 | G50: 972.580615 | H50: 742.391805 | I50: 641.525888 | J50: 705.247831 | K50: 618.341087 | L50: 731.30657 | M50: 0.1098100488 | N50: 0.3230348105 | O50: 0.1039404807 | P50: 0.08036855908 | Q50: 0.06249502929 | R50: -0.2366783858 | S50: -0.1358661509 | T50: 0.09932871641 | U50: -0.1232286583 | V50: 0.01694318967 | W50: 0.1829514543
A51: Importações | B51: 224.022337 | C51: 190.185587 | D51: 232.068586 | E51: 196.114838 | F51: 284.815294 | G51: 245.476858 | H51: 272.649922 | I51: 227.439044 | J51: 233.394257 | K51: 248.96164 | L51: 235.5128363 | M51: -0.1510418579 | N51: 0.2202217301 | O51: -0.1549272507 | P51: 0.4522883475 | Q51: -0.1381191138 | R51: 0.1106950131 | S51: -0.1658202492 | T51: 0.02618377608 | U51: 0.06669994026 | V51: 0.01061121004 | W51: 0.1113250729
A52: Saldo (exp-imp) | B52: 298.688113 | C52: 389.923723 | D52: 535.436225 | E52: 651.164792 | F52: 630.558979 | G52: 727.103757 | H52: 469.741883 | I52: 414.086844 | J52: 471.853574 | K52: 369.379447 | L52: 495.7937337
A53: Cobertura (exp/imp) | B53: 2.333296121 | C53: 3.050227513 | D53: 3.307232677 | E53: 4.320323942 | F53: 3.213922469 | G53: 3.96200531 | H53: 2.722875545 | I53: 2.820649774 | J53: 3.021701734 | K53: 2.483680165 | L53: 3.105166502
A54: Exp AA / Exp AMF | B54: 0.7573020609 | C54: 0.7087983769 | D54: 0.7163265023 | E54: 0.7146025514 | F54: 0.70844849 | G54: 0.716890724 | H54: 0.6655312573 | I54: 0.6426858621 | J54: 0.6691748467 | K54: 0.6095154394 | L54: 0.6901334878 | V54: Exportações
A55: Imp AA / Imp AMF | B55: 0.601191491 | C55: 0.5409201972 | D55: 0.6076661621 | E55: 0.5720098023 | F55: 0.638041271 | G55: 0.5887115495 | H55: 0.539139368 | I55: 0.4819541303 | J55: 0.4616563688 | K55: 0.4804125658 | L55: 0.5459584405 | V55: Importações
A56: Exp AA / Exp BT | B56: 0.1504181805 | C56: 0.1649310778 | D56: 0.1768037944 | E56: 0.1612143084 | F56: 0.1535194373 | G56: 0.1683655897 | H56: 0.1521057709 | I56: 0.1553735023 | J56: 0.1616190561 | K56: 0.1543347415 | L56: 0.1599954584
A57: Imp AA / Imp BT | B57: 0.07808113936 | C57: 0.04896966571 | D57: 0.0532149843 | E57: 0.03597250729 | F57: 0.04879778448 | G57: 0.05708471445 | H57: 0.07966236424 | I57: 0.1053360463 | J57: 0.1132912285 | K57: 0.07584594812 | L57: 0.06259177835
A58: Exp AA África / Exp AA Mundo | B58: 0.1486122839 | C58: 0.1558201318 | D58: 0.1846516096 | E58: 0.1893647515 | F58: 0.1897543473 | G58: 0.1886605468 | H58: 0.1379954613 | I58: 0.1172635664 | J58: 0.1197543789 | K58: 0.1016352751 | L58: 0.1502461329
A59: Imp AA África / Imp AA Mundo | B59: 0.03430173164 | C59: 0.02722921156 | D59: 0.0303274163 | E59: 0.02630078527 | F59: 0.03635504301 | G59: 0.0325795321 | H59: 0.03511730291 | I59: 0.02852039588 | J59: 0.02671217425 | K59: 0.02768279808 | L59: 0.03040343738
A60: (1) Produtos agrícolas e agroalimentares | B60: AMF - Agroalimentar, Mar e Florestas; BT - Total de Bens Transacionáveis (exclui serviços) | M60: *TVMA - Taxa de variação média anual; TVT - Taxa de variação total
A72: Mar (M) | B72: 2009 | C72: 2010 | D72: 2011 | E72: 2012 | F72: 2013 | G72: 2014 | H72: 2015 | I72: 2016 | J72: 2017 | K72: 2018 | L72: média período | M72: var. 09/10 | N72: var. 10/11 | O72: var. 11/12 | P72: var. 12/13 | Q72: var. 13/14 | R72: var. 14/15 | S72: var. 15/16 | T72: var. 16/17 | U72: var. 17/18 | V72: TVMA* 2009-2018 | W72: TVT* 2009-2018
A73: Exportações | B73: 25.624543 | C73: 22.753833 | D73: 33.765313 | E73: 47.02734 | F73: 67.774155 | G73: 51.490674 | H73: 40.395457 | I73: 39.97837 | J73: 35.726494 | K73: 36.579766 | L73: 40.1115945 | M73: -0.1120297053 | N73: 0.4839395631 | O73: 0.3927707408 | P73: 0.4411649691 | Q73: -0.2402609225 | R73: -0.2154801275 | S73: -0.01032509671 | T73: -0.1063544111 | U73: 0.02388345187 | V73: 0.03623553075 | W73: 0.4275285222
A74: Importações | B74: 90.057796 | C74: 99.098946 | D74: 106.480037 | E74: 112.135575 | F74: 125.845588 | G74: 134.604586 | H74: 182.093273 | I74: 192.051812 | J74: 227.638873 | K74: 212.739686 | L74: 148.2746172 | M74: 0.1003927522 | N74: 0.07448203334 | O74: 0.05311359912 | P74: 0.1222628323 | Q74: 0.0696011528 | R74: 0.3528014046 | S74: 0.05468921963 | T74: 0.1852992723 | U74: -0.06545097858 | V74: 0.08976465979 | W74: 1.3622573
A75: Saldo (exp-imp) | B75: -64.433253 | C75: -76.345113 | D75: -72.714724 | E75: -65.108235 | F75: -58.071433 | G75: -83.113912 | H75: -141.697816 | I75: -152.073442 | J75: -191.912379 | K75: -176.15992 | L75: -108.1630227
A76: Cobertura (exp/imp) | B76: 0.2845344228 | C76: 0.229607215 | D76: 0.3171046325 | E76: 0.4193793094 | F76: 0.5385501079 | G76: 0.3825328358 | H76: 0.2218393702 | I76: 0.208164503 | J76: 0.1569437308 | K76: 0.1719461314 | L76: 0.2705223271
A77: Exp M / Exp AMF | B77: 0.03712479677 | C77: 0.02780144986 | D77: 0.03151379407 | E77: 0.03966324217 | F77: 0.05245340533 | G77: 0.03795385801 | H77: 0.03621327593 | I77: 0.04005065683 | J77: 0.03389910624 | K77: 0.03605765914 | L77: 0.03785328308 | V77: Exportações
A78: Imp M / Imp AMF | B78: 0.2416811706 | C78: 0.2818542786 | D78: 0.2788154853 | E78: 0.3270667775 | F78: 0.2819184244 | G78: 0.322813625 | H78: 0.3600721812 | I78: 0.4069669059 | J78: 0.4502721569 | K78: 0.4105163285 | L78: 0.3437255482 | V78: Importações
A79: Exp M / Exp BT | B79: 0.007373866609 | C79: 0.006469150099 | D79: 0.007778238485 | E79: 0.008948025922 | F79: 0.01136655295 | G79: 0.008913664901 | H79: 0.008276468151 | I79: 0.009682507717 | J79: 0.008187309462 | K79: 0.009130120653 | L79: 0.008775625998
A80: Imp M / Imp BT | B80: 0.03138890262 | C80: 0.02551635134 | D80: 0.02441663301 | E80: 0.02056854968 | F80: 0.02156129257 | G80: 0.03130178713 | H80: 0.05320368527 | I80: 0.08894681498 | J80: 0.1104975242 | K80: 0.06481096119 | L80: 0.03940665027
A81: Exp M África / Exp M Mundo | B81: 0.04943973746 | C81: 0.03313403716 | D81: 0.04241284737 | E81: 0.05995863515 | F81: 0.08287101633 | G81: 0.05732719965 | H81: 0.04494850658 | I81: 0.04159917628 | J81: 0.03365651151 | K81: 0.03362737882 | L81: 0.04713178496
A82: Imp M África / Imp M Mundo | B82: 0.07083909331 | C82: 0.07092350416 | D82: 0.0705842341 | E82: 0.07677274688 | F82: 0.08719506861 | G82: 0.08553458862 | H82: 0.103244754 | I82: 0.09951751179 | J82: 0.106525483 | K82: 0.09656767106 | L82: 0.08885010836
A83: AMF - Agroalimentar, Mar e Florestas; BT - Total de Bens Transacionáveis (exclui serviços) | M83: *TVMA - Taxa de variação média anual; TVT - Taxa de variação total
A95: Florestas (F) | B95: 2009 | C95: 2010 | D95: 2011 | E95: 2012 | F95: 2013 | G95: 2014 | H95: 2015 | I95: 2016 | J95: 2017 | K95: 2018 | L95: média período | M95: var. 09/10 | N95: var. 10/11 | O95: var. 11/12 | P95: var. 12/13 | Q95: var. 13/14 | R95: var. 14/15 | S95: var. 15/16 | T95: var. 16/17 | U95: var. 17/18 | V95: TVMA* 2009-2018 | W95: TVT* 2009-2018
A96: Exportações | B96: 141.892166 | C96: 215.577374 | D96: 270.175381 | E96: 291.358584 | F96: 308.934604 | G96: 332.593796 | H96: 332.700248 | I96: 316.690857 | J96: 312.93234 | K96: 359.558924 | L96: 288.2414274 | M96: 0.5193042722 | N96: 0.2532640879 | O96: 0.07840537847 | P96: 0.06032435962 | Q96: 0.07658317228 | R96: 0.0003200661025 | S96: -0.04811956437 | T96: -0.01186809444 | U96: 0.1489989306 | V96: 0.0974409599 | W96: 1.534029426
A97: Importações | B97: 58.550452 | C97: 62.311854 | D97: 43.352823 | E97: 34.60182 | F97: 35.729198 | G97: 36.891619 | H97: 50.970055 | I97: 52.41929 | J97: 44.525274 | K97: 56.523337 | L97: 47.5875722 | M97: 0.06424206597 | N97: -0.3042604221 | O97: -0.2018554363 | P97: 0.03258146537 | Q97: 0.03253420354 | R97: 0.3816161064 | S97: 0.02843306722 | T97: -0.1505937223 | U97: 0.2694663485 | V97: -0.003517320962 | W97: -0.03462167978
A98: Saldo (exp-imp) | B98: 83.341714 | C98: 153.26552 | D98: 226.822558 | E98: 256.756764 | F98: 273.205406 | G98: 295.702177 | H98: 281.730193 | I98: 264.271567 | J98: 268.407066 | K98: 303.035587 | L98: 240.6538552
A99: Cobertura (exp/imp) | B99: 2.42341709 | C99: 3.459652701 | D99: 6.232013565 | E99: 8.420325405 | F99: 8.646558593 | G99: 9.015429656 | H99: 6.527366863 | I99: 6.041494591 | J99: 7.028195716 | K99: 6.361247284 | L99: 6.057073603
A100: Exp F / Exp AMF | B100: 0.2055731423 | C100: 0.2634001733 | D100: 0.2521597036 | E100: 0.2457342064 | F100: 0.2390981046 | G100: 0.245155418 | H100: 0.2982554668 | I100: 0.3172634811 | J100: 0.2969260471 | K100: 0.3544269015 | L100: 0.2720132292 | V100: Exportações
A101: Imp F / Imp AMF | B101: 0.1571273383 | C101: 0.1772255242 | D101: 0.1135183526 | E101: 0.1009234203 | F101: 0.08004030466 | G101: 0.08847482553 | H101: 0.1007884508 | I101: 0.1110789637 | J101: 0.08807147433 | K101: 0.1090711057 | L101: 0.1103160113 | V101: Importações
A102: Exp F / Exp BT | B102: 0.04083170985 | C102: 0.06129087747 | D102: 0.06223808872 | E102: 0.0554376276 | F102: 0.05181210349 | G102: 0.05757605048 | H102: 0.06816566047 | I102: 0.07670051748 | J102: 0.07171355544 | K102: 0.08974405025 | L102: 0.06306154107
A103: Imp F / Imp BT | B103: 0.02040727752 | C103: 0.01604427921 | D103: 0.009941111958 | E103: 0.006346864086 | F103: 0.006121531183 | G103: 0.008579006401 | H103: 0.01489233907 | I103: 0.02427745326 | J103: 0.02161288394 | K103: 0.01721978569 | L103: 0.01264725447
A104: Exp F África / Exp F Mundo | B104: 0.05321178702 | C104: 0.06341196886 | D104: 0.0727124222 | E104: 0.07835935421 | F104: 0.07972553399 | G104: 0.08493594154 | H104: 0.08060226038 | I104: 0.07760928909 | J104: 0.07454510704 | K104: 0.09139258554 | L104: 0.07659626354
A105: Imp F África / Imp F Mundo | B105: 0.03488230551 | C105: 0.03183282718 | D105: 0.02119864994 | E105: 0.02073521395 | F105: 0.0204498146 | G105: 0.01943161009 | H105: 0.02594832463 | I105: 0.02603393666 | J105: 0.02062285601 | K105: 0.03957007629 | L105: 0.02563880605
A106: AMF - Agroalimentar, Mar e Florestas; BT - Total de Bens Transacionáveis (exclui serviços) | M106: *TVMA - Taxa de variação média anual; TVT - Taxa de variação total
A116: Fonte: GPP a partir de dados INE/Comércio Internacional (2017 provisórios; 2018 preliminares) | M116: 2019-11-28T12:41:20.420

Sheet 3
A1: Principais transações de Agroalimentar, Mar & Florestas entre Portugal e África em 2009-2018 (NC a 2 e 4 dígitos) em milhões de euros
AC4: P | AE4: Cód.NC | AF4: Descritivo | AG4: Média export quinquénio | AH4: % do total | AI4: % acumulada | AN4: P | AO4: NC | AP4: Exportações | AQ4: 2009 | AR4: 2010 | AS4: 2011 | AT4: 2012 | AU4: 2013 | AV4: 2014 | AW4: 2015 | AX4: 2016 | AY4: 2017 | AZ4: 2018 | BA4: média período
AC5: 1 | AD5: º | AE5: 22 | AF5: Bebidas, líquidos alcoólicos e vinagres | AG5: 227.0425298 | AH5: 0.2142598732 | AN5: 1º | AO5: 22 | AP5: Bebidas, líquidos alcoólicos e vinagres | AQ5: 216.05007 | AR5: 234.047633 | AS5: 296.158961 | AT5: 343.135526 | AU5: 329.959636 | AV5: 351.487053 | AW5: 207.472122 | AX5: 96.393714 | AY5: 102.081751 | AZ5: 93.638832 | BA5: 227.0425298
AC6: 2 | AD6: º | AE6: 48 | AF6: Papel e cartão | AG6: 196.2944551 | AH6: 0.1852429371 | AN6: 2º | AO6: 48 | AP6: Papel e cartão | AQ6: 79.114324 | AR6: 130.835996 | AS6: 184.819985 | AT6: 201.54794 | AU6: 207.53512 | AV6: 218.266438 | AW6: 222.817165 | AX6: 224.306155 | AY6: 228.504009 | AZ6: 265.197419 | BA6: 196.2944551
AC7: 3 | AD7: º | AE7: 15 | AF7: Gorduras e óleos animais ou vegetais | AG7: 94.757505 | AH7: 0.08942258979 | AI7: 0.4889254001 | AN7: 3º | AO7: 15 | AP7: Gorduras e óleos animais ou vegetais | AQ7: 44.773509 | AR7: 58.900335 | AS7: 105.439055 | AT7: 75.080121 | AU7: 115.179578 | AV7: 92.831635 | AW7: 82.172416 | AX7: 103.224702 | AY7: 154.756067 | AZ7: 115.217632 | BA7: 94.757505
AC8: 4 | AD8: º | AE8: 44 | AF8: Madeira e suas obras | AG8: 72.0165217 | AH8: 0.06796194009 | AO8: - | AP8: Outros | AQ8: 350.289256 | AR8: 394.656553 | AS8: 485.027504 | AT8: 565.901967 | AU8: 639.408698 | AV8: 694.079959 | AW8: 603.025807 | AX8: 574.270544 | AY8: 568.564838 | AZ8: 540.425894 | BA8: 541.565102
AC9: 5 | AD9: º | AE9: 04 | AF9: Leite e laticínios; ovos; mel, etc. | AG9: 67.1642859 | AH9: 0.06338288863 | AP9: Total | AQ9: 690.227159 | AR9: 818.440517 | AS9: 1071.445505 | AT9: 1185.665554 | AU9: 1292.083032 | AV9: 1356.665085 | AW9: 1115.48751 | AX9: 998.195115 | AY9: 1053.906665 | AZ9: 1014.479777 | BA9: 1059.659592
AC10: 6 | AD10: º | AE10: 16a | AF10: Preparações de carnes (exc. NC 1604-05) (a) | AG10: 66.6100543 | AH10: 0.06285986067
AC11: 7 | AD11: º | AE11: 19a | AF11: Preparações à base de cereais (exc. NC 19022010) (a) | AG11: 44.6506234 | AH11: 0.04213676141
AC12: 8 | AD12: º | AE12: 20 | AF12: Preparações de produtos vegetais | AG12: 40.3805863 | AH12: 0.03810713045
AC13: 9 | AD13: º | AE13: 02 | AF13: Carnes e miudezas | AG13: 35.5072096 | AH13: 0.03350812834
AC14: 10 | AD14: º | AE14: 24 | AF14: Tabaco | AG14: 29.4128415 | AH14: 0.02775687752 | AI14: 0.8246389872
AE15: - | AF15: Outros | AG15: 185.8229793 | AH15: 0.1753610128
AE16: Total | AG16: 1059.659592 | AH16: 1
AC38: P | AE38: Cód.NC | AF38: Descritivo | AG38: Média import quinquénio | AH38: % do total | AI38: % acumulada | AN38: P | AO38: NC | AP38: Importações | AQ38: 2009 | AR38: 2010 | AS38: 2011 | AT38: 2012 | AU38: 2013 | AV38: 2014 | AW38: 2015 | AX38: 2016 | AY38: 2017 | AZ38: 2018 | BA38: média período
AC39: 1 | AD39: º | AE39: 03 | AF39: Peixes e crustáceos | AG39: 137.8511598 | AH39: 0.3195622175 | AN39: 1º | AO39: 03 | AP39: Peixes e crustáceos | AQ39: 82.71587 | AR39: 94.943878 | AS39: 101.651289 | AT39: 106.103266 | AU39: 116.132281 | AV39: 129.998894 | AW39: 173.531435 | AX39: 176.922997 | AY39: 201.426524 | AZ39: 195.085164 | BA39: 137.8511598
AC40: 2 | AD40: º | AE40: 17 | AF40: Açúcares e produtos de confeitaria | AG40: 77.2968082 | AH40: 0.1791870266 | AN40: 2º | AO40: 17 | AP40: Açúcares e produtos de confeitaria | AQ40: 152.553605 | AR40: 79.180903 | AS40: 82.874774 | AT40: 60.031706 | AU40: 129.651833 | AV40: 80.78425 | AW40: 64.966362 | AX40: 38.706271 | AY40: 45.494573 | AZ40: 38.723805 | BA40: 77.2968082
AC41: 3 | AD41: º | AE41: 08 | AF41: Frutas | AG41: 50.891014 | AH41: 0.117973946 | AI41: 0.6167231901 | AN41: 3º | AO41: 08 | AP41: Frutas | AQ41: 14.621821 | AR41: 35.868482 | AS41: 28.489658 | AT41: 34.17316 | AU41: 38.238017 | AV41: 37.976085 | AW41: 57.004585 | AX41: 69.227947 | AY41: 87.582614 | AZ41: 105.727771 | BA41: 50.891014
AC42: 4 | AD42: º | AE42: 44 | AF42: Madeira e suas obras | AG42: 31.6076266 | AH42: 0.07327180462 | AO42: - | AP42: Outros | AQ42: 122.739289 | AR42: 141.603124 | AS42: 168.885725 | AT42: 142.544101 | AU42: 162.367949 | AV42: 168.213834 | AW42: 210.210868 | AX42: 187.052931 | AY42: 171.054693 | AZ42: 178.687923 | BA42: 165.3360437
AC43: 5 | AD43: º | AE43: 52 | AF43: Algodão (NC 5201-5203) | AG43: 28.508748 | AH43: 0.06608808183 | AP43: Total | AQ43: 372.630585 | AR43: 351.596387 | AS43: 381.901446 | AT43: 342.852233 | AU43: 446.39008 | AV43: 416.973063 | AW43: 505.71325 | AX43: 471.910146 | AY43: 505.558404 | AZ43: 518.224663 | BA43: 431.3750257
AC44: 6 | AD44: º | AE44: 09 | AF44: Café, chá, mate e especiarias | AG44: 22.9278603 | AH44: 0.05315064372
AC45: 7 | AD45: º | AE45: 24 | AF45: Tabaco | AG45: 20.3953471 | AH45: 0.04727985137
AC46: 8 | AD46: º | AE46: 45 | AF46: Cortiça e suas obras | AG46: 14.9801026 | AH46: 0.0347264021
AC47: 9 | AD47: º | AE47: 23a | AF47: Resíduos indústrias alimentares; alimentos p/ animais (exc. NC 230120) (a) | AG47: 11.7279305 | AH47: 0.02718731916
AC48: 10 | AD48: º | AE48: 16p | AF48: Preparações e conservas de peixes ou crustáceos (NC 1604-05) (p) | AG48: 10.1662745 | AH48: 0.0235671374 | AI48: 0.9419944303
AE49: - | AF49: Outros | AG49: 25.0221541 | AH49: 0.05800556965
AE50: Total | AG50: 431.3750257 | AH50: 1
AC62: DESAGREGAÇÃO A 4 DÍGITOS | AN62: DESAGREGAÇÃO A 4 DÍGITOS
AC64: P | AE64: Cód.NC | AF64: Descritivo | AG64: Média export quinquénio | AH64: % do total | AI64: % acumulada | AN64: P | AO64: NC | AP64: Exportações | AQ64: 2009 | AR64: 2010 | AS64: 2011 | AT64: 2012 | AU64: 2013 | AV64: 2014 | AW64: 2015 | AX64: 2016 | AY64: 2017 | AZ64: 2018 | BA64: média período
AC65: 1 | AD65: º | AE65: 4802 | AF65: Papel e cartão p/ escrita, etc. | AG65: 120.7234072 | AH65: 0.1139265931 | AN65: 1º | AO65: 4802 | AP65: Papel e cartão p/ escrita, etc. | AQ65: 16.610576 | AR65: 67.945165 | AS65: 100.033816 | AT65: 118.314953 | AU65: 118.017269 | AV65: 128.812714 | AW65: 150.27032 | AX65: 152.794708 | AY65: 167.09146 | AZ65: 187.343091 | BA65: 120.7234072
AC66: 2 | AD66: º | AE66: 2203 | AF66: Cervejas de malte | AG66: 91.5518561 | AH66: 0.08639742121 | AN66: 2º | AO66: 2203 | AP66: Cervejas de malte | AQ66: 89.562677 | AR66: 114.640937 | AS66: 135.688065 | AT66: 160.368915 | AU66: 135.071212 | AV66: 157.991994 | AW66: 67.810629 | AX66: 20.354889 | AY66: 19.507755 | AZ66: 14.521488 | BA66: 91.5518561
AC67: 3 | AD67: º | AE67: 2204 | AF67: Vinhos de uvas frescas | AG67: 84.2325959 | AH67: 0.07949024059 | AI67: 0.2798142549 | AN67: 3º | AO67: 2204 | AP67: Vinhos de uvas frescas | AQ67: 71.167915 | AR67: 70.932031 | AS67: 90.836044 | AT67: 107.385165 | AU67: 114.632977 | AV67: 117.911223 | AW67: 94.594331 | AX67: 52.705175 | AY67: 62.730198 | AZ67: 59.4309 | BA67: 84.2325959
AC68: 4 | AD68: º | AE68: 1507 | AF68: Óleo de soja e suas frações | AG68: 57.2587104 | AH68: 0.05403500411 | AN68: - | AO68: - | AP68: Outros | AQ68: 512.885991 | AR68: 564.922384 | AS68: 744.88758 | AT68: 799.596521 | AU68: 924.361574 | AV68: 951.949154 | AW68: 802.81223 | AX68: 772.340343 | AY68: 804.577252 | AZ68: 753.184298 | BA68: 763.1517327
AC69: 5 | AD69: º | AE69: 1601 | AF69: Enchidos e etc., de carne, miudezas ou sangue | AG69: 54.2693171 | AH69: 0.05121391578 | AP69: Total | AQ69: 690.227159 | AR69: 818.440517 | AS69: 1071.445505 | AT69: 1185.665554 | AU69: 1292.083032 | AV69: 1356.665085 | AW69: 1115.48751 | AX69: 998.195115 | AY69: 1053.906665 | AZ69: 1014.479777 | BA69: 1059.659592
AC70: 6 | AD70: º | AE70: 2202 | AF70: Águas com açúcar ou outros produtos; outras bebidas | AG70: 32.7225252 | AH70: 0.03088022366
AC71: 7 | AD71: º | AE71: 4819 | AF71: Embalagens de papel, cartão etc. | AG71: 26.5898881 | AH71: 0.02509285841
AC72: 8 | AD72: º | AE72: 0401 | AF72: Leite e nata, não concentrados | AG72: 21.2481452 | AH72: 0.02005185945
AC73: 9 | AD73: º | AE73: 4418 | AF73: Obras de marcenaria ou carpintaria | AG73: 19.1071637 | AH73: 0.01803141674
AC74: 10 | AD74: º | AE74: 1509 | AF74: Azeite (processos mecânicos ou físicos) | AG74: 18.6946566 | AH74: 0.01764213408 | AI74: 0.4967616672
AE75: - | AF75: Outros | AG75: 533.2613264 | AH75: 0.5032383328
AE76: Total | AG76: 1059.659592 | AH76: 1
AC89: DESAGREGAÇÃO A 4 DÍGITOS | AN89: DESAGREGAÇÃO A 4 DÍGITOS
G91: média 2009-2018 em milhões de euros | I91: Cód. NC | J91: Descritivo | K91: Export | L91: Import | M91: Saldo | AC91: P | AE91: Cód.NC | AF91: Descritivo | AG91: Média import quinquénio | AH91: % do total | AI91: % acumulada | AN91: P | AO91: NC | AP91: Importações | AQ91: 2009 | AR91: 2010 | AS91: 2011 | AT91: 2012 | AU91: 2013 | AV91: 2014 | AW91: 2015 | AX91: 2016 | AY91: 2017 | AZ91: 2018 | BA91: média período
I92: 4802 | J92: Papel e cartão p/ escrita, etc. | K92: 120.7234072 | L92: 0.0040079 | M92: 120.7193993 | AC92: 1 | AD92: º | AE92: 1701 | AF92: Açúcares (cana/beterraba); sacarose pura | AG92: 70.6010578 | AH92: 0.1636651489 | AN92: 1º | AO92: 1701 | AP92: Açúcares (cana/beterraba); sacarose pura | AQ92: 148.288546 | AR92: 72.952713 | AS92: 76.052597 | AT92: 56.690323 | AU92: 121.027373 | AV92: 73.309892 | AW92: 57.709822 | AX92: 30.455206 | AY92: 37.962479 | AZ92: 31.561627 | BA92: 70.6010578
I93: 2203 | J93: Cervejas de malte | K93: 91.5518561 | L93: 0.0734388 | M93: 91.4784173 | AC93: 2 | AD93: º | AE93: 0303 | AF93: Peixes congelados | AG93: 44.0886775 | AH93: 0.1022049838 | AN93: 2º | AO93: 0303 | AP93: Peixes congelados | AQ93: 29.399033 | AR93: 32.558755 | AS93: 28.003562 | AT93: 38.94451 | AU93: 46.441704 | AV93: 46.170226 | AW93: 53.791795 | AX93: 54.103243 | AY93: 56.705361 | AZ93: 54.768586 | BA93: 44.0886775
I94: 2204 | J94: Vinhos de uvas frescas | K94: 84.2325959 | L94: 0.0548405 | M94: 84.1777554 | AC94: 3 | AD94: º | AE94: 0805 | AF94: Citrinos, frescos ou secos | AG94: 40.6149458 | AH94: 0.09415228833 | AI94: 0.360022421 | AN94: 3º | AO94: 0805 | AP94: Citrinos, frescos ou secos | AQ94: 4.409575 | AR94: 28.323621 | AS94: 19.950598 | AT94: 27.338965 | AU94: 29.805308 | AV94: 30.274579 | AW94: 46.363093 | AX94: 56.71521 | AY94: 73.685418 | AZ94: 89.283091 | BA94: 40.6149458
I95: 1507 | J95: Óleo de soja e suas frações | K95: 57.2587104 | L95: 0 | M95: 57.2587104 | AC95: 4 | AD95: º | AE95: 0307 | AF95: Moluscos | AG95: 35.1992716 | AH95: 0.08159784295 | AN95: - | AO95: - | AP95: Outros | AQ95: 190.533431 | AR95: 217.761298 | AS95: 257.894689 | AT95: 219.878435 | AU95: 249.115695 | AV95: 267.218366 | AW95: 347.84854 | AX95: 330.636487 | AY95: 337.205146 | AZ95: 342.611359 | BA95: 276.0703446
I96: 1601 | J96: Enchidos e etc., de carne, miudezas ou sangue | K96: 54.2693171 | L96: 0.0002785 | M96: 54.2690386 | AC96: 5 | AD96: º | AE96: 5201 | AF96: Algodão não cardado nem penteado | AG96: 28.2216652 | AH96: 0.06542257553 | AP96: Total | AQ96: 372.630585 | AR96: 351.596387 | AS96: 381.901446 | AT96: 342.852233 | AU96: 446.39008 | AV96: 416.973063 | AW96: 505.71325 | AX96: 471.910146 | AY96: 505.558404 | AZ96: 518.224663 | BA96: 431.3750257
I97: 2202 | J97: Águas com açúcar ou outros produtos; outras bebidas | K97: 32.7225252 | L97: 0.1187025 | M97: 32.6038227 | AC97: 6 | AD97: º | AE97: 0306 | AF97: Crustáceos | AG97: 27.1693156 | AH97: 0.06298305183
I98: 4819 | J98: Embalagens de papel, cartão etc. | K98: 26.5898881 | L98: 0.0473508 | M98: 26.5425373 | AC98: 7 | AD98: º | AE98: 0901 | AF98: Café | AG98: 22.7828701 | AH98: 0.052814532
I99: 0401 | J99: Leite e nata, não concentrados | K99: 21.2481452 | L99: 0 | M99: 21.2481452 | AC99: 8 | AD99: º | AE99: 0304 | AF99: Filetes de peixes | AG99: 21.3640677 | AH99: 0.04952550896
I100: 4418 | J100: Obras de marcenaria ou carpintaria | K100: 19.1071637 | L100: 0.025213 | M100: 19.0819507 | AC100: 9 | AD100: º | AE100: 2401 | AF100: Tabaco não manufaturado | AG100: 20.377145 | AH100: 0.04723765584
I101: 1905 | J101: Produtos de padaria, pastelaria, etc. | K101: 17.6786784 | L101: 0.0701661 | M101: 17.6085123 | AC101: 10 | AD101: º | AE101: 4407 | AF101: Madeira serrada, etc. | AG101: 12.4466919 | AH101: 0.0288535292 | AI101: 0.7484571173
I102: - | J102: Outros | K102: 496.4526805 | L102: 110.5816652 | M102: 385.8710153 | AE102: - | AF102: Outros | AG102: 108.5093175 | AH102: 0.2515428827
I103: 2401 | J103: Tabaco não manufaturado | K103: 12.9920139 | L103: 20.377145 | M103: -7.3851311 | AE103: Total | AG103: 431.3750257 | AH103: 1
I104: 0302 | J104: Peixes frescos ou refrigerados | K104: 0.9459983 | L104: 9.9803461 | M104: -9.0343478
I105: 0901 | J105: Café | K105: 4.9814027 | L105: 22.7828701 | M105: -17.8014674
I106: 0304 | J106: Filetes de peixes | K106: 1.8008346 | L106: 21.3640677 | M106: -19.5632331
J107: Crustáceos | K107: 2.178803 | L107: 27.1693156 | M107: -24.9905126
I108: 5201 | J108: Algodão não cardado nem penteado | K108: 0.0598949 | L108: 28.2216652 | M108: -28.1617703
I109: 0307 | J109: Moluscos | K109: 1.4522112 | L109: 35.1992716 | M109: -33.7470604
I110: 0303 | J110: Peixes congelados | K110: 6.1224245 | L110: 44.0886775 | M110: -37.966253
I111: 0805 | J111: Citrinos, frescos ou secos | K111: 2.3796477 | L111: 40.6149458 | M111: -38.2352981
I112: 1701 | J112: Açúcares (cana/beterraba); sacarose pura | K112: 4.9113933 | L112: 70.6010578 | M112: -65.6896645
I113: Total | K113: 1059.659592 | L113: 431.3750257 | M113: 628.2845662
A116: Fonte: GPP a partir de dados INE/Comércio Internacional (2017 provisórios; 2018 preliminares) | Y116: 2019-11-28T12:41:20.420

Sheet 3A
A1: Principais produtos agrícolas e agroalimentares transacionados entre Portugal e África em 2009-2018 (NC 2 dígitos) em milhões de euros
AC4: P | AE4: Cód.NC | AF4: Descritivo | AG4: Média export quinquénio | AH4: % do total | AI4: % acumulada | AN4: P | AO4: NC | AP4: Exportações | AQ4: 2009 | AR4: 2010 | AS4: 2011 | AT4: 2012 | AU4: 2013 | AV4: 2014 | AW4: 2015 | AX4: 2016 | AY4: 2017 | AZ4: 2018 | BA4: média período
AC5: 1 | AD5: º | AE5: 22 | AF5: Bebidas, líquidos alcoólicos e vinagres | AG5: 227.0425298 | AH5: 0.3104614933 | AN5: 1º | AO5: 22 | AP5: Bebidas, líquidos alcoólicos e vinagres | AQ5: 216.05007 | AR5: 234.047633 | AS5: 296.158961 | AT5: 343.135526 | AU5: 329.959636 | AV5: 351.487053 | AW5: 207.472122 | AX5: 96.393714 | AY5: 102.081751 | AZ5: 93.638832 | BA5: 227.0425298
AC6: 2 | AD6: º | AE6: 15 | AF6: Gorduras e óleos animais ou vegetais | AG6: 94.757505 | AH6: 0.129572889 | AN6: 2º | AO6: 15 | AP6: Gorduras e óleos animais ou vegetais | AQ6: 44.773509 | AR6: 58.900335 | AS6: 105.439055 | AT6: 75.080121 | AU6: 115.179578 | AV6: 92.831635 | AW6: 82.172416 | AX6: 103.224702 | AY6: 154.756067 | AZ6: 115.217632 | BA6: 94.757505
AC7: 3 | AD7: º | AE7: 04 | AF7: Leite e laticínios; ovos; mel, etc. | AG7: 67.1642859 | AH7: 0.09184149118 | AI7: 0.5318758735 | AN7: 3º | AO7: 04 | AP7: Leite e laticínios; ovos; mel, etc. | AQ7: 27.5075 | AR7: 35.125317 | AS7: 45.032826 | AT7: 69.835893 | AU7: 68.304716 | AV7: 95.846742 | AW7: 90.112066 | AX7: 79.010854 | AY7: 86.96244 | AZ7: 73.904505 | BA7: 67.1642859
AC8: 4 | AD8: º | AE8: 16a | AF8: Preparações de carnes (exc. NC 1604-05) (a) | AG8: 66.6100543 | AH8: 0.09108362626 | AO8: - | AP8: Outros | AQ8: 234.379371 | AR8: 252.036025 | AS8: 320.873969 | AT8: 359.22809 | AU8: 401.930343 | AV8: 432.415185 | AW8: 362.635201 | AX8: 362.896618 | AY8: 361.447573 | AZ8: 335.580118 | BA8: 342.3422493
AC9: 5 | AD9: º | AE9: 19a | AF9: Preparações à base de cereais (exc. NC 19022010) (a) | AG9: 44.6506234 | AH9: 0.06105595824 | AP9: Total | AQ9: 522.71045 | AR9: 580.10931 | AS9: 767.504811 | AT9: 847.27963 | AU9: 915.374273 | AV9: 972.580615 | AW9: 742.391805 | AX9: 641.525888 | AY9: 705.247831 | AZ9: 618.341087 | BA9: 731.30657
AC10: 6 | AD10: º | AE10: 20 | AF10: Preparações de produtos vegetais | AG10: 40.3805863 | AH10: 0.05521704297
AC11: 7 | AD11: º | AE11: 02 | AF11: Carnes e miudezas | AG11: 35.5072096 | AH11: 0.04855311173
AC12: 8 | AD12: º | AE12: 24 | AF12: Tabaco | AG12: 29.4128415 | AH12: 0.04021957782
AC13: 9 | AD13: º | AE13: 21 | AF13: Preparações alimentícias diversas | AG13: 23.4036113 | AH13: 0.0320024628
AC14: 10 | AD14: º | AE14: 11 | AF14: Produtos da indústria de moagem e outros | AG14: 22.3516579 | AH14: 0.03056400533 | AI14: 0.8905716586
AE15: - | AF15: Outros | AG15: 80.025665 | AH15: 0.1094283414
AE16: Total | AG16: 731.30657 | AH16: 1
AC38: P | AE38: Cód.NC | AF38: Descritivo | AG38: Média import quinquénio | AH38: % do total | AI38: % acumulada | AN38: P | AO38: NC | AP38: Importações | AQ38: 2009 | AR38: 2010 | AS38: 2011 | AT38: 2012 | AU38: 2013 | AV38: 2014 | AW38: 2015 | AX38: 2016 | AY38: 2017 | AZ38: 2018 | BA38: média período
AC39: 1 | AD39: º | AE39: 17 | AF39: Açúcares e produtos de confeitaria | AG39: 77.2968082 | AH39: 0.3282063492 | AN39: 1º | AO39: 17 | AP39: Açúcares e produtos de confeitaria | AQ39: 152.553605 | AR39: 79.180903 | AS39: 82.874774 | AT39: 60.031706 | AU39: 129.651833 | AV39: 80.78425 | AW39: 64.966362 | AX39: 38.706271 | AY39: 45.494573 | AZ39: 38.723805 | BA39: 77.2968082
AC40: 2 | AD40: º | AE40: 08 | AF40: Frutas | AG40: 50.891014 | AH40: 0.2160859459 | AN40: 2º | AO40: 08 | AP40: Frutas | AQ40: 14.621821 | AR40: 35.868482 | AS40: 28.489658 | AT40: 34.17316 | AU40: 38.238017 | AV40: 37.976085 | AW40: 57.004585 | AX40: 69.227947 | AY40: 87.582614 | AZ40: 105.727771 | BA40: 50.891014
AC41: 3 | AD41: º | AE41: 52 | AF41: Algodão (NC 5201-5203) | AG41: 28.508748 | AH41: 0.1210496568 | AI41: 0.6653419519 | AN41: 3º | AO41: 52 | AP41: Algodão (NC 5201-5203) | AQ41: 20.628573 | AR41: 31.122003 | AS41: 40.880961 | AT41: 18.345544 | AU41: 28.30769 | AV41: 29.596344 | AW41: 27.269474 | AX41: 26.710187 | AY41: 30.554018 | AZ41: 31.672686 | BA41: 28.508748
AC42: 4 | AD42: º | AE42: 09 | AF42: Café, chá, mate e especiarias | AG42: 22.9278603 | AH42: 0.09735291146 | AO42: - | AP42: Outros | AQ42: 36.218338 | AR42: 44.014199 | AS42: 79.823193 | AT42: 83.564428 | AU42: 88.617754 | AV42: 97.120179 | AW42: 123.409501 | AX42: 92.794639 | AY42: 69.763052 | AZ42: 72.837378 | BA42: 78.8162661
AC43: 5 | AD43: º | AE43: 24 | AF43: Tabaco | AG43: 20.3953471 | AH43: 0.08659972603 | AP43: Total | AQ43: 224.022337 | AR43: 190.185587 | AS43: 232.068586 | AT43: 196.114838 | AU43: 284.815294 | AV43: 245.476858 | AW43: 272.649922 | AX43: 227.439044 | AY43: 233.394257 | AZ43: 248.96164 | BA43: 235.5128363
AC44: 6 | AD44: º | AE44: 23a | AF44: Resíduos indústrias alimentares; alimentos p/ animais (exc. NC 230120) (a) | AG44: 11.7279305 | AH44: 0.04979741522
AC45: 7 | AD45: º | AE45: 15 | AF45: Gorduras e óleos animais ou vegetais | AG45: 6.2663751 | AH45: 0.02660736119
AC46: 8 | AD46: º | AE46: 07 | AF46: Produtos hortícolas | AG46: 5.0766145 | AH46: 0.02155557455
AC47: 9 | AD47: º | AE47: 20 | AF47: Preparações de produtos vegetais | AG47: 3.031246 | AH47: 0.01287083136
AC48: 10 | AD48: º | AE48: 18 | AF48: Cacau e suas preparações | AG48: 2.9918841 | AH48: 0.01270369865 | AI48: 0.9728294704
AE49: - | AF49: Outros | AG49: 6.3990085 | AH49: 0.02717052964
AE50: Total | AG50: 235.5128363 | AH50: 1
A56: Fonte: GPP a partir de dados INE/Comércio Internacional (2017 provisórios; 2018 preliminares) | Y56: 2019-11-28T14:29:51.410

Sheet 3B
A1: Principais origens e destinos em África para Agroalimentar, Mar & Florestas (2009-2018) em milhões de euros
AC4: P | AE4: País | AF4: Média export quinquénio | AG4: % do total | AH4: % acumulada | AM4: P | AN4: Exportações | AO4: 2009 | AP4: 2010 | AQ4: 2011 | AR4: 2012 | AS4: 2013 | AT4: 2014 | AU4: 2015 | AV4: 2016 | AW4: 2017 | AX4: 2018 | AY4: média período
AC5: 1 | AD5: º | AE5: Angola | AF5: 629.0147436 | AG5: 0.5936007643 | AM5: 1º | AN5: Angola | AO5: 480.237803 | AP5: 496.066013 | AQ5: 694.209474 | AR5: 770.305544 | AS5: 836.324981 | AT5: 873.004277 | AU5: 619.867358 | AV5: 512.399099 | AW5: 551.600723 | AX5: 456.132164 | AY5: 629.0147436
AC6: 2 | AD6: º | AE6: Cabo Verde | AF6: 74.2010511 | AG6: 0.07002347892 | AM6: 2º | AN6: Cabo Verde | AO6: 61.404409 | AP6: 68.599338 | AQ6: 76.359595 | AR6: 69.722561 | AS6: 70.02171 | AT6: 70.540294 | AU6: 69.807822 | AV6: 81.646446 | AW6: 86.814423 | AX6: 87.093913 | AY6: 74.2010511
AC7: 3 | AD7: º | AE7: Marrocos | AF7: 71.7160532 | AG7: 0.06767838818 | AH7: 0.7313026314 | AM7: 3º | AN7: Marrocos | AO7: 24.563177 | AP7: 59.260166 | AQ7: 68.758656 | AR7: 86.904798 | AS7: 75.615235 | AT7: 86.016803 | AU7: 79.086426 | AV7: 75.727794 | AW7: 68.813308 | AX7: 92.414169 | AY7: 71.7160532
AC8: 4 | AD8: º | AE8: Argélia | AF8: 56.5255255 | AG8: 0.05334309804 | AN8: Outros | AO8: 124.02177 | AP8: 194.515 | AQ8: 232.11778 | AR8: 258.732651 | AS8: 310.121106 | AT8: 327.103711 | AU8: 346.725904 | AV8: 328.421776 | AW8: 346.678211 | AX8: 378.839531 | AY8: 284.727744
AC9: 5 | AD9: º | AE9: Egito | AF9: 42.9488513 | AG9: 0.0405308003 | AN9: Total | AO9: 690.227159 | AP9: 818.440517 | AQ9: 1071.445505 | AR9: 1185.665554 | AS9: 1292.083032 | AT9: 1356.665085 | AU9: 1115.48751 | AV9: 998.195115 | AW9: 1053.906665 | AX9: 1014.479777 | AY9: 1059.659592
AC10: 6 | AD10: º | AE10: Moçambique | AF10: 35.9984359 | AG10: 0.03397169825
AC11: 7 | AD11: º | AE11: África do Sul | AF11: 28.9894667 | AG11: 0.02735733902
AC12: 8 | AD12: º | AE12: Tunísia | AF12: 22.0663136 | AG12: 0.02082396438
AC13: 9 | AD13: º | AE13: São Tomé e Príncipe | AF13: 21.7389693 | AG13: 0.0205150498
AC14: 10 | AD14: º | AE14: Guiné-Bissau | AF14: 18.4864518 | AG14: 0.01744565136 | AH14: 0.9452902325
AE15: Outros | AF15: 57.9737299 | AG15: 0.0547097675
AE16: Total | AF16: 1059.659592 | AG16: 1
AC38: P | AE38: País | AF38: Média import quinquénio | AG38: % do total | AH38: % acumulada | AM38: P | AN38: Importações | AO38: 2009 | AP38: 2010 | AQ38: 2011 | AR38: 2012 | AS38: 2013 | AT38: 2014 | AU38: 2015 | AV38: 2016 | AW38: 2017 | AX38: 2018 | AY38: média período
AC39: 1 | AD39: º | AE39: África do Sul | AF39: 78.5922962 | AG39: 0.1821901861 | AM39: 1º | AN39: África do Sul | AO39: 30.10267 | AP39: 57.455489 | AQ39: 55.242735 | AR39: 55.967093 | AS39: 59.250275 | AT39: 70.543551 | AU39: 82.333458 | AV39: 92.39116 | AW39: 128.11053 | AX39: 154.526001 | AY39: 78.5922962
AC40: 2 | AD40: º | AE40: Marrocos | AF40: 41.4836738 | AG40: 0.09616614623 | AM40: 2º | AN40: Marrocos | AO40: 15.072713 | AP40: 22.037469 | AQ40: 24.936622 | AR40: 30.55502 | AS40: 48.248953 | AT40: 36.399122 | AU40: 65.363723 | AV40: 60.649668 | AW40: 53.517593 | AX40: 58.055855 | AY40: 41.4836738
AC41: 3 | AD41: º | AE41: Moçambique | AF41: 36.7760342 | AG41: 0.08525304436 | AH41: 0.3636093767 | AM41: 3º | AN41: Moçambique | AO41: 42.375275 | AP41: 27.070204 | AQ41: 41.468095 | AR41: 15.890893 | AS41: 60.771555 | AT41: 34.234178 | AU41: 35.366534 | AV41: 32.63283 | AW41: 40.184384 | AX41: 37.766394 | AY41: 36.7760342
AC42: 4 | AD42: º | AE42: Zimbabwe | AF42: 21.5193323 | AG42: 0.04988543847 | AN42: Outros | AO42: 285.079927 | AP42: 245.033225 | AQ42: 260.253994 | AR42: 240.439227 | AS42: 278.119297 | AT42: 275.796212 | AU42: 322.649535 | AV42: 286.236488 | AW42: 283.745897 | AX42: 267.876413 | AY42: 274.5230215
AC43: 5 | AD43: º | AE43: Namíbia | AF43: 19.7718102 | AG43: 0.04583438776 | AN43: Total | AO43: 372.630585 | AP43: 351.596387 | AQ43: 381.901446 | AR43: 342.852233 | AS43: 446.39008 | AT43: 416.973063 | AU43: 505.71325 | AV43: 471.910146 | AW43: 505.558404 | AX43: 518.224663 | AY43: 431.3750257
AC44: 6 | AD44: º | AE44: Uganda | AF44: 19.1277615 | AG44: 0.04434137435
AC45: 7 | AD45: º | AE45: Tanzânia | AF45: 18.7524222 | AG45: 0.04347127461
AC46: 8 | AD46: º | AE46: Costa do Marfim | AF46: 17.0197551 | AG46: 0.0394546603
AC47: 9 | AD47: º | AE47: Senegal | AF47: 16.7391206 | AG47: 0.03880410224
AC48: 10 | AD48: º | AE48: Camarões | AF48: 15.7254656 | AG48: 0.03645427914 | AH48: 0.6618548935
AE49: Outros | AF49: 145.867354 | AG49: 0.3381451065
AE50: Total | AF50: 431.3750257 | AG50: 1
A57: Fonte: GPP a partir de dados INE/Comércio Internacional (2017 provisórios; 2018 preliminares) | Y57: 2019-11-28T12:41:20.420

Sheet 3C
A1: Principais origens e destinos em África para os produtos agrícolas e agroalimentares (2009-2018) em milhões de euros
AC4: P | AE4: País | AF4: Média export quinquénio | AG4: % do total | AH4: % acumulada | AM4: P | AN4: Exportações | AO4: 2009 | AP4: 2010 | AQ4: 2011 | AR4: 2012 | AS4: 2013 | AT4: 2014 | AU4: 2015 | AV4: 2016 | AW4: 2017 | AX4: 2018 | AY4: média período
AC5: 1 | AD5: º | AE5: Angola | AF5: 520.5222978 | AG5: 0.7117703015 | AM5: 1º | AN5: Angola | AO5: 391.268748 | AP5: 411.863273 | AQ5: 585.144886 | AR5: 643.349358 | AS5: 678.931402 | AT5: 727.341365 | AU5: 515.86971 | AV5: 413.455182 | AW5: 465.986251 | AX5: 372.012803 | AY5: 520.5222978
AC6: 2 | AD6: º | AE6: Cabo Verde | AF6: 62.1123514 | AG6: 0.08493339722 | AM6: 2º | AN6: Cabo Verde | AO6: 49.811572 | AP6: 56.065934 | AQ6: 64.245873 | AR6: 59.228914 | AS6: 60.019403 | AT6: 59.232266 | AU6: 59.821014 | AV6: 66.013066 | AW6: 73.615031 | AX6: 73.070441 | AY6: 62.1123514
AC7: 3 | AD7: º | AE7: Moçambique | AF7: 23.1457368 | AG7: 0.03164984119 | AH7: 0.8283535399 | AM7: 3º | AN7: Moçambique | AO7: 14.909303 | AP7: 16.400568 | AQ7: 19.414817 | AR7: 26.488684 | AS7: 27.722226 | AT7: 31.327405 | AU7: 29.723891 | AV7: 22.819902 | AW7: 21.182216 | AX7: 21.468356 | AY7: 23.1457368
AC8: 4 | AD8: º | AE8: Marrocos | AF8: 22.2699636 | AG8: 0.03045229527 | AN8: Outros | AO8: 66.720827 | AP8: 95.779535 | AQ8: 98.699235 | AR8: 118.212674 | AS8: 148.701242 | AT8: 154.679579 | AU8: 136.97719 | AV8: 139.237738 | AW8: 144.464333 | AX8: 151.789487 | AY8: 125.526184
AC9: 5 | AD9: º | AE9: São Tomé e Príncipe | AF9: 20.4853674 | AG9: 0.02801201061 | AN9: Total | AO9: 522.71045 | AP9: 580.10931 | AQ9: 767.504811 | AR9: 847.27963 | AS9: 915.374273 | AT9: 972.580615 | AU9: 742.391805 | AV9: 641.525888 | AW9: 705.247831 | AX9: 618.341087 | AY9: 731.30657
AC10: 6 | AD10: º | AE10: Guiné-Bissau | AF10: 17.5821172 | AG10: 0.02404206105
AC11: 7 | AD11: º | AE11: Argélia | AF11: 16.2548314 | AG11: 0.02222710976
AC12: 8 | AD12: º | AE12: África do Sul | AF12: 15.9064467 | AG12: 0.02175072309
AC13: 9 | AD13: º | AE13: Senegal | AF13: 5.955537 | AG13: 0.008143694101
AC14: 10 | AD14: º | AE14: Nigéria | AF14: 5.1188689 | AG14: 0.006999621103 | AH14: 0.9699810549
AE15: Outros | AF15: 21.9530518 | AG15: 0.03001894513
AE16: Total | AF16: 731.30657 | AG16: 1
AC38: P | AE38: País | AF38: Média import quinquénio | AG38: % do total | AH38: % acumulada | AM38: P | AN38: Importações | AO38: 2009 | AP38: 2010 | AQ38: 2011 | AR38: 2012 | AS38: 2013 | AT38: 2014 | AU38: 2015 | AV38: 2016 | AW38: 2017 | AX38: 2018 | AY38: média período
AC39: 1 | AD39: º | AE39: África do Sul | AF39: 54.1047485 | AG39: 0.2297316331 | AM39: 1º | AN39: África do Sul | AO39: 15.400085 | AP39: 40.581087 | AQ39: 36.819645 | AR39: 35.319847 | AS39: 37.246913 | AT39: 47.445036 | AU39: 55.368133 | AV39: 64.09419 | AW39: 93.558929 | AX39: 115.21362 | AY39: 54.1047485
AC40: 2 | AD40: º | AE40: Zimbabwe | AF40: 21.5191236 | AG40: 0.09137134068 | AM40: 2º | AN40: Zimbabwe | AO40: 26.478504 | AP40: 21.882233 | AQ40: 45.566743 | AR40: 46.501441 | AS40: 18.653927 | AT40: 33.948786 | AU40: 3.172026 | AV40: 3.817236 | AW40: 11.301939 | AX40: 3.868401 | AY40: 21.5191236
AC41: 3 | AD41: º | AE41: Moçambique | AF41: 19.4410704 | AG41: 0.08254781652 | AH41: 0.4036507903 | AM41: 3º | AN41: Moçambique | AO41: 31.888363 | AP41: 15.934402 | AQ41: 32.099152 | AR41: 8.465558 | AS41: 50.647418 | AT41: 17.622622 | AU41: 15.137719 | AV41: 7.787255 | AW41: 5.862453 | AX41: 8.965762 | AY41: 19.4410704
AC42: 4 | AD42: º | AE42: Costa do Marfim | AF42: 15.592727 | AG42: 0.06620754624 | AN42: Outros | AO42: 150.255385 | AP42: 111.787865 | AQ42: 117.583046 | AR42: 105.827992 | AS42: 178.267036 | AT42: 146.460414 | AU42: 198.972044 | AV42: 151.740363 | AW42: 122.670936 | AX42: 120.913857 | AY42: 140.4478938
AC43: 5 | AD43: º | AE43: Suazilândia | AF43: 15.3448219 | AG43: 0.06515492803 | AN43: Total | AO43: 224.022337 | AP43: 190.185587 | AQ43: 232.068586 | AR43: 196.114838 | AS43: 284.815294 | AT43: 245.476858 | AU43: 272.649922 | AV43: 227.439044 | AW43: 233.394257 | AX43: 248.96164 | AY43: 235.5128363
AC44: 6 | AD44: º | AE44: Uganda | AF44: 14.0433906 | AG44: 0.05962898168
AC45: 7 | AD45: º | AE45: Malavi | AF45: 12.0464856 | AG45: 0.05115001708
AC46: 8 | AD46: º | AE46: Camarões | AF46: 8.2783516 | AG46: 0.03515032017
AC47: 9 | AD47: º | AE47: Tanzânia | AF47: 7.751265 | AG47: 0.0329122825
AC48: 10 | AD48: º | AE48: Zâmbia | AF48: 7.3690145 | AG48: 0.03128922659 | AH48: 0.7451440926
AE49: Outros | AF49: 60.0218376 | AG49: 0.2548559074
AE50: Total | AF50: 235.5128363 | AG50: 1
A57: Fonte: GPP a partir de dados INE/Comércio Internacional (2017 provisórios; 2018 preliminares) | Y57: 2019-11-28T12:41:20.420

Sheet 4
A1: Evolução da balança comercial por país e por produto 2009-2018 em euros (NC 2 dígitos) Agroalimentar, Mar & Florestas
A2: =+aux!A55 -> Evolução da balança comercial Portugal-Angola
A4: Selecione o país:
A19: =+aux!A56 -> Evolução da balança comercial Portugal-Angola para Bebidas, líquidos alcoólicos e vinagres
M21: Selecione o produto:
A38: Fonte: GPP a partir de dados INE/Comércio Internacional (2017 provisórios; 2018 preliminares) | R38: 2019-11-28T12:41:20.420

Sheet 4A
A1: Evolução da balança comercial Portugal-África 2009-2018 por produto em euros (NC 2 dígitos)
A3: =+aux!A31 -> Evolução da balança comercial Portugal-África para Bebidas, líquidos alcoólicos e vinagres
A5: Selecione o produto:
U7: Para obter uma maior desagregação deste produto, clique no botão respetivo:
A20: =+aux!A43 -> Evolução da balança comercial Portugal-África para Peixes e crustáceos
A22: Selecione o produto:
A38: Fonte: GPP a partir de dados INE/Comércio Internacional (2017 provisórios; 2018 preliminares) | R38: 2019-11-28T12:41:20.420

Sheet 5.1
A1: Trocas comerciais Portugal-África (2009-2018) por país em milhares de euros | C1: Agroalimentar, Mar & Florestas
A2: Cód. País | B2: País | C2: Importações | O2: Exportações | AA2: Saldo período (exp-imp) | AB2: Evolução das importações | AC2: =+"Variação das Importações " & INDEX(C3:K3,1,aux!$BA$1) & "-"& L3 &"" -> Variação das Importações 2009-2018 | AG2: Evolução das exportações | AH2: ="Variação das Exportações " & INDEX(O3:W3,1,aux!BA1) & "-"& X3 &"" -> Variação das Exportações 2009-2018
C3: 2009 | D3: 2010 | E3: 2011 | F3: 2012 | G3: 2013 | H3: 2014 | I3: 2015 | J3: 2016 | K3: 2017 | L3: 2018 | M3: média período | N3: % Total | O3: 2009 | P3: 2010 | Q3: 2011 | R3: 2012 | S3: 2013 | T3: 2014 | U3: 2015 | V3: 2016 | W3: 2017 | X3: 2018 | Y3: média período | Z3: % Total | AC3: variação total em valor | AD3: % no total de variação | AE3: taxa de variação média anual | AF3: taxa de variação total | AH3: variação total em valor | AI3: % no total de variação | AJ3: taxa de variação média anual | AK3: taxa de variação total | CC3: filtro
A4: 0660 | B4: Afeganistão | C4: 0 | D4: 0 | E4: 0 | F4: 0 | G4: 0 | H4: 0 | I4: 0 | J4: 0 | K4: 0 | L4: 0 | M4: 0 | N4: 0 | O4: 0 | P4: 0 | Q4: 0 | R4: 0 | S4: 0 | T4: 0 | U4: 0 | V4: 0 | W4: 0 | X4: 0 | Y4: 0 | Z4: 0 | AA4: 0 | AC4: =L4-INDEX($C4:$L4,1,aux!$BA$1) -> 0 | AD4: =AC4/$AC$252 -> 0 | AE4: =+IF(INDEX($C4:$L4,1,aux!$BA$1)>0,(L4/INDEX($C4:$L4,1,aux!$BA$1))^(1/($L$3-INDEX($C$3:$L$3,1,aux!$BA$1)))-1,"n.d.") -> n.d. | AF4: =IF(INDEX($C4:$L4,1,aux!$BA$1)>0,(L4-INDEX($C4:$L4,1,aux!$BA$1))/INDEX($C4:$L4,1,aux!$BA$1),"n.d.") -> n.d. | AH4: =X4-INDEX($O4:$X4,1,aux!$BA$1) -> 0 | AI4: =AH4/$AH$252 -> 0 | AJ4: =+IF(INDEX($O4:$X4,1,aux!$BA$1)>0,(X4/INDEX($O4:$X4,1,aux!$BA$1))^(1/($X$3-INDEX($O$3:$X$3,1,aux!$BA$1)))-1,"n.d.") -> n.d. | AK4: =IF(INDEX($O4:$X4,1,aux!$BA$1)>0,(X4-INDEX($O4:$X4,1,aux!$BA$1))/INDEX($O4:$X4,1,aux!$BA$1),"n.d.") -> n.d. | AM4: =SUM(A4:AA4) -> 0 | CC4: =+IF(ISNA(MATCH('5.1'!A4,AUX_2d_pais!$G$2:$G$40000,0)),0,1) -> 0
A5: 0388 | B5: África do Sul | C5: 30102.67 | D5: 57455.489 | E5: 55242.735 | F5: 55967.093 | G5: 59250.275 | H5: 70543.551 | I5: 82333.458 | J5: 92391.16 | K5: 128110.53 | L5: 154526.001 | M5: 78592.2962 | N5: 0.1821901861 | O5: 20510.277 | P5: 19363.921 | Q5: 22083.184 | R5: 22113.85 | S5: 48432.763 | T5: 33899.989 | U5: 28735.207 | V5: 25113.374 | W5: 37304.403 | X5: 32337.699 | Y5: 28989.4667 | Z5: 0.02735733902 | AA5: -49602.8295 | AC5: =L5-INDEX($C5:$L5,1,aux!$BA$1) -> 124423.331 | AD5: 0.8545906036 | AE5: =+IF(INDEX($C5:$L5,1,aux!$BA$1)>0,(L5/INDEX($C5:$L5,1,aux!$BA$1))^(1/($L$3-INDEX($C$3:$L$3,1,aux!$BA$1)))-1,"n.d.") -> 0.1993141281 | AF5: =IF(INDEX($C5:$L5,1,aux!$BA$1)>0,(L5-INDEX($C5:$L5,1,aux!$BA$1))/INDEX($C5:$L5,1,aux!$BA$1),"n.d.") -> 4.13329884 | AH5: =X5-INDEX($O5:$X5,1,aux!$BA$1) -> 11827.422 | AI5: 0.03647594913 | AJ5: =+IF(INDEX($O5:$X5,1,aux!$BA$1)>0,(X5/INDEX($O5:$X5,1,aux!$BA$1))^(1/($X$3-INDEX($O$3:$X$3,1,aux!$BA$1)))-1,"n.d.") -> 0.0518912516 | AK5: =IF(INDEX($O5:$X5,1,aux!$BA$1)>0,(X5-INDEX($O5:$X5,1,aux!$BA$1))/INDEX($O5:$X5,1,aux!$BA$1),"n.d.") -> 0.576658326 | CC5: =+IF(ISNA(MATCH('5.1'!A5,AUX_2d_pais!$G$2:$G$40000,0)),0,1) -> 1
A6: 0070 | B6: Albânia | C6: 0 | D6: 0 | E6: 0 | F6: 0 | G6: 0 | H6: 0 | I6: 0 | J6: 0 | K6: 0 | L6: 0 | M6: 0 | N6: 0 | O6: 0 | P6: 0 | Q6: 0 | R6: 0 | S6: 0 | T6: 0 | U6: 0 | V6: 0 | W6: 0 | X6: 0 | Y6: 0 | Z6: 0 | AA6: 0 | AC6: =L6-INDEX($C6:$L6,1,aux!$BA$1) -> 0 | AD6: 0 | AE6: =+IF(INDEX($C6:$L6,1,aux!$BA$1)>0,(L6/INDEX($C6:$L6,1,aux!$BA$1))^(1/($L$3-INDEX($C$3:$L$3,1,aux!$BA$1)))-1,"n.d.") -> n.d. | AF6: =IF(INDEX($C6:$L6,1,aux!$BA$1)>0,(L6-INDEX($C6:$L6,1,aux!$BA$1))/INDEX($C6:$L6,1,aux!$BA$1),"n.d.") -> n.d. | AH6: =X6-INDEX($O6:$X6,1,aux!$BA$1) -> 0 | AI6: 0 | AJ6: =+IF(INDEX($O6:$X6,1,aux!$BA$1)>0,(X6/INDEX($O6:$X6,1,aux!$BA$1))^(1/($X$3-INDEX($O$3:$X$3,1,aux!$BA$1)))-1,"n.d.") -> n.d. | AK6: =IF(INDEX($O6:$X6,1,aux!$BA$1)>0,(X6-INDEX($O6:$X6,1,aux!$BA$1))/INDEX($O6:$X6,1,aux!$BA$1),"n.d.") -> n.d. | AM6: 0 | CC6: =+IF(ISNA(MATCH('5.1'!A6,AUX_2d_pais!$G$2:$G$40000,0)),0,1) -> 0
A7: 0004 | B7: Alemanha | C7: 0 | D7: 0 | E7: 0 | F7: 0 | G7: 0 | H7: 0 | I7: 0 | J7: 0 | K7: 0 | L7: 0 | M7: 0 | N7: 0 | O7: 0 | P7: 0 | Q7: 0 | R7: 0 | S7: 0 | T7: 0 | U7: 0 | V7: 0 | W7: 0 | X7: 0 | Y7: 0 | Z7: 0 | AA7: 0 | AC7: =L7-INDEX($C7:$L7,1,aux!$BA$1) -> 0 | AD7: 0 | AE7: =+IF(INDEX($C7:$L7,1,aux!$BA$1)>0,(L7/INDEX($C7:$L7,1,aux!$BA$1))^(1/($L$3-INDEX($C$3:$L$3,1,aux!$BA$1)))-1,"n.d.") -> n.d. | AF7: =IF(INDEX($C7:$L7,1,aux!$BA$1)>0,(L7-INDEX($C7:$L7,1,aux!$BA$1))/INDEX($C7:$L7,1,aux!$BA$1),"n.d.") -> n.d. | AH7: =X7-INDEX($O7:$X7,1,aux!$BA$1) -> 0 | AI7: 0 | AJ7: =+IF(INDEX($O7:$X7,1,aux!$BA$1)>0,(X7/INDEX($O7:$X7,1,aux!$BA$1))^(1/($X$3-INDEX($O$3:$X$3,1,aux!$BA$1)))-1,"n.d.") -> n.d. | AK7: =IF(INDEX($O7:$X7,1,aux!$BA$1)>0,(X7-INDEX($O7:$X7,1,aux!$BA$1))/INDEX($O7:$X7,1,aux!$BA$1),"n.d.") -> n.d. | AM7: 0 | CC7: =+IF(ISNA(MATCH('5.1'!A7,AUX_2d_pais!$G$2:$G$40000,0)),0,1) -> 0
A8: 0043 | B8: Andorra | C8: 0 | D8: 0 | E8: 0 | F8: 0 | G8: 0 | H8: 0 | I8: 0 | J8: 0 | K8: 0 | L8: 0 | M8: 0 | N8: 0 | O8: 0 | P8: 0 | Q8: 0 | R8: 0 | S8: 0 | T8: 0 | U8: 0 | V8: 0 | W8: 0 | X8: 0 | Y8: 0 | Z8: 0 | AA8: 0 | AC8: =L8-INDEX($C8:$L8,1,aux!$BA$1) -> 0 | AD8: 0 | AE8: =+IF(INDEX($C8:$L8,1,aux!$BA$1)>0,(L8/INDEX($C8:$L8,1,aux!$BA$1))^(1/($L$3-INDEX($C$3:$L$3,1,aux!$BA$1)))-1,"n.d.") -> n.d. | AF8: =IF(INDEX($C8:$L8,1,aux!$BA$1)>0,(L8-INDEX($C8:$L8,1,aux!$BA$1))/INDEX($C8:$L8,1,aux!$BA$1),"n.d.") -> n.d. | AH8: =X8-INDEX($O8:$X8,1,aux!$BA$1) -> 0 | AI8: 0 | AJ8: =+IF(INDEX($O8:$X8,1,aux!$BA$1)>0,(X8/INDEX($O8:$X8,1,aux!$BA$1))^(1/($X$3-INDEX($O$3:$X$3,1,aux!$BA$1)))-1,"n.d.") -> n.d. | AK8: =IF(INDEX($O8:$X8,1,aux!$BA$1)>0,(X8-INDEX($O8:$X8,1,aux!$BA$1))/INDEX($O8:$X8,1,aux!$BA$1),"n.d.") -> n.d. | AM8: 0 | CC8: =+IF(ISNA(MATCH('5.1'!A8,AUX_2d_pais!$G$2:$G$40000,0)),0,1) -> 0
A9: 0330 | B9: Angola | C9: 782.305 | D9: 762.17 | E9: 3169.056 | F9: 1187.629 | G9: 1173.602 | H9: 1335.286 | I9: 7506.884 | J9: 9618.916 | K9: 12788.967 | L9: 9246.757 | M9: 4757.1572 | N9: 0.01102789201 | O9: 480237.803 | P9: 496066.013 | Q9: 694209.474 | R9: 770305.544 | S9: 836324.981 | T9: 873004.277 | U9: 619867.358 | V9: 512399.099 | W9: 551600.723 | X9: 456132.164 | Y9: 629014.7436 | Z9: 0.5936007643 | AA9: 624257.5864 | AC9: =L9-INDEX($C9:$L9,1,aux!$BA$1) -> 8464.452 | AD9: 0.05813733715 | AE9: =+IF(INDEX($C9:$L9,1,aux!$BA$1)>0,(L9/INDEX($C9:$L9,1,aux!$BA$1))^(1/($L$3-INDEX($C$3:$L$3,1,aux!$BA$1)))-1,"n.d.") -> 0.3157678179 | AF9: =IF(INDEX($C9:$L9,1,aux!$BA$1)>0,(L9-INDEX($C9:$L9,1,aux!$BA$1))/INDEX($C9:$L9,1,aux!$BA$1),"n.d.") -> 10.81988738 | AH9: =X9-INDEX($O9:$X9,1,aux!$BA$1) -> -24105.639 | AI9: -0.07434215689 | AJ9: =+IF(INDEX($O9:$X9,1,aux!$BA$1)>0,(X9/INDEX($O9:$X9,1,aux!$BA$1))^(1/($X$3-INDEX($O$3:$X$3,1,aux!$BA$1)))-1,"n.d.") -> -0.005705749282 | AK9: =IF(INDEX($O9:$X9,1,aux!$BA$1)>0,(X9-INDEX($O9:$X9,1,aux!$BA$1))/INDEX($O9:$X9,1,aux!$BA$1),"n.d.") -> -0.05019521339 | CC9: =+IF(ISNA(MATCH('5.1'!A9,AUX_2d_pais!$G$2:$G$40000,0)),0,1) -> 1
A10: 0446 | B10: Anguila | C10: 0 | D10: 0 | E10: 0 | F10: 0 | G10: 0 | H10: 0 | I10: 0 | J10: 0 | K10: 0 | L10: 0 | M10: 0 | N10: 0 | O10: 0 | P10: 0 | Q10: 0 | R10: 0 | S10: 0 | T10: 0 | U10: 0 | V10: 0 | W10: 0 | X10: 0 | Y10: 0 | Z10: 0 | AA10: 0 | AC10: =L10-INDEX($C10:$L10,1,aux!$BA$1) -> 0 | AD10: 0 | AE10: =+IF(INDEX($C10:$L10,1,aux!$BA$1)>0,(L10/INDEX($C10:$L10,1,aux!$BA$1))^(1/($L$3-INDEX($C$3:$L$3,1,aux!$BA$1)))-1,"n.d.") -> n.d. | AF10: =IF(INDEX($C10:$L10,1,aux!$BA$1)>0,(L10-INDEX($C10:$L10,1,aux!$BA$1))/INDEX($C10:$L10,1,aux!$BA$1),"n.d.") -> n.d. | AH10: =X10-INDEX($O10:$X10,1,aux!$BA$1) -> 0 | AI10: 0 | AJ10: =+IF(INDEX($O10:$X10,1,aux!$BA$1)>0,(X10/INDEX($O10:$X10,1,aux!$BA$1))^(1/($X$3-INDEX($O$3:$X$3,1,aux!$BA$1)))-1,"n.d.") -> n.d. | AK10: =IF(INDEX($O10:$X10,1,aux!$BA$1)>0,(X10-INDEX($O10:$X10,1,aux!$BA$1))/INDEX($O10:$X10,1,aux!$BA$1),"n.d.") -> n.d. | AM10: 0 | CC10: =+IF(ISNA(MATCH('5.1'!A10,AUX_2d_pais!$G$2:$G$40000,0)),0,1) -> 0
A11: 0891 | B11: Antárctica | C11: 0 | D11: 0 | E11: 0 | F11: 0 | G11: 0 | H11: 0 | I11: 0 | J11: 0 | K11: 0 | L11: 0 | M11: 0 | N11: 0 | O11: 0 | P11: 0 | Q11: 0 | R11: 0 | S11: 0 | T11: 0 | U11: 0 | V11: 0 | W11: 0 | X11: 0 | Y11: 0 | Z11: 0 | AA11: 0 | AC11: =L11-INDEX($C11:$L11,1,aux!$BA$1) -> 0 | AD11: 0 | AE11: =+IF(INDEX($C11:$L11,1,aux!$BA$1)>0,(L11/INDEX($C11:$L11,1,aux!$BA$1))^(1/($L$3-INDEX($C$3:$L$3,1,aux!$BA$1)))-1,"n.d.") -> n.d. | AF11: =IF(INDEX($C11:$L11,1,aux!$BA$1)>0,(L11-INDEX($C11:$L11,1,aux!$BA$1))/INDEX($C11:$L11,1,aux!$BA$1),"n.d.") -> n.d. | AH11: =X11-INDEX($O11:$X11,1,aux!$BA$1) -> 0 | AI11: 0 | AJ11: =+IF(INDEX($O11:$X11,1,aux!$BA$1)>0,(X11/INDEX($O11:$X11,1,aux!$BA$1))^(1/($X$3-INDEX($O$3:$X$3,1,aux!$BA$1)))-1,"n.d.") -> n.d. | AK11: =IF(INDEX($O11:$X11,1,aux!$BA$1)>0,(X11-INDEX($O11:$X11,1,aux!$BA$1))/INDEX($O11:$X11,1,aux!$BA$1),"n.d.") -> n.d. | AM11: 0 | BO11: =SUM(C11:L11,O11:X11) -> 0 | CC11: =+IF(ISNA(MATCH('5.1'!A11,AUX_2d_pais!$G$2:$G$40000,0)),0,1) -> 0
A12: 0459 | B12: Antígua e Barbuda | C12: 0 | D12: 0 | E12: 0 | F12: 0 | G12: 0 | H12: 0 | I12: 0 | J12: 0 | K12: 0 | L12: 0 | M12: 0 | N12: 0 | O12: 0 | P12: 0 | Q12: 0 | R12: 0 | S12: 0 | T12: 0 | U12: 0 | V12: 0 | W12: 0 | X12: 0 | Y12: 0 | Z12: 0 | AA12: 0 | AC12: =L12-INDEX($C12:$L12,1,aux!$BA$1) -> 0 | AD12: 0 | AE12: =+IF(INDEX($C12:$L12,1,aux!$BA$1)>0,(L12/INDEX($C12:$L12,1,aux!$BA$1))^(1/($L$3-INDEX($C$3:$L$3,1,aux!$BA$1)))-1,"n.d.") -> n.d. | AF12: =IF(INDEX($C12:$L12,1,aux!$BA$1)>0,(L12-INDEX($C12:$L12,1,aux!$BA$1))/INDEX($C12:$L12,1,aux!$BA$1),"n.d.") -> n.d. | AH12: =X12-INDEX($O12:$X12,1,aux!$BA$1) -> 0 | AI12: 0 | AJ12: =+IF(INDEX($O12:$X12,1,aux!$BA$1)>0,(X12/INDEX($O12:$X12,1,aux!$BA$1))^(1/($X$3-INDEX($O$3:$X$3,1,aux!$BA$1)))-1,"n.d.") -> n.d. | AK12: =IF(INDEX($O12:$X12,1,aux!$BA$1)>0,(X12-INDEX($O12:$X12,1,aux!$BA$1))/INDEX($O12:$X12,1,aux!$BA$1),"n.d.") -> n.d. | AM12: 0 | CC12: =+IF(ISNA(MATCH('5.1'!A12,AUX_2d_pais!$G$2:$G$40000,0)),0,1) -> 0
A13: 0478 | B13: Antilhas Holandesas | C13: 0 | D13: 0 | E13: 0 | F13: 0 | G13: 0 | H13: 0 | I13: 0 | J13: 0 | K13: 0 | L13: 0 | M13: 0 | N13: 0 | O13: 0 | P13: 0 | Q13: 0 | R13: 0 | S13: 0 | T13: 0 | U13: 0 | V13: 0 | W13: 0 | X13: 0 | Y13: 0 | Z13: 0 | AA13: 0 | AC13: =L13-INDEX($C13:$L13,1,aux!$BA$1) -> 0 | AD13: 0 | AE13: =+IF(INDEX($C13:$L13,1,aux!$BA$1)>0,(L13/INDEX($C13:$L13,1,aux!$BA$1))^(1/($L$3-INDEX($C$3:$L$3,1,aux!$BA$1)))-1,"n.d.") -> n.d. | AF13: =IF(INDEX($C13:$L13,1,aux!$BA$1)>0,(L13-INDEX($C13:$L13,1,aux!$BA$1))/INDEX($C13:$L13,1,aux!$BA$1),"n.d.") -> n.d. | AH13: =X13-INDEX($O13:$X13,1,aux!$BA$1) -> 0 | AI13: 0 | AJ13: =+IF(INDEX($O13:$X13,1,aux!$BA$1)>0,(X13/INDEX($O13:$X13,1,aux!$BA$1))^(1/($X$3-INDEX($O$3:$X$3,1,aux!$BA$1)))-1,"n.d.") -> n.d. | AK13: =IF(INDEX($O13:$X13,1,aux!$BA$1)>0,(X13-INDEX($O13:$X13,1,aux!$BA$1))/INDEX($O13:$X13,1,aux!$BA$1),"n.d.") -> n.d. | AM13: 0 | BO13: 0 | CC13: =+IF(ISNA(MATCH('5.1'!A13,AUX_2d_pais!$G$2:$G$40000,0)),0,1) -> 0
A14: 0632 | B14: Arábia Saudita | C14: 0 | D14: 0 | E14: 0 | F14: 0 | G14: 0 | H14: 0 | I14: 0 | J14: 0 | K14: 0 | L14: 0 | M14: 0 | N14: 0 | O14: 0 | P14: 0 | Q14: 0 | R14: 0 | S14: 0 | T14: 0 | U14: 0 | V14: 0 | W14: 0 | X14: 0 | Y14: 0 | Z14: 0 | AA14: 0 | AC14: =L14-INDEX($C14:$L14,1,aux!$BA$1) -> 0 | AD14: 0 | AE14: =+IF(INDEX($C14:$L14,1,aux!$BA$1)>0,(L14/INDEX($C14:$L14,1,aux!$BA$1))^(1/($L$3-INDEX($C$3:$L$3,1,aux!$BA$1)))-1,"n.d.") -> n.d. | AF14: =IF(INDEX($C14:$L14,1,aux!$BA$1)>0,(L14-INDEX($C14:$L14,1,aux!$BA$1))/INDEX($C14:$L14,1,aux!$BA$1),"n.d.") -> n.d. | AH14: =X14-INDEX($O14:$X14,1,aux!$BA$1) -> 0 | AI14: 0 | AJ14: =+IF(INDEX($O14:$X14,1,aux!$BA$1)>0,(X14/INDEX($O14:$X14,1,aux!$BA$1))^(1/($X$3-INDEX($O$3:$X$3,1,aux!$BA$1)))-1,"n.d.") -> n.d. | AK14: =IF(INDEX($O14:$X14,1,aux!$BA$1)>0,(X14-INDEX($O14:$X14,1,aux!$BA$1))/INDEX($O14:$X14,1,aux!$BA$1),"n.d.") -> n.d. | AM14: 0 | CC14: =+IF(ISNA(MATCH('5.1'!A14,AUX_2d_pais!$G$2:$G$40000,0)),0,1) -> 0
A15: 0208 | B15: Argélia | C15: 858.656 | D15: 2100.528 | E15: 4181.128 | F15: 2347.724 | G15: 1224.239 | H15: 806.704 | I15: 800.304 | J15: 666.534 | K15: 1278.34 | L15: 3691.177 | M15: 1795.5334 | N15: 0.004162348984 | O15: 16997.242 | P15: 47939.781 | Q15: 48421.298 | R15: 50966.313 | S15: 52690.584 | T15: 64191.299 | U15: 70437.247 | V15: 66040.033 | W15: 74365.378 | X15: 73206.08 | Y15: 56525.5255 | Z15: 0.05334309804 | AA15: 54729.9921 | AC15: =L15-INDEX($C15:$L15,1,aux!$BA$1) -> 2832.521 | AD15: 0.01945491904 | AE15: =+IF(INDEX($C15:$L15,1,aux!$BA$1)>0,(L15/INDEX($C15:$L15,1,aux!$BA$1))^(1/($L$3-INDEX($C$3:$L$3,1,aux!$BA$1)))-1,"n.d.") -> 0.1759036549 | AF15: =IF(INDEX($C15:$L15,1,aux!$BA$1)>0,(L15-INDEX($C15:$L15,1,aux!$BA$1))/INDEX($C15:$L15,1,aux!$BA$1),"n.d.") -> 3.298784379 | AH15: =X15-INDEX($O15:$X15,1,aux!$BA$1) -> 56208.838 | AI15: 0.1733489103 | AJ15: =+IF(INDEX($O15:$X15,1,aux!$BA$1)>0,(X15/INDEX($O15:$X15,1,aux!$BA$1))^(1/($X$3-INDEX($O$3:$X$3,1,aux!$BA$1)))-1,"n.d.") -> 0.1761512873 | AK15: =IF(INDEX($O15:$X15,1,aux!$BA$1)>0,(X15-INDEX($O15:$X15,1,aux!$BA$1))/INDEX($O15:$X15,1,aux!$BA$1),"n.d.") -> 3.306938737 | CC15: =+IF(ISNA(MATCH('5.1'!A15,AUX_2d_pais!$G$2:$G$40000,0)),0,1) -> 1
A16: 0528 | B16: Argentina | C16: 0 | D16: 0 | E16: 0 | F16: 0 | G16: 0 | H16: 0 | I16: 0 | J16: 0 | K16: 0 | L16: 0 | M16: 0 | N16: 0 | O16: 0 | P16: 0 | Q16: 0 | R16: 0 | S16: 0 | T16: 0 | U16: 0 | V16: 0 | W16: 0 | X16: 0 | Y16: 0 | Z16: 0 | AA16: 0 | AC16: =L16-INDEX($C16:$L16,1,aux!$BA$1) -> 0 | AD16: 0 | AE16: =+IF(INDEX($C16:$L16,1,aux!$BA$1)>0,(L16/INDEX($C16:$L16,1,aux!$BA$1))^(1/($L$3-INDEX($C$3:$L$3,1,aux!$BA$1)))-1,"n.d.") -> n.d. | AF16: =IF(INDEX($C16:$L16,1,aux!$BA$1)>0,(L16-INDEX($C16:$L16,1,aux!$BA$1))/INDEX($C16:$L16,1,aux!$BA$1),"n.d.") -> n.d. | AH16: =X16-INDEX($O16:$X16,1,aux!$BA$1) -> 0 | AI16: 0 | AJ16: =+IF(INDEX($O16:$X16,1,aux!$BA$1)>0,(X16/INDEX($O16:$X16,1,aux!$BA$1))^(1/($X$3-INDEX($O$3:$X$3,1,aux!$BA$1)))-1,"n.d.") -> n.d. | AK16: =IF(INDEX($O16:$X16,1,aux!$BA$1)>0,(X16-INDEX($O16:$X16,1,aux!$BA$1))/INDEX($O16:$X16,1,aux!$BA$1),"n.d.") -> n.d. | AM16: 0 | CC16: =+IF(ISNA(MATCH('5.1'!A16,AUX_2d_pais!$G$2:$G$40000,0)),0,1) -> 0
A17: 0077 | B17: Arménia | C17: 0 | D17: 0 | E17: 0 | F17: 0 | G17: 0 | H17: 0 | I17: 0 | J17: 0 | K17: 0 | L17: 0 | M17: 0 | N17: 0 | O17: 0 | P17: 0 | Q17: 0 | R17: 0 | S17: 0 | T17: 0 | U17: 0 | V17: 0 | W17: 0 | X17: 0 | Y17: 0 | Z17: 0 | AA17: 0 | AC17: =L17-INDEX($C17:$L17,1,aux!$BA$1) -> 0 | AD17: 0 | AE17: =+IF(INDEX($C17:$L17,1,aux!$BA$1)>0,(L17/INDEX($C17:$L17,1,aux!$BA$1))^(1/($L$3-INDEX($C$3:$L$3,1,aux!$BA$1)))-1,"n.d.") -> n.d. | AF17: =IF(INDEX($C17:$L17,1,aux!$BA$1)>0,(L17-INDEX($C17:$L17,1,aux!$BA$1))/INDEX($C17:$L17,1,aux!$BA$1),"n.d.") -> n.d. | AH17: =X17-INDEX($O17:$X17,1,aux!$BA$1) -> 0 | AI17: 0 | AJ17: =+IF(INDEX($O17:$X17,1,aux!$BA$1)>0,(X17/INDEX($O17:$X17,1,aux!$BA$1))^(1/($X$3-INDEX($O$3:$X$3,1,aux!$BA$1)))-1,"n.d.") -> n.d. | AK17: =IF(INDEX($O17:$X17,1,aux!$BA$1)>0,(X17-INDEX($O17:$X17,1,aux!$BA$1))/INDEX($O17:$X17,1,aux!$BA$1),"n.d.") -> n.d. | AM17: 0 | CC17: =+IF(ISNA(MATCH('5.1'!A17,AUX_2d_pais!$G$2:$G$40000,0)),0,1) -> 0
A18: 0474 | B18: Aruba | C18: 0 | D18: 0 | E18: 0 | F18: 0 | G18: 0 | H18: 0 | I18: 0 | J18: 0 | K18: 0 | L18: 0 | M18: 0 | N18: 0 | O18: 0 | P18: 0 | Q18: 0 | R18: 0 | S18: 0 | T18: 0 | U18: 0 | V18: 0 | W18: 0 | X18: 0 | Y18: 0 | Z18: 0 | AA18: 0 | AC18: =L18-INDEX($C18:$L18,1,aux!$BA$1) -> 0 | AD18: 0 | AE18: =+IF(INDEX($C18:$L18,1,aux!$BA$1)>0,(L18/INDEX($C18:$L18,1,aux!$BA$1))^(1/($L$3-INDEX($C$3:$L$3,1,aux!$BA$1)))-1,"n.d.") -> n.d. | AF18: =IF(INDEX($C18:$L18,1,aux!$BA$1)>0,(L18-INDEX($C18:$L18,1,aux!$BA$1))/INDEX($C18:$L18,1,aux!$BA$1),"n.d.") -> n.d. | AH18: =X18-INDEX($O18:$X18,1,aux!$BA$1) -> 0 | AI18: 0 | AJ18: =+IF(INDEX($O18:$X18,1,aux!$BA$1)>0,(X18/INDEX($O18:$X18,1,aux!$BA$1))^(1/($X$3-INDEX($O$3:$X$3,1,aux!$BA$1)))-1,"n.d.") -> n.d. | AK18: =IF(INDEX($O18:$X18,1,aux!$BA$1)>0,(X18-INDEX($O18:$X18,1,aux!$BA$1))/INDEX($O18:$X18,1,aux!$BA$1),"n.d.") -> n.d. | AM18: 0 | BO18: 0 | CC18: =+IF(ISNA(MATCH('5.1'!A18,AUX_2d_pais!$G$2:$G$40000,0)),0,1) -> 0
A19: 0800 | B19: Austrália | C19: 0 | D19: 0 | E19: 0 | F19: 0 | G19: 0 | H19: 0 | I19: 0 | J19: 0 | K19: 0 | L19: 0 | M19: 0 | N19: 0 | O19: 0 | P19: 0 | Q19: 0 | R19: 0 | S19: 0 | T19: 0 | U19: 0 | V19: 0 | W19: 0 | X19: 0 | Y19: 0 | Z19: 0 | AA19: 0 | AC19: =L19-INDEX($C19:$L19,1,aux!$BA$1) -> 0 | AD19: 0 | AE19: =+IF(INDEX($C19:$L19,1,aux!$BA$1)>0,(L19/INDEX($C19:$L19,1,aux!$BA$1))^(1/($L$3-INDEX($C$3:$L$3,1,aux!$BA$1)))-1,"n.d.") -> n.d. | AF19: =IF(INDEX($C19:$L19,1,aux!$BA$1)>0,(L19-INDEX($C19:$L19,1,aux!$BA$1))/INDEX($C19:$L19,1,aux!$BA$1),"n.d.") -> n.d. | AH19: =X19-INDEX($O19:$X19,1,aux!$BA$1) -> 0 | AI19: 0 | AJ19: =+IF(INDEX($O19:$X19,1,aux!$BA$1)>0,(X19/INDEX($O19:$X19,1,aux!$BA$1))^(1/($X$3-INDEX($O$3:$X$3,1,aux!$BA$1)))-1,"n.d.") -> n.d. | AK19: =IF(INDEX($O19:$X19,1,aux!$BA$1)>0,(X19-INDEX($O19:$X19,1,aux!$BA$1))/INDEX($O19:$X19,1,aux!$BA$1),"n.d.") -> n.d. | AM19: 0 | CC19: =+IF(ISNA(MATCH('5.1'!A19,AUX_2d_pais!$G$2:$G$40000,0)),0,1) -> 0
A20: 0038 | B20: Áustria | C20: 0 | D20: 0 | E20: 0 | F20: 0 | G20: 0 | H20: 0 | I20: 0 | J20: 0 | K20: 0 | L20: 0 | M20: 0 | N20: 0 | O20: 0 | P20: 0 | Q20: 0 | R20: 0 | S20: 0 | T20: 0 | U20: 0 | V20: 0 | W20: 0 | X20: 0 | Y20: 0 | Z20: 0 | AA20: 0 | AC20: =L20-INDEX($C20:$L20,1,aux!$BA$1) -> 0 | AD20: 0 | AE20: =+IF(INDEX($C20:$L20,1,aux!$BA$1)>0,(L20/INDEX($C20:$L20,1,aux!$BA$1))^(1/($L$3-INDEX($C$3:$L$3,1,aux!$BA$1)))-1,"n.d.") -> n.d. | AF20: =IF(INDEX($C20:$L20,1,aux!$BA$1)>0,(L20-INDEX($C20:$L20,1,aux!$BA$1))/INDEX($C20:$L20,1,aux!$BA$1),"n.d.") -> n.d. | AH20: =X20-INDEX($O20:$X20,1,aux!$BA$1) -> 0 | AI20: 0 | AJ20: =+IF(INDEX($O20:$X20,1,aux!$BA$1)>0,(X20/INDEX($O20:$X20,1,aux!$BA$1))^(1/($X$3-INDEX($O$3:$X$3,1,aux!$BA$1)))-1,"n.d.") -> n.d. | AK20: =IF(INDEX($O20:$X20,1,aux!$BA$1)>0,(X20-INDEX($O20:$X20,1,aux!$BA$1))/INDEX($O20:$X20,1,aux!$BA$1),"n.d.") -> n.d. | AM20: 0 | CC20: =+IF(ISNA(MATCH('5.1'!A20,AUX_2d_pais!$G$2:$G$40000,0)),0,1) -> 0
A21: 0078 | B21: Azerbaijão | C21: 0 | D21: 0 | E21: 0 | F21: 0 | G21: 0 | H21: 0 | I21: 0 | J21: 0 | K21: 0 | L21: 0 | M21: 0 | N21: 0 | O21: 0 | P21: 0 | Q21: 0 | R21: 0 | S21: 0 | T21: 0 | U21: 0 | V21: 0 | W21: 0 | X21: 0 | Y21: 0 | Z21: 0 | AA21: 0 | AC21: =L21-INDEX($C21:$L21,1,aux!$BA$1) -> 0 | AD21: 0 | AE21: =+IF(INDEX($C21:$L21,1,aux!$BA$1)>0,(L21/INDEX($C21:$L21,1,aux!$BA$1))^(1/($L$3-INDEX($C$3:$L$3,1,aux!$BA$1)))-1,"n.d.") -> n.d. | AF21: =IF(INDEX($C21:$L21,1,aux!$BA$1)>0,(L21-INDEX($C21:$L21,1,aux!$BA$1))/INDEX($C21:$L21,1,aux!$BA$1),"n.d.") -> n.d. | AH21: =X21-INDEX($O21:$X21,1,aux!$BA$1) -> 0 | AI21: 0 | AJ21: =+IF(INDEX($O21:$X21,1,aux!$BA$1)>0,(X21/INDEX($O21:$X21,1,aux!$BA$1))^(1/($X$3-INDEX($O$3:$X$3,1,aux!$BA$1)))-1,"n.d.") -> n.d. | AK21: =IF(INDEX($O21:$X21,1,aux!$BA$1)>0,(X21-INDEX($O21:$X21,1,aux!$BA$1))/INDEX($O21:$X21,1,aux!$BA$1),"n.d.") -> n.d. | AM21: 0 | CC21: =+IF(ISNA(MATCH('5.1'!A21,AUX_2d_pais!$G$2:$G$40000,0)),0,1) -> 0
A22: 0453 | B22: Bahamas | C22: 0 | D22: 0 | E22: 0 | F22: 0 | G22: 0 | H22: 0 | I22: 0 | J22: 0 | K22: 0 | L22: 0 | M22: 0 | N22: 0 | O22: 0 | P22: 0 | Q22: 0 | R22: 0 | S22: 0 | T22: 0 | U22: 0 | V22: 0 | W22: 0 | X22: 0 | Y22: 0 | Z22: 0 | AA22: 0 | AC22: =L22-INDEX($C22:$L22,1,aux!$BA$1) -> 0 | AD22: 0 | AE22: =+IF(INDEX($C22:$L22,1,aux!$BA$1)>0,(L22/INDEX($C22:$L22,1,aux!$BA$1))^(1/($L$3-INDEX($C$3:$L$3,1,aux!$BA$1)))-1,"n.d.") -> n.d. | AF22: =IF(INDEX($C22:$L22,1,aux!$BA$1)>0,(L22-INDEX($C22:$L22,1,aux!$BA$1))/INDEX($C22:$L22,1,aux!$BA$1),"n.d.") -> n.d. | AH22: =X22-INDEX($O22:$X22,1,aux!$BA$1) -> 0 | AI22: 0 | AJ22: =+IF(INDEX($O22:$X22,1,aux!$BA$1)>0,(X22/INDEX($O22:$X22,1,aux!$BA$1))^(1/($X$3-INDEX($O$3:$X$3,1,aux!$BA$1)))-1,"n.d.") -> n.d. | AK22: =IF(INDEX($O22:$X22,1,aux!$BA$1)>0,(X22-INDEX($O22:$X22,1,aux!$BA$1))/INDEX($O22:$X22,1,aux!$BA$1),"n.d.") -> n.d. | AM22: 0 | BO22: 0 | CC22: =+IF(ISNA(MATCH('5.1'!A22,AUX_2d_pais!$G$2:$G$40000,0)),0,1) -> 0
A23: 0666 | B23: Bangladesh | C23: 0 | D23: 0 | E23: 0 | F23: 0 | G23: 0 | H23: 0 | I23: 0 | J23: 0 | K23: 0 | L23: 0 | M23: 0 | N23: 0 | O23: 0 | P23: 0 | Q23: 0 | R23: 0 | S23: 0 | T23: 0 | U23: 0 | V23: 0 | W23: 0 | X23: 0 | Y23: 0 | Z23: 0 | AA23: 0 | AC23: =L23-INDEX($C23:$L23,1,aux!$BA$1) -> 0 | AD23: 0 | AE23: =+IF(INDEX($C23:$L23,1,aux!$BA$1)>0,(L23/INDEX($C23:$L23,1,aux!$BA$1))^(1/($L$3-INDEX($C$3:$L$3,1,aux!$BA$1)))-1,"n.d.") -> n.d. | AF23: =IF(INDEX($C23:$L23,1,aux!$BA$1)>0,(L23-INDEX($C23:$L23,1,aux!$BA$1))/INDEX($C23:$L23,1,aux!$BA$1),"n.d.") -> n.d. | AH23: =X23-INDEX($O23:$X23,1,aux!$BA$1) -> 0 | AI23: 0 | AJ23: =+IF(INDEX($O23:$X23,1,aux!$BA$1)>0,(X23/INDEX($O23:$X23,1,aux!$BA$1))^(1/($X$3-INDEX($O$3:$X$3,1,aux!$BA$1)))-1,"n.d.") -> n.d. | AK23: =IF(INDEX($O23:$X23,1,aux!$BA$1)>0,(X23-INDEX($O23:$X23,1,aux!$BA$1))/INDEX($O23:$X23,1,aux!$BA$1),"n.d.") -> n.d. | AM23: 0 | CC23: =+IF(ISNA(MATCH('5.1'!A23,AUX_2d_pais!$G$2:$G$40000,0)),0,1) -> 0
A24: 0469 | B24: Barbados | C24: 0 | D24: 0 | E24: 0 | F24: 0 | G24: 0 | H24: 0 | I24: 0 | J24: 0 | K24: 0 | L24: 0 | M24: 0 | N24: 0 | O24: 0 | P24: 0 | Q24: 0 | R24: 0 | S24: 0 | T24: 0 | U24: 0 | V24: 0 | W24: 0 | X24: 0 | Y24: 0 | Z24: 0 | AA24: 0 | AC24: =L24-INDEX($C24:$L24,1,aux!$BA$1) -> 0 | AD24: 0 | AE24: =+IF(INDEX($C24:$L24,1,aux!$BA$1)>0,(L24/INDEX($C24:$L24,1,aux!$BA$1))^(1/($L$3-INDEX($C$3:$L$3,1,aux!$BA$1)))-1,"n.d.") -> n.d. | AF24: =IF(INDEX($C24:$L24,1,aux!$BA$1)>0,(L24-INDEX($C24:$L24,1,aux!$BA$1))/INDEX($C24:$L24,1,aux!$BA$1),"n.d.") -> n.d. | AH24: =X24-INDEX($O24:$X24,1,aux!$BA$1) -> 0 | AI24: 0 | AJ24: =+IF(INDEX($O24:$X24,1,aux!$BA$1)>0,(X24/INDEX($O24:$X24,1,aux!$BA$1))^(1/($X$3-INDEX($O$3:$X$3,1,aux!$BA$1)))-1,"n.d.") -> n.d. | AK24: =IF(INDEX($O24:$X24,1,aux!$BA$1)>0,(X24-INDEX($O24:$X24,1,aux!$BA$1))/INDEX($O24:$X24,1,aux!$BA$1),"n.d.") -> n.d. | AM24: 0 | BO24: 0 | CC24: =+IF(ISNA(MATCH('5.1'!A24,AUX_2d_pais!$G$2:$G$40000,0)),0,1) -> 0
A25: 0640 | B25: Barém | C25: 0 | D25: 0 | E25: 0 | F25: 0 | G25: 0 | H25: 0 | I25: 0 | J25: 0 | K25: 0 | L25: 0 | M25: 0 | N25: 0 | O25: 0 | P25: 0 | Q25: 0 | R25: 0 | S25: 0 | T25: 0 | U25: 0 | V25: 0 | W25: 0 | X25: 0 | Y25: 0 | Z25: 0 | AA25: 0 | AC25: =L25-INDEX($C25:$L25,1,aux!$BA$1) -> 0 | AD25: 0 | AE25: =+IF(INDEX($C25:$L25,1,aux!$BA$1)>0,(L25/INDEX($C25:$L25,1,aux!$BA$1))^(1/($L$3-INDEX($C$3:$L$3,1,aux!$BA$1)))-1,"n.d.") -> n.d. | AF25: =IF(INDEX($C25:$L25,1,aux!$BA$1)>0,(L25-INDEX($C25:$L25,1,aux!$BA$1))/INDEX($C25:$L25,1,aux!$BA$1),"n.d.") -> n.d. | AH25: =X25-INDEX($O25:$X25,1,aux!$BA$1) -> 0 | AI25: 0 | AJ25: =+IF(INDEX($O25:$X25,1,aux!$BA$1)>0,(X25/INDEX($O25:$X25,1,aux!$BA$1))^(1/($X$3-INDEX($O$3:$X$3,1,aux!$BA$1)))-1,"n.d.") -> n.d. | AK25: =IF(INDEX($O25:$X25,1,aux!$BA$1)>0,(X25-INDEX($O25:$X25,1,aux!$BA$1))/INDEX($O25:$X25,1,aux!$BA$1),"n.d.") -> n.d. | AM25: 0 | CC25: =+IF(ISNA(MATCH('5.1'!A25,AUX_2d_pais!$G$2:$G$40000,0)),0,1) -> 0
A26: 0073 | B26: Belarus | C26: 0 | D26: 0 | E26: 0 | F26: 0 | G26: 0 | H26: 0 | I26: 0 | J26: 0 | K26: 0 | L26: 0 | M26: 0 | N26: 0 | O26: 0 | P26: 0 | Q26: 0 | R26: 0 | S26: 0 | T26: 0 | U26: 0 | V26: 0 | W26: 0 | X26: 0 | Y26: 0 | Z26: 0 | AA26: 0 | AC26: =L26-INDEX($C26:$L26,1,aux!$BA$1) -> 0 | AD26: 0 | AE26: =+IF(INDEX($C26:$L26,1,aux!$BA$1)>0,(L26/INDEX($C26:$L26,1,aux!$BA$1))^(1/($L$3-INDEX($C$3:$L$3,1,aux!$BA$1)))-1,"n.d.") -> n.d. | AF26: =IF(INDEX($C26:$L26,1,aux!$BA$1)>0,(L26-INDEX($C26:$L26,1,aux!$BA$1))/INDEX($C26:$L26,1,aux!$BA$1),"n.d.") -> n.d. | AH26: =X26-INDEX($O26:$X26,1,aux!$BA$1) -> 0 | AI26: 0 | AJ26: =+IF(INDEX($O26:$X26,1,aux!$BA$1)>0,(X26/INDEX($O26:$X26,1,aux!$BA$1))^(1/($X$3-INDEX($O$3:$X$3,1,aux!$BA$1)))-1,"n.d.") -> n.d. | AK26: =IF(INDEX($O26:$X26,1,aux!$BA$1)>0,(X26-INDEX($O26:$X26,1,aux!$BA$1))/INDEX($O26:$X26,1,aux!$BA$1),"n.d.") -> n.d. | AM26: 0 | CC26: =+IF(ISNA(MATCH('5.1'!A26,AUX_2d_pais!$G$2:$G$40000,0)),0,1) -> 0
A27: 0017 | B27: Bélgica | C27: 0 | D27: 0 | E27: 0 | F27: 0 | G27: 0 | H27: 0 | I27: 0 | J27: 0 | K27: 0 | L27: 0 | M27: 0 | N27: 0 | O27: 0 | P27: 0 | Q27: 0 | R27: 0 | S27: 0 | T27: 0 | U27: 0 | V27: 0 | W27: 0 | X27: 0 | Y27: 0 | Z27: 0 | AA27: 0 | AC27: =L27-INDEX($C27:$L27,1,aux!$BA$1) -> 0 | AD27: 0 | AE27: =+IF(INDEX($C27:$L27,1,aux!$BA$1)>0,(L27/INDEX($C27:$L27,1,aux!$BA$1))^(1/($L$3-INDEX($C$3:$L$3,1,aux!$BA$1)))-1,"n.d.") -> n.d. | AF27: =IF(INDEX($C27:$L27,1,aux!$BA$1)>0,(L27-INDEX($C27:$L27,1,aux!$BA$1))/INDEX($C27:$L27,1,aux!$BA$1),"n.d.") -> n.d. | AH27: =X27-INDEX($O27:$X27,1,aux!$BA$1) -> 0 | AI27: 0 | AJ27: =+IF(INDEX($O27:$X27,1,aux!$BA$1)>0,(X27/INDEX($O27:$X27,1,aux!$BA$1))^(1/($X$3-INDEX($O$3:$X$3,1,aux!$BA$1)))-1,"n.d.") -> n.d. | AK27: =IF(INDEX($O27:$X27,1,aux!$BA$1)>0,(X27-INDEX($O27:$X27,1,aux!$BA$1))/INDEX($O27:$X27,1,aux!$BA$1),"n.d.") -> n.d. | AM27: 0 | CC27: =+IF(ISNA(MATCH('5.1'!A27,AUX_2d_pais!$G$2:$G$40000,0)),0,1) -> 0
A28: 0421 | B28: Belize | C28: 0 | D28: 0 | E28: 0 | F28: 0 | G28: 0 | H28: 0 | I28: 0 | J28: 0 | K28: 0 | L28: 0 | M28: 0 | N28: 0 | O28: 0 | P28: 0 | Q28: 0 | R28: 0 | S28: 0 | T28: 0 | U28: 0 | V28: 0 | W28: 0 | X28: 0 | Y28: 0 | Z28: 0 | AA28: 0 | AC28: =L28-INDEX($C28:$L28,1,aux!$BA$1) -> 0 | AD28: 0 | AE28: =+IF(INDEX($C28:$L28,1,aux!$BA$1)>0,(L28/INDEX($C28:$L28,1,aux!$BA$1))^(1/($L$3-INDEX($C$3:$L$3,1,aux!$BA$1)))-1,"n.d.") -> n.d. | AF28: =IF(INDEX($C28:$L28,1,aux!$BA$1)>0,(L28-INDEX($C28:$L28,1,aux!$BA$1))/INDEX($C28:$L28,1,aux!$BA$1),"n.d.") -> n.d. | AH28: =X28-INDEX($O28:$X28,1,aux!$BA$1) -> 0 | AI28: 0 | AJ28: =+IF(INDEX($O28:$X28,1,aux!$BA$1)>0,(X28/INDEX($O28:$X28,1,aux!$BA$1))^(1/($X$3-INDEX($O$3:$X$3,1,aux!$BA$1)))-1,"n.d.") -> n.d. | AK28: =IF(INDEX($O28:$X28,1,aux!$BA$1)>0,(X28-INDEX($O28:$X28,1,aux!$BA$1))/INDEX($O28:$X28,1,aux!$BA$1),"n.d.") -> n.d. | AM28: 0 | CC28: =+IF(ISNA(MATCH('5.1'!A28,AUX_2d_pais!$G$2:$G$40000,0)),0,1) -> 0
A29: 0284 | B29: Benim | C29: 10394.211 | D29: 7623.169 | E29: 2911.167 | F29: 7334.942 | G29: 2539.356 | H29: 3473.422 | I29: 3282.67 | J29: 1303.332 | K29: 1150.272 | L29: 883.122 | M29: 4089.5663 | N29: 0.009480303811 | O29: 368.023 | P29: 330.105 | Q29: 863.096 | R29: 1709.664 | S29: 2180.064 | T29: 1508.149 | U29: 2084.547 | V29: 2026.752 | W29: 1575.799 | X29: 575.281 | Y29: 1322.148 | Z29: 0.001247710123 | AA29: -2767.4183 | AC29: =L29-INDEX($C29:$L29,1,aux!$BA$1) -> -9511.089 | AD29: -0.06532607047 | AE29: =+IF(INDEX($C29:$L29,1,aux!$BA$1)>0,(L29/INDEX($C29:$L29,1,aux!$BA$1))^(1/($L$3-INDEX($C$3:$L$3,1,aux!$BA$1)))-1,"n.d.") -> -0.2396291417 | AF29: =IF(INDEX($C29:$L29,1,aux!$BA$1)>0,(L29-INDEX($C29:$L29,1,aux!$BA$1))/INDEX($C29:$L29,1,aux!$BA$1),"n.d.") -> -0.9150371298 | AH29: =X29-INDEX($O29:$X29,1,aux!$BA$1) -> 207.258 | AI29: 0.0006391868207 | AJ29: =+IF(INDEX($O29:$X29,1,aux!$BA$1)>0,(X29/INDEX($O29:$X29,1,aux!$BA$1))^(1/($X$3-INDEX($O$3:$X$3,1,aux!$BA$1)))-1,"n.d.") -> 0.05088724003 | AK29: =IF(INDEX($O29:$X29,1,aux!$BA$1)>0,(X29-INDEX($O29:$X29,1,aux!$BA$1))/INDEX($O29:$X29,1,aux!$BA$1),"n.d.") -> 0.5631658891 | CC29: =+IF(ISNA(MATCH('5.1'!A29,AUX_2d_pais!$G$2:$G$40000,0)),0,1) -> 1
A30: 0413 | B30: Bermudas | C30: 0 | D30: 0 | E30: 0 | F30: 0 | G30: 0 | H30: 0 | I30: 0 | J30: 0 | K30: 0 | L30: 0 | M30: 0 | N30: 0 | O30: 0 | P30: 0 | Q30: 0 | R30: 0 | S30: 0 | T30: 0 | U30: 0 | V30: 0 | W30: 0 | X30: 0 | Y30: 0 | Z30: 0 | AA30: 0 | AC30: =L30-INDEX($C30:$L30,1,aux!$BA$1) -> 0 | AD30: 0 | AE30: =+IF(INDEX($C30:$L30,1,aux!$BA$1)>0,(L30/INDEX($C30:$L30,1,aux!$BA$1))^(1/($L$3-INDEX($C$3:$L$3,1,aux!$BA$1)))-1,"n.d.") -> n.d. | AF30: =IF(INDEX($C30:$L30,1,aux!$BA$1)>0,(L30-INDEX($C30:$L30,1,aux!$BA$1))/INDEX($C30:$L30,1,aux!$BA$1),"n.d.") -> n.d. | AH30: =X30-INDEX($O30:$X30,1,aux!$BA$1) -> 0 | AI30: 0 | AJ30: =+IF(INDEX($O30:$X30,1,aux!$BA$1)>0,(X30/INDEX($O30:$X30,1,aux!$BA$1))^(1/($X$3-INDEX($O$3:$X$3,1,aux!$BA$1)))-1,"n.d.") -> n.d. | AK30: =IF(INDEX($O30:$X30,1,aux!$BA$1)>0,(X30-INDEX($O30:$X30,1,aux!$BA$1))/INDEX($O30:$X30,1,aux!$BA$1),"n.d.") -> n.d. | AM30: 0 | CC30: =+IF(ISNA(MATCH('5.1'!A30,AUX_2d_pais!$G$2:$G$40000,0)),0,1) -> 0
A31: 0516 | B31: Bolívia | C31: 0 | D31: 0 | E31: 0 | F31: 0 | G31: 0 | H31: 0 | I31: 0 | J31: 0 | K31: 0 | L31: 0 | M31: 0 | N31: 0 | O31: 0 | P31: 0 | Q31: 0 | R31: 0 | S31: 0 | T31: 0 | U31: 0 | V31: 0 | W31: 0 | X31: 0 | Y31: 0 | Z31: 0 | AA31: 0 | AC31: =L31-INDEX($C31:$L31,1,aux!$BA$1) -> 0 | AD31: 0 | AE31: =+IF(INDEX($C31:$L31,1,aux!$BA$1)>0,(L31/INDEX($C31:$L31,1,aux!$BA$1))^(1/($L$3-INDEX($C$3:$L$3,1,aux!$BA$1)))-1,"n.d.") -> n.d. | AF31: =IF(INDEX($C31:$L31,1,aux!$BA$1)>0,(L31-INDEX($C31:$L31,1,aux!$BA$1))/INDEX($C31:$L31,1,aux!$BA$1),"n.d.") -> n.d. | AH31: =X31-INDEX($O31:$X31,1,aux!$BA$1) -> 0 | AI31: 0 | AJ31: =+IF(INDEX($O31:$X31,1,aux!$BA$1)>0,(X31/INDEX($O31:$X31,1,aux!$BA$1))^(1/($X$3-INDEX($O$3:$X$3,1,aux!$BA$1)))-1,"n.d.") -> n.d. | AK31: =IF(INDEX($O31:$X31,1,aux!$BA$1)>0,(X31-INDEX($O31:$X31,1,aux!$BA$1))/INDEX($O31:$X31,1,aux!$BA$1),"n.d.") -> n.d. | AM31: 0 | CC31: =+IF(ISNA(MATCH('5.1'!A31,AUX_2d_pais!$G$2:$G$40000,0)),0,1) -> 0
A32: 0477 | B32: Bonaire, Santo Eustáquio e Saba | C32: 0 | D32: 0 | E32: 0 | F32: 0 | G32: 0 | H32: 0 | I32: 0 | J32: 0 | K32: 0 | L32: 0 | M32: 0 | N32: 0 | O32: 0 | P32: 0 | Q32: 0 | R32: 0 | S32: 0 | T32: 0 | U32: 0 | V32: 0 | W32: 0 | X32: 0 | Y32: 0 | Z32: 0 | AA32: 0 | AC32: =L32-INDEX($C32:$L32,1,aux!$BA$1) -> 0 | AD32: 0 | AE32: =+IF(INDEX($C32:$L32,1,aux!$BA$1)>0,(L32/INDEX($C32:$L32,1,aux!$BA$1))^(1/($L$3-INDEX($C$3:$L$3,1,aux!$BA$1)))-1,"n.d.") -> n.d. | AF32: =IF(INDEX($C32:$L32,1,aux!$BA$1)>0,(L32-INDEX($C32:$L32,1,aux!$BA$1))/INDEX($C32:$L32,1,aux!$BA$1),"n.d.") -> n.d. | AH32: =X32-INDEX($O32:$X32,1,aux!$BA$1) -> 0 | AI32: 0 | AJ32: =+IF(INDEX($O32:$X32,1,aux!$BA$1)>0,(X32/INDEX($O32:$X32,1,aux!$BA$1))^(1/($X$3-INDEX($O$3:$X$3,1,aux!$BA$1)))-1,"n.d.") -> n.d. | AK32: =IF(INDEX($O32:$X32,1,aux!$BA$1)>0,(X32-INDEX($O32:$X32,1,aux!$BA$1))/INDEX($O32:$X32,1,aux!$BA$1),"n.d.") -> n.d. | AM32: 0 | BO32: 0 | CC32: =+IF(ISNA(MATCH('5.1'!A32,AUX_2d_pais!$G$2:$G$40000,0)),0,1) -> 0
A33: 0093 | B33: Bósnia-Herzegovina | C33: 0 | D33: 0 | E33: 0 | F33: 0 | G33: 0 | H33: 0 | I33: 0 | J33: 0 | K33: 0 | L33: 0 | M33: 0 | N33: 0 | O33: 0 | P33: 0 | Q33: 0 | R33: 0 | S33: 0 | T33: 0 | U33: 0 | V33: 0 | W33: 0 | X33: 0 | Y33: 0 | Z33: 0 | AA33: 0 | AC33: =L33-INDEX($C33:$L33,1,aux!$BA$1) -> 0 | AD33: 0 | AE33: =+IF(INDEX($C33:$L33,1,aux!$BA$1)>0,(L33/INDEX($C33:$L33,1,aux!$BA$1))^(1/($L$3-INDEX($C$3:$L$3,1,aux!$BA$1)))-1,"n.d.") -> n.d. | AF33: =IF(INDEX($C33:$L33,1,aux!$BA$1)>0,(L33-INDEX($C33:$L33,1,aux!$BA$1))/INDEX($C33:$L33,1,aux!$BA$1),"n.d.") -> n.d. | AH33: =X33-INDEX($O33:$X33,1,aux!$BA$1) -> 0 | AI33: 0 | AJ33: =+IF(INDEX($O33:$X33,1,aux!$BA$1)>0,(X33/INDEX($O33:$X33,1,aux!$BA$1))^(1/($X$3-INDEX($O$3:$X$3,1,aux!$BA$1)))-1,"n.d.") -> n.d. | AK33: =IF(INDEX($O33:$X33,1,aux!$BA$1)>0,(X33-INDEX($O33:$X33,1,aux!$BA$1))/INDEX($O33:$X33,1,aux!$BA$1),"n.d.") -> n.d. | AM33: 0 | CC33: =+IF(ISNA(MATCH('5.1'!A33,AUX_2d_pais!$G$2:$G$40000,0)),0,1) -> 0
A34: 0391 | B34: Botswana | C34: 7.109 | D34: 5.731 | E34: 0.129 | F34: 0 | G34: 0 | H34: 0 | I34: 0 | J34: 0 | K34: 0 | L34: 0 | M34: 1.2969 | N34: 3.006432739e-06 | O34: 7.826 | P34: 39.112 | Q34: 0.713 | R34: 0 | S34: 0.598 | T34: 0 | U34: 0.075 | V34: 41.179 | W34: 11.75 | X34: 22.405 | Y34: 12.3658 | Z34: 1.166959663e-05 | AA34: 11.0689 | AC34: =L34-INDEX($C34:$L34,1,aux!$BA$1) -> -7.109 | AD34: -4.882753542e-05 | AE34: =+IF(INDEX($C34:$L34,1,aux!$BA$1)>0,(L34/INDEX($C34:$L34,1,aux!$BA$1))^(1/($L$3-INDEX($C$3:$L$3,1,aux!$BA$1)))-1,"n.d.") -> -1 | AF34: =IF(INDEX($C34:$L34,1,aux!$BA$1)>0,(L34-INDEX($C34:$L34,1,aux!$BA$1))/INDEX($C34:$L34,1,aux!$BA$1),"n.d.") -> -1 | AH34: =X34-INDEX($O34:$X34,1,aux!$BA$1) -> 14.579 | AI34: 4.496185749e-05 | AJ34: =+IF(INDEX($O34:$X34,1,aux!$BA$1)>0,(X34/INDEX($O34:$X34,1,aux!$BA$1))^(1/($X$3-INDEX($O$3:$X$3,1,aux!$BA$1)))-1,"n.d.") -> 0.1239736314 | AK34: =IF(INDEX($O34:$X34,1,aux!$BA$1)>0,(X34-INDEX($O34:$X34,1,aux!$BA$1))/INDEX($O34:$X34,1,aux!$BA$1),"n.d.") -> 1.862892921 | CC34: =+IF(ISNA(MATCH('5.1'!A34,AUX_2d_pais!$G$2:$G$40000,0)),0,1) -> 1
A35: 0892 | B35: Bouvet, Ilha | C35: 0 | D35: 0 | E35: 0 | F35: 0 | G35: 0 | H35: 0 | I35: 0 | J35: 0 | K35: 0 | L35: 0 | M35: 0 | N35: 0 | O35: 0 | P35: 0 | Q35: 0 | R35: 0 | S35: 0 | T35: 0 | U35: 0 | V35: 0 | W35: 0 | X35: 0 | Y35: 0 | Z35: 0 | AA35: 0 | AC35: =L35-INDEX($C35:$L35,1,aux!$BA$1) -> 0 | AD35: 0 | AE35: =+IF(INDEX($C35:$L35,1,aux!$BA$1)>0,(L35/INDEX($C35:$L35,1,aux!$BA$1))^(1/($L$3-INDEX($C$3:$L$3,1,aux!$BA$1)))-1,"n.d.") -> n.d. | AF35: =IF(INDEX($C35:$L35,1,aux!$BA$1)>0,(L35-INDEX($C35:$L35,1,aux!$BA$1))/INDEX($C35:$L35,1,aux!$BA$1),"n.d.") -> n.d. | AH35: =X35-INDEX($O35:$X35,1,aux!$BA$1) -> 0 | AI35: 0 | AJ35: =+IF(INDEX($O35:$X35,1,aux!$BA$1)>0,(X35/INDEX($O35:$X35,1,aux!$BA$1))^(1/($X$3-INDEX($O$3:$X$3,1,aux!$BA$1)))-1,"n.d.") -> n.d. | AK35: =IF(INDEX($O35:$X35,1,aux!$BA$1)>0,(X35-INDEX($O35:$X35,1,aux!$BA$1))/INDEX($O35:$X35,1,aux!$BA$1),"n.d.") -> n.d. | AM35: 0 | BO35: 0 | CC35: =+IF(ISNA(MATCH('5.1'!A35,AUX_2d_pais!$G$2:$G$40000,0)),0,1) -> 0
A36: 0508 | B36: Brasil | C36: 0 | D36: 0 | E36: 0 | F36: 0 | G36: 0 | H36: 0 | I36: 0 | J36: 0 | K36: 0 | L36: 0 | M36: 0 | N36: 0 | O36: 0 | P36: 0 | Q36: 0 | R36: 0 | S36: 0 | T36: 0 | U36: 0 | V36: 0 | W36: 0 | X36: 0 | Y36: 0 | Z36: 0 | AA36: 0 | AC36: =L36-INDEX($C36:$L36,1,aux!$BA$1) -> 0 | AD36: =AC36/$AC$252 -> 0 | AE36: =+IF(INDEX($C36:$L36,1,aux!$BA$1)>0,(L36/INDEX($C36:$L36,1,aux!$BA$1))^(1/($L$3-INDEX($C$3:$L$3,1,aux!$BA$1)))-1,"n.d.") -> n.d. | AF36: =IF(INDEX($C36:$L36,1,aux!$BA$1)>0,(L36-INDEX($C36:$L36,1,aux!$BA$1))/INDEX($C36:$L36,1,aux!$BA$1),"n.d.") -> n.d. | AH36: =X36-INDEX($O36:$X36,1,aux!$BA$1) -> 0 | AI36: =AH36/$AH$252 -> 0 | AJ36: =+IF(INDEX($O36:$X36,1,aux!$BA$1)>0,(X36/INDEX($O36:$X36,1,aux!$BA$1))^(1/($X$3-INDEX($O$3:$X$3,1,aux!$BA$1)))-1,"n.d.") -> n.d. | AK36: =IF(INDEX($O36:$X36,1,aux!$BA$1)>0,(X36-INDEX($O36:$X36,1,aux!$BA$1))/INDEX($O36:$X36,1,aux!$BA$1),"n.d.") -> n.d. | AM36: 0 | CC36: =+IF(ISNA(MATCH('5.1'!A36,AUX_2d_pais!$G$2:$G$40000,0)),0,1) -> 0
A37: 0703 | B37: Brunei Darussalam | C37: 0 | D37: 0 | E37: 0 | F37: 0 | G37: 0 | H37: 0 | I37: 0 | J37: 0 | K37: 0 | L37: 0 | M37: 0 | N37: 0 | O37: 0 | P37: 0 | Q37: 0 | R37: 0 | S37: 0 | T37: 0 | U37: 0 | V37: 0 | W37: 0 | X37: 0 | Y37: 0 | Z37: 0 | AA37: 0 | AC37: =L37-INDEX($C37:$L37,1,aux!$BA$1) -> 0 | AD37: 0 | AE37: =+IF(INDEX($C37:$L37,1,aux!$BA$1)>0,(L37/INDEX($C37:$L37,1,aux!$BA$1))^(1/($L$3-INDEX($C$3:$L$3,1,aux!$BA$1)))-1,"n.d.") -> n.d. | AF37: =IF(INDEX($C37:$L37,1,aux!$BA$1)>0,(L37-INDEX($C37:$L37,1,aux!$BA$1))/INDEX($C37:$L37,1,aux!$BA$1),"n.d.") -> n.d. | AH37: =X37-INDEX($O37:$X37,1,aux!$BA$1) -> 0 | AI37: 0 | AJ37: =+IF(INDEX($O37:$X37,1,aux!$BA$1)>0,(X37/INDEX($O37:$X37,1,aux!$BA$1))^(1/($X$3-INDEX($O$3:$X$3,1,aux!$BA$1)))-1,"n.d.") -> n.d. | AK37: =IF(INDEX($O37:$X37,1,aux!$BA$1)>0,(X37-INDEX($O37:$X37,1,aux!$BA$1))/INDEX($O37:$X37,1,aux!$BA$1),"n.d.") -> n.d. | AM37: 0 | BO37: 0 | CC37: =+IF(ISNA(MATCH('5.1'!A37,AUX_2d_pais!$G$2:$G$40000,0)),0,1) -> 0
A38: 0068 | B38: Bulgária | C38: 0 | D38: 0 | E38: 0 | F38: 0 | G38: 0 | H38: 0 | I38: 0 | J38: 0 | K38: 0 | L38: 0 | M38: 0 | N38: 0 | O38: 0 | P38: 0 | Q38: 0 | R38: 0 | S38: 0 | T38: 0 | U38: 0 | V38: 0 | W38: 0 | X38: 0 | Y38: 0 | Z38: 0 | AA38: 0 | AC38: =L38-INDEX($C38:$L38,1,aux!$BA$1) -> 0 | AD38: 0 | AE38: =+IF(INDEX($C38:$L38,1,aux!$BA$1)>0,(L38/INDEX($C38:$L38,1,aux!$BA$1))^(1/($L$3-INDEX($C$3:$L$3,1,aux!$BA$1)))-1,"n.d.") -> n.d. | AF38: =IF(INDEX($C38:$L38,1,aux!$BA$1)>0,(L38-INDEX($C38:$L38,1,aux!$BA$1))/INDEX($C38:$L38,1,aux!$BA$1),"n.d.") -> n.d. | AH38: =X38-INDEX($O38:$X38,1,aux!$BA$1) -> 0 | AI38: 0 | AJ38: =+IF(INDEX($O38:$X38,1,aux!$BA$1)>0,(X38/INDEX($O38:$X38,1,aux!$BA$1))^(1/($X$3-INDEX($O$3:$X$3,1,aux!$BA$1)))-1,"n.d.") -> n.d. | AK38: =IF(INDEX($O38:$X38,1,aux!$BA$1)>0,(X38-INDEX($O38:$X38,1,aux!$BA$1))/INDEX($O38:$X38,1,aux!$BA$1),"n.d.") -> n.d. | AM38: 0 | CC38: =+IF(ISNA(MATCH('5.1'!A38,AUX_2d_pais!$G$2:$G$40000,0)),0,1) -> 0
A39: 0236 | B39: Burquina Faso | C39: 268.485 | D39: 1975.276 | E39: 743.528 | F39: 99.973 | G39: 2815.336 | H39: 4630.702 | I39: 2084.177 | J39: 1682.509 | K39: 1398.475 | L39: 1562.598 | M39: 1726.1059 | N39: 0.00400140434 | O39: 14.758 | P39: 19.429 | Q39: 465.646 | R39: 777.427 | S39: 1009.494 | T39: 1611.139 | U39: 1985.592 | V39: 2373.299 | W39: 2309.07 | X39: 2325.006 | Y39: 1289.086 | Z39: 0.001216509537 | AA39: -437.0199 | AC39: =L39-INDEX($C39:$L39,1,aux!$BA$1) -> 1294.113 | AD39: 0.008888500259 | AE39: =+IF(INDEX($C39:$L39,1,aux!$BA$1)>0,(L39/INDEX($C39:$L39,1,aux!$BA$1))^(1/($L$3-INDEX($C$3:$L$3,1,aux!$BA$1)))-1,"n.d.") -> 0.2161633605 | AF39: =IF(INDEX($C39:$L39,1,aux!$BA$1)>0,(L39-INDEX($C39:$L39,1,aux!$BA$1))/INDEX($C39:$L39,1,aux!$BA$1),"n.d.") -> 4.820056986 | AH39: =X39-INDEX($O39:$X39,1,aux!$BA$1) -> 2310.248 | AI39: 0.00712483993 | AJ39: =+IF(INDEX($O39:$X39,1,aux!$BA$1)>0,(X39/INDEX($O39:$X39,1,aux!$BA$1))^(1/($X$3-INDEX($O$3:$X$3,1,aux!$BA$1)))-1,"n.d.") -> 0.7545072803 | AK39: =IF(INDEX($O39:$X39,1,aux!$BA$1)>0,(X39-INDEX($O39:$X39,1,aux!$BA$1))/INDEX($O39:$X39,1,aux!$BA$1),"n.d.") -> 156.5420789 | CC39: =+IF(ISNA(MATCH('5.1'!A39,AUX_2d_pais!$G$2:$G$40000,0)),0,1) -> 1
A40: 0328 | B40: Burundi | C40: 0 | D40: 0 | E40: 243.674 | F40: 0 | G40: 0 | H40: 0 | I40: 0 | J40: 0 | K40: 0 | L40: 0 | M40: 24.3674 | N40: 5.648773932e-05 | O40: 0 | P40: 0 | Q40: 16.398 | R40: 0 | S40: 0.1 | T40: 0 | U40: 0 | V40: 15.187 | W40: 1185.771 | X40: 1029.705 | Y40: 224.7161 | Z40: 0.0002120644231 | AA40: 200.3487 | AC40: =L40-INDEX($C40:$L40,1,aux!$BA$1) -> 0 | AD40: 0 | AE40: =+IF(INDEX($C40:$L40,1,aux!$BA$1)>0,(L40/INDEX($C40:$L40,1,aux!$BA$1))^(1/($L$3-INDEX($C$3:$L$3,1,aux!$BA$1)))-1,"n.d.") -> n.d. | AF40: =IF(INDEX($C40:$L40,1,aux!$BA$1)>0,(L40-INDEX($C40:$L40,1,aux!$BA$1))/INDEX($C40:$L40,1,aux!$BA$1),"n.d.") -> n.d. | AH40: =X40-INDEX($O40:$X40,1,aux!$BA$1) -> 1029.705 | AI40: 0.003175625863 | AJ40: =+IF(INDEX($O40:$X40,1,aux!$BA$1)>0,(X40/INDEX($O40:$X40,1,aux!$BA$1))^(1/($X$3-INDEX($O$3:$X$3,1,aux!$BA$1)))-1,"n.d.") -> n.d. | AK40: =IF(INDEX($O40:$X40,1,aux!$BA$1)>0,(X40-INDEX($O40:$X40,1,aux!$BA$1))/INDEX($O40:$X40,1,aux!$BA$1),"n.d.") -> n.d. | BO40: 2490.835 | CC40: =+IF(ISNA(MATCH('5.1'!A40,AUX_2d_pais!$G$2:$G$40000,0)),0,1) -> 1
A41: 0675 | B41: Butão | C41: 0 | D41: 0 | E41: 0 | F41: 0 | G41: 0 | H41: 0 | I41: 0 | J41: 0 | K41: 0 | L41: 0 | M41: 0 | N41: 0 | O41: 0 | P41: 0 | Q41: 0 | R41: 0 | S41: 0 | T41: 0 | U41: 0 | V41: 0 | W41: 0 | X41: 0 | Y41: 0 | Z41: 0 | AA41: 0 | AC41: =L41-INDEX($C41:$L41,1,aux!$BA$1) -> 0 | AD41: 0 | AE41: =+IF(INDEX($C41:$L41,1,aux!$BA$1)>0,(L41/INDEX($C41:$L41,1,aux!$BA$1))^(1/($L$3-INDEX($C$3:$L$3,1,aux!$BA$1)))-1,"n.d.") -> n.d. | AF41: =IF(INDEX($C41:$L41,1,aux!$BA$1)>0,(L41-INDEX($C41:$L41,1,aux!$BA$1))/INDEX($C41:$L41,1,aux!$BA$1),"n.d.") -> n.d. | AH41: =X41-INDEX($O41:$X41,1,aux!$BA$1) -> 0 | AI41: 0 | AJ41: =+IF(INDEX($O41:$X41,1,aux!$BA$1)>0,(X41/INDEX($O41:$X41,1,aux!$BA$1))^(1/($X$3-INDEX($O$3:$X$3,1,aux!$BA$1)))-1,"n.d.") -> n.d. | AK41: =IF(INDEX($O41:$X41,1,aux!$BA$1)>0,(X41-INDEX($O41:$X41,1,aux!$BA$1))/INDEX($O41:$X41,1,aux!$BA$1),"n.d.") -> n.d. | AM41: 0 | BO41: 0 | CC41: =+IF(ISNA(MATCH('5.1'!A41,AUX_2d_pais!$G$2:$G$40000,0)),0,1) -> 0
A42: 0247 | B42: Cabo Verde | C42: 1515.249 | D42: 564.526 | E42: 1024.177 | F42: 1321.13 | G42: 1691.017 | H42: 1096.436 | I42: 513.98 | J42: 585.26 | K42: 2489.423 | L42: 2432.119 | M42: 1323.3317 | N42: 0.003067705873 | O42: 61404.409 | P42: 68599.338 | Q42: 76359.595 | R42: 69722.561 | S42: 70021.71 | T42: 70540.294 | U42: 69807.822 | V42: 81646.446 | W42: 86814.423 | X42: 87093.913 | Y42: 74201.0511 | Z42: 0.07002347892 | AA42: 72877.7194 | AC42: =L42-INDEX($C42:$L42,1,aux!$BA$1) -> 916.87 | AD42: 0.006297440202 | AE42: =+IF(INDEX($C42:$L42,1,aux!$BA$1)>0,(L42/INDEX($C42:$L42,1,aux!$BA$1))^(1/($L$3-INDEX($C$3:$L$3,1,aux!$BA$1)))-1,"n.d.") -> 0.05398255772 | AF42: =IF(INDEX($C42:$L42,1,aux!$BA$1)>0,(L42-INDEX($C42:$L42,1,aux!$BA$1))/INDEX($C42:$L42,1,aux!$BA$1),"n.d.") -> 0.6050952682 | AH42: =X42-INDEX($O42:$X42,1,aux!$BA$1) -> 25689.504 | AI42: 0.07922682061 | AJ42: =+IF(INDEX($O42:$X42,1,aux!$BA$1)>0,(X42/INDEX($O42:$X42,1,aux!$BA$1))^(1/($X$3-INDEX($O$3:$X$3,1,aux!$BA$1)))-1,"n.d.") -> 0.03959782167 | AK42: =IF(INDEX($O42:$X42,1,aux!$BA$1)>0,(X42-INDEX($O42:$X42,1,aux!$BA$1))/INDEX($O42:$X42,1,aux!$BA$1),"n.d.") -> 0.4183657887 | CC42: =+IF(ISNA(MATCH('5.1'!A42,AUX_2d_pais!$G$2:$G$40000,0)),0,1) -> 1
A43: 0463 | B43: Caimão, Ilhas | C43: 0 | D43: 0 | E43: 0 | F43: 0 | G43: 0 | H43: 0 | I43: 0 | J43: 0 | K43: 0 | L43: 0 | M43: 0 | N43: 0 | O43: 0 | P43: 0 | Q43: 0 | R43: 0 | S43: 0 | T43: 0 | U43: 0 | V43: 0 | W43: 0 | X43: 0 | Y43: 0 | Z43: 0 | AA43: 0 | AC43: =L43-INDEX($C43:$L43,1,aux!$BA$1) -> 0 | AD43: 0 | AE43: =+IF(INDEX($C43:$L43,1,aux!$BA$1)>0,(L43/INDEX($C43:$L43,1,aux!$BA$1))^(1/($L$3-INDEX($C$3:$L$3,1,aux!$BA$1)))-1,"n.d.") -> n.d. | AF43: =IF(INDEX($C43:$L43,1,aux!$BA$1)>0,(L43-INDEX($C43:$L43,1,aux!$BA$1))/INDEX($C43:$L43,1,aux!$BA$1),"n.d.") -> n.d. | AH43: =X43-INDEX($O43:$X43,1,aux!$BA$1) -> 0 | AI43: 0 | AJ43: =+IF(INDEX($O43:$X43,1,aux!$BA$1)>0,(X43/INDEX($O43:$X43,1,aux!$BA$1))^(1/($X$3-INDEX($O$3:$X$3,1,aux!$BA$1)))-1,"n.d.") -> n.d. | AK43: =IF(INDEX($O43:$X43,1,aux!$BA$1)>0,(X43-INDEX($O43:$X43,1,aux!$BA$1))/INDEX($O43:$X43,1,aux!$BA$1),"n.d.") -> n.d. | AM43: 0 | BO43: 0 | CC43: =+IF(ISNA(MATCH('5.1'!A43,AUX_2d_pais!$G$2:$G$40000,0)),0,1) -> 0
A44: 0302 | B44: Camarões | C44: 15843.308 | D44: 16456.664 | E44: 23198.274 | F44: 17929.268 | G44: 12426.718 | H44: 13683.189 | I44: 16711.075 | J44: 15061.707 | K44: 14255.59 | L44: 11688.863 | M44: 15725.4656 | N44: 0.03645427914 | O44: 151.855 | P44: 737.029 | Q44: 689.906 | R44: 1010.445 | S44: 2664.396 | T44: 4126.051 | U44: 3650.702 | V44: 4368.688 | W44: 4047.457 | X44: 7464.89 | Y44: 2891.1419 | Z44: 0.002728368546 | AA44: -12834.3237 | AC44: =L44-INDEX($C44:$L44,1,aux!$BA$1) -> -4154.445 | AD44: -0.02853443668 | AE44: =+IF(INDEX($C44:$L44,1,aux!$BA$1)>0,(L44/INDEX($C44:$L44,1,aux!$BA$1))^(1/($L$3-INDEX($C$3:$L$3,1,aux!$BA$1)))-1,"n.d.") -> -0.03322556867 | AF44: =IF(INDEX($C44:$L44,1,aux!$BA$1)>0,(L44-INDEX($C44:$L44,1,aux!$BA$1))/INDEX($C44:$L44,1,aux!$BA$1),"n.d.") -> -0.2622208064 | AH44: =X44-INDEX($O44:$X44,1,aux!$BA$1) -> 7313.035 | AI44: 0.02255351104 | AJ44: =+IF(INDEX($O44:$X44,1,aux!$BA$1)>0,(X44/INDEX($O44:$X44,1,aux!$BA$1))^(1/($X$3-INDEX($O$3:$X$3,1,aux!$BA$1)))-1,"n.d.") -> 0.5415404463 | AK44: =IF(INDEX($O44:$X44,1,aux!$BA$1)>0,(X44-INDEX($O44:$X44,1,aux!$BA$1))/INDEX($O44:$X44,1,aux!$BA$1),"n.d.") -> 48.15801258 | CC44: =+IF(ISNA(MATCH('5.1'!A44,AUX_2d_pais!$G$2:$G$40000,0)),0,1) -> 1
A45: 0696 | B45: Camboja | C45: 0 | D45: 0 | E45: 0 | F45: 0 | G45: 0 | H45: 0 | I45: 0 | J45: 0 | K45: 0 | L45: 0 | M45: 0 | N45: 0 | O45: 0 | P45: 0 | Q45: 0 | R45: 0 | S45: 0 | T45: 0 | U45: 0 | V45: 0 | W45: 0 | X45: 0 | Y45: 0 | Z45: 0 | AA45: 0 | AC45: =L45-INDEX($C45:$L45,1,aux!$BA$1) -> 0 | AD45: 0 | AE45: =+IF(INDEX($C45:$L45,1,aux!$BA$1)>0,(L45/INDEX($C45:$L45,1,aux!$BA$1))^(1/($L$3-INDEX($C$3:$L$3,1,aux!$BA$1)))-1,"n.d.") -> n.d. | AF45: =IF(INDEX($C45:$L45,1,aux!$BA$1)>0,(L45-INDEX($C45:$L45,1,aux!$BA$1))/INDEX($C45:$L45,1,aux!$BA$1),"n.d.") -> n.d. | AH45: =X45-INDEX($O45:$X45,1,aux!$BA$1) -> 0 | AI45: 0 | AJ45: =+IF(INDEX($O45:$X45,1,aux!$BA$1)>0,(X45/INDEX($O45:$X45,1,aux!$BA$1))^(1/($X$3-INDEX($O$3:$X$3,1,aux!$BA$1)))-1,"n.d.") -> n.d. | AK45: =IF(INDEX($O45:$X45,1,aux!$BA$1)>0,(X45-INDEX($O45:$X45,1,aux!$BA$1))/INDEX($O45:$X45,1,aux!$BA$1),"n.d.") -> n.d. | AM45: 0 | CC45: =+IF(ISNA(MATCH('5.1'!A45,AUX_2d_pais!$G$2:$G$40000,0)),0,1) -> 0
A46: 0404 | B46: Canadá | C46: 0 | D46: 0 | E46: 0 | F46: 0 | G46: 0 | H46: 0 | I46: 0 | J46: 0 | K46: 0 | L46: 0 | M46: 0 | N46: 0 | O46: 0 | P46: 0 | Q46: 0 | R46: 0 | S46: 0 | T46: 0 | U46: 0 | V46: 0 | W46: 0 | X46: 0 | Y46: 0 | Z46: 0 | AA46: 0 | AC46: =L46-INDEX($C46:$L46,1,aux!$BA$1) -> 0 | AD46: 0 | AE46: =+IF(INDEX($C46:$L46,1,aux!$BA$1)>0,(L46/INDEX($C46:$L46,1,aux!$BA$1))^(1/($L$3-INDEX($C$3:$L$3,1,aux!$BA$1)))-1,"n.d.") -> n.d. | AF46: =IF(INDEX($C46:$L46,1,aux!$BA$1)>0,(L46-INDEX($C46:$L46,1,aux!$BA$1))/INDEX($C46:$L46,1,aux!$BA$1),"n.d.") -> n.d. | AH46: =X46-INDEX($O46:$X46,1,aux!$BA$1) -> 0 | AI46: 0 | AJ46: =+IF(INDEX($O46:$X46,1,aux!$BA$1)>0,(X46/INDEX($O46:$X46,1,aux!$BA$1))^(1/($X$3-INDEX($O$3:$X$3,1,aux!$BA$1)))-1,"n.d.") -> n.d. | AK46: =IF(INDEX($O46:$X46,1,aux!$BA$1)>0,(X46-INDEX($O46:$X46,1,aux!$BA$1))/INDEX($O46:$X46,1,aux!$BA$1),"n.d.") -> n.d. | AM46: 0 | CC46: =+IF(ISNA(MATCH('5.1'!A46,AUX_2d_pais!$G$2:$G$40000,0)),0,1) -> 0
A47: 0644 | B47: Catar | C47: 0 | D47: 0 | E47: 0 | F47: 0 | G47: 0 | H47: 0 | I47: 0 | J47: 0 | K47: 0 | L47: 0 | M47: 0 | N47: 0 | O47: 0 | P47: 0 | Q47: 0 | R47: 0 | S47: 0 | T47: 0 | U47: 0 | V47: 0 | W47: 0 | X47: 0 | Y47: 0 | Z47: 0 | AA47: 0 | AC47: =L47-INDEX($C47:$L47,1,aux!$BA$1) -> 0 | AD47: 0 | AE47: =+IF(INDEX($C47:$L47,1,aux!$BA$1)>0,(L47/INDEX($C47:$L47,1,aux!$BA$1))^(1/($L$3-INDEX($C$3:$L$3,1,aux!$BA$1)))-1,"n.d.") -> n.d. | AF47: =IF(INDEX($C47:$L47,1,aux!$BA$1)>0,(L47-INDEX($C47:$L47,1,aux!$BA$1))/INDEX($C47:$L47,1,aux!$BA$1),"n.d.") -> n.d. | AH47: =X47-INDEX($O47:$X47,1,aux!$BA$1) -> 0 | AI47: 0 | AJ47: =+IF(INDEX($O47:$X47,1,aux!$BA$1)>0,(X47/INDEX($O47:$X47,1,aux!$BA$1))^(1/($X$3-INDEX($O$3:$X$3,1,aux!$BA$1)))-1,"n.d.") -> n.d. | AK47: =IF(INDEX($O47:$X47,1,aux!$BA$1)>0,(X47-INDEX($O47:$X47,1,aux!$BA$1))/INDEX($O47:$X47,1,aux!$BA$1),"n.d.") -> n.d. | AM47: 0 | CC47: =+IF(ISNA(MATCH('5.1'!A47,AUX_2d_pais!$G$2:$G$40000,0)),0,1) -> 0
A48: 0079 | B48: Cazaquistão | C48: 0 | D48: 0 | E48: 0 | F48: 0 | G48: 0 | H48: 0 | I48: 0 | J48: 0 | K48: 0 | L48: 0 | M48: 0 | N48: 0 | O48: 0 | P48: 0 | Q48: 0 | R48: 0 | S48: 0 | T48: 0 | U48: 0 | V48: 0 | W48: 0 | X48: 0 | Y48: 0 | Z48: 0 | AA48: 0 | AC48: =L48-INDEX($C48:$L48,1,aux!$BA$1) -> 0 | AD48: 0 | AE48: =+IF(INDEX($C48:$L48,1,aux!$BA$1)>0,(L48/INDEX($C48:$L48,1,aux!$BA$1))^(1/($L$3-INDEX($C$3:$L$3,1,aux!$BA$1)))-1,"n.d.") -> n.d. | AF48: =IF(INDEX($C48:$L48,1,aux!$BA$1)>0,(L48-INDEX($C48:$L48,1,aux!$BA$1))/INDEX($C48:$L48,1,aux!$BA$1),"n.d.") -> n.d. | AH48: =X48-INDEX($O48:$X48,1,aux!$BA$1) -> 0 | AI48: 0 | AJ48: =+IF(INDEX($O48:$X48,1,aux!$BA$1)>0,(X48/INDEX($O48:$X48,1,aux!$BA$1))^(1/($X$3-INDEX($O$3:$X$3,1,aux!$BA$1)))-1,"n.d.") -> n.d. | AK48: =IF(INDEX($O48:$X48,1,aux!$BA$1)>0,(X48-INDEX($O48:$X48,1,aux!$BA$1))/INDEX($O48:$X48,1,aux!$BA$1),"n.d.") -> n.d. | AM48: 0 | CC48: =+IF(ISNA(MATCH('5.1'!A48,AUX_2d_pais!$G$2:$G$40000,0)),0,1) -> 0
A49: 0306 | B49: Centro-Africana, República | C49: 789.963 | D49: 2348.775 | E49: 3713.272 | F49: 907.935 | G49: 610.099 | H49: 351.297 | I49: 1573.486 | J49: 2782.86 | K49: 1213.616 | L49: 3045.54 | M49: 1733.6843 | N49: 0.004018972348 | O49: 3.743 | P49: 2.573 | Q49: 7.539 | R49: 11.07 | S49: 5.018 | T49: 2.69 | U49: 0 | V49: 0 | W49: 58.263 | X49: 34.392 | Y49: 12.5288 | Z49: 1.182341961e-05 | AA49: -1721.1555 | AC49: =L49-INDEX($C49:$L49,1,aux!$BA$1) -> 2255.577 | AD49: 0.01549223039 | AE49: =+IF(INDEX($C49:$L49,1,aux!$BA$1)>0,(L49/INDEX($C49:$L49,1,aux!$BA$1))^(1/($L$3-INDEX($C$3:$L$3,1,aux!$BA$1)))-1,"n.d.") -> 0.1617629077 | AF49: =IF(INDEX($C49:$L49,1,aux!$BA$1)>0,(L49-INDEX($C49:$L49,1,aux!$BA$1))/INDEX($C49:$L49,1,aux!$BA$1),"n.d.") -> 2.855294488 | AH49: =X49-INDEX($O49:$X49,1,aux!$BA$1) -> 30.649 | AI49: 9.452198162e-05 | AJ49: =+IF(INDEX($O49:$X49,1,aux!$BA$1)>0,(X49/INDEX($O49:$X49,1,aux!$BA$1))^(1/($X$3-INDEX($O$3:$X$3,1,aux!$BA$1)))-1,"n.d.") -> 0.2794590795 | AK49: =IF(INDEX($O49:$X49,1,aux!$BA$1)>0,(X49-INDEX($O49:$X49,1,aux!$BA$1))/INDEX($O49:$X49,1,aux!$BA$1),"n.d.") -> 8.18835159 | BO49: 17462.131 | CC49: =+IF(ISNA(MATCH('5.1'!A49,AUX_2d_pais!$G$2:$G$40000,0)),0,1) -> 1
A50: 0021 | B50: Ceuta | C50: 0 | D50: 0 | E50: 0 | F50: 0 | G50: 0 | H50: 0 | I50: 0 | J50: 0 | K50: 0 | L50: 0 | M50: 0 | N50: 0 | O50: 0 | P50: 0 | Q50: 0 | R50: 0 | S50: 0 | T50: 0 | U50: 0 | V50: 0 | W50: 0 | X50: 0 | Y50: 0 | Z50: 0 | AA50: 0 | AC50: =L50-INDEX($C50:$L50,1,aux!$BA$1) -> 0 | AD50: 0 | AE50: =+IF(INDEX($C50:$L50,1,aux!$BA$1)>0,(L50/INDEX($C50:$L50,1,aux!$BA$1))^(1/($L$3-INDEX($C$3:$L$3,1,aux!$BA$1)))-1,"n.d.") -> n.d. | AF50: =IF(INDEX($C50:$L50,1,aux!$BA$1)>0,(L50-INDEX($C50:$L50,1,aux!$BA$1))/INDEX($C50:$L50,1,aux!$BA$1),"n.d.") -> n.d. | AH50: =X50-INDEX($O50:$X50,1,aux!$BA$1) -> 0 | AI50: 0 | AJ50: =+IF(INDEX($O50:$X50,1,aux!$BA$1)>0,(X50/INDEX($O50:$X50,1,aux!$BA$1))^(1/($X$3-INDEX($O$3:$X$3,1,aux!$BA$1)))-1,"n.d.") -> n.d. | AK50: =IF(INDEX($O50:$X50,1,aux!$BA$1)>0,(X50-INDEX($O50:$X50,1,aux!$BA$1))/INDEX($O50:$X50,1,aux!$BA$1),"n.d.") -> n.d. | AM50: 0 | CC50: =+IF(ISNA(MATCH('5.1'!A50,AUX_2d_pais!$G$2:$G$40000,0)),0,1) -> 0
A51: 0022 | B51: Ceuta e Melilha | C51: 0 | D51: 0 | E51: 0 | F51: 0 | G51: 0 | H51: 0 | I51: 0 | J51: 0 | K51: 0 | L51: 0 | M51: 0 | N51: 0 | O51: 0 | P51: 0 | Q51: 0 | R51: 0 | S51: 0 | T51: 0 | U51: 0 | V51: 0 | W51: 0 | X51: 0 | Y51: 0 | Z51: 0 | AA51: 0 | AC51: =L51-INDEX($C51:$L51,1,aux!$BA$1) -> 0 | AD51: 0 | AE51: =+IF(INDEX($C51:$L51,1,aux!$BA$1)>0,(L51/INDEX($C51:$L51,1,aux!$BA$1))^(1/($L$3-INDEX($C$3:$L$3,1,aux!$BA$1)))-1,"n.d.") -> n.d. | AF51: =IF(INDEX($C51:$L51,1,aux!$BA$1)>0,(L51-INDEX($C51:$L51,1,aux!$BA$1))/INDEX($C51:$L51,1,aux!$BA$1),"n.d.") -> n.d. | AH51: =X51-INDEX($O51:$X51,1,aux!$BA$1) -> 0 | AI51: 0 | AJ51: =+IF(INDEX($O51:$X51,1,aux!$BA$1)>0,(X51/INDEX($O51:$X51,1,aux!$BA$1))^(1/($X$3-INDEX($O$3:$X$3,1,aux!$BA$1)))-1,"n.d.") -> n.d. | AK51: =IF(INDEX($O51:$X51,1,aux!$BA$1)>0,(X51-INDEX($O51:$X51,1,aux!$BA$1))/INDEX($O51:$X51,1,aux!$BA$1),"n.d.") -> n.d. | AM51: 0 | CC51: =+IF(ISNA(MATCH('5.1'!A51,AUX_2d_pais!$G$2:$G$40000,0)),0,1) -> 0
A52: 0244 | B52: Chade | C52: 3071.061 | D52: 7191.885 | E52: 7383.47 | F52: 3902.439 | G52: 4480.735 | H52: 3615.471 | I52: 3530.524 | J52: 4545.664 | K52: 6311.506 | L52: 1864.112 | M52: 4589.6867 | N52: 0.01063966717 | O52: 0 | P52: 0 | Q52: 0 | R52: 0 | S52: 11.96 | T52: 56.722 | U52: 76.29 | V52: 69.216 | W52: 47.677 | X52: 0.334 | Y52: 26.2199 | Z52: 2.47437009e-05 | AA52: -4563.4668 | AC52: =L52-INDEX($C52:$L52,1,aux!$BA$1) -> -1206.949 | AD52: -0.008289822063 | AE52: =+IF(INDEX($C52:$L52,1,aux!$BA$1)>0,(L52/INDEX($C52:$L52,1,aux!$BA$1))^(1/($L$3-INDEX($C$3:$L$3,1,aux!$BA$1)))-1,"n.d.") -> -0.05396046844 | AF52: =IF(INDEX($C52:$L52,1,aux!$BA$1)>0,(L52-INDEX($C52:$L52,1,aux!$BA$1))/INDEX($C52:$L52,1,aux!$BA$1),"n.d.") -> -0.3930071724 | AH52: =X52-INDEX($O52:$X52,1,aux!$BA$1) -> 0.334 | AI52: 1.030061074e-06 | AJ52: =+IF(INDEX($O52:$X52,1,aux!$BA$1)>0,(X52/INDEX($O52:$X52,1,aux!$BA$1))^(1/($X$3-INDEX($O$3:$X$3,1,aux!$BA$1)))-1,"n.d.") -> n.d. | AK52: =IF(INDEX($O52:$X52,1,aux!$BA$1)>0,(X52-INDEX($O52:$X52,1,aux!$BA$1))/INDEX($O52:$X52,1,aux!$BA$1),"n.d.") -> n.d. | CC52: =+IF(ISNA(MATCH('5.1'!A52,AUX_2d_pais!$G$2:$G$40000,0)),0,1) -> 1
A53: 0061 | B53: Checa, República | C53: 0 | D53: 0 | E53: 0 | F53: 0 | G53: 0 | H53: 0 | I53: 0 | J53: 0 | K53: 0 | L53: 0 | M53: 0 | N53: 0 | O53: 0 | P53: 0 | Q53: 0 | R53: 0 | S53: 0 | T53: 0 | U53: 0 | V53: 0 | W53: 0 | X53: 0 | Y53: 0 | Z53: 0 | AA53: 0 | AC53: =L53-INDEX($C53:$L53,1,aux!$BA$1) -> 0 | AD53: 0 | AE53: =+IF(INDEX($C53:$L53,1,aux!$BA$1)>0,(L53/INDEX($C53:$L53,1,aux!$BA$1))^(1/($L$3-INDEX($C$3:$L$3,1,aux!$BA$1)))-1,"n.d.") -> n.d. | AF53: =IF(INDEX($C53:$L53,1,aux!$BA$1)>0,(L53-INDEX($C53:$L53,1,aux!$BA$1))/INDEX($C53:$L53,1,aux!$BA$1),"n.d.") -> n.d. | AH53: =X53-INDEX($O53:$X53,1,aux!$BA$1) -> 0 | AI53: 0 | AJ53: =+IF(INDEX($O53:$X53,1,aux!$BA$1)>0,(X53/INDEX($O53:$X53,1,aux!$BA$1))^(1/($X$3-INDEX($O$3:$X$3,1,aux!$BA$1)))-1,"n.d.") -> n.d. | AK53: =IF(INDEX($O53:$X53,1,aux!$BA$1)>0,(X53-INDEX($O53:$X53,1,aux!$BA$1))/INDEX($O53:$X53,1,aux!$BA$1),"n.d.") -> n.d. | AM53: 0 | CC53: =+IF(ISNA(MATCH('5.1'!A53,AUX_2d_pais!$G$2:$G$40000,0)),0,1) -> 0
A54: 0512 | B54: Chile | C54: 0 | D54: 0 | E54: 0 | F54: 0 | G54: 0 | H54: 0 | I54: 0 | J54: 0 | K54: 0 | L54: 0 | M54: 0 | N54: 0 | O54: 0 | P54: 0 | Q54: 0 | R54: 0 | S54: 0 | T54: 0 | U54: 0 | V54: 0 | W54: 0 | X54: 0 | Y54: 0 | Z54: 0 | AA54: 0 | AC54: =L54-INDEX($C54:$L54,1,aux!$BA$1) -> 0 | AD54: 0 | AE54: =+IF(INDEX($C54:$L54,1,aux!$BA$1)>0,(L54/INDEX($C54:$L54,1,aux!$BA$1))^(1/($L$3-INDEX($C$3:$L$3,1,aux!$BA$1)))-1,"n.d.") -> n.d. | AF54: =IF(INDEX($C54:$L54,1,aux!$BA$1)>0,(L54-INDEX($C54:$L54,1,aux!$BA$1))/INDEX($C54:$L54,1,aux!$BA$1),"n.d.") -> n.d. | AH54: =X54-INDEX($O54:$X54,1,aux!$BA$1) -> 0 | AI54: 0 | AJ54: =+IF(INDEX($O54:$X54,1,aux!$BA$1)>0,(X54/INDEX($O54:$X54,1,aux!$BA$1))^(1/($X$3-INDEX($O$3:$X$3,1,aux!$BA$1)))-1,"n.d.") -> n.d. | AK54: =IF(INDEX($O54:$X54,1,aux!$BA$1)>0,(X54-INDEX($O54:$X54,1,aux!$BA$1))/INDEX($O54:$X54,1,aux!$BA$1),"n.d.") -> n.d. | AM54: 0 | CC54: =+IF(ISNA(MATCH('5.1'!A54,AUX_2d_pais!$G$2:$G$40000,0)),0,1) -> 0
A55: 0720 | B55: China, República Popular da | C55: 0 | D55: 0 | E55: 0 | F55: 0 | G55: 0 | H55: 0 | I55: 0 | J55: 0 | K55: 0 | L55: 0 | M55: 0 | N55: 0 | O55: 0 | P55: 0 | Q55: 0 | R55: 0 | S55: 0 | T55: 0 | U55: 0 | V55: 0 | W55: 0 | X55: 0 | Y55: 0 | Z55: 0 | AA55: 0 | AC55: =L55-INDEX($C55:$L55,1,aux!$BA$1) -> 0 | AD55: 0 | AE55: =+IF(INDEX($C55:$L55,1,aux!$BA$1)>0,(L55/INDEX($C55:$L55,1,aux!$BA$1))^(1/($L$3-INDEX($C$3:$L$3,1,aux!$BA$1)))-1,"n.d.") -> n.d. | AF55: =IF(INDEX($C55:$L55,1,aux!$BA$1)>0,(L55-INDEX($C55:$L55,1,aux!$BA$1))/INDEX($C55:$L55,1,aux!$BA$1),"n.d.") -> n.d. | AH55: =X55-INDEX($O55:$X55,1,aux!$BA$1) -> 0 | AI55: 0 | AJ55: =+IF(INDEX($O55:$X55,1,aux!$BA$1)>0,(X55/INDEX($O55:$X55,1,aux!$BA$1))^(1/($X$3-INDEX($O$3:$X$3,1,aux!$BA$1)))-1,"n.d.") -> n.d. | AK55: =IF(INDEX($O55:$X55,1,aux!$BA$1)>0,(X55-INDEX($O55:$X55,1,aux!$BA$1))/INDEX($O55:$X55,1,aux!$BA$1),"n.d.") -> n.d. | AM55: 0 | CC55: =+IF(ISNA(MATCH('5.1'!A55,AUX_2d_pais!$G$2:$G$40000,0)),0,1) -> 0
A56: 0600 | B56: Chipre | C56: 0 | D56: 0 | E56: 0 | F56: 0 | G56: 0 | H56: 0 | I56: 0 | J56: 0 | K56: 0 | L56: 0 | M56: 0 | N56: 0 | O56: 0 | P56: 0 | Q56: 0 | R56: 0 | S56: 0 | T56: 0 | U56: 0 | V56: 0 | W56: 0 | X56: 0 | Y56: 0 | Z56: 0 | AA56: 0 | AC56: =L56-INDEX($C56:$L56,1,aux!$BA$1) -> 0 | AD56: 0 | AE56: =+IF(INDEX($C56:$L56,1,aux!$BA$1)>0,(L56/INDEX($C56:$L56,1,aux!$BA$1))^(1/($L$3-INDEX($C$3:$L$3,1,aux!$BA$1)))-1,"n.d.") -> n.d. | AF56: =IF(INDEX($C56:$L56,1,aux!$BA$1)>0,(L56-INDEX($C56:$L56,1,aux!$BA$1))/INDEX($C56:$L56,1,aux!$BA$1),"n.d.") -> n.d. | AH56: =X56-INDEX($O56:$X56,1,aux!$BA$1) -> 0 | AI56: 0 | AJ56: =+IF(INDEX($O56:$X56,1,aux!$BA$1)>0,(X56/INDEX($O56:$X56,1,aux!$BA$1))^(1/($X$3-INDEX($O$3:$X$3,1,aux!$BA$1)))-1,"n.d.") -> n.d. | AK56: =IF(INDEX($O56:$X56,1,aux!$BA$1)>0,(X56-INDEX($O56:$X56,1,aux!$BA$1))/INDEX($O56:$X56,1,aux!$BA$1),"n.d.") -> n.d. | AM56: 0 | CC56: =+IF(ISNA(MATCH('5.1'!A56,AUX_2d_pais!$G$2:$G$40000,0)),0,1) -> 0
A57: 0834 | B57: Christmas, Ilha | C57: 0 | D57: 0 | E57: 0 | F57: 0 | G57: 0 | H57: 0 | I57: 0 | J57: 0 | K57: 0 | L57: 0 | M57: 0 | N57: 0 | O57: 0 | P57: 0 | Q57: 0 | R57: 0 | S57: 0 | T57: 0 | U57: 0 | V57: 0 | W57: 0 | X57: 0 | Y57: 0 | Z57: 0 | AA57: 0 | AC57: =L57-INDEX($C57:$L57,1,aux!$BA$1) -> 0 | AD57: 0 | AE57: =+IF(INDEX($C57:$L57,1,aux!$BA$1)>0,(L57/INDEX($C57:$L57,1,aux!$BA$1))^(1/($L$3-INDEX($C$3:$L$3,1,aux!$BA$1)))-1,"n.d.") -> n.d. | AF57: =IF(INDEX($C57:$L57,1,aux!$BA$1)>0,(L57-INDEX($C57:$L57,1,aux!$BA$1))/INDEX($C57:$L57,1,aux!$BA$1),"n.d.") -> n.d. | AH57: =X57-INDEX($O57:$X57,1,aux!$BA$1) -> 0 | AI57: 0 | AJ57: =+IF(INDEX($O57:$X57,1,aux!$BA$1)>0,(X57/INDEX($O57:$X57,1,aux!$BA$1))^(1/($X$3-INDEX($O$3:$X$3,1,aux!$BA$1)))-1,"n.d.") -> n.d. | AK57: =IF(INDEX($O57:$X57,1,aux!$BA$1)>0,(X57-INDEX($O57:$X57,1,aux!$BA$1))/INDEX($O57:$X57,1,aux!$BA$1),"n.d.") -> n.d. | AM57: 0 | BO57: 0 | CC57: =+IF(ISNA(MATCH('5.1'!A57,AUX_2d_pais!$G$2:$G$40000,0)),0,1) -> 0
A58: 0833 | B58: Cocos (Keeling), Ilhas | C58: 0 | D58: 0 | E58: 0 | F58: 0 | G58: 0 | H58: 0 | I58: 0 | J58: 0 | K58: 0 | L58: 0 | M58: 0 | N58: 0 | O58: 0 | P58: 0 | Q58: 0 | R58: 0 | S58: 0 | T58: 0 | U58: 0 | V58: 0 | W58: 0 | X58: 0 | Y58: 0 | Z58: 0 | AA58: 0 | AC58: =L58-INDEX($C58:$L58,1,aux!$BA$1) -> 0 | AD58: 0 | AE58: =+IF(INDEX($C58:$L58,1,aux!$BA$1)>0,(L58/INDEX($C58:$L58,1,aux!$BA$1))^(1/($L$3-INDEX($C$3:$L$3,1,aux!$BA$1)))-1,"n.d.") -> n.d. | AF58: =IF(INDEX($C58:$L58,1,aux!$BA$1)>0,(L58-INDEX($C58:$L58,1,aux!$BA$1))/INDEX($C58:$L58,1,aux!$BA$1),"n.d.") -> n.d. | AH58: =X58-INDEX($O58:$X58,1,aux!$BA$1) -> 0 | AI58: 0 | AJ58: =+IF(INDEX($O58:$X58,1,aux!$BA$1)>0,(X58/INDEX($O58:$X58,1,aux!$BA$1))^(1/($X$3-INDEX($O$3:$X$3,1,aux!$BA$1)))-1,"n.d.") -> n.d. | AK58: =IF(INDEX($O58:$X58,1,aux!$BA$1)>0,(X58-INDEX($O58:$X58,1,aux!$BA$1))/INDEX($O58:$X58,1,aux!$BA$1),"n.d.") -> n.d. | AM58: 0 | BO58: 0 | CC58: =+IF(ISNA(MATCH('5.1'!A58,AUX_2d_pais!$G$2:$G$40000,0)),0,1) -> 0
A59: 0480 | B59: Colômbia | C59: 0 | D59: 0 | E59: 0 | F59: 0 | G59: 0 | H59: 0 | I59: 0 | J59: 0 | K59: 0 | L59: 0 | M59: 0 | N59: 0 | O59: 0 | P59: 0 | Q59: 0 | R59: 0 | S59: 0 | T59: 0 | U59: 0 | V59: 0 | W59: 0 | X59: 0 | Y59: 0 | Z59: 0 | AA59: 0 | AC59: =L59-INDEX($C59:$L59,1,aux!$BA$1) -> 0 | AD59: 0 | AE59: =+IF(INDEX($C59:$L59,1,aux!$BA$1)>0,(L59/INDEX($C59:$L59,1,aux!$BA$1))^(1/($L$3-INDEX($C$3:$L$3,1,aux!$BA$1)))-1,"n.d.") -> n.d. | AF59: =IF(INDEX($C59:$L59,1,aux!$BA$1)>0,(L59-INDEX($C59:$L59,1,aux!$BA$1))/INDEX($C59:$L59,1,aux!$BA$1),"n.d.") -> n.d. | AH59: =X59-INDEX($O59:$X59,1,aux!$BA$1) -> 0 | AI59: 0 | AJ59: =+IF(INDEX($O59:$X59,1,aux!$BA$1)>0,(X59/INDEX($O59:$X59,1,aux!$BA$1))^(1/($X$3-INDEX($O$3:$X$3,1,aux!$BA$1)))-1,"n.d.") -> n.d. | AK59: =IF(INDEX($O59:$X59,1,aux!$BA$1)>0,(X59-INDEX($O59:$X59,1,aux!$BA$1))/INDEX($O59:$X59,1,aux!$BA$1),"n.d.") -> n.d. | AM59: 0 | CC59: =+IF(ISNA(MATCH('5.1'!A59,AUX_2d_pais!$G$2:$G$40000,0)),0,1) -> 0
A60: 0375 | B60: Comores | C60: 0 | D60: 0 | E60: 0 | F60: 0 | G60: 0 | H60: 2.392 | I60: 0 | J60: 0 | K60: 0 | L60: 0 | M60: 0.2392 | N60: 5.545059073e-07 | O60: 0 | P60: 0 | Q60: 0 | R60: 26.6 | S60: 29.546 | T60: 0 | U60: 0 | V60: 43.928 | W60: 155.175 | X60: 70.26 | Y60: 32.5509 | Z60: 3.071826108e-05 | AA60: 32.3117 | AC60: =L60-INDEX($C60:$L60,1,aux!$BA$1) -> 0 | AD60: 0 | AE60: =+IF(INDEX($C60:$L60,1,aux!$BA$1)>0,(L60/INDEX($C60:$L60,1,aux!$BA$1))^(1/($L$3-INDEX($C$3:$L$3,1,aux!$BA$1)))-1,"n.d.") -> n.d. | AF60: =IF(INDEX($C60:$L60,1,aux!$BA$1)>0,(L60-INDEX($C60:$L60,1,aux!$BA$1))/INDEX($C60:$L60,1,aux!$BA$1),"n.d.") -> n.d. | AH60: =X60-INDEX($O60:$X60,1,aux!$BA$1) -> 70.26 | AI60: 0.0002166829074 | AJ60: =+IF(INDEX($O60:$X60,1,aux!$BA$1)>0,(X60/INDEX($O60:$X60,1,aux!$BA$1))^(1/($X$3-INDEX($O$3:$X$3,1,aux!$BA$1)))-1,"n.d.") -> n.d. | AK60: =IF(INDEX($O60:$X60,1,aux!$BA$1)>0,(X60-INDEX($O60:$X60,1,aux!$BA$1))/INDEX($O60:$X60,1,aux!$BA$1),"n.d.") -> n.d. | CC60: =+IF(ISNA(MATCH('5.1'!A60,AUX_2d_pais!$G$2:$G$40000,0)),0,1) -> 1
A61: 0318 | B61: Congo | C61: 14488.1 | D61: 16809.835 | E61: 1389.882 | F61: 1840.692 | G61: 5283.906 | H61: 4346.29 | I61: 8316.623 | J61: 6120.497 | K61: 3696.594 | L61: 6002.885 | M61: 6829.5304 | N61: 0.0158320023 | O61: 212.076 | P61: 589.397 | Q61: 258.188 | R61: 1432.018 | S61: 1958.834 | T61: 1617.813 | U61: 4288.565 | V61: 1347.365 | W61: 1926.206 | X61: 1446.626 | Y61: 1507.7088 | Z61: 0.001422823718 | AA61: -5321.8216 | AC61: =L61-INDEX($C61:$L61,1,aux!$BA$1) -> -8485.215 | AD61: -0.05827994597 | AE61: =+IF(INDEX($C61:$L61,1,aux!$BA$1)>0,(L61/INDEX($C61:$L61,1,aux!$BA$1))^(1/($L$3-INDEX($C$3:$L$3,1,aux!$BA$1)))-1,"n.d.") -> -0.093259161 | AF61: =IF(INDEX($C61:$L61,1,aux!$BA$1)>0,(L61-INDEX($C61:$L61,1,aux!$BA$1))/INDEX($C61:$L61,1,aux!$BA$1),"n.d.") -> -0.585667893 | AH61: =X61-INDEX($O61:$X61,1,aux!$BA$1) -> 1234.55 | AI61: 0.003807370955 | AJ61: =+IF(INDEX($O61:$X61,1,aux!$BA$1)>0,(X61/INDEX($O61:$X61,1,aux!$BA$1))^(1/($X$3-INDEX($O$3:$X$3,1,aux!$BA$1)))-1,"n.d.") -> 0.2378033054 | AK61: =IF(INDEX($O61:$X61,1,aux!$BA$1)>0,(X61-INDEX($O61:$X61,1,aux!$BA$1))/INDEX($O61:$X61,1,aux!$BA$1),"n.d.") -> 5.821262189 | CC61: =+IF(ISNA(MATCH('5.1'!A61,AUX_2d_pais!$G$2:$G$40000,0)),0,1) -> 1
A62: 0322 | B62: Congo, República Democrática do | C62: 18577.393 | D62: 14050.618 | E62: 9500.33 | F62: 5177.861 | G62: 5481.996 | H62: 5206.371 | I62: 7435.106 | J62: 4456.909 | K62: 4393.818 | L62: 5292.611 | M62: 7957.3013 | N62: 0.01844636529 | O62: 537.709 | P62: 1617.376 | Q62: 2438.674 | R62: 1376.215 | S62: 2157.697 | T62: 1355.165 | U62: 1292.926 | V62: 909.114 | W62: 1675.276 | X62: 1291.424 | Y62: 1465.1576 | Z62: 0.001382668181 | AA62: -6492.1437 | AC62: =L62-INDEX($C62:$L62,1,aux!$BA$1) -> -13284.782 | AD62: -0.09124534584 | AE62: =+IF(INDEX($C62:$L62,1,aux!$BA$1)>0,(L62/INDEX($C62:$L62,1,aux!$BA$1))^(1/($L$3-INDEX($C$3:$L$3,1,aux!$BA$1)))-1,"n.d.") -> -0.1302198994 | AF62: =IF(INDEX($C62:$L62,1,aux!$BA$1)>0,(L62-INDEX($C62:$L62,1,aux!$BA$1))/INDEX($C62:$L62,1,aux!$BA$1),"n.d.") -> -0.7151047512 | AH62: =X62-INDEX($O62:$X62,1,aux!$BA$1) -> 753.715 | AI62: 0.002324468511 | AJ62: =+IF(INDEX($O62:$X62,1,aux!$BA$1)>0,(X62/INDEX($O62:$X62,1,aux!$BA$1))^(1/($X$3-INDEX($O$3:$X$3,1,aux!$BA$1)))-1,"n.d.") -> 0.1022501636 | AK62: =IF(INDEX($O62:$X62,1,aux!$BA$1)>0,(X62-INDEX($O62:$X62,1,aux!$BA$1))/INDEX($O62:$X62,1,aux!$BA$1),"n.d.") -> 1.401715426 | CC62: =+IF(ISNA(MATCH('5.1'!A62,AUX_2d_pais!$G$2:$G$40000,0)),0,1) -> 1
A63: 0837 | B63: Cook, Ilhas | C63: 0 | D63: 0 | E63: 0 | F63: 0 | G63: 0 | H63: 0 | I63: 0 | J63: 0 | K63: 0 | L63: 0 | M63: 0 | N63: 0 | O63: 0 | P63: 0 | Q63: 0 | R63: 0 | S63: 0 | T63: 0 | U63: 0 | V63: 0 | W63: 0 | X63: 0 | Y63: 0 | Z63: 0 | AA63: 0 | AC63: =L63-INDEX($C63:$L63,1,aux!$BA$1) -> 0 | AD63: 0 | AE63: =+IF(INDEX($C63:$L63,1,aux!$BA$1)>0,(L63/INDEX($C63:$L63,1,aux!$BA$1))^(1/($L$3-INDEX($C$3:$L$3,1,aux!$BA$1)))-1,"n.d.") -> n.d. | AF63: =IF(INDEX($C63:$L63,1,aux!$BA$1)>0,(L63-INDEX($C63:$L63,1,aux!$BA$1))/INDEX($C63:$L63,1,aux!$BA$1),"n.d.") -> n.d. | AH63: =X63-INDEX($O63:$X63,1,aux!$BA$1) -> 0 | AI63: 0 | AJ63: =+IF(INDEX($O63:$X63,1,aux!$BA$1)>0,(X63/INDEX($O63:$X63,1,aux!$BA$1))^(1/($X$3-INDEX($O$3:$X$3,1,aux!$BA$1)))-1,"n.d.") -> n.d. | AK63: =IF(INDEX($O63:$X63,1,aux!$BA$1)>0,(X63-INDEX($O63:$X63,1,aux!$BA$1))/INDEX($O63:$X63,1,aux!$BA$1),"n.d.") -> n.d. | AM63: 0 | BO63: 0 | CC63: =+IF(ISNA(MATCH('5.1'!A63,AUX_2d_pais!$G$2:$G$40000,0)),0,1) -> 0
A64: 0728 | B64: Coreia, República da | C64: 0 | D64: 0 | E64: 0 | F64: 0 | G64: 0 | H64: 0 | I64: 0 | J64: 0 | K64: 0 | L64: 0 | M64: 0 | N64: 0 | O64: 0 | P64: 0 | Q64: 0 | R64: 0 | S64: 0 | T64: 0 | U64: 0 | V64: 0 | W64: 0 | X64: 0 | Y64: 0 | Z64: 0 | AA64: 0 | AC64: =L64-INDEX($C64:$L64,1,aux!$BA$1) -> 0 | AD64: 0 | AE64: =+IF(INDEX($C64:$L64,1,aux!$BA$1)>0,(L64/INDEX($C64:$L64,1,aux!$BA$1))^(1/($L$3-INDEX($C$3:$L$3,1,aux!$BA$1)))-1,"n.d.") -> n.d. | AF64: =IF(INDEX($C64:$L64,1,aux!$BA$1)>0,(L64-INDEX($C64:$L64,1,aux!$BA$1))/INDEX($C64:$L64,1,aux!$BA$1),"n.d.") -> n.d. | AH64: =X64-INDEX($O64:$X64,1,aux!$BA$1) -> 0 | AI64: 0 | AJ64: =+IF(INDEX($O64:$X64,1,aux!$BA$1)>0,(X64/INDEX($O64:$X64,1,aux!$BA$1))^(1/($X$3-INDEX($O$3:$X$3,1,aux!$BA$1)))-1,"n.d.") -> n.d. | AK64: =IF(INDEX($O64:$X64,1,aux!$BA$1)>0,(X64-INDEX($O64:$X64,1,aux!$BA$1))/INDEX($O64:$X64,1,aux!$BA$1),"n.d.") -> n.d. | AM64: 0 | CC64: =+IF(ISNA(MATCH('5.1'!A64,AUX_2d_pais!$G$2:$G$40000,0)),0,1) -> 0
A65: 0724 | B65: Coreia, República Popular Democrática da | C65: 0 | D65: 0 | E65: 0 | F65: 0 | G65: 0 | H65: 0 | I65: 0 | J65: 0 | K65: 0 | L65: 0 | M65: 0 | N65: 0 | O65: 0 | P65: 0 | Q65: 0 | R65: 0 | S65: 0 | T65: 0 | U65: 0 | V65: 0 | W65: 0 | X65: 0 | Y65: 0 | Z65: 0 | AA65: 0 | AC65: =L65-INDEX($C65:$L65,1,aux!$BA$1) -> 0 | AD65: 0 | AE65: =+IF(INDEX($C65:$L65,1,aux!$BA$1)>0,(L65/INDEX($C65:$L65,1,aux!$BA$1))^(1/($L$3-INDEX($C$3:$L$3,1,aux!$BA$1)))-1,"n.d.") -> n.d. | AF65: =IF(INDEX($C65:$L65,1,aux!$BA$1)>0,(L65-INDEX($C65:$L65,1,aux!$BA$1))/INDEX($C65:$L65,1,aux!$BA$1),"n.d.") -> n.d. | AH65: =X65-INDEX($O65:$X65,1,aux!$BA$1) -> 0 | AI65: 0 | AJ65: =+IF(INDEX($O65:$X65,1,aux!$BA$1)>0,(X65/INDEX($O65:$X65,1,aux!$BA$1))^(1/($X$3-INDEX($O$3:$X$3,1,aux!$BA$1)))-1,"n.d.") -> n.d. | AK65: =IF(INDEX($O65:$X65,1,aux!$BA$1)>0,(X65-INDEX($O65:$X65,1,aux!$BA$1))/INDEX($O65:$X65,1,aux!$BA$1),"n.d.") -> n.d. | AM65: 0 | BO65: 0 | CC65: =+IF(ISNA(MATCH('5.1'!A65,AUX_2d_pais!$G$2:$G$40000,0)),0,1) -> 0
A66: 0272 | B66: Costa do Marfim | C66: 7599.677 | D66: 14986.26 | E66: 13552.489 | F66: 19865.109 | G66: 16108.01 | H66: 21515.819 | I66: 19234.625 | J66: 22362.891 | K66: 15110.948 | L66: 19861.723 | M66: 17019.7551 | N66: 0.0394546603 | O66: 1706.53 | P66: 1911.299 | Q66: 1496.032 | R66: 2904.726 | S66: 3550.536 | T66: 5800.007 | U66: 7805.244 | V66: 7539.761 | W66: 5945.922 | X66: 8113.314 | Y66: 4677.3371 | Z66: 0.00441399968 | AA66: -12342.418 | AC66: =L66-INDEX($C66:$L66,1,aux!$BA$1) -> 12262.046 | AD66: 0.08422077442 | AE66: =+IF(INDEX($C66:$L66,1,aux!$BA$1)>0,(L66/INDEX($C66:$L66,1,aux!$BA$1))^(1/($L$3-INDEX($C$3:$L$3,1,aux!$BA$1)))-1,"n.d.") -> 0.1126484731 | AF66: =IF(INDEX($C66:$L66,1,aux!$BA$1)>0,(L66-INDEX($C66:$L66,1,aux!$BA$1))/INDEX($C66:$L66,1,aux!$BA$1),"n.d.") -> 1.613495679 | AH66: =X66-INDEX($O66:$X66,1,aux!$BA$1) -> 6406.784 | AI66: 0.01975861919 | AJ66: =+IF(INDEX($O66:$X66,1,aux!$BA$1)>0,(X66/INDEX($O66:$X66,1,aux!$BA$1))^(1/($X$3-INDEX($O$3:$X$3,1,aux!$BA$1)))-1,"n.d.") -> 0.1891361863 | AK66: =IF(INDEX($O66:$X66,1,aux!$BA$1)>0,(X66-INDEX($O66:$X66,1,aux!$BA$1))/INDEX($O66:$X66,1,aux!$BA$1),"n.d.") -> 3.754275635 | CC66: =+IF(ISNA(MATCH('5.1'!A66,AUX_2d_pais!$G$2:$G$40000,0)),0,1) -> 1
A67: 0436 | B67: Costa Rica | C67: 0 | D67: 0 | E67: 0 | F67: 0 | G67: 0 | H67: 0 | I67: 0 | J67: 0 | K67: 0 | L67: 0 | M67: 0 | N67: 0 | O67: 0 | P67: 0 | Q67: 0 | R67: 0 | S67: 0 | T67: 0 | U67: 0 | V67: 0 | W67: 0 | X67: 0 | Y67: 0 | Z67: 0 | AA67: 0 | AC67: =L67-INDEX($C67:$L67,1,aux!$BA$1) -> 0 | AD67: 0 | AE67: =+IF(INDEX($C67:$L67,1,aux!$BA$1)>0,(L67/INDEX($C67:$L67,1,aux!$BA$1))^(1/($L$3-INDEX($C$3:$L$3,1,aux!$BA$1)))-1,"n.d.") -> n.d. | AF67: =IF(INDEX($C67:$L67,1,aux!$BA$1)>0,(L67-INDEX($C67:$L67,1,aux!$BA$1))/INDEX($C67:$L67,1,aux!$BA$1),"n.d.") -> n.d. | AH67: =X67-INDEX($O67:$X67,1,aux!$BA$1) -> 0 | AI67: 0 | AJ67: =+IF(INDEX($O67:$X67,1,aux!$BA$1)>0,(X67/INDEX($O67:$X67,1,aux!$BA$1))^(1/($X$3-INDEX($O$3:$X$3,1,aux!$BA$1)))-1,"n.d.") -> n.d. | AK67: =IF(INDEX($O67:$X67,1,aux!$BA$1)>0,(X67-INDEX($O67:$X67,1,aux!$BA$1))/INDEX($O67:$X67,1,aux!$BA$1),"n.d.") -> n.d. | AM67: 0 | CC67: =+IF(ISNA(MATCH('5.1'!A67,AUX_2d_pais!$G$2:$G$40000,0)),0,1) -> 0
A68: 0092 | B68: Croácia | C68: 0 | D68: 0 | E68: 0 | F68: 0 | G68: 0 | H68: 0 | I68: 0 | J68: 0 | K68: 0 | L68: 0 | M68: 0 | N68: 0 | O68: 0 | P68: 0 | Q68: 0 | R68: 0 | S68: 0 | T68: 0 | U68: 0 | V68: 0 | W68: 0 | X68: 0 | Y68: 0 | Z68: 0 | AA68: 0 | AC68: =L68-INDEX($C68:$L68,1,aux!$BA$1) -> 0 | AD68: =AC68/$AC$252 -> 0 | AE68: =+IF(INDEX($C68:$L68,1,aux!$BA$1)>0,(L68/INDEX($C68:$L68,1,aux!$BA$1))^(1/($L$3-INDEX($C$3:$L$3,1,aux!$BA$1)))-1,"n.d.") -> n.d. | AF68: =IF(INDEX($C68:$L68,1,aux!$BA$1)>0,(L68-INDEX($C68:$L68,1,aux!$BA$1))/INDEX($C68:$L68,1,aux!$BA$1),"n.d.") -> n.d. | AH68: =X68-INDEX($O68:$X68,1,aux!$BA$1) -> 0 | AI68: =AH68/$AH$252 -> 0 | AJ68: =+IF(INDEX($O68:$X68,1,aux!$BA$1)>0,(X68/INDEX($O68:$X68,1,aux!$BA$1))^(1/($X$3-INDEX($O$3:$X$3,1,aux!$BA$1)))-1,"n.d.") -> n.d. | AK68: =IF(INDEX($O68:$X68,1,aux!$BA$1)>0,(X68-INDEX($O68:$X68,1,aux!$BA$1))/INDEX($O68:$X68,1,aux!$BA$1),"n.d.") -> n.d. | AM68: =SUM(A68:AA68) -> 0 | CC68: =+IF(ISNA(MATCH('5.1'!A68,AUX_2d_pais!$G$2:$G$40000,0)),0,1) -> 0
A69: 0448 | B69: Cuba | C69: 0 | D69: 0 | E69: 0 | F69: 0 | G69: 0 | H69: 0 | I69: 0 | J69: 0 | K69: 0 | L69: 0 | M69: 0 | N69: 0 | O69: 0 | P69: 0 | Q69: 0 | R69: 0 | S69: 0 | T69: 0 | U69: 0 | V69: 0 | W69: 0 | X69: 0 | Y69: 0 | Z69: 0 | AA69: 0 | AC69: =L69-INDEX($C69:$L69,1,aux!$BA$1) -> 0 | AD69: 0 | AE69: =+IF(INDEX($C69:$L69,1,aux!$BA$1)>0,(L69/INDEX($C69:$L69,1,aux!$BA$1))^(1/($L$3-INDEX($C$3:$L$3,1,aux!$BA$1)))-1,"n.d.") -> n.d. | AF69: =IF(INDEX($C69:$L69,1,aux!$BA$1)>0,(L69-INDEX($C69:$L69,1,aux!$BA$1))/INDEX($C69:$L69,1,aux!$BA$1),"n.d.") -> n.d. | AH69: =X69-INDEX($O69:$X69,1,aux!$BA$1) -> 0 | AI69: 0 | AJ69: =+IF(INDEX($O69:$X69,1,aux!$BA$1)>0,(X69/INDEX($O69:$X69,1,aux!$BA$1))^(1/($X$3-INDEX($O$3:$X$3,1,aux!$BA$1)))-1,"n.d.") -> n.d. | AK69: =IF(INDEX($O69:$X69,1,aux!$BA$1)>0,(X69-INDEX($O69:$X69,1,aux!$BA$1))/INDEX($O69:$X69,1,aux!$BA$1),"n.d.") -> n.d. | AM69: 0 | CC69: =+IF(ISNA(MATCH('5.1'!A69,AUX_2d_pais!$G$2:$G$40000,0)),0,1) -> 0
A70: 0475 | B70: Curaçau | C70: 0 | D70: 0 | E70: 0 | F70: 0 | G70: 0 | H70: 0 | I70: 0 | J70: 0 | K70: 0 | L70: 0 | M70: 0 | N70: 0 | O70: 0 | P70: 0 | Q70: 0 | R70: 0 | S70: 0 | T70: 0 | U70: 0 | V70: 0 | W70: 0 | X70: 0 | Y70: 0 | Z70: 0 | AA70: 0 | AC70: =L70-INDEX($C70:$L70,1,aux!$BA$1) -> 0 | AD70: 0 | AE70: =+IF(INDEX($C70:$L70,1,aux!$BA$1)>0,(L70/INDEX($C70:$L70,1,aux!$BA$1))^(1/($L$3-INDEX($C$3:$L$3,1,aux!$BA$1)))-1,"n.d.") -> n.d. | AF70: =IF(INDEX($C70:$L70,1,aux!$BA$1)>0,(L70-INDEX($C70:$L70,1,aux!$BA$1))/INDEX($C70:$L70,1,aux!$BA$1),"n.d.") -> n.d. | AH70: =X70-INDEX($O70:$X70,1,aux!$BA$1) -> 0 | AI70: 0 | AJ70: =+IF(INDEX($O70:$X70,1,aux!$BA$1)>0,(X70/INDEX($O70:$X70,1,aux!$BA$1))^(1/($X$3-INDEX($O$3:$X$3,1,aux!$BA$1)))-1,"n.d.") -> n.d. | AK70: =IF(INDEX($O70:$X70,1,aux!$BA$1)>0,(X70-INDEX($O70:$X70,1,aux!$BA$1))/INDEX($O70:$X70,1,aux!$BA$1),"n.d.") -> n.d. | AM70: 0 | CC70: =+IF(ISNA(MATCH('5.1'!A70,AUX_2d_pais!$G$2:$G$40000,0)),0,1) -> 0
A71: 0008 | B71: Dinamarca | C71: 0 | D71: 0 | E71: 0 | F71: 0 | G71: 0 | H71: 0 | I71: 0 | J71: 0 | K71: 0 | L71: 0 | M71: 0 | N71: 0 | O71: 0 | P71: 0 | Q71: 0 | R71: 0 | S71: 0 | T71: 0 | U71: 0 | V71: 0 | W71: 0 | X71: 0 | Y71: 0 | Z71: 0 | AA71: 0 | AC71: =L71-INDEX($C71:$L71,1,aux!$BA$1) -> 0 | AD71: 0 | AE71: =+IF(INDEX($C71:$L71,1,aux!$BA$1)>0,(L71/INDEX($C71:$L71,1,aux!$BA$1))^(1/($L$3-INDEX($C$3:$L$3,1,aux!$BA$1)))-1,"n.d.") -> n.d. | AF71: =IF(INDEX($C71:$L71,1,aux!$BA$1)>0,(L71-INDEX($C71:$L71,1,aux!$BA$1))/INDEX($C71:$L71,1,aux!$BA$1),"n.d.") -> n.d. | AH71: =X71-INDEX($O71:$X71,1,aux!$BA$1) -> 0 | AI71: 0 | AJ71: =+IF(INDEX($O71:$X71,1,aux!$BA$1)>0,(X71/INDEX($O71:$X71,1,aux!$BA$1))^(1/($X$3-INDEX($O$3:$X$3,1,aux!$BA$1)))-1,"n.d.") -> n.d. | AK71: =IF(INDEX($O71:$X71,1,aux!$BA$1)>0,(X71-INDEX($O71:$X71,1,aux!$BA$1))/INDEX($O71:$X71,1,aux!$BA$1),"n.d.") -> n.d. | AM71: 0 | CC71: =+IF(ISNA(MATCH('5.1'!A71,AUX_2d_pais!$G$2:$G$40000,0)),0,1) -> 0
A72: 0460 | B72: Domínica | C72: 0 | D72: 0 | E72: 0 | F72: 0 | G72: 0 | H72: 0 | I72: 0 | J72: 0 | K72: 0 | L72: 0 | M72: 0 | N72: 0 | O72: 0 | P72: 0 | Q72: 0 | R72: 0 | S72: 0 | T72: 0 | U72: 0 | V72: 0 | W72: 0 | X72: 0 | Y72: 0 | Z72: 0 | AA72: 0 | AC72: =L72-INDEX($C72:$L72,1,aux!$BA$1) -> 0 | AD72: 0 | AE72: =+IF(INDEX($C72:$L72,1,aux!$BA$1)>0,(L72/INDEX($C72:$L72,1,aux!$BA$1))^(1/($L$3-INDEX($C$3:$L$3,1,aux!$BA$1)))-1,"n.d.") -> n.d. | AF72: =IF(INDEX($C72:$L72,1,aux!$BA$1)>0,(L72-INDEX($C72:$L72,1,aux!$BA$1))/INDEX($C72:$L72,1,aux!$BA$1),"n.d.") -> n.d. | AH72: =X72-INDEX($O72:$X72,1,aux!$BA$1) -> 0 | AI72: 0 | AJ72: =+IF(INDEX($O72:$X72,1,aux!$BA$1)>0,(X72/INDEX($O72:$X72,1,aux!$BA$1))^(1/($X$3-INDEX($O$3:$X$3,1,aux!$BA$1)))-1,"n.d.") -> n.d. | AK72: =IF(INDEX($O72:$X72,1,aux!$BA$1)>0,(X72-INDEX($O72:$X72,1,aux!$BA$1))/INDEX($O72:$X72,1,aux!$BA$1),"n.d.") -> n.d. | AM72: 0 | BO72: =SUM(C72:L72,O72:X72) -> 0 | CC72: =+IF(ISNA(MATCH('5.1'!A72,AUX_2d_pais!$G$2:$G$40000,0)),0,1) -> 0
A73: 0456 | B73: Dominicana, República | C73: 0 | D73: 0 | E73: 0 | F73: 0 | G73: 0 | H73: 0 | I73: 0 | J73: 0 | K73: 0 | L73: 0 | M73: 0 | N73: 0 | O73: 0 | P73: 0 | Q73: 0 | R73: 0 | S73: 0 | T73: 0 | U73: 0 | V73: 0 | W73: 0 | X73: 0 | Y73: 0 | Z73: 0 | AA73: 0 | AC73: =L73-INDEX($C73:$L73,1,aux!$BA$1) -> 0 | AD73: 0 | AE73: =+IF(INDEX($C73:$L73,1,aux!$BA$1)>0,(L73/INDEX($C73:$L73,1,aux!$BA$1))^(1/($L$3-INDEX($C$3:$L$3,1,aux!$BA$1)))-1,"n.d.") -> n.d. | AF73: =IF(INDEX($C73:$L73,1,aux!$BA$1)>0,(L73-INDEX($C73:$L73,1,aux!$BA$1))/INDEX($C73:$L73,1,aux!$BA$1),"n.d.") -> n.d. | AH73: =X73-INDEX($O73:$X73,1,aux!$BA$1) -> 0 | AI73: 0 | AJ73: =+IF(INDEX($O73:$X73,1,aux!$BA$1)>0,(X73/INDEX($O73:$X73,1,aux!$BA$1))^(1/($X$3-INDEX($O$3:$X$3,1,aux!$BA$1)))-1,"n.d.") -> n.d. | AK73: =IF(INDEX($O73:$X73,1,aux!$BA$1)>0,(X73-INDEX($O73:$X73,1,aux!$BA$1))/INDEX($O73:$X73,1,aux!$BA$1),"n.d.") -> n.d. | AM73: 0 | CC73: =+IF(ISNA(MATCH('5.1'!A73,AUX_2d_pais!$G$2:$G$40000,0)),0,1) -> 0
A74: 0220 | B74: Egito | C74: 5063.32 | D74: 4522.76 | E74: 4675.66 | F74: 4663.667 | G74: 10580.358 | H74: 9713.929 | I74: 9415.833 | J74: 8411.472 | K74: 7769.676 | L74: 6524.289 | M74: 7134.0964 | N74: 0.01653803761 | O74: 12164.633 | P74: 20938.768 | Q74: 31751.203 | R74: 35400.305 | S74: 35288.839 | T74: 43418.004 | U74: 51440.08 | V74: 57986.886 | W74: 64246.232 | X74: 76853.563 | Y74: 42948.8513 | Z74: 0.0405308003 | AA74: 35814.7549 | AC74: =L74-INDEX($C74:$L74,1,aux!$BA$1) -> 1460.969 | AD74: 0.01003453588 | AE74: =+IF(INDEX($C74:$L74,1,aux!$BA$1)>0,(L74/INDEX($C74:$L74,1,aux!$BA$1))^(1/($L$3-INDEX($C$3:$L$3,1,aux!$BA$1)))-1,"n.d.") -> 0.02856819365 | AF74: =IF(INDEX($C74:$L74,1,aux!$BA$1)>0,(L74-INDEX($C74:$L74,1,aux!$BA$1))/INDEX($C74:$L74,1,aux!$BA$1),"n.d.") -> 0.2885397328 | AH74: =X74-INDEX($O74:$X74,1,aux!$BA$1) -> 64688.93 | AI74: 0.1995016429 | AJ74: =+IF(INDEX($O74:$X74,1,aux!$BA$1)>0,(X74/INDEX($O74:$X74,1,aux!$BA$1))^(1/($X$3-INDEX($O$3:$X$3,1,aux!$BA$1)))-1,"n.d.") -> 0.2273026337 | AK74: =IF(INDEX($O74:$X74,1,aux!$BA$1)>0,(X74-INDEX($O74:$X74,1,aux!$BA$1))/INDEX($O74:$X74,1,aux!$BA$1),"n.d.") -> 5.317787228 | CC74: =+IF(ISNA(MATCH('5.1'!A74,AUX_2d_pais!$G$2:$G$40000,0)),0,1) -> 1
A75: 0428 | B75: El Salvador | C75: 0 | D75: 0 | E75: 0 | F75: 0 | G75: 0 | H75: 0 | I75: 0 | J75: 0 | K75: 0 | L75: 0 | M75: 0 | N75: 0 | O75: 0 | P75: 0 | Q75: 0 | R75: 0 | S75: 0 | T75: 0 | U75: 0 | V75: 0 | W75: 0 | X75: 0 | Y75: 0 | Z75: 0 | AA75: 0 | AC75: =L75-INDEX($C75:$L75,1,aux!$BA$1) -> 0 | AD75: 0 | AE75: =+IF(INDEX($C75:$L75,1,aux!$BA$1)>0,(L75/INDEX($C75:$L75,1,aux!$BA$1))^(1/($L$3-INDEX($C$3:$L$3,1,aux!$BA$1)))-1,"n.d.") -> n.d. | AF75: =IF(INDEX($C75:$L75,1,aux!$BA$1)>0,(L75-INDEX($C75:$L75,1,aux!$BA$1))/INDEX($C75:$L75,1,aux!$BA$1),"n.d.") -> n.d. | AH75: =X75-INDEX($O75:$X75,1,aux!$BA$1) -> 0 | AI75: 0 | AJ75: =+IF(INDEX($O75:$X75,1,aux!$BA$1)>0,(X75/INDEX($O75:$X75,1,aux!$BA$1))^(1/($X$3-INDEX($O$3:$X$3,1,aux!$BA$1)))-1,"n.d.") -> n.d. | AK75: =IF(INDEX($O75:$X75,1,aux!$BA$1)>0,(X75-INDEX($O75:$X75,1,aux!$BA$1))/INDEX($O75:$X75,1,aux!$BA$1),"n.d.") -> n.d. | AM75: 0 | CC75: =+IF(ISNA(MATCH('5.1'!A75,AUX_2d_pais!$G$2:$G$40000,0)),0,1) -> 0
A76: 0647 | B76: Emirados Árabes Unidos | C76: 0 | D76: 0 | E76: 0 | F76: 0 | G76: 0 | H76: 0 | I76: 0 | J76: 0 | K76: 0 | L76: 0 | M76: 0 | N76: 0 | O76: 0 | P76: 0 | Q76: 0 | R76: 0 | S76: 0 | T76: 0 | U76: 0 | V76: 0 | W76: 0 | X76: 0 | Y76: 0 | Z76: 0 | AA76: 0 | AC76: =L76-INDEX($C76:$L76,1,aux!$BA$1) -> 0 | AD76: 0 | AE76: =+IF(INDEX($C76:$L76,1,aux!$BA$1)>0,(L76/INDEX($C76:$L76,1,aux!$BA$1))^(1/($L$3-INDEX($C$3:$L$3,1,aux!$BA$1)))-1,"n.d.") -> n.d. | AF76: =IF(INDEX($C76:$L76,1,aux!$BA$1)>0,(L76-INDEX($C76:$L76,1,aux!$BA$1))/INDEX($C76:$L76,1,aux!$BA$1),"n.d.") -> n.d. | AH76: =X76-INDEX($O76:$X76,1,aux!$BA$1) -> 0 | AI76: 0 | AJ76: =+IF(INDEX($O76:$X76,1,aux!$BA$1)>0,(X76/INDEX($O76:$X76,1,aux!$BA$1))^(1/($X$3-INDEX($O$3:$X$3,1,aux!$BA$1)))-1,"n.d.") -> n.d. | AK76: =IF(INDEX($O76:$X76,1,aux!$BA$1)>0,(X76-INDEX($O76:$X76,1,aux!$BA$1))/INDEX($O76:$X76,1,aux!$BA$1),"n.d.") -> n.d. | AM76: 0 | CC76: =+IF(ISNA(MATCH('5.1'!A76,AUX_2d_pais!$G$2:$G$40000,0)),0,1) -> 0
A77: 0500 | B77: Equador | C77: 0 | D77: 0 | E77: 0 | F77: 0 | G77: 0 | H77: 0 | I77: 0 | J77: 0 | K77: 0 | L77: 0 | M77: 0 | N77: 0 | O77: 0 | P77: 0 | Q77: 0 | R77: 0 | S77: 0 | T77: 0 | U77: 0 | V77: 0 | W77: 0 | X77: 0 | Y77: 0 | Z77: 0 | AA77: 0 | AC77: =L77-INDEX($C77:$L77,1,aux!$BA$1) -> 0 | AD77: 0 | AE77: =+IF(INDEX($C77:$L77,1,aux!$BA$1)>0,(L77/INDEX($C77:$L77,1,aux!$BA$1))^(1/($L$3-INDEX($C$3:$L$3,1,aux!$BA$1)))-1,"n.d.") -> n.d. | AF77: =IF(INDEX($C77:$L77,1,aux!$BA$1)>0,(L77-INDEX($C77:$L77,1,aux!$BA$1))/INDEX($C77:$L77,1,aux!$BA$1),"n.d.") -> n.d. | AH77: =X77-INDEX($O77:$X77,1,aux!$BA$1) -> 0 | AI77: 0 | AJ77: =+IF(INDEX($O77:$X77,1,aux!$BA$1)>0,(X77/INDEX($O77:$X77,1,aux!$BA$1))^(1/($X$3-INDEX($O$3:$X$3,1,aux!$BA$1)))-1,"n.d.") -> n.d. | AK77: =IF(INDEX($O77:$X77,1,aux!$BA$1)>0,(X77-INDEX($O77:$X77,1,aux!$BA$1))/INDEX($O77:$X77,1,aux!$BA$1),"n.d.") -> n.d. | AM77: 0 | CC77: =+IF(ISNA(MATCH('5.1'!A77,AUX_2d_pais!$G$2:$G$40000,0)),0,1) -> 0
A78: 0336 | B78: Eritreia | C78: 0 | D78: 0 | E78: 0 | F78: 0 | G78: 0 | H78: 0 | I78: 0 | J78: 0 | K78: 0 | L78: 0 | M78: 0 | N78: 0 | O78: 0 | P78: 0 | Q78: 0 | R78: 0 | S78: 0 | T78: 0 | U78: 0 | V78: 0 | W78: 0 | X78: 0 | Y78: 0 | Z78: 0 | AA78: 0 | AC78: =L78-INDEX($C78:$L78,1,aux!$BA$1) -> 0 | AD78: 0 | AE78: =+IF(INDEX($C78:$L78,1,aux!$BA$1)>0,(L78/INDEX($C78:$L78,1,aux!$BA$1))^(1/($L$3-INDEX($C$3:$L$3,1,aux!$BA$1)))-1,"n.d.") -> n.d. | AF78: =IF(INDEX($C78:$L78,1,aux!$BA$1)>0,(L78-INDEX($C78:$L78,1,aux!$BA$1))/INDEX($C78:$L78,1,aux!$BA$1),"n.d.") -> n.d. | AH78: =X78-INDEX($O78:$X78,1,aux!$BA$1) -> 0 | AI78: 0 | AJ78: =+IF(INDEX($O78:$X78,1,aux!$BA$1)>0,(X78/INDEX($O78:$X78,1,aux!$BA$1))^(1/($X$3-INDEX($O$3:$X$3,1,aux!$BA$1)))-1,"n.d.") -> n.d. | AK78: =IF(INDEX($O78:$X78,1,aux!$BA$1)>0,(X78-INDEX($O78:$X78,1,aux!$BA$1))/INDEX($O78:$X78,1,aux!$BA$1),"n.d.") -> n.d. | AM78: 0 | BO78: 0 | CC78: =+IF(ISNA(MATCH('5.1'!A78,AUX_2d_pais!$G$2:$G$40000,0)),0,1) -> 0
A79: 0063 | B79: Eslováquia | C79: 0 | D79: 0 | E79: 0 | F79: 0 | G79: 0 | H79: 0 | I79: 0 | J79: 0 | K79: 0 | L79: 0 | M79: 0 | N79: 0 | O79: 0 | P79: 0 | Q79: 0 | R79: 0 | S79: 0 | T79: 0 | U79: 0 | V79: 0 | W79: 0 | X79: 0 | Y79: 0 | Z79: 0 | AA79: 0 | AC79: =L79-INDEX($C79:$L79,1,aux!$BA$1) -> 0 | AD79: 0 | AE79: =+IF(INDEX($C79:$L79,1,aux!$BA$1)>0,(L79/INDEX($C79:$L79,1,aux!$BA$1))^(1/($L$3-INDEX($C$3:$L$3,1,aux!$BA$1)))-1,"n.d.") -> n.d. | AF79: =IF(INDEX($C79:$L79,1,aux!$BA$1)>0,(L79-INDEX($C79:$L79,1,aux!$BA$1))/INDEX($C79:$L79,1,aux!$BA$1),"n.d.") -> n.d. | AH79: =X79-INDEX($O79:$X79,1,aux!$BA$1) -> 0 | AI79: 0 | AJ79: =+IF(INDEX($O79:$X79,1,aux!$BA$1)>0,(X79/INDEX($O79:$X79,1,aux!$BA$1))^(1/($X$3-INDEX($O$3:$X$3,1,aux!$BA$1)))-1,"n.d.") -> n.d. | AK79: =IF(INDEX($O79:$X79,1,aux!$BA$1)>0,(X79-INDEX($O79:$X79,1,aux!$BA$1))/INDEX($O79:$X79,1,aux!$BA$1),"n.d.") -> n.d. | AM79: 0 | CC79: =+IF(ISNA(MATCH('5.1'!A79,AUX_2d_pais!$G$2:$G$40000,0)),0,1) -> 0
A80: 0091 | B80: Eslovénia | C80: 0 | D80: 0 | E80: 0 | F80: 0 | G80: 0 | H80: 0 | I80: 0 | J80: 0 | K80: 0 | L80: 0 | M80: 0 | N80: 0 | O80: 0 | P80: 0 | Q80: 0 | R80: 0 | S80: 0 | T80: 0 | U80: 0 | V80: 0 | W80: 0 | X80: 0 | Y80: 0 | Z80: 0 | AA80: 0 | AC80: =L80-INDEX($C80:$L80,1,aux!$BA$1) -> 0 | AD80: 0 | AE80: =+IF(INDEX($C80:$L80,1,aux!$BA$1)>0,(L80/INDEX($C80:$L80,1,aux!$BA$1))^(1/($L$3-INDEX($C$3:$L$3,1,aux!$BA$1)))-1,"n.d.") -> n.d. | AF80: =IF(INDEX($C80:$L80,1,aux!$BA$1)>0,(L80-INDEX($C80:$L80,1,aux!$BA$1))/INDEX($C80:$L80,1,aux!$BA$1),"n.d.") -> n.d. | AH80: =X80-INDEX($O80:$X80,1,aux!$BA$1) -> 0 | AI80: 0 | AJ80: =+IF(INDEX($O80:$X80,1,aux!$BA$1)>0,(X80/INDEX($O80:$X80,1,aux!$BA$1))^(1/($X$3-INDEX($O$3:$X$3,1,aux!$BA$1)))-1,"n.d.") -> n.d. | AK80: =IF(INDEX($O80:$X80,1,aux!$BA$1)>0,(X80-INDEX($O80:$X80,1,aux!$BA$1))/INDEX($O80:$X80,1,aux!$BA$1),"n.d.") -> n.d. | AM80: 0 | CC80: =+IF(ISNA(MATCH('5.1'!A80,AUX_2d_pais!$G$2:$G$40000,0)),0,1) -> 0
A81: 0011 | B81: Espanha | C81: 0 | D81: 0 | E81: 0 | F81: 0 | G81: 0 | H81: 0 | I81: 0 | J81: 0 | K81: 0 | L81: 0 | M81: 0 | N81: 0 | O81: 0 | P81: 0 | Q81: 0 | R81: 0 | S81: 0 | T81: 0 | U81: 0 | V81: 0 | W81: 0 | X81: 0 | Y81: 0 | Z81: 0 | AA81: 0 | AC81: =L81-INDEX($C81:$L81,1,aux!$BA$1) -> 0 | AD81: 0 | AE81: =+IF(INDEX($C81:$L81,1,aux!$BA$1)>0,(L81/INDEX($C81:$L81,1,aux!$BA$1))^(1/($L$3-INDEX($C$3:$L$3,1,aux!$BA$1)))-1,"n.d.") -> n.d. | AF81: =IF(INDEX($C81:$L81,1,aux!$BA$1)>0,(L81-INDEX($C81:$L81,1,aux!$BA$1))/INDEX($C81:$L81,1,aux!$BA$1),"n.d.") -> n.d. | AH81: =X81-INDEX($O81:$X81,1,aux!$BA$1) -> 0 | AI81: 0 | AJ81: =+IF(INDEX($O81:$X81,1,aux!$BA$1)>0,(X81/INDEX($O81:$X81,1,aux!$BA$1))^(1/($X$3-INDEX($O$3:$X$3,1,aux!$BA$1)))-1,"n.d.") -> n.d. | AK81: =IF(INDEX($O81:$X81,1,aux!$BA$1)>0,(X81-INDEX($O81:$X81,1,aux!$BA$1))/INDEX($O81:$X81,1,aux!$BA$1),"n.d.") -> n.d. | AM81: 0 | CC81: =+IF(ISNA(MATCH('5.1'!A81,AUX_2d_pais!$G$2:$G$40000,0)),0,1) -> 0
A82: 0400 | B82: Estados Unidos | C82: 0 | D82: 0 | E82: 0 | F82: 0 | G82: 0 | H82: 0 | I82: 0 | J82: 0 | K82: 0 | L82: 0 | M82: 0 | N82: 0 | O82: 0 | P82: 0 | Q82: 0 | R82: 0 | S82: 0 | T82: 0 | U82: 0 | V82: 0 | W82: 0 | X82: 0 | Y82: 0 | Z82: 0 | AA82: 0 | AC82: =L82-INDEX($C82:$L82,1,aux!$BA$1) -> 0 | AD82: 0 | AE82: =+IF(INDEX($C82:$L82,1,aux!$BA$1)>0,(L82/INDEX($C82:$L82,1,aux!$BA$1))^(1/($L$3-INDEX($C$3:$L$3,1,aux!$BA$1)))-1,"n.d.") -> n.d. | AF82: =IF(INDEX($C82:$L82,1,aux!$BA$1)>0,(L82-INDEX($C82:$L82,1,aux!$BA$1))/INDEX($C82:$L82,1,aux!$BA$1),"n.d.") -> n.d. | AH82: =X82-INDEX($O82:$X82,1,aux!$BA$1) -> 0 | AI82: 0 | AJ82: =+IF(INDEX($O82:$X82,1,aux!$BA$1)>0,(X82/INDEX($O82:$X82,1,aux!$BA$1))^(1/($X$3-INDEX($O$3:$X$3,1,aux!$BA$1)))-1,"n.d.") -> n.d. | AK82: =IF(INDEX($O82:$X82,1,aux!$BA$1)>0,(X82-INDEX($O82:$X82,1,aux!$BA$1))/INDEX($O82:$X82,1,aux!$BA$1),"n.d.") -> n.d. | AM82: 0 | CC82: =+IF(ISNA(MATCH('5.1'!A82,AUX_2d_pais!$G$2:$G$40000,0)),0,1) -> 0
A83: 0053 | B83: Estónia | C83: 0 | D83: 0 | E83: 0 | F83: 0 | G83: 0 | H83: 0 | I83: 0 | J83: 0 | K83: 0 | L83: 0 | M83: 0 | N83: 0 | O83: 0 | P83: 0 | Q83: 0 | R83: 0 | S83: 0 | T83: 0 | U83: 0 | V83: 0 | W83: 0 | X83: 0 | Y83: 0 | Z83: 0 | AA83: 0 | AC83: =L83-INDEX($C83:$L83,1,aux!$BA$1) -> 0 | AD83: 0 | AE83: =+IF(INDEX($C83:$L83,1,aux!$BA$1)>0,(L83/INDEX($C83:$L83,1,aux!$BA$1))^(1/($L$3-INDEX($C$3:$L$3,1,aux!$BA$1)))-1,"n.d.") -> n.d. | AF83: =IF(INDEX($C83:$L83,1,aux!$BA$1)>0,(L83-INDEX($C83:$L83,1,aux!$BA$1))/INDEX($C83:$L83,1,aux!$BA$1),"n.d.") -> n.d. | AH83: =X83-INDEX($O83:$X83,1,aux!$BA$1) -> 0 | AI83: 0 | AJ83: =+IF(INDEX($O83:$X83,1,aux!$BA$1)>0,(X83/INDEX($O83:$X83,1,aux!$BA$1))^(1/($X$3-INDEX($O$3:$X$3,1,aux!$BA$1)))-1,"n.d.") -> n.d. | AK83: =IF(INDEX($O83:$X83,1,aux!$BA$1)>0,(X83-INDEX($O83:$X83,1,aux!$BA$1))/INDEX($O83:$X83,1,aux!$BA$1),"n.d.") -> n.d. | AM83: 0 | CC83: =+IF(ISNA(MATCH('5.1'!A83,AUX_2d_pais!$G$2:$G$40000,0)),0,1) -> 0
A84: 0334 | B84: Etiópia | C84: 13557.843 | D84: 1015.774 | E84: 255.988 | F84: 1864.726 | G84: 2830.688 | H84: 5649.774 | I84: 3489.428 | J84: 4709.007 | K84: 6740.565 | L84: 6282.593 | M84: 4639.6386 | N84: 0.01075546409 | O84: 183.999 | P84: 697.998 | Q84: 407.937 | R84: 898.176 | S84: 1428.583 | T84: 1528.211 | U84: 798.43 | V84: 4148.308 | W84: 3604.826 | X84: 3285.219 | Y84: 1698.1687 | Z84: 0.001602560589 | AA84: -2941.4699 | AC84: =L84-INDEX($C84:$L84,1,aux!$BA$1) -> -7275.25 | AD84: -0.04996940878 | AE84: =+IF(INDEX($C84:$L84,1,aux!$BA$1)>0,(L84/INDEX($C84:$L84,1,aux!$BA$1))^(1/($L$3-INDEX($C$3:$L$3,1,aux!$BA$1)))-1,"n.d.") -> -0.08191445988 | AF84: =IF(INDEX($C84:$L84,1,aux!$BA$1)>0,(L84-INDEX($C84:$L84,1,aux!$BA$1))/INDEX($C84:$L84,1,aux!$BA$1),"n.d.") -> -0.5366082201 | AH84: =X84-INDEX($O84:$X84,1,aux!$BA$1) -> 3101.22 | AI84: 0.009564209594 | AJ84: =+IF(INDEX($O84:$X84,1,aux!$BA$1)>0,(X84/INDEX($O84:$X84,1,aux!$BA$1))^(1/($X$3-INDEX($O$3:$X$3,1,aux!$BA$1)))-1,"n.d.") -> 0.3774733555 | AK84: =IF(INDEX($O84:$X84,1,aux!$BA$1)>0,(X84-INDEX($O84:$X84,1,aux!$BA$1))/INDEX($O84:$X84,1,aux!$BA$1),"n.d.") -> 16.85454812 | CC84: =+IF(ISNA(MATCH('5.1'!A84,AUX_2d_pais!$G$2:$G$40000,0)),0,1) -> 1
A85: 0529 | B85: Falkland Ilhas (Malvinas) | C85: 0 | D85: 0 | E85: 0 | F85: 0 | G85: 0 | H85: 0 | I85: 0 | J85: 0 | K85: 0 | L85: 0 | M85: 0 | N85: 0 | O85: 0 | P85: 0 | Q85: 0 | R85: 0 | S85: 0 | T85: 0 | U85: 0 | V85: 0 | W85: 0 | X85: 0 | Y85: 0 | Z85: 0 | AA85: 0 | AC85: =L85-INDEX($C85:$L85,1,aux!$BA$1) -> 0 | AD85: 0 | AE85: =+IF(INDEX($C85:$L85,1,aux!$BA$1)>0,(L85/INDEX($C85:$L85,1,aux!$BA$1))^(1/($L$3-INDEX($C$3:$L$3,1,aux!$BA$1)))-1,"n.d.") -> n.d. | AF85: =IF(INDEX($C85:$L85,1,aux!$BA$1)>0,(L85-INDEX($C85:$L85,1,aux!$BA$1))/INDEX($C85:$L85,1,aux!$BA$1),"n.d.") -> n.d. | AH85: =X85-INDEX($O85:$X85,1,aux!$BA$1) -> 0 | AI85: 0 | AJ85: =+IF(INDEX($O85:$X85,1,aux!$BA$1)>0,(X85/INDEX($O85:$X85,1,aux!$BA$1))^(1/($X$3-INDEX($O$3:$X$3,1,aux!$BA$1)))-1,"n.d.") -> n.d. | AK85: =IF(INDEX($O85:$X85,1,aux!$BA$1)>0,(X85-INDEX($O85:$X85,1,aux!$BA$1))/INDEX($O85:$X85,1,aux!$BA$1),"n.d.") -> n.d. | AM85: 0 | BO85: 0 | CC85: =+IF(ISNA(MATCH('5.1'!A85,AUX_2d_pais!$G$2:$G$40000,0)),0,1) -> 0
A86: 0041 | B86: Faroé, Ilhas | C86: 0 | D86: 0 | E86: 0 | F86: 0 | G86: 0 | H86: 0 | I86: 0 | J86: 0 | K86: 0 | L86: 0 | M86: 0 | N86: 0 | O86: 0 | P86: 0 | Q86: 0 | R86: 0 | S86: 0 | T86: 0 | U86: 0 | V86: 0 | W86: 0 | X86: 0 | Y86: 0 | Z86: 0 | AA86: 0 | AC86: =L86-INDEX($C86:$L86,1,aux!$BA$1) -> 0 | AD86: 0 | AE86: =+IF(INDEX($C86:$L86,1,aux!$BA$1)>0,(L86/INDEX($C86:$L86,1,aux!$BA$1))^(1/($L$3-INDEX($C$3:$L$3,1,aux!$BA$1)))-1,"n.d.") -> n.d. | AF86: =IF(INDEX($C86:$L86,1,aux!$BA$1)>0,(L86-INDEX($C86:$L86,1,aux!$BA$1))/INDEX($C86:$L86,1,aux!$BA$1),"n.d.") -> n.d. | AH86: =X86-INDEX($O86:$X86,1,aux!$BA$1) -> 0 | AI86: 0 | AJ86: =+IF(INDEX($O86:$X86,1,aux!$BA$1)>0,(X86/INDEX($O86:$X86,1,aux!$BA$1))^(1/($X$3-INDEX($O$3:$X$3,1,aux!$BA$1)))-1,"n.d.") -> n.d. | AK86: =IF(INDEX($O86:$X86,1,aux!$BA$1)>0,(X86-INDEX($O86:$X86,1,aux!$BA$1))/INDEX($O86:$X86,1,aux!$BA$1),"n.d.") -> n.d. | AM86: 0 | BO86: 0 | CC86: =+IF(ISNA(MATCH('5.1'!A86,AUX_2d_pais!$G$2:$G$40000,0)),0,1) -> 0
A87: 0815 | B87: Fiji, Ilhas | C87: 0 | D87: 0 | E87: 0 | F87: 0 | G87: 0 | H87: 0 | I87: 0 | J87: 0 | K87: 0 | L87: 0 | M87: 0 | N87: 0 | O87: 0 | P87: 0 | Q87: 0 | R87: 0 | S87: 0 | T87: 0 | U87: 0 | V87: 0 | W87: 0 | X87: 0 | Y87: 0 | Z87: 0 | AA87: 0 | AC87: =L87-INDEX($C87:$L87,1,aux!$BA$1) -> 0 | AD87: 0 | AE87: =+IF(INDEX($C87:$L87,1,aux!$BA$1)>0,(L87/INDEX($C87:$L87,1,aux!$BA$1))^(1/($L$3-INDEX($C$3:$L$3,1,aux!$BA$1)))-1,"n.d.") -> n.d. | AF87: =IF(INDEX($C87:$L87,1,aux!$BA$1)>0,(L87-INDEX($C87:$L87,1,aux!$BA$1))/INDEX($C87:$L87,1,aux!$BA$1),"n.d.") -> n.d. | AH87: =X87-INDEX($O87:$X87,1,aux!$BA$1) -> 0 | AI87: 0 | AJ87: =+IF(INDEX($O87:$X87,1,aux!$BA$1)>0,(X87/INDEX($O87:$X87,1,aux!$BA$1))^(1/($X$3-INDEX($O$3:$X$3,1,aux!$BA$1)))-1,"n.d.") -> n.d. | AK87: =IF(INDEX($O87:$X87,1,aux!$BA$1)>0,(X87-INDEX($O87:$X87,1,aux!$BA$1))/INDEX($O87:$X87,1,aux!$BA$1),"n.d.") -> n.d. | AM87: 0 | BO87: 0 | CC87: =+IF(ISNA(MATCH('5.1'!A87,AUX_2d_pais!$G$2:$G$40000,0)),0,1) -> 0
A88: 0708 | B88: Filipinas | C88: 0 | D88: 0 | E88: 0 | F88: 0 | G88: 0 | H88: 0 | I88: 0 | J88: 0 | K88: 0 | L88: 0 | M88: 0 | N88: 0 | O88: 0 | P88: 0 | Q88: 0 | R88: 0 | S88: 0 | T88: 0 | U88: 0 | V88: 0 | W88: 0 | X88: 0 | Y88: 0 | Z88: 0 | AA88: 0 | AC88: =L88-INDEX($C88:$L88,1,aux!$BA$1) -> 0 | AD88: 0 | AE88: =+IF(INDEX($C88:$L88,1,aux!$BA$1)>0,(L88/INDEX($C88:$L88,1,aux!$BA$1))^(1/($L$3-INDEX($C$3:$L$3,1,aux!$BA$1)))-1,"n.d.") -> n.d. | AF88: =IF(INDEX($C88:$L88,1,aux!$BA$1)>0,(L88-INDEX($C88:$L88,1,aux!$BA$1))/INDEX($C88:$L88,1,aux!$BA$1),"n.d.") -> n.d. | AH88: =X88-INDEX($O88:$X88,1,aux!$BA$1) -> 0 | AI88: 0 | AJ88: =+IF(INDEX($O88:$X88,1,aux!$BA$1)>0,(X88/INDEX($O88:$X88,1,aux!$BA$1))^(1/($X$3-INDEX($O$3:$X$3,1,aux!$BA$1)))-1,"n.d.") -> n.d. | AK88: =IF(INDEX($O88:$X88,1,aux!$BA$1)>0,(X88-INDEX($O88:$X88,1,aux!$BA$1))/INDEX($O88:$X88,1,aux!$BA$1),"n.d.") -> n.d. | AM88: 0 | CC88: =+IF(ISNA(MATCH('5.1'!A88,AUX_2d_pais!$G$2:$G$40000,0)),0,1) -> 0
A89: 0032 | B89: Finlândia | C89: 0 | D89: 0 | E89: 0 | F89: 0 | G89: 0 | H89: 0 | I89: 0 | J89: 0 | K89: 0 | L89: 0 | M89: 0 | N89: 0 | O89: 0 | P89: 0 | Q89: 0 | R89: 0 | S89: 0 | T89: 0 | U89: 0 | V89: 0 | W89: 0 | X89: 0 | Y89: 0 | Z89: 0 | AA89: 0 | AC89: =L89-INDEX($C89:$L89,1,aux!$BA$1) -> 0 | AD89: 0 | AE89: =+IF(INDEX($C89:$L89,1,aux!$BA$1)>0,(L89/INDEX($C89:$L89,1,aux!$BA$1))^(1/($L$3-INDEX($C$3:$L$3,1,aux!$BA$1)))-1,"n.d.") -> n.d. | AF89: =IF(INDEX($C89:$L89,1,aux!$BA$1)>0,(L89-INDEX($C89:$L89,1,aux!$BA$1))/INDEX($C89:$L89,1,aux!$BA$1),"n.d.") -> n.d. | AH89: =X89-INDEX($O89:$X89,1,aux!$BA$1) -> 0 | AI89: 0 | AJ89: =+IF(INDEX($O89:$X89,1,aux!$BA$1)>0,(X89/INDEX($O89:$X89,1,aux!$BA$1))^(1/($X$3-INDEX($O$3:$X$3,1,aux!$BA$1)))-1,"n.d.") -> n.d. | AK89: =IF(INDEX($O89:$X89,1,aux!$BA$1)>0,(X89-INDEX($O89:$X89,1,aux!$BA$1))/INDEX($O89:$X89,1,aux!$BA$1),"n.d.") -> n.d. | AM89: 0 | CC89: =+IF(ISNA(MATCH('5.1'!A89,AUX_2d_pais!$G$2:$G$40000,0)),0,1) -> 0
A90: 0001 | B90: França | C90: 0 | D90: 0 | E90: 0 | F90: 0 | G90: 0 | H90: 0 | I90: 0 | J90: 0 | K90: 0 | L90: 0 | M90: 0 | N90: 0 | O90: 0 | P90: 0 | Q90: 0 | R90: 0 | S90: 0 | T90: 0 | U90: 0 | V90: 0 | W90: 0 | X90: 0 | Y90: 0 | Z90: 0 | AA90: 0 | AC90: =L90-INDEX($C90:$L90,1,aux!$BA$1) -> 0 | AD90: 0 | AE90: =+IF(INDEX($C90:$L90,1,aux!$BA$1)>0,(L90/INDEX($C90:$L90,1,aux!$BA$1))^(1/($L$3-INDEX($C$3:$L$3,1,aux!$BA$1)))-1,"n.d.") -> n.d. | AF90: =IF(INDEX($C90:$L90,1,aux!$BA$1)>0,(L90-INDEX($C90:$L90,1,aux!$BA$1))/INDEX($C90:$L90,1,aux!$BA$1),"n.d.") -> n.d. | AH90: =X90-INDEX($O90:$X90,1,aux!$BA$1) -> 0 | AI90: 0 | AJ90: =+IF(INDEX($O90:$X90,1,aux!$BA$1)>0,(X90/INDEX($O90:$X90,1,aux!$BA$1))^(1/($X$3-INDEX($O$3:$X$3,1,aux!$BA$1)))-1,"n.d.") -> n.d. | AK90: =IF(INDEX($O90:$X90,1,aux!$BA$1)>0,(X90-INDEX($O90:$X90,1,aux!$BA$1))/INDEX($O90:$X90,1,aux!$BA$1),"n.d.") -> n.d. | AM90: 0 | CC90: =+IF(ISNA(MATCH('5.1'!A90,AUX_2d_pais!$G$2:$G$40000,0)),0,1) -> 0
A91: 0314 | B91: Gabão | C91: 4549.798 | D91: 5045.583 | E91: 3537.913 | F91: 1682.535 | G91: 2531.669 | H91: 1914.978 | I91: 3485.592 | J91: 3425.94 | K91: 2940.069 | L91: 2562.928 | M91: 3167.7005 | N91: 0.007343263544 | O91: 229.661 | P91: 386.061 | Q91: 872.376 | R91: 617.412 | S91: 807.456 | T91: 1629.968 | U91: 2135.477 | V91: 1565.466 | W91: 1652.258 | X91: 2378.447 | Y91: 1227.4582 | Z91: 0.001158351427 | AA91: -1940.2423 | AC91: =L91-INDEX($C91:$L91,1,aux!$BA$1) -> -1986.87 | AD91: -0.01364664022 | AE91: =+IF(INDEX($C91:$L91,1,aux!$BA$1)>0,(L91/INDEX($C91:$L91,1,aux!$BA$1))^(1/($L$3-INDEX($C$3:$L$3,1,aux!$BA$1)))-1,"n.d.") -> -0.06177949319 | AF91: =IF(INDEX($C91:$L91,1,aux!$BA$1)>0,(L91-INDEX($C91:$L91,1,aux!$BA$1))/INDEX($C91:$L91,1,aux!$BA$1),"n.d.") -> -0.4366941126 | AH91: =X91-INDEX($O91:$X91,1,aux!$BA$1) -> 2148.786 | AI91: 0.006626888669 | AJ91: =+IF(INDEX($O91:$X91,1,aux!$BA$1)>0,(X91/INDEX($O91:$X91,1,aux!$BA$1))^(1/($X$3-INDEX($O$3:$X$3,1,aux!$BA$1)))-1,"n.d.") -> 0.2965841009 | AK91: =IF(INDEX($O91:$X91,1,aux!$BA$1)>0,(X91-INDEX($O91:$X91,1,aux!$BA$1))/INDEX($O91:$X91,1,aux!$BA$1),"n.d.") -> 9.356338255 | CC91: =+IF(ISNA(MATCH('5.1'!A91,AUX_2d_pais!$G$2:$G$40000,0)),0,1) -> 1
A92: 0252 | B92: Gâmbia | C92: 0 | D92: 128.565 | E92: 96.521 | F92: 0.345 | G92: 0 | H92: 0 | I92: 53.517 | J92: 392.138 | K92: 612.15 | L92: 661.744 | M92: 194.498 | N92: 0.0004508791386 | O92: 291.164 | P92: 196.028 | Q92: 51.318 | R92: 96.113 | S92: 186.863 | T92: 513.346 | U92: 663.146 | V92: 654.331 | W92: 559.399 | X92: 210.703 | Y92: 342.2411 | Z92: 0.0003229726816 | AA92: 147.7431 | AC92: =L92-INDEX($C92:$L92,1,aux!$BA$1) -> 661.744 | AD92: 0.004545129919 | AE92: =+IF(INDEX($C92:$L92,1,aux!$BA$1)>0,(L92/INDEX($C92:$L92,1,aux!$BA$1))^(1/($L$3-INDEX($C$3:$L$3,1,aux!$BA$1)))-1,"n.d.") -> n.d. | AF92: =IF(INDEX($C92:$L92,1,aux!$BA$1)>0,(L92-INDEX($C92:$L92,1,aux!$BA$1))/INDEX($C92:$L92,1,aux!$BA$1),"n.d.") -> n.d. | AH92: =X92-INDEX($O92:$X92,1,aux!$BA$1) -> -80.461 | AI92: -0.0002481429464 | AJ92: =+IF(INDEX($O92:$X92,1,aux!$BA$1)>0,(X92/INDEX($O92:$X92,1,aux!$BA$1))^(1/($X$3-INDEX($O$3:$X$3,1,aux!$BA$1)))-1,"n.d.") -> -0.03529937424 | AK92: =IF(INDEX($O92:$X92,1,aux!$BA$1)>0,(X92-INDEX($O92:$X92,1,aux!$BA$1))/INDEX($O92:$X92,1,aux!$BA$1),"n.d.") -> -0.2763425423 | CC92: =+IF(ISNA(MATCH('5.1'!A92,AUX_2d_pais!$G$2:$G$40000,0)),0,1) -> 1
A93: 0276 | B93: Gana | C93: 6012.558 | D93: 6531.724 | E93: 3375.162 | F93: 6532.986 | G93: 5677.947 | H93: 7792.661 | I93: 9056.895 | J93: 8342.111 | K93: 6908.097 | L93: 8157.645 | M93: 6838.7786 | N93: 0.01585344119 | O93: 619.471 | P93: 2378.125 | Q93: 3068.412 | R93: 2840.199 | S93: 4269.115 | T93: 3424.563 | U93: 4877.287 | V93: 5746.845 | W93: 3109.733 | X93: 4548.987 | Y93: 3488.2737 | Z93: 0.003291881399 | AA93: -3350.5049 | AC93: =L93-INDEX($C93:$L93,1,aux!$BA$1) -> 2145.087 | AD93: 0.01473333963 | AE93: =+IF(INDEX($C93:$L93,1,aux!$BA$1)>0,(L93/INDEX($C93:$L93,1,aux!$BA$1))^(1/($L$3-INDEX($C$3:$L$3,1,aux!$BA$1)))-1,"n.d.") -> 0.03448175602 | AF93: =IF(INDEX($C93:$L93,1,aux!$BA$1)>0,(L93-INDEX($C93:$L93,1,aux!$BA$1))/INDEX($C93:$L93,1,aux!$BA$1),"n.d.") -> 0.356767785 | AH93: =X93-INDEX($O93:$X93,1,aux!$BA$1) -> 3929.516 | AI93: 0.01211868704 | AJ93: =+IF(INDEX($O93:$X93,1,aux!$BA$1)>0,(X93/INDEX($O93:$X93,1,aux!$BA$1))^(1/($X$3-INDEX($O$3:$X$3,1,aux!$BA$1)))-1,"n.d.") -> 0.2479880099 | AK93: =IF(INDEX($O93:$X93,1,aux!$BA$1)>0,(X93-INDEX($O93:$X93,1,aux!$BA$1))/INDEX($O93:$X93,1,aux!$BA$1),"n.d.") -> 6.343341335 | CC93: =+IF(ISNA(MATCH('5.1'!A93,AUX_2d_pais!$G$2:$G$40000,0)),0,1) -> 1
A94: 0076 | B94: Geórgia | C94: 0 | D94: 0 | E94: 0 | F94: 0 | G94: 0 | H94: 0 | I94: 0 | J94: 0 | K94: 0 | L94: 0 | M94: 0 | N94: 0 | O94: 0 | P94: 0 | Q94: 0 | R94: 0 | S94: 0 | T94: 0 | U94: 0 | V94: 0 | W94: 0 | X94: 0 | Y94: 0 | Z94: 0 | AA94: 0 | AC94: =L94-INDEX($C94:$L94,1,aux!$BA$1) -> 0 | AD94: 0 | AE94: =+IF(INDEX($C94:$L94,1,aux!$BA$1)>0,(L94/INDEX($C94:$L94,1,aux!$BA$1))^(1/($L$3-INDEX($C$3:$L$3,1,aux!$BA$1)))-1,"n.d.") -> n.d. | AF94: =IF(INDEX($C94:$L94,1,aux!$BA$1)>0,(L94-INDEX($C94:$L94,1,aux!$BA$1))/INDEX($C94:$L94,1,aux!$BA$1),"n.d.") -> n.d. | AH94: =X94-INDEX($O94:$X94,1,aux!$BA$1) -> 0 | AI94: 0 | AJ94: =+IF(INDEX($O94:$X94,1,aux!$BA$1)>0,(X94/INDEX($O94:$X94,1,aux!$BA$1))^(1/($X$3-INDEX($O$3:$X$3,1,aux!$BA$1)))-1,"n.d.") -> n.d. | AK94: =IF(INDEX($O94:$X94,1,aux!$BA$1)>0,(X94-INDEX($O94:$X94,1,aux!$BA$1))/INDEX($O94:$X94,1,aux!$BA$1),"n.d.") -> n.d. | AM94: 0 | CC94: =+IF(ISNA(MATCH('5.1'!A94,AUX_2d_pais!$G$2:$G$40000,0)),0,1) -> 0
A95: 0893 | B95: Geórgia do Sul e Ilhas Sandwich do Sul | C95: 0 | D95: 0 | E95: 0 | F95: 0 | G95: 0 | H95: 0 | I95: 0 | J95: 0 | K95: 0 | L95: 0 | M95: 0 | N95: 0 | O95: 0 | P95: 0 | Q95: 0 | R95: 0 | S95: 0 | T95: 0 | U95: 0 | V95: 0 | W95: 0 | X95: 0 | Y95: 0 | Z95: 0 | AA95: 0 | AC95: =L95-INDEX($C95:$L95,1,aux!$BA$1) -> 0 | AD95: 0 | AE95: =+IF(INDEX($C95:$L95,1,aux!$BA$1)>0,(L95/INDEX($C95:$L95,1,aux!$BA$1))^(1/($L$3-INDEX($C$3:$L$3,1,aux!$BA$1)))-1,"n.d.") -> n.d. | AF95: =IF(INDEX($C95:$L95,1,aux!$BA$1)>0,(L95-INDEX($C95:$L95,1,aux!$BA$1))/INDEX($C95:$L95,1,aux!$BA$1),"n.d.") -> n.d. | AH95: =X95-INDEX($O95:$X95,1,aux!$BA$1) -> 0 | AI95: 0 | AJ95: =+IF(INDEX($O95:$X95,1,aux!$BA$1)>0,(X95/INDEX($O95:$X95,1,aux!$BA$1))^(1/($X$3-INDEX($O$3:$X$3,1,aux!$BA$1)))-1,"n.d.") -> n.d. | AK95: =IF(INDEX($O95:$X95,1,aux!$BA$1)>0,(X95-INDEX($O95:$X95,1,aux!$BA$1))/INDEX($O95:$X95,1,aux!$BA$1),"n.d.") -> n.d. | AM95: 0 | BO95: 0 | CC95: =+IF(ISNA(MATCH('5.1'!A95,AUX_2d_pais!$G$2:$G$40000,0)),0,1) -> 0
A96: 0044 | B96: Gibraltar | C96: 0 | D96: 0 | E96: 0 | F96: 0 | G96: 0 | H96: 0 | I96: 0 | J96: 0 | K96: 0 | L96: 0 | M96: 0 | N96: 0 | O96: 0 | P96: 0 | Q96: 0 | R96: 0 | S96: 0 | T96: 0 | U96: 0 | V96: 0 | W96: 0 | X96: 0 | Y96: 0 | Z96: 0 | AA96: 0 | AC96: =L96-INDEX($C96:$L96,1,aux!$BA$1) -> 0 | AD96: 0 | AE96: =+IF(INDEX($C96:$L96,1,aux!$BA$1)>0,(L96/INDEX($C96:$L96,1,aux!$BA$1))^(1/($L$3-INDEX($C$3:$L$3,1,aux!$BA$1)))-1,"n.d.") -> n.d. | AF96: =IF(INDEX($C96:$L96,1,aux!$BA$1)>0,(L96-INDEX($C96:$L96,1,aux!$BA$1))/INDEX($C96:$L96,1,aux!$BA$1),"n.d.") -> n.d. | AH96: =X96-INDEX($O96:$X96,1,aux!$BA$1) -> 0 | AI96: 0 | AJ96: =+IF(INDEX($O96:$X96,1,aux!$BA$1)>0,(X96/INDEX($O96:$X96,1,aux!$BA$1))^(1/($X$3-INDEX($O$3:$X$3,1,aux!$BA$1)))-1,"n.d.") -> n.d. | AK96: =IF(INDEX($O96:$X96,1,aux!$BA$1)>0,(X96-INDEX($O96:$X96,1,aux!$BA$1))/INDEX($O96:$X96,1,aux!$BA$1),"n.d.") -> n.d. | AM96: 0 | CC96: =+IF(ISNA(MATCH('5.1'!A96,AUX_2d_pais!$G$2:$G$40000,0)),0,1) -> 0
A97: 0473 | B97: Granada | C97: 0 | D97: 0 | E97: 0 | F97: 0 | G97: 0 | H97: 0 | I97: 0 | J97: 0 | K97: 0 | L97: 0 | M97: 0 | N97: 0 | O97: 0 | P97: 0 | Q97: 0 | R97: 0 | S97: 0 | T97: 0 | U97: 0 | V97: 0 | W97: 0 | X97: 0 | Y97: 0 | Z97: 0 | AA97: 0 | AC97: =L97-INDEX($C97:$L97,1,aux!$BA$1) -> 0 | AD97: 0 | AE97: =+IF(INDEX($C97:$L97,1,aux!$BA$1)>0,(L97/INDEX($C97:$L97,1,aux!$BA$1))^(1/($L$3-INDEX($C$3:$L$3,1,aux!$BA$1)))-1,"n.d.") -> n.d. | AF97: =IF(INDEX($C97:$L97,1,aux!$BA$1)>0,(L97-INDEX($C97:$L97,1,aux!$BA$1))/INDEX($C97:$L97,1,aux!$BA$1),"n.d.") -> n.d. | AH97: =X97-INDEX($O97:$X97,1,aux!$BA$1) -> 0 | AI97: 0 | AJ97: =+IF(INDEX($O97:$X97,1,aux!$BA$1)>0,(X97/INDEX($O97:$X97,1,aux!$BA$1))^(1/($X$3-INDEX($O$3:$X$3,1,aux!$BA$1)))-1,"n.d.") -> n.d. | AK97: =IF(INDEX($O97:$X97,1,aux!$BA$1)>0,(X97-INDEX($O97:$X97,1,aux!$BA$1))/INDEX($O97:$X97,1,aux!$BA$1),"n.d.") -> n.d. | AM97: 0 | BO97: 0 | CC97: =+IF(ISNA(MATCH('5.1'!A97,AUX_2d_pais!$G$2:$G$40000,0)),0,1) -> 0
A98: 0009 | B98: Grécia | C98: 0 | D98: 0 | E98: 0 | F98: 0 | G98: 0 | H98: 0 | I98: 0 | J98: 0 | K98: 0 | L98: 0 | M98: 0 | N98: 0 | O98: 0 | P98: 0 | Q98: 0 | R98: 0 | S98: 0 | T98: 0 | U98: 0 | V98: 0 | W98: 0 | X98: 0 | Y98: 0 | Z98: 0 | AA98: 0 | AC98: =L98-INDEX($C98:$L98,1,aux!$BA$1) -> 0 | AD98: 0 | AE98: =+IF(INDEX($C98:$L98,1,aux!$BA$1)>0,(L98/INDEX($C98:$L98,1,aux!$BA$1))^(1/($L$3-INDEX($C$3:$L$3,1,aux!$BA$1)))-1,"n.d.") -> n.d. | AF98: =IF(INDEX($C98:$L98,1,aux!$BA$1)>0,(L98-INDEX($C98:$L98,1,aux!$BA$1))/INDEX($C98:$L98,1,aux!$BA$1),"n.d.") -> n.d. | AH98: =X98-INDEX($O98:$X98,1,aux!$BA$1) -> 0 | AI98: 0 | AJ98: =+IF(INDEX($O98:$X98,1,aux!$BA$1)>0,(X98/INDEX($O98:$X98,1,aux!$BA$1))^(1/($X$3-INDEX($O$3:$X$3,1,aux!$BA$1)))-1,"n.d.") -> n.d. | AK98: =IF(INDEX($O98:$X98,1,aux!$BA$1)>0,(X98-INDEX($O98:$X98,1,aux!$BA$1))/INDEX($O98:$X98,1,aux!$BA$1),"n.d.") -> n.d. | AM98: 0 | CC98: =+IF(ISNA(MATCH('5.1'!A98,AUX_2d_pais!$G$2:$G$40000,0)),0,1) -> 0
A99: 0406 | B99: Gronelândia | C99: 0 | D99: 0 | E99: 0 | F99: 0 | G99: 0 | H99: 0 | I99: 0 | J99: 0 | K99: 0 | L99: 0 | M99: 0 | N99: 0 | O99: 0 | P99: 0 | Q99: 0 | R99: 0 | S99: 0 | T99: 0 | U99: 0 | V99: 0 | W99: 0 | X99: 0 | Y99: 0 | Z99: 0 | AA99: 0 | AC99: =L99-INDEX($C99:$L99,1,aux!$BA$1) -> 0 | AD99: 0 | AE99: =+IF(INDEX($C99:$L99,1,aux!$BA$1)>0,(L99/INDEX($C99:$L99,1,aux!$BA$1))^(1/($L$3-INDEX($C$3:$L$3,1,aux!$BA$1)))-1,"n.d.") -> n.d. | AF99: =IF(INDEX($C99:$L99,1,aux!$BA$1)>0,(L99-INDEX($C99:$L99,1,aux!$BA$1))/INDEX($C99:$L99,1,aux!$BA$1),"n.d.") -> n.d. | AH99: =X99-INDEX($O99:$X99,1,aux!$BA$1) -> 0 | AI99: 0 | AJ99: =+IF(INDEX($O99:$X99,1,aux!$BA$1)>0,(X99/INDEX($O99:$X99,1,aux!$BA$1))^(1/($X$3-INDEX($O$3:$X$3,1,aux!$BA$1)))-1,"n.d.") -> n.d. | AK99: =IF(INDEX($O99:$X99,1,aux!$BA$1)>0,(X99-INDEX($O99:$X99,1,aux!$BA$1))/INDEX($O99:$X99,1,aux!$BA$1),"n.d.") -> n.d. | AM99: 0 | BO99: 0 | CC99: =+IF(ISNA(MATCH('5.1'!A99,AUX_2d_pais!$G$2:$G$40000,0)),0,1) -> 0
A100: 0458 | B100: Guadalupe | C100: 0 | D100: 0 | E100: 0 | F100: 0 | G100: 0 | H100: 0 | I100: 0 | J100: 0 | K100: 0 | L100: 0 | M100: 0 | N100: 0 | O100: 0 | P100: 0 | Q100: 0 | R100: 0 | S100: 0 | T100: 0 | U100: 0 | V100: 0 | W100: 0 | X100: 0 | Y100: 0 | Z100: 0 | AA100: 0 | AC100: =L100-INDEX($C100:$L100,1,aux!$BA$1) -> 0 | AD100: =AC100/$AC$252 -> 0 | AE100: =+IF(INDEX($C100:$L100,1,aux!$BA$1)>0,(L100/INDEX($C100:$L100,1,aux!$BA$1))^(1/($L$3-INDEX($C$3:$L$3,1,aux!$BA$1)))-1,"n.d.") -> n.d. | AF100: =IF(INDEX($C100:$L100,1,aux!$BA$1)>0,(L100-INDEX($C100:$L100,1,aux!$BA$1))/INDEX($C100:$L100,1,aux!$BA$1),"n.d.") -> n.d. | AH100: =X100-INDEX($O100:$X100,1,aux!$BA$1) -> 0 | AI100: =AH100/$AH$252 -> 0 | AJ100: =+IF(INDEX($O100:$X100,1,aux!$BA$1)>0,(X100/INDEX($O100:$X100,1,aux!$BA$1))^(1/($X$3-INDEX($O$3:$X$3,1,aux!$BA$1)))-1,"n.d.") -> n.d. | AK100: =IF(INDEX($O100:$X100,1,aux!$BA$1)>0,(X100-INDEX($O100:$X100,1,aux!$BA$1))/INDEX($O100:$X100,1,aux!$BA$1),"n.d.") -> n.d. | AM100: 0 | BO100: 0 | CC100: =+IF(ISNA(MATCH('5.1'!A100,AUX_2d_pais!$G$2:$G$40000,0)),0,1) -> 0
A101: 0831 | B101: Guam | C101: 0 | D101: 0 | E101: 0 | F101: 0 | G101: 0 | H101: 0 | I101: 0 | J101: 0 | K101: 0 | L101: 0 | M101: 0 | N101: 0 | O101: 0 | P101: 0 | Q101: 0 | R101: 0 | S101: 0 | T101: 0 | U101: 0 | V101: 0 | W101: 0 | X101: 0 | Y101: 0 | Z101: 0 | AA101: 0 | AC101: =L101-INDEX($C101:$L101,1,aux!$BA$1) -> 0 | AD101: =AC101/$AC$252 -> 0 | AE101: =+IF(INDEX($C101:$L101,1,aux!$BA$1)>0,(L101/INDEX($C101:$L101,1,aux!$BA$1))^(1/($L$3-INDEX($C$3:$L$3,1,aux!$BA$1)))-1,"n.d.") -> n.d. | AF101: =IF(INDEX($C101:$L101,1,aux!$BA$1)>0,(L101-INDEX($C101:$L101,1,aux!$BA$1))/INDEX($C101:$L101,1,aux!$BA$1),"n.d.") -> n.d. | AH101: =X101-INDEX($O101:$X101,1,aux!$BA$1) -> 0 | AI101: =AH101/$AH$252 -> 0 | AJ101: =+IF(INDEX($O101:$X101,1,aux!$BA$1)>0,(X101/INDEX($O101:$X101,1,aux!$BA$1))^(1/($X$3-INDEX($O$3:$X$3,1,aux!$BA$1)))-1,"n.d.") -> n.d. | AK101: =IF(INDEX($O101:$X101,1,aux!$BA$1)>0,(X101-INDEX($O101:$X101,1,aux!$BA$1))/INDEX($O101:$X101,1,aux!$BA$1),"n.d.") -> n.d. | AM101: 0 | BO101: 0 | CC101: =+IF(ISNA(MATCH('5.1'!A101,AUX_2d_pais!$G$2:$G$40000,0)),0,1) -> 0
A102: 0416 | B102: Guatemala | C102: 0 | D102: 0 | E102: 0 | F102: 0 | G102: 0 | H102: 0 | I102: 0 | J102: 0 | K102: 0 | L102: 0 | M102: 0 | N102: 0 | O102: 0 | P102: 0 | Q102: 0 | R102: 0 | S102: 0 | T102: 0 | U102: 0 | V102: 0 | W102: 0 | X102: 0 | Y102: 0 | Z102: 0 | AA102: 0 | AC102: =L102-INDEX($C102:$L102,1,aux!$BA$1) -> 0 | AD102: 0 | AE102: =+IF(INDEX($C102:$L102,1,aux!$BA$1)>0,(L102/INDEX($C102:$L102,1,aux!$BA$1))^(1/($L$3-INDEX($C$3:$L$3,1,aux!$BA$1)))-1,"n.d.") -> n.d. | AF102: =IF(INDEX($C102:$L102,1,aux!$BA$1)>0,(L102-INDEX($C102:$L102,1,aux!$BA$1))/INDEX($C102:$L102,1,aux!$BA$1),"n.d.") -> n.d. | AH102: =X102-INDEX($O102:$X102,1,aux!$BA$1) -> 0 | AI102: 0 | AJ102: =+IF(INDEX($O102:$X102,1,aux!$BA$1)>0,(X102/INDEX($O102:$X102,1,aux!$BA$1))^(1/($X$3-INDEX($O$3:$X$3,1,aux!$BA$1)))-1,"n.d.") -> n.d. | AK102: =IF(INDEX($O102:$X102,1,aux!$BA$1)>0,(X102-INDEX($O102:$X102,1,aux!$BA$1))/INDEX($O102:$X102,1,aux!$BA$1),"n.d.") -> n.d. | AM102: 0 | CC102: =+IF(ISNA(MATCH('5.1'!A102,AUX_2d_pais!$G$2:$G$40000,0)),0,1) -> 0
A103: 0488 | B103: Guiana | C103: 0 | D103: 0 | E103: 0 | F103: 0 | G103: 0 | H103: 0 | I103: 0 | J103: 0 | K103: 0 | L103: 0 | M103: 0 | N103: 0 | O103: 0 | P103: 0 | Q103: 0 | R103: 0 | S103: 0 | T103: 0 | U103: 0 | V103: 0 | W103: 0 | X103: 0 | Y103: 0 | Z103: 0 | AA103: 0 | AC103: =L103-INDEX($C103:$L103,1,aux!$BA$1) -> 0 | AD103: 0 | AE103: =+IF(INDEX($C103:$L103,1,aux!$BA$1)>0,(L103/INDEX($C103:$L103,1,aux!$BA$1))^(1/($L$3-INDEX($C$3:$L$3,1,aux!$BA$1)))-1,"n.d.") -> n.d. | AF103: =IF(INDEX($C103:$L103,1,aux!$BA$1)>0,(L103-INDEX($C103:$L103,1,aux!$BA$1))/INDEX($C103:$L103,1,aux!$BA$1),"n.d.") -> n.d. | AH103: =X103-INDEX($O103:$X103,1,aux!$BA$1) -> 0 | AI103: 0 | AJ103: =+IF(INDEX($O103:$X103,1,aux!$BA$1)>0,(X103/INDEX($O103:$X103,1,aux!$BA$1))^(1/($X$3-INDEX($O$3:$X$3,1,aux!$BA$1)))-1,"n.d.") -> n.d. | AK103: =IF(INDEX($O103:$X103,1,aux!$BA$1)>0,(X103-INDEX($O103:$X103,1,aux!$BA$1))/INDEX($O103:$X103,1,aux!$BA$1),"n.d.") -> n.d. | AM103: 0 | BO103: 0 | CC103: =+IF(ISNA(MATCH('5.1'!A103,AUX_2d_pais!$G$2:$G$40000,0)),0,1) -> 0
A104: 0496 | B104: Guiana Francesa | C104: 0 | D104: 0 | E104: 0 | F104: 0 | G104: 0 | H104: 0 | I104: 0 | J104: 0 | K104: 0 | L104: 0 | M104: 0 | N104: 0 | O104: 0 | P104: 0 | Q104: 0 | R104: 0 | S104: 0 | T104: 0 | U104: 0 | V104: 0 | W104: 0 | X104: 0 | Y104: 0 | Z104: 0 | AA104: 0 | AC104: =L104-INDEX($C104:$L104,1,aux!$BA$1) -> 0 | AD104: 0 | AE104: =+IF(INDEX($C104:$L104,1,aux!$BA$1)>0,(L104/INDEX($C104:$L104,1,aux!$BA$1))^(1/($L$3-INDEX($C$3:$L$3,1,aux!$BA$1)))-1,"n.d.") -> n.d. | AF104: =IF(INDEX($C104:$L104,1,aux!$BA$1)>0,(L104-INDEX($C104:$L104,1,aux!$BA$1))/INDEX($C104:$L104,1,aux!$BA$1),"n.d.") -> n.d. | AH104: =X104-INDEX($O104:$X104,1,aux!$BA$1) -> 0 | AI104: 0 | AJ104: =+IF(INDEX($O104:$X104,1,aux!$BA$1)>0,(X104/INDEX($O104:$X104,1,aux!$BA$1))^(1/($X$3-INDEX($O$3:$X$3,1,aux!$BA$1)))-1,"n.d.") -> n.d. | AK104: =IF(INDEX($O104:$X104,1,aux!$BA$1)>0,(X104-INDEX($O104:$X104,1,aux!$BA$1))/INDEX($O104:$X104,1,aux!$BA$1),"n.d.") -> n.d. | AM104: 0 | BO104: 0 | CC104: =+IF(ISNA(MATCH('5.1'!A104,AUX_2d_pais!$G$2:$G$40000,0)),0,1) -> 0
A105: 0260 | B105: Guiné | C105: 34.897 | D105: 36.11 | E105: 3.07 | F105: 558.893 | G105: 467.282 | H105: 151.695 | I105: 359.789 | J105: 477.502 | K105: 190.095 | L105: 134.231 | M105: 241.3564 | N105: 0.0005595048058 | O105: 822.206 | P105: 852.231 | Q105: 1099.978 | R105: 1310.027 | S105: 1855.02 | T105: 1819.916 | U105: 1507.478 | V105: 1110.951 | W105: 947.064 | X105: 2187.474 | Y105: 1351.2345 | Z105: 0.001275159033 | AA105: 1109.8781 | AC105: =L105-INDEX($C105:$L105,1,aux!$BA$1) -> 99.334 | AD105: 0.0006822667609 | AE105: =+IF(INDEX($C105:$L105,1,aux!$BA$1)>0,(L105/INDEX($C105:$L105,1,aux!$BA$1))^(1/($L$3-INDEX($C$3:$L$3,1,aux!$BA$1)))-1,"n.d.") -> 0.1614678491 | AF105: =IF(INDEX($C105:$L105,1,aux!$BA$1)>0,(L105-INDEX($C105:$L105,1,aux!$BA$1))/INDEX($C105:$L105,1,aux!$BA$1),"n.d.") -> 2.846491102 | AH105: =X105-INDEX($O105:$X105,1,aux!$BA$1) -> 1365.268 | AI105: 0.004210507253 | AJ105: =+IF(INDEX($O105:$X105,1,aux!$BA$1)>0,(X105/INDEX($O105:$X105,1,aux!$BA$1))^(1/($X$3-INDEX($O$3:$X$3,1,aux!$BA$1)))-1,"n.d.") -> 0.1148540828 | AK105: =IF(INDEX($O105:$X105,1,aux!$BA$1)>0,(X105-INDEX($O105:$X105,1,aux!$BA$1))/INDEX($O105:$X105,1,aux!$BA$1),"n.d.") -> 1.660493842 | CC105: =+IF(ISNA(MATCH('5.1'!A105,AUX_2d_pais!$G$2:$G$40000,0)),0,1) -> 1
A106: 0310 | B106: Guiné Equatorial | C106: 137.027 | D106: 50.135 | E106: 45.856 | F106: 0 | G106: 0.685 | H106: 139.081 | I106: 104.589 | J106: 0 | K106: 0 | L106: 29.932 | M106: 50.7305 | N106: 0.0001176018475 | O106: 585.813 | P106: 671.821 | Q106: 739.839 | R106: 976.345 | S106: 1472.272 | T106: 1399.212 | U106: 1595.082 | V106: 1066.844 | W106: 1448.3 | X106: 767.449 | Y106: 1072.2977 | Z106: 0.001011926574 | AA106: 1021.5672 | AC106: =L106-INDEX($C106:$L106,1,aux!$BA$1) -> -107.095 | AD106: -0.0007355725004 | AE106: =+IF(INDEX($C106:$L106,1,aux!$BA$1)>0,(L106/INDEX($C106:$L106,1,aux!$BA$1))^(1/($L$3-INDEX($C$3:$L$3,1,aux!$BA$1)))-1,"n.d.") -> -0.1555145403 | AF106: =IF(INDEX($C106:$L106,1,aux!$BA$1)>0,(L106-INDEX($C106:$L106,1,aux!$BA$1))/INDEX($C106:$L106,1,aux!$BA$1),"n.d.") -> -0.7815612981 | AH106: =X106-INDEX($O106:$X106,1,aux!$BA$1) -> 181.636 | AI106: 0.0005601681834 | AJ106: =+IF(INDEX($O106:$X106,1,aux!$BA$1)>0,(X106/INDEX($O106:$X106,1,aux!$BA$1))^(1/($X$3-INDEX($O$3:$X$3,1,aux!$BA$1)))-1,"n.d.") -> 0.03046270912 | AK106: =IF(INDEX($O106:$X106,1,aux!$BA$1)>0,(X106-INDEX($O106:$X106,1,aux!$BA$1))/INDEX($O106:$X106,1,aux!$BA$1),"n.d.") -> 0.3100579878 | CC106: =+IF(ISNA(MATCH('5.1'!A106,AUX_2d_pais!$G$2:$G$40000,0)),0,1) -> 1
A107: 0257 | B107: Guiné-Bissau | C107: 215.982 | D107: 77.342 | E107: 55.274 | F107: 20.3 | G107: 59.547 | H107: 11.558 | I107: 6.577 | J107: 5.95 | K107: 220.739 | L107: 519.789 | M107: 119.3058 | N107: 0.0002765709485 | O107: 10780.856 | P107: 13619.598 | Q107: 17515.16 | R107: 15397.124 | S107: 16282.168 | T107: 19008.219 | U107: 19310.902 | V107: 21788.621 | W107: 24667.453 | X107: 26494.417 | Y107: 18486.4518 | Z107: 0.01744565136 | AA107: 18367.146 | AC107: =L107-INDEX($C107:$L107,1,aux!$BA$1) -> 303.807 | AD107: 0.00208667141 | AE107: =+IF(INDEX($C107:$L107,1,aux!$BA$1)>0,(L107/INDEX($C107:$L107,1,aux!$BA$1))^(1/($L$3-INDEX($C$3:$L$3,1,aux!$BA$1)))-1,"n.d.") -> 0.1025006044 | AF107: =IF(INDEX($C107:$L107,1,aux!$BA$1)>0,(L107-INDEX($C107:$L107,1,aux!$BA$1))/INDEX($C107:$L107,1,aux!$BA$1),"n.d.") -> 1.406631108 | AH107: =X107-INDEX($O107:$X107,1,aux!$BA$1) -> 15713.561 | AI107: 0.04846086085 | AJ107: =+IF(INDEX($O107:$X107,1,aux!$BA$1)>0,(X107/INDEX($O107:$X107,1,aux!$BA$1))^(1/($X$3-INDEX($O$3:$X$3,1,aux!$BA$1)))-1,"n.d.") -> 0.1050680269 | AK107: =IF(INDEX($O107:$X107,1,aux!$BA$1)>0,(X107-INDEX($O107:$X107,1,aux!$BA$1))/INDEX($O107:$X107,1,aux!$BA$1),"n.d.") -> 1.457542982 | CC107: =+IF(ISNA(MATCH('5.1'!A107,AUX_2d_pais!$G$2:$G$40000,0)),0,1) -> 1
A108: 0452 | B108: Haiti | C108: 0 | D108: 0 | E108: 0 | F108: 0 | G108: 0 | H108: 0 | I108: 0 | J108: 0 | K108: 0 | L108: 0 | M108: 0 | N108: 0 | O108: 0 | P108: 0 | Q108: 0 | R108: 0 | S108: 0 | T108: 0 | U108: 0 | V108: 0 | W108: 0 | X108: 0 | Y108: 0 | Z108: 0 | AA108: 0 | AC108: =L108-INDEX($C108:$L108,1,aux!$BA$1) -> 0 | AD108: 0 | AE108: =+IF(INDEX($C108:$L108,1,aux!$BA$1)>0,(L108/INDEX($C108:$L108,1,aux!$BA$1))^(1/($L$3-INDEX($C$3:$L$3,1,aux!$BA$1)))-1,"n.d.") -> n.d. | AF108: =IF(INDEX($C108:$L108,1,aux!$BA$1)>0,(L108-INDEX($C108:$L108,1,aux!$BA$1))/INDEX($C108:$L108,1,aux!$BA$1),"n.d.") -> n.d. | AH108: =X108-INDEX($O108:$X108,1,aux!$BA$1) -> 0 | AI108: 0 | AJ108: =+IF(INDEX($O108:$X108,1,aux!$BA$1)>0,(X108/INDEX($O108:$X108,1,aux!$BA$1))^(1/($X$3-INDEX($O$3:$X$3,1,aux!$BA$1)))-1,"n.d.") -> n.d. | AK108: =IF(INDEX($O108:$X108,1,aux!$BA$1)>0,(X108-INDEX($O108:$X108,1,aux!$BA$1))/INDEX($O108:$X108,1,aux!$BA$1),"n.d.") -> n.d. | AM108: 0 | CC108: =+IF(ISNA(MATCH('5.1'!A108,AUX_2d_pais!$G$2:$G$40000,0)),0,1) -> 0
A109: 0835 | B109: Heard, Ilha e McDonald, Ilhas | C109: 0 | D109: 0 | E109: 0 | F109: 0 | G109: 0 | H109: 0 | I109: 0 | J109: 0 | K109: 0 | L109: 0 | M109: 0 | N109: 0 | O109: 0 | P109: 0 | Q109: 0 | R109: 0 | S109: 0 | T109: 0 | U109: 0 | V109: 0 | W109: 0 | X109: 0 | Y109: 0 | Z109: 0 | AA109: 0 | AC109: =L109-INDEX($C109:$L109,1,aux!$BA$1) -> 0 | AD109: 0 | AE109: =+IF(INDEX($C109:$L109,1,aux!$BA$1)>0,(L109/INDEX($C109:$L109,1,aux!$BA$1))^(1/($L$3-INDEX($C$3:$L$3,1,aux!$BA$1)))-1,"n.d.") -> n.d. | AF109: =IF(INDEX($C109:$L109,1,aux!$BA$1)>0,(L109-INDEX($C109:$L109,1,aux!$BA$1))/INDEX($C109:$L109,1,aux!$BA$1),"n.d.") -> n.d. | AH109: =X109-INDEX($O109:$X109,1,aux!$BA$1) -> 0 | AI109: 0 | AJ109: =+IF(INDEX($O109:$X109,1,aux!$BA$1)>0,(X109/INDEX($O109:$X109,1,aux!$BA$1))^(1/($X$3-INDEX($O$3:$X$3,1,aux!$BA$1)))-1,"n.d.") -> n.d. | AK109: =IF(INDEX($O109:$X109,1,aux!$BA$1)>0,(X109-INDEX($O109:$X109,1,aux!$BA$1))/INDEX($O109:$X109,1,aux!$BA$1),"n.d.") -> n.d. | AM109: 0 | BO109: 0 | CC109: =+IF(ISNA(MATCH('5.1'!A109,AUX_2d_pais!$G$2:$G$40000,0)),0,1) -> 0
A110: 0424 | B110: Honduras | C110: 0 | D110: 0 | E110: 0 | F110: 0 | G110: 0 | H110: 0 | I110: 0 | J110: 0 | K110: 0 | L110: 0 | M110: 0 | N110: 0 | O110: 0 | P110: 0 | Q110: 0 | R110: 0 | S110: 0 | T110: 0 | U110: 0 | V110: 0 | W110: 0 | X110: 0 | Y110: 0 | Z110: 0 | AA110: 0 | AC110: =L110-INDEX($C110:$L110,1,aux!$BA$1) -> 0 | AD110: 0 | AE110: =+IF(INDEX($C110:$L110,1,aux!$BA$1)>0,(L110/INDEX($C110:$L110,1,aux!$BA$1))^(1/($L$3-INDEX($C$3:$L$3,1,aux!$BA$1)))-1,"n.d.") -> n.d. | AF110: =IF(INDEX($C110:$L110,1,aux!$BA$1)>0,(L110-INDEX($C110:$L110,1,aux!$BA$1))/INDEX($C110:$L110,1,aux!$BA$1),"n.d.") -> n.d. | AH110: =X110-INDEX($O110:$X110,1,aux!$BA$1) -> 0 | AI110: 0 | AJ110: =+IF(INDEX($O110:$X110,1,aux!$BA$1)>0,(X110/INDEX($O110:$X110,1,aux!$BA$1))^(1/($X$3-INDEX($O$3:$X$3,1,aux!$BA$1)))-1,"n.d.") -> n.d. | AK110: =IF(INDEX($O110:$X110,1,aux!$BA$1)>0,(X110-INDEX($O110:$X110,1,aux!$BA$1))/INDEX($O110:$X110,1,aux!$BA$1),"n.d.") -> n.d. | AM110: 0 | CC110: =+IF(ISNA(MATCH('5.1'!A110,AUX_2d_pais!$G$2:$G$40000,0)),0,1) -> 0
A111: 0740 | B111: HongKong | C111: 0 | D111: 0 | E111: 0 | F111: 0 | G111: 0 | H111: 0 | I111: 0 | J111: 0 | K111: 0 | L111: 0 | M111: 0 | N111: 0 | O111: 0 | P111: 0 | Q111: 0 | R111: 0 | S111: 0 | T111: 0 | U111: 0 | V111: 0 | W111: 0 | X111: 0 | Y111: 0 | Z111: 0 | AA111: 0 | AC111: =L111-INDEX($C111:$L111,1,aux!$BA$1) -> 0 | AD111: 0 | AE111: =+IF(INDEX($C111:$L111,1,aux!$BA$1)>0,(L111/INDEX($C111:$L111,1,aux!$BA$1))^(1/($L$3-INDEX($C$3:$L$3,1,aux!$BA$1)))-1,"n.d.") -> n.d. | AF111: =IF(INDEX($C111:$L111,1,aux!$BA$1)>0,(L111-INDEX($C111:$L111,1,aux!$BA$1))/INDEX($C111:$L111,1,aux!$BA$1),"n.d.") -> n.d. | AH111: =X111-INDEX($O111:$X111,1,aux!$BA$1) -> 0 | AI111: 0 | AJ111: =+IF(INDEX($O111:$X111,1,aux!$BA$1)>0,(X111/INDEX($O111:$X111,1,aux!$BA$1))^(1/($X$3-INDEX($O$3:$X$3,1,aux!$BA$1)))-1,"n.d.") -> n.d. | AK111: =IF(INDEX($O111:$X111,1,aux!$BA$1)>0,(X111-INDEX($O111:$X111,1,aux!$BA$1))/INDEX($O111:$X111,1,aux!$BA$1),"n.d.") -> n.d. | AM111: 0 | CC111: =+IF(ISNA(MATCH('5.1'!A111,AUX_2d_pais!$G$2:$G$40000,0)),0,1) -> 0
A112: 0064 | B112: Hungria | C112: 0 | D112: 0 | E112: 0 | F112: 0 | G112: 0 | H112: 0 | I112: 0 | J112: 0 | K112: 0 | L112: 0 | M112: 0 | N112: 0 | O112: 0 | P112: 0 | Q112: 0 | R112: 0 | S112: 0 | T112: 0 | U112: 0 | V112: 0 | W112: 0 | X112: 0 | Y112: 0 | Z112: 0 | AA112: 0 | AC112: =L112-INDEX($C112:$L112,1,aux!$BA$1) -> 0 | AD112: 0 | AE112: =+IF(INDEX($C112:$L112,1,aux!$BA$1)>0,(L112/INDEX($C112:$L112,1,aux!$BA$1))^(1/($L$3-INDEX($C$3:$L$3,1,aux!$BA$1)))-1,"n.d.") -> n.d. | AF112: =IF(INDEX($C112:$L112,1,aux!$BA$1)>0,(L112-INDEX($C112:$L112,1,aux!$BA$1))/INDEX($C112:$L112,1,aux!$BA$1),"n.d.") -> n.d. | AH112: =X112-INDEX($O112:$X112,1,aux!$BA$1) -> 0 | AI112: 0 | AJ112: =+IF(INDEX($O112:$X112,1,aux!$BA$1)>0,(X112/INDEX($O112:$X112,1,aux!$BA$1))^(1/($X$3-INDEX($O$3:$X$3,1,aux!$BA$1)))-1,"n.d.") -> n.d. | AK112: =IF(INDEX($O112:$X112,1,aux!$BA$1)>0,(X112-INDEX($O112:$X112,1,aux!$BA$1))/INDEX($O112:$X112,1,aux!$BA$1),"n.d.") -> n.d. | AM112: 0 | CC112: =+IF(ISNA(MATCH('5.1'!A112,AUX_2d_pais!$G$2:$G$40000,0)),0,1) -> 0
A113: 0653 | B113: Iémen | C113: 0 | D113: 0 | E113: 0 | F113: 0 | G113: 0 | H113: 0 | I113: 0 | J113: 0 | K113: 0 | L113: 0 | M113: 0 | N113: 0 | O113: 0 | P113: 0 | Q113: 0 | R113: 0 | S113: 0 | T113: 0 | U113: 0 | V113: 0 | W113: 0 | X113: 0 | Y113: 0 | Z113: 0 | AA113: 0 | AC113: =L113-INDEX($C113:$L113,1,aux!$BA$1) -> 0 | AD113: 0 | AE113: =+IF(INDEX($C113:$L113,1,aux!$BA$1)>0,(L113/INDEX($C113:$L113,1,aux!$BA$1))^(1/($L$3-INDEX($C$3:$L$3,1,aux!$BA$1)))-1,"n.d.") -> n.d. | AF113: =IF(INDEX($C113:$L113,1,aux!$BA$1)>0,(L113-INDEX($C113:$L113,1,aux!$BA$1))/INDEX($C113:$L113,1,aux!$BA$1),"n.d.") -> n.d. | AH113: =X113-INDEX($O113:$X113,1,aux!$BA$1) -> 0 | AI113: 0 | AJ113: =+IF(INDEX($O113:$X113,1,aux!$BA$1)>0,(X113/INDEX($O113:$X113,1,aux!$BA$1))^(1/($X$3-INDEX($O$3:$X$3,1,aux!$BA$1)))-1,"n.d.") -> n.d. | AK113: =IF(INDEX($O113:$X113,1,aux!$BA$1)>0,(X113-INDEX($O113:$X113,1,aux!$BA$1))/INDEX($O113:$X113,1,aux!$BA$1),"n.d.") -> n.d. | AM113: 0 | BO113: 0 | CC113: =+IF(ISNA(MATCH('5.1'!A113,AUX_2d_pais!$G$2:$G$40000,0)),0,1) -> 0
A114: 0664 | B114: Índia | C114: 0 | D114: 0 | E114: 0 | F114: 0 | G114: 0 | H114: 0 | I114: 0 | J114: 0 | K114: 0 | L114: 0 | M114: 0 | N114: 0 | O114: 0 | P114: 0 | Q114: 0 | R114: 0 | S114: 0 | T114: 0 | U114: 0 | V114: 0 | W114: 0 | X114: 0 | Y114: 0 | Z114: 0 | AA114: 0 | AC114: =L114-INDEX($C114:$L114,1,aux!$BA$1) -> 0 | AD114: 0 | AE114: =+IF(INDEX($C114:$L114,1,aux!$BA$1)>0,(L114/INDEX($C114:$L114,1,aux!$BA$1))^(1/($L$3-INDEX($C$3:$L$3,1,aux!$BA$1)))-1,"n.d.") -> n.d. | AF114: =IF(INDEX($C114:$L114,1,aux!$BA$1)>0,(L114-INDEX($C114:$L114,1,aux!$BA$1))/INDEX($C114:$L114,1,aux!$BA$1),"n.d.") -> n.d. | AH114: =X114-INDEX($O114:$X114,1,aux!$BA$1) -> 0 | AI114: 0 | AJ114: =+IF(INDEX($O114:$X114,1,aux!$BA$1)>0,(X114/INDEX($O114:$X114,1,aux!$BA$1))^(1/($X$3-INDEX($O$3:$X$3,1,aux!$BA$1)))-1,"n.d.") -> n.d. | AK114: =IF(INDEX($O114:$X114,1,aux!$BA$1)>0,(X114-INDEX($O114:$X114,1,aux!$BA$1))/INDEX($O114:$X114,1,aux!$BA$1),"n.d.") -> n.d. | AM114: 0 | CC114: =+IF(ISNA(MATCH('5.1'!A114,AUX_2d_pais!$G$2:$G$40000,0)),0,1) -> 0
A115: 0700 | B115: Indonésia | C115: 0 | D115: 0 | E115: 0 | F115: 0 | G115: 0 | H115: 0 | I115: 0 | J115: 0 | K115: 0 | L115: 0 | M115: 0 | N115: 0 | O115: 0 | P115: 0 | Q115: 0 | R115: 0 | S115: 0 | T115: 0 | U115: 0 | V115: 0 | W115: 0 | X115: 0 | Y115: 0 | Z115: 0 | AA115: 0 | AC115: =L115-INDEX($C115:$L115,1,aux!$BA$1) -> 0 | AD115: 0 | AE115: =+IF(INDEX($C115:$L115,1,aux!$BA$1)>0,(L115/INDEX($C115:$L115,1,aux!$BA$1))^(1/($L$3-INDEX($C$3:$L$3,1,aux!$BA$1)))-1,"n.d.") -> n.d. | AF115: =IF(INDEX($C115:$L115,1,aux!$BA$1)>0,(L115-INDEX($C115:$L115,1,aux!$BA$1))/INDEX($C115:$L115,1,aux!$BA$1),"n.d.") -> n.d. | AH115: =X115-INDEX($O115:$X115,1,aux!$BA$1) -> 0 | AI115: 0 | AJ115: =+IF(INDEX($O115:$X115,1,aux!$BA$1)>0,(X115/INDEX($O115:$X115,1,aux!$BA$1))^(1/($X$3-INDEX($O$3:$X$3,1,aux!$BA$1)))-1,"n.d.") -> n.d. | AK115: =IF(INDEX($O115:$X115,1,aux!$BA$1)>0,(X115-INDEX($O115:$X115,1,aux!$BA$1))/INDEX($O115:$X115,1,aux!$BA$1),"n.d.") -> n.d. | AM115: 0 | CC115: =+IF(ISNA(MATCH('5.1'!A115,AUX_2d_pais!$G$2:$G$40000,0)),0,1) -> 0
A116: 0616 | B116: Irão, República Islâmica do | C116: 0 | D116: 0 | E116: 0 | F116: 0 | G116: 0 | H116: 0 | I116: 0 | J116: 0 | K116: 0 | L116: 0 | M116: 0 | N116: 0 | O116: 0 | P116: 0 | Q116: 0 | R116: 0 | S116: 0 | T116: 0 | U116: 0 | V116: 0 | W116: 0 | X116: 0 | Y116: 0 | Z116: 0 | AA116: 0 | AC116: =L116-INDEX($C116:$L116,1,aux!$BA$1) -> 0 | AD116: 0 | AE116: =+IF(INDEX($C116:$L116,1,aux!$BA$1)>0,(L116/INDEX($C116:$L116,1,aux!$BA$1))^(1/($L$3-INDEX($C$3:$L$3,1,aux!$BA$1)))-1,"n.d.") -> n.d. | AF116: =IF(INDEX($C116:$L116,1,aux!$BA$1)>0,(L116-INDEX($C116:$L116,1,aux!$BA$1))/INDEX($C116:$L116,1,aux!$BA$1),"n.d.") -> n.d. | AH116: =X116-INDEX($O116:$X116,1,aux!$BA$1) -> 0 | AI116: 0 | AJ116: =+IF(INDEX($O116:$X116,1,aux!$BA$1)>0,(X116/INDEX($O116:$X116,1,aux!$BA$1))^(1/($X$3-INDEX($O$3:$X$3,1,aux!$BA$1)))-1,"n.d.") -> n.d. | AK116: =IF(INDEX($O116:$X116,1,aux!$BA$1)>0,(X116-INDEX($O116:$X116,1,aux!$BA$1))/INDEX($O116:$X116,1,aux!$BA$1),"n.d.") -> n.d. | AM116: 0 | CC116: =+IF(ISNA(MATCH('5.1'!A116,AUX_2d_pais!$G$2:$G$40000,0)),0,1) -> 0
A117: 0612 | B117: Iraque | C117: 0 | D117: 0 | E117: 0 | F117: 0 | G117: 0 | H117: 0 | I117: 0 | J117: 0 | K117: 0 | L117: 0 | M117: 0 | N117: 0 | O117: 0 | P117: 0 | Q117: 0 | R117: 0 | S117: 0 | T117: 0 | U117: 0 | V117: 0 | W117: 0 | X117: 0 | Y117: 0 | Z117: 0 | AA117: 0 | AC117: =L117-INDEX($C117:$L117,1,aux!$BA$1) -> 0 | AD117: 0 | AE117: =+IF(INDEX($C117:$L117,1,aux!$BA$1)>0,(L117/INDEX($C117:$L117,1,aux!$BA$1))^(1/($L$3-INDEX($C$3:$L$3,1,aux!$BA$1)))-1,"n.d.") -> n.d. | AF117: =IF(INDEX($C117:$L117,1,aux!$BA$1)>0,(L117-INDEX($C117:$L117,1,aux!$BA$1))/INDEX($C117:$L117,1,aux!$BA$1),"n.d.") -> n.d. | AH117: =X117-INDEX($O117:$X117,1,aux!$BA$1) -> 0 | AI117: 0 | AJ117: =+IF(INDEX($O117:$X117,1,aux!$BA$1)>0,(X117/INDEX($O117:$X117,1,aux!$BA$1))^(1/($X$3-INDEX($O$3:$X$3,1,aux!$BA$1)))-1,"n.d.") -> n.d. | AK117: =IF(INDEX($O117:$X117,1,aux!$BA$1)>0,(X117-INDEX($O117:$X117,1,aux!$BA$1))/INDEX($O117:$X117,1,aux!$BA$1),"n.d.") -> n.d. | AM117: 0 | CC117: =+IF(ISNA(MATCH('5.1'!A117,AUX_2d_pais!$G$2:$G$40000,0)),0,1) -> 0
A118: 0007 | B118: Irlanda | C118: 0 | D118: 0 | E118: 0 | F118: 0 | G118: 0 | H118: 0 | I118: 0 | J118: 0 | K118: 0 | L118: 0 | M118: 0 | N118: 0 | O118: 0 | P118: 0 | Q118: 0 | R118: 0 | S118: 0 | T118: 0 | U118: 0 | V118: 0 | W118: 0 | X118: 0 | Y118: 0 | Z118: 0 | AA118: 0 | AC118: =L118-INDEX($C118:$L118,1,aux!$BA$1) -> 0 | AD118: 0 | AE118: =+IF(INDEX($C118:$L118,1,aux!$BA$1)>0,(L118/INDEX($C118:$L118,1,aux!$BA$1))^(1/($L$3-INDEX($C$3:$L$3,1,aux!$BA$1)))-1,"n.d.") -> n.d. | AF118: =IF(INDEX($C118:$L118,1,aux!$BA$1)>0,(L118-INDEX($C118:$L118,1,aux!$BA$1))/INDEX($C118:$L118,1,aux!$BA$1),"n.d.") -> n.d. | AH118: =X118-INDEX($O118:$X118,1,aux!$BA$1) -> 0 | AI118: 0 | AJ118: =+IF(INDEX($O118:$X118,1,aux!$BA$1)>0,(X118/INDEX($O118:$X118,1,aux!$BA$1))^(1/($X$3-INDEX($O$3:$X$3,1,aux!$BA$1)))-1,"n.d.") -> n.d. | AK118: =IF(INDEX($O118:$X118,1,aux!$BA$1)>0,(X118-INDEX($O118:$X118,1,aux!$BA$1))/INDEX($O118:$X118,1,aux!$BA$1),"n.d.") -> n.d. | AM118: 0 | CC118: =+IF(ISNA(MATCH('5.1'!A118,AUX_2d_pais!$G$2:$G$40000,0)),0,1) -> 0
A119: 0024 | B119: Islândia | C119: 0 | D119: 0 | E119: 0 | F119: 0 | G119: 0 | H119: 0 | I119: 0 | J119: 0 | K119: 0 | L119: 0 | M119: 0 | N119: 0 | O119: 0 | P119: 0 | Q119: 0 | R119: 0 | S119: 0 | T119: 0 | U119: 0 | V119: 0 | W119: 0 | X119: 0 | Y119: 0 | Z119: 0 | AA119: 0 | AC119: =L119-INDEX($C119:$L119,1,aux!$BA$1) -> 0 | AD119: 0 | AE119: =+IF(INDEX($C119:$L119,1,aux!$BA$1)>0,(L119/INDEX($C119:$L119,1,aux!$BA$1))^(1/($L$3-INDEX($C$3:$L$3,1,aux!$BA$1)))-1,"n.d.") -> n.d. | AF119: =IF(INDEX($C119:$L119,1,aux!$BA$1)>0,(L119-INDEX($C119:$L119,1,aux!$BA$1))/INDEX($C119:$L119,1,aux!$BA$1),"n.d.") -> n.d. | AH119: =X119-INDEX($O119:$X119,1,aux!$BA$1) -> 0 | AI119: 0 | AJ119: =+IF(INDEX($O119:$X119,1,aux!$BA$1)>0,(X119/INDEX($O119:$X119,1,aux!$BA$1))^(1/($X$3-INDEX($O$3:$X$3,1,aux!$BA$1)))-1,"n.d.") -> n.d. | AK119: =IF(INDEX($O119:$X119,1,aux!$BA$1)>0,(X119-INDEX($O119:$X119,1,aux!$BA$1))/INDEX($O119:$X119,1,aux!$BA$1),"n.d.") -> n.d. | AM119: 0 | CC119: =+IF(ISNA(MATCH('5.1'!A119,AUX_2d_pais!$G$2:$G$40000,0)),0,1) -> 0
A120: 0624 | B120: Israel | C120: 0 | D120: 0 | E120: 0 | F120: 0 | G120: 0 | H120: 0 | I120: 0 | J120: 0 | K120: 0 | L120: 0 | M120: 0 | N120: 0 | O120: 0 | P120: 0 | Q120: 0 | R120: 0 | S120: 0 | T120: 0 | U120: 0 | V120: 0 | W120: 0 | X120: 0 | Y120: 0 | Z120: 0 | AA120: 0 | AC120: =L120-INDEX($C120:$L120,1,aux!$BA$1) -> 0 | AD120: 0 | AE120: =+IF(INDEX($C120:$L120,1,aux!$BA$1)>0,(L120/INDEX($C120:$L120,1,aux!$BA$1))^(1/($L$3-INDEX($C$3:$L$3,1,aux!$BA$1)))-1,"n.d.") -> n.d. | AF120: =IF(INDEX($C120:$L120,1,aux!$BA$1)>0,(L120-INDEX($C120:$L120,1,aux!$BA$1))/INDEX($C120:$L120,1,aux!$BA$1),"n.d.") -> n.d. | AH120: =X120-INDEX($O120:$X120,1,aux!$BA$1) -> 0 | AI120: 0 | AJ120: =+IF(INDEX($O120:$X120,1,aux!$BA$1)>0,(X120/INDEX($O120:$X120,1,aux!$BA$1))^(1/($X$3-INDEX($O$3:$X$3,1,aux!$BA$1)))-1,"n.d.") -> n.d. | AK120: =IF(INDEX($O120:$X120,1,aux!$BA$1)>0,(X120-INDEX($O120:$X120,1,aux!$BA$1))/INDEX($O120:$X120,1,aux!$BA$1),"n.d.") -> n.d. | AM120: 0 | CC120: =+IF(ISNA(MATCH('5.1'!A120,AUX_2d_pais!$G$2:$G$40000,0)),0,1) -> 0
A121: 0005 | B121: Itália | C121: 0 | D121: 0 | E121: 0 | F121: 0 | G121: 0 | H121: 0 | I121: 0 | J121: 0 | K121: 0 | L121: 0 | M121: 0 | N121: 0 | O121: 0 | P121: 0 | Q121: 0 | R121: 0 | S121: 0 | T121: 0 | U121: 0 | V121: 0 | W121: 0 | X121: 0 | Y121: 0 | Z121: 0 | AA121: 0 | AC121: =L121-INDEX($C121:$L121,1,aux!$BA$1) -> 0 | AD121: 0 | AE121: =+IF(INDEX($C121:$L121,1,aux!$BA$1)>0,(L121/INDEX($C121:$L121,1,aux!$BA$1))^(1/($L$3-INDEX($C$3:$L$3,1,aux!$BA$1)))-1,"n.d.") -> n.d. | AF121: =IF(INDEX($C121:$L121,1,aux!$BA$1)>0,(L121-INDEX($C121:$L121,1,aux!$BA$1))/INDEX($C121:$L121,1,aux!$BA$1),"n.d.") -> n.d. | AH121: =X121-INDEX($O121:$X121,1,aux!$BA$1) -> 0 | AI121: 0 | AJ121: =+IF(INDEX($O121:$X121,1,aux!$BA$1)>0,(X121/INDEX($O121:$X121,1,aux!$BA$1))^(1/($X$3-INDEX($O$3:$X$3,1,aux!$BA$1)))-1,"n.d.") -> n.d. | AK121: =IF(INDEX($O121:$X121,1,aux!$BA$1)>0,(X121-INDEX($O121:$X121,1,aux!$BA$1))/INDEX($O121:$X121,1,aux!$BA$1),"n.d.") -> n.d. | AM121: 0 | CC121: =+IF(ISNA(MATCH('5.1'!A121,AUX_2d_pais!$G$2:$G$40000,0)),0,1) -> 0
A122: 0464 | B122: Jamaica | C122: 0 | D122: 0 | E122: 0 | F122: 0 | G122: 0 | H122: 0 | I122: 0 | J122: 0 | K122: 0 | L122: 0 | M122: 0 | N122: 0 | O122: 0 | P122: 0 | Q122: 0 | R122: 0 | S122: 0 | T122: 0 | U122: 0 | V122: 0 | W122: 0 | X122: 0 | Y122: 0 | Z122: 0 | AA122: 0 | AC122: =L122-INDEX($C122:$L122,1,aux!$BA$1) -> 0 | AD122: 0 | AE122: =+IF(INDEX($C122:$L122,1,aux!$BA$1)>0,(L122/INDEX($C122:$L122,1,aux!$BA$1))^(1/($L$3-INDEX($C$3:$L$3,1,aux!$BA$1)))-1,"n.d.") -> n.d. | AF122: =IF(INDEX($C122:$L122,1,aux!$BA$1)>0,(L122-INDEX($C122:$L122,1,aux!$BA$1))/INDEX($C122:$L122,1,aux!$BA$1),"n.d.") -> n.d. | AH122: =X122-INDEX($O122:$X122,1,aux!$BA$1) -> 0 | AI122: 0 | AJ122: =+IF(INDEX($O122:$X122,1,aux!$BA$1)>0,(X122/INDEX($O122:$X122,1,aux!$BA$1))^(1/($X$3-INDEX($O$3:$X$3,1,aux!$BA$1)))-1,"n.d.") -> n.d. | AK122: =IF(INDEX($O122:$X122,1,aux!$BA$1)>0,(X122-INDEX($O122:$X122,1,aux!$BA$1))/INDEX($O122:$X122,1,aux!$BA$1),"n.d.") -> n.d. | AM122: 0 | CC122: =+IF(ISNA(MATCH('5.1'!A122,AUX_2d_pais!$G$2:$G$40000,0)),0,1) -> 0
A123: 0732 | B123: Japão | C123: 0 | D123: 0 | E123: 0 | F123: 0 | G123: 0 | H123: 0 | I123: 0 | J123: 0 | K123: 0 | L123: 0 | M123: 0 | N123: 0 | O123: 0 | P123: 0 | Q123: 0 | R123: 0 | S123: 0 | T123: 0 | U123: 0 | V123: 0 | W123: 0 | X123: 0 | Y123: 0 | Z123: 0 | AA123: 0 | AC123: =L123-INDEX($C123:$L123,1,aux!$BA$1) -> 0 | AD123: 0 | AE123: =+IF(INDEX($C123:$L123,1,aux!$BA$1)>0,(L123/INDEX($C123:$L123,1,aux!$BA$1))^(1/($L$3-INDEX($C$3:$L$3,1,aux!$BA$1)))-1,"n.d.") -> n.d. | AF123: =IF(INDEX($C123:$L123,1,aux!$BA$1)>0,(L123-INDEX($C123:$L123,1,aux!$BA$1))/INDEX($C123:$L123,1,aux!$BA$1),"n.d.") -> n.d. | AH123: =X123-INDEX($O123:$X123,1,aux!$BA$1) -> 0 | AI123: 0 | AJ123: =+IF(INDEX($O123:$X123,1,aux!$BA$1)>0,(X123/INDEX($O123:$X123,1,aux!$BA$1))^(1/($X$3-INDEX($O$3:$X$3,1,aux!$BA$1)))-1,"n.d.") -> n.d. | AK123: =IF(INDEX($O123:$X123,1,aux!$BA$1)>0,(X123-INDEX($O123:$X123,1,aux!$BA$1))/INDEX($O123:$X123,1,aux!$BA$1),"n.d.") -> n.d. | AM123: 0 | CC123: =+IF(ISNA(MATCH('5.1'!A123,AUX_2d_pais!$G$2:$G$40000,0)),0,1) -> 0
A124: 0338 | B124: Jibuti | C124: 0 | D124: 0 | E124: 0 | F124: 0 | G124: 0 | H124: 0 | I124: 0 | J124: 0 | K124: 20.296 | L124: 0.398 | M124: 2.0694 | N124: 4.797217912e-06 | O124: 474.612 | P124: 396.257 | Q124: 475.59 | R124: 717.935 | S124: 709.177 | T124: 1142.254 | U124: 756.628 | V124: 22.343 | W124: 47.813 | X124: 47.581 | Y124: 479.019 | Z124: 0.0004520498882 | AA124: 476.9496 | AC124: =L124-INDEX($C124:$L124,1,aux!$BA$1) -> 0.398 | AD124: 2.733627669e-06 | AE124: =+IF(INDEX($C124:$L124,1,aux!$BA$1)>0,(L124/INDEX($C124:$L124,1,aux!$BA$1))^(1/($L$3-INDEX($C$3:$L$3,1,aux!$BA$1)))-1,"n.d.") -> n.d. | AF124: =IF(INDEX($C124:$L124,1,aux!$BA$1)>0,(L124-INDEX($C124:$L124,1,aux!$BA$1))/INDEX($C124:$L124,1,aux!$BA$1),"n.d.") -> n.d. | AH124: =X124-INDEX($O124:$X124,1,aux!$BA$1) -> -427.031 | AI124: -0.001316970092 | AJ124: =+IF(INDEX($O124:$X124,1,aux!$BA$1)>0,(X124/INDEX($O124:$X124,1,aux!$BA$1))^(1/($X$3-INDEX($O$3:$X$3,1,aux!$BA$1)))-1,"n.d.") -> -0.2255194082 | AK124: =IF(INDEX($O124:$X124,1,aux!$BA$1)>0,(X124-INDEX($O124:$X124,1,aux!$BA$1))/INDEX($O124:$X124,1,aux!$BA$1),"n.d.") -> -0.8997475833 | BO124: 4810.884 | CC124: =+IF(ISNA(MATCH('5.1'!A124,AUX_2d_pais!$G$2:$G$40000,0)),0,1) -> 1
A125: 0628 | B125: Jordânia | C125: 0 | D125: 0 | E125: 0 | F125: 0 | G125: 0 | H125: 0 | I125: 0 | J125: 0 | K125: 0 | L125: 0 | M125: 0 | N125: 0 | O125: 0 | P125: 0 | Q125: 0 | R125: 0 | S125: 0 | T125: 0 | U125: 0 | V125: 0 | W125: 0 | X125: 0 | Y125: 0 | Z125: 0 | AA125: 0 | AC125: =L125-INDEX($C125:$L125,1,aux!$BA$1) -> 0 | AD125: 0 | AE125: =+IF(INDEX($C125:$L125,1,aux!$BA$1)>0,(L125/INDEX($C125:$L125,1,aux!$BA$1))^(1/($L$3-INDEX($C$3:$L$3,1,aux!$BA$1)))-1,"n.d.") -> n.d. | AF125: =IF(INDEX($C125:$L125,1,aux!$BA$1)>0,(L125-INDEX($C125:$L125,1,aux!$BA$1))/INDEX($C125:$L125,1,aux!$BA$1),"n.d.") -> n.d. | AH125: =X125-INDEX($O125:$X125,1,aux!$BA$1) -> 0 | AI125: 0 | AJ125: =+IF(INDEX($O125:$X125,1,aux!$BA$1)>0,(X125/INDEX($O125:$X125,1,aux!$BA$1))^(1/($X$3-INDEX($O$3:$X$3,1,aux!$BA$1)))-1,"n.d.") -> n.d. | AK125: =IF(INDEX($O125:$X125,1,aux!$BA$1)>0,(X125-INDEX($O125:$X125,1,aux!$BA$1))/INDEX($O125:$X125,1,aux!$BA$1),"n.d.") -> n.d. | AM125: 0 | CC125: =+IF(ISNA(MATCH('5.1'!A125,AUX_2d_pais!$G$2:$G$40000,0)),0,1) -> 0
A126: 0812 | B126: Kiribati | C126: 0 | D126: 0 | E126: 0 | F126: 0 | G126: 0 | H126: 0 | I126: 0 | J126: 0 | K126: 0 | L126: 0 | M126: 0 | N126: 0 | O126: 0 | P126: 0 | Q126: 0 | R126: 0 | S126: 0 | T126: 0 | U126: 0 | V126: 0 | W126: 0 | X126: 0 | Y126: 0 | Z126: 0 | AA126: 0 | AC126: =L126-INDEX($C126:$L126,1,aux!$BA$1) -> 0 | AD126: 0 | AE126: =+IF(INDEX($C126:$L126,1,aux!$BA$1)>0,(L126/INDEX($C126:$L126,1,aux!$BA$1))^(1/($L$3-INDEX($C$3:$L$3,1,aux!$BA$1)))-1,"n.d.") -> n.d. | AF126: =IF(INDEX($C126:$L126,1,aux!$BA$1)>0,(L126-INDEX($C126:$L126,1,aux!$BA$1))/INDEX($C126:$L126,1,aux!$BA$1),"n.d.") -> n.d. | AH126: =X126-INDEX($O126:$X126,1,aux!$BA$1) -> 0 | AI126: 0 | AJ126: =+IF(INDEX($O126:$X126,1,aux!$BA$1)>0,(X126/INDEX($O126:$X126,1,aux!$BA$1))^(1/($X$3-INDEX($O$3:$X$3,1,aux!$BA$1)))-1,"n.d.") -> n.d. | AK126: =IF(INDEX($O126:$X126,1,aux!$BA$1)>0,(X126-INDEX($O126:$X126,1,aux!$BA$1))/INDEX($O126:$X126,1,aux!$BA$1),"n.d.") -> n.d. | AM126: 0 | BO126: 0 | CC126: =+IF(ISNA(MATCH('5.1'!A126,AUX_2d_pais!$G$2:$G$40000,0)),0,1) -> 0
A127: 0095 | B127: Kosovo | C127: 0 | D127: 0 | E127: 0 | F127: 0 | G127: 0 | H127: 0 | I127: 0 | J127: 0 | K127: 0 | L127: 0 | M127: 0 | N127: 0 | O127: 0 | P127: 0 | Q127: 0 | R127: 0 | S127: 0 | T127: 0 | U127: 0 | V127: 0 | W127: 0 | X127: 0 | Y127: 0 | Z127: 0 | AA127: 0 | AC127: =L127-INDEX($C127:$L127,1,aux!$BA$1) -> 0 | AD127: 0 | AE127: =+IF(INDEX($C127:$L127,1,aux!$BA$1)>0,(L127/INDEX($C127:$L127,1,aux!$BA$1))^(1/($L$3-INDEX($C$3:$L$3,1,aux!$BA$1)))-1,"n.d.") -> n.d. | AF127: =IF(INDEX($C127:$L127,1,aux!$BA$1)>0,(L127-INDEX($C127:$L127,1,aux!$BA$1))/INDEX($C127:$L127,1,aux!$BA$1),"n.d.") -> n.d. | AH127: =X127-INDEX($O127:$X127,1,aux!$BA$1) -> 0 | AI127: 0 | AJ127: =+IF(INDEX($O127:$X127,1,aux!$BA$1)>0,(X127/INDEX($O127:$X127,1,aux!$BA$1))^(1/($X$3-INDEX($O$3:$X$3,1,aux!$BA$1)))-1,"n.d.") -> n.d. | AK127: =IF(INDEX($O127:$X127,1,aux!$BA$1)>0,(X127-INDEX($O127:$X127,1,aux!$BA$1))/INDEX($O127:$X127,1,aux!$BA$1),"n.d.") -> n.d. | AM127: 0 | BO127: 0 | CC127: =+IF(ISNA(MATCH('5.1'!A127,AUX_2d_pais!$G$2:$G$40000,0)),0,1) -> 0
A128: 0636 | B128: Kuwait | C128: 0 | D128: 0 | E128: 0 | F128: 0 | G128: 0 | H128: 0 | I128: 0 | J128: 0 | K128: 0 | L128: 0 | M128: 0 | N128: 0 | O128: 0 | P128: 0 | Q128: 0 | R128: 0 | S128: 0 | T128: 0 | U128: 0 | V128: 0 | W128: 0 | X128: 0 | Y128: 0 | Z128: 0 | AA128: 0 | AC128: =L128-INDEX($C128:$L128,1,aux!$BA$1) -> 0 | AD128: 0 | AE128: =+IF(INDEX($C128:$L128,1,aux!$BA$1)>0,(L128/INDEX($C128:$L128,1,aux!$BA$1))^(1/($L$3-INDEX($C$3:$L$3,1,aux!$BA$1)))-1,"n.d.") -> n.d. | AF128: =IF(INDEX($C128:$L128,1,aux!$BA$1)>0,(L128-INDEX($C128:$L128,1,aux!$BA$1))/INDEX($C128:$L128,1,aux!$BA$1),"n.d.") -> n.d. | AH128: =X128-INDEX($O128:$X128,1,aux!$BA$1) -> 0 | AI128: 0 | AJ128: =+IF(INDEX($O128:$X128,1,aux!$BA$1)>0,(X128/INDEX($O128:$X128,1,aux!$BA$1))^(1/($X$3-INDEX($O$3:$X$3,1,aux!$BA$1)))-1,"n.d.") -> n.d. | AK128: =IF(INDEX($O128:$X128,1,aux!$BA$1)>0,(X128-INDEX($O128:$X128,1,aux!$BA$1))/INDEX($O128:$X128,1,aux!$BA$1),"n.d.") -> n.d. | AM128: 0 | CC128: =+IF(ISNA(MATCH('5.1'!A128,AUX_2d_pais!$G$2:$G$40000,0)),0,1) -> 0
A129: 0684 | B129: Laos, República Democrática Popular do | C129: 0 | D129: 0 | E129: 0 | F129: 0 | G129: 0 | H129: 0 | I129: 0 | J129: 0 | K129: 0 | L129: 0 | M129: 0 | N129: 0 | O129: 0 | P129: 0 | Q129: 0 | R129: 0 | S129: 0 | T129: 0 | U129: 0 | V129: 0 | W129: 0 | X129: 0 | Y129: 0 | Z129: 0 | AA129: 0 | AC129: =L129-INDEX($C129:$L129,1,aux!$BA$1) -> 0 | AD129: 0 | AE129: =+IF(INDEX($C129:$L129,1,aux!$BA$1)>0,(L129/INDEX($C129:$L129,1,aux!$BA$1))^(1/($L$3-INDEX($C$3:$L$3,1,aux!$BA$1)))-1,"n.d.") -> n.d. | AF129: =IF(INDEX($C129:$L129,1,aux!$BA$1)>0,(L129-INDEX($C129:$L129,1,aux!$BA$1))/INDEX($C129:$L129,1,aux!$BA$1),"n.d.") -> n.d. | AH129: =X129-INDEX($O129:$X129,1,aux!$BA$1) -> 0 | AI129: 0 | AJ129: =+IF(INDEX($O129:$X129,1,aux!$BA$1)>0,(X129/INDEX($O129:$X129,1,aux!$BA$1))^(1/($X$3-INDEX($O$3:$X$3,1,aux!$BA$1)))-1,"n.d.") -> n.d. | AK129: =IF(INDEX($O129:$X129,1,aux!$BA$1)>0,(X129-INDEX($O129:$X129,1,aux!$BA$1))/INDEX($O129:$X129,1,aux!$BA$1),"n.d.") -> n.d. | AM129: 0 | BO129: 0 | CC129: =+IF(ISNA(MATCH('5.1'!A129,AUX_2d_pais!$G$2:$G$40000,0)),0,1) -> 0
A130: 0395 | B130: Lesoto | C130: 0 | D130: 0 | E130: 0 | F130: 0 | G130: 0 | H130: 0 | I130: 0 | J130: 0 | K130: 0 | L130: 0 | M130: 0 | N130: 0 | O130: 0 | P130: 0 | Q130: 0 | R130: 0 | S130: 0 | T130: 0 | U130: 0 | V130: 0 | W130: 0 | X130: 0 | Y130: 0 | Z130: 0 | AA130: 0 | AC130: =L130-INDEX($C130:$L130,1,aux!$BA$1) -> 0 | AD130: 0 | AE130: =+IF(INDEX($C130:$L130,1,aux!$BA$1)>0,(L130/INDEX($C130:$L130,1,aux!$BA$1))^(1/($L$3-INDEX($C$3:$L$3,1,aux!$BA$1)))-1,"n.d.") -> n.d. | AF130: =IF(INDEX($C130:$L130,1,aux!$BA$1)>0,(L130-INDEX($C130:$L130,1,aux!$BA$1))/INDEX($C130:$L130,1,aux!$BA$1),"n.d.") -> n.d. | AH130: =X130-INDEX($O130:$X130,1,aux!$BA$1) -> 0 | AI130: 0 | AJ130: =+IF(INDEX($O130:$X130,1,aux!$BA$1)>0,(X130/INDEX($O130:$X130,1,aux!$BA$1))^(1/($X$3-INDEX($O$3:$X$3,1,aux!$BA$1)))-1,"n.d.") -> n.d. | AK130: =IF(INDEX($O130:$X130,1,aux!$BA$1)>0,(X130-INDEX($O130:$X130,1,aux!$BA$1))/INDEX($O130:$X130,1,aux!$BA$1),"n.d.") -> n.d. | AM130: 0 | BO130: 0 | CC130: =+IF(ISNA(MATCH('5.1'!A130,AUX_2d_pais!$G$2:$G$40000,0)),0,1) -> 0
A131: 0054 | B131: Letónia | C131: 0 | D131: 0 | E131: 0 | F131: 0 | G131: 0 | H131: 0 | I131: 0 | J131: 0 | K131: 0 | L131: 0 | M131: 0 | N131: 0 | O131: 0 | P131: 0 | Q131: 0 | R131: 0 | S131: 0 | T131: 0 | U131: 0 | V131: 0 | W131: 0 | X131: 0 | Y131: 0 | Z131: 0 | AA131: 0 | AC131: =L131-INDEX($C131:$L131,1,aux!$BA$1) -> 0 | AD131: 0 | AE131: =+IF(INDEX($C131:$L131,1,aux!$BA$1)>0,(L131/INDEX($C131:$L131,1,aux!$BA$1))^(1/($L$3-INDEX($C$3:$L$3,1,aux!$BA$1)))-1,"n.d.") -> n.d. | AF131: =IF(INDEX($C131:$L131,1,aux!$BA$1)>0,(L131-INDEX($C131:$L131,1,aux!$BA$1))/INDEX($C131:$L131,1,aux!$BA$1),"n.d.") -> n.d. | AH131: =X131-INDEX($O131:$X131,1,aux!$BA$1) -> 0 | AI131: 0 | AJ131: =+IF(INDEX($O131:$X131,1,aux!$BA$1)>0,(X131/INDEX($O131:$X131,1,aux!$BA$1))^(1/($X$3-INDEX($O$3:$X$3,1,aux!$BA$1)))-1,"n.d.") -> n.d. | AK131: =IF(INDEX($O131:$X131,1,aux!$BA$1)>0,(X131-INDEX($O131:$X131,1,aux!$BA$1))/INDEX($O131:$X131,1,aux!$BA$1),"n.d.") -> n.d. | AM131: 0 | CC131: =+IF(ISNA(MATCH('5.1'!A131,AUX_2d_pais!$G$2:$G$40000,0)),0,1) -> 0
A132: 0604 | B132: Líbano | C132: 0 | D132: 0 | E132: 0 | F132: 0 | G132: 0 | H132: 0 | I132: 0 | J132: 0 | K132: 0 | L132: 0 | M132: 0 | N132: 0 | O132: 0 | P132: 0 | Q132: 0 | R132: 0 | S132: 0 | T132: 0 | U132: 0 | V132: 0 | W132: 0 | X132: 0 | Y132: 0 | Z132: 0 | AA132: 0 | AC132: =L132-INDEX($C132:$L132,1,aux!$BA$1) -> 0 | AD132: 0 | AE132: =+IF(INDEX($C132:$L132,1,aux!$BA$1)>0,(L132/INDEX($C132:$L132,1,aux!$BA$1))^(1/($L$3-INDEX($C$3:$L$3,1,aux!$BA$1)))-1,"n.d.") -> n.d. | AF132: =IF(INDEX($C132:$L132,1,aux!$BA$1)>0,(L132-INDEX($C132:$L132,1,aux!$BA$1))/INDEX($C132:$L132,1,aux!$BA$1),"n.d.") -> n.d. | AH132: =X132-INDEX($O132:$X132,1,aux!$BA$1) -> 0 | AI132: 0 | AJ132: =+IF(INDEX($O132:$X132,1,aux!$BA$1)>0,(X132/INDEX($O132:$X132,1,aux!$BA$1))^(1/($X$3-INDEX($O$3:$X$3,1,aux!$BA$1)))-1,"n.d.") -> n.d. | AK132: =IF(INDEX($O132:$X132,1,aux!$BA$1)>0,(X132-INDEX($O132:$X132,1,aux!$BA$1))/INDEX($O132:$X132,1,aux!$BA$1),"n.d.") -> n.d. | AM132: =SUM(A132:AA132) -> 0 | CC132: =+IF(ISNA(MATCH('5.1'!A132,AUX_2d_pais!$G$2:$G$40000,0)),0,1) -> 0
A133: 0268 | B133: Libéria | C133: 0 | D133: 0 | E133: 0.035 | F133: 934.802 | G133: 43.811 | H133: 0 | I133: 0 | J133: 51.574 | K133: 4.823 | L133: 0 | M133: 103.5045 | N133: 0.0002399408724 | O133: 25.111 | P133: 16.95 | Q133: 41.353 | R133: 282.666 | S133: 299.59 | T133: 556.937 | U133: 927.201 | V133: 1077.14 | W133: 624.243 | X133: 183.051 | Y133: 403.4242 | Z133: 0.0003807111294 | AA133: 299.9197 | AC133: =L133-INDEX($C133:$L133,1,aux!$BA$1) -> 0 | AD133: 0 | AE133: =+IF(INDEX($C133:$L133,1,aux!$BA$1)>0,(L133/INDEX($C133:$L133,1,aux!$BA$1))^(1/($L$3-INDEX($C$3:$L$3,1,aux!$BA$1)))-1,"n.d.") -> n.d. | AF133: =IF(INDEX($C133:$L133,1,aux!$BA$1)>0,(L133-INDEX($C133:$L133,1,aux!$BA$1))/INDEX($C133:$L133,1,aux!$BA$1),"n.d.") -> n.d. | AH133: =X133-INDEX($O133:$X133,1,aux!$BA$1) -> 157.94 | AI133: 0.0004870893594 | AJ133: =+IF(INDEX($O133:$X133,1,aux!$BA$1)>0,(X133/INDEX($O133:$X133,1,aux!$BA$1))^(1/($X$3-INDEX($O$3:$X$3,1,aux!$BA$1)))-1,"n.d.") -> 0.2469712923 | AK133: =IF(INDEX($O133:$X133,1,aux!$BA$1)>0,(X133-INDEX($O133:$X133,1,aux!$BA$1))/INDEX($O133:$X133,1,aux!$BA$1),"n.d.") -> 6.289673848 | CC133: =+IF(ISNA(MATCH('5.1'!A133,AUX_2d_pais!$G$2:$G$40000,0)),0,1) -> 1
A134: 0216 | B134: Líbia, Jamahira Árabe da | C134: 273.134 | D134: 109.103 | E134: 62.159 | F134: 72.804 | G134: 0 | H134: 0 | I134: 0 | J134: 1.114 | K134: 0 | L134: 0.176 | M134: 51.849 | N134: 0.000120194719 | O134: 2314.196 | P134: 7871.453 | Q134: 1686.849 | R134: 7083.383 | S134: 4854.308 | T134: 2524.564 | U134: 3256.92 | V134: 3609.476 | W134: 4690.843 | X134: 7955.179 | Y134: 4584.7171 | Z134: 0.004326594253 | AA134: 4532.8681 | AC134: =L134-INDEX($C134:$L134,1,aux!$BA$1) -> -272.958 | AD134: -0.001874787792 | AE134: =+IF(INDEX($C134:$L134,1,aux!$BA$1)>0,(L134/INDEX($C134:$L134,1,aux!$BA$1))^(1/($L$3-INDEX($C$3:$L$3,1,aux!$BA$1)))-1,"n.d.") -> -0.5579619485 | AF134: =IF(INDEX($C134:$L134,1,aux!$BA$1)>0,(L134-INDEX($C134:$L134,1,aux!$BA$1))/INDEX($C134:$L134,1,aux!$BA$1),"n.d.") -> -0.9993556276 | AH134: =X134-INDEX($O134:$X134,1,aux!$BA$1) -> 5640.983 | AI134: 0.01739687727 | AJ134: =+IF(INDEX($O134:$X134,1,aux!$BA$1)>0,(X134/INDEX($O134:$X134,1,aux!$BA$1))^(1/($X$3-INDEX($O$3:$X$3,1,aux!$BA$1)))-1,"n.d.") -> 0.1470525456 | AK134: =IF(INDEX($O134:$X134,1,aux!$BA$1)>0,(X134-INDEX($O134:$X134,1,aux!$BA$1))/INDEX($O134:$X134,1,aux!$BA$1),"n.d.") -> 2.437556283 | CC134: =+IF(ISNA(MATCH('5.1'!A134,AUX_2d_pais!$G$2:$G$40000,0)),0,1) -> 1
A135: 0037 | B135: Liechtenstein | C135: 0 | D135: 0 | E135: 0 | F135: 0 | G135: 0 | H135: 0 | I135: 0 | J135: 0 | K135: 0 | L135: 0 | M135: 0 | N135: 0 | O135: 0 | P135: 0 | Q135: 0 | R135: 0 | S135: 0 | T135: 0 | U135: 0 | V135: 0 | W135: 0 | X135: 0 | Y135: 0 | Z135: 0 | AA135: 0 | AC135: =L135-INDEX($C135:$L135,1,aux!$BA$1) -> 0 | AD135: 0 | AE135: =+IF(INDEX($C135:$L135,1,aux!$BA$1)>0,(L135/INDEX($C135:$L135,1,aux!$BA$1))^(1/($L$3-INDEX($C$3:$L$3,1,aux!$BA$1)))-1,"n.d.") -> n.d. | AF135: =IF(INDEX($C135:$L135,1,aux!$BA$1)>0,(L135-INDEX($C135:$L135,1,aux!$BA$1))/INDEX($C135:$L135,1,aux!$BA$1),"n.d.") -> n.d. | AH135: =X135-INDEX($O135:$X135,1,aux!$BA$1) -> 0 | AI135: 0 | AJ135: =+IF(INDEX($O135:$X135,1,aux!$BA$1)>0,(X135/INDEX($O135:$X135,1,aux!$BA$1))^(1/($X$3-INDEX($O$3:$X$3,1,aux!$BA$1)))-1,"n.d.") -> n.d. | AK135: =IF(INDEX($O135:$X135,1,aux!$BA$1)>0,(X135-INDEX($O135:$X135,1,aux!$BA$1))/INDEX($O135:$X135,1,aux!$BA$1),"n.d.") -> n.d. | AM135: 0 | CC135: =+IF(ISNA(MATCH('5.1'!A135,AUX_2d_pais!$G$2:$G$40000,0)),0,1) -> 0
A136: 0055 | B136: Lituânia | C136: 0 | D136: 0 | E136: 0 | F136: 0 | G136: 0 | H136: 0 | I136: 0 | J136: 0 | K136: 0 | L136: 0 | M136: 0 | N136: 0 | O136: 0 | P136: 0 | Q136: 0 | R136: 0 | S136: 0 | T136: 0 | U136: 0 | V136: 0 | W136: 0 | X136: 0 | Y136: 0 | Z136: 0 | AA136: 0 | AC136: =L136-INDEX($C136:$L136,1,aux!$BA$1) -> 0 | AD136: 0 | AE136: =+IF(INDEX($C136:$L136,1,aux!$BA$1)>0,(L136/INDEX($C136:$L136,1,aux!$BA$1))^(1/($L$3-INDEX($C$3:$L$3,1,aux!$BA$1)))-1,"n.d.") -> n.d. | AF136: =IF(INDEX($C136:$L136,1,aux!$BA$1)>0,(L136-INDEX($C136:$L136,1,aux!$BA$1))/INDEX($C136:$L136,1,aux!$BA$1),"n.d.") -> n.d. | AH136: =X136-INDEX($O136:$X136,1,aux!$BA$1) -> 0 | AI136: 0 | AJ136: =+IF(INDEX($O136:$X136,1,aux!$BA$1)>0,(X136/INDEX($O136:$X136,1,aux!$BA$1))^(1/($X$3-INDEX($O$3:$X$3,1,aux!$BA$1)))-1,"n.d.") -> n.d. | AK136: =IF(INDEX($O136:$X136,1,aux!$BA$1)>0,(X136-INDEX($O136:$X136,1,aux!$BA$1))/INDEX($O136:$X136,1,aux!$BA$1),"n.d.") -> n.d. | AM136: 0 | CC136: =+IF(ISNA(MATCH('5.1'!A136,AUX_2d_pais!$G$2:$G$40000,0)),0,1) -> 0
A137: 0018 | B137: Luxemburgo | C137: 0 | D137: 0 | E137: 0 | F137: 0 | G137: 0 | H137: 0 | I137: 0 | J137: 0 | K137: 0 | L137: 0 | M137: 0 | N137: 0 | O137: 0 | P137: 0 | Q137: 0 | R137: 0 | S137: 0 | T137: 0 | U137: 0 | V137: 0 | W137: 0 | X137: 0 | Y137: 0 | Z137: 0 | AA137: 0 | AC137: =L137-INDEX($C137:$L137,1,aux!$BA$1) -> 0 | AD137: 0 | AE137: =+IF(INDEX($C137:$L137,1,aux!$BA$1)>0,(L137/INDEX($C137:$L137,1,aux!$BA$1))^(1/($L$3-INDEX($C$3:$L$3,1,aux!$BA$1)))-1,"n.d.") -> n.d. | AF137: =IF(INDEX($C137:$L137,1,aux!$BA$1)>0,(L137-INDEX($C137:$L137,1,aux!$BA$1))/INDEX($C137:$L137,1,aux!$BA$1),"n.d.") -> n.d. | AH137: =X137-INDEX($O137:$X137,1,aux!$BA$1) -> 0 | AI137: 0 | AJ137: =+IF(INDEX($O137:$X137,1,aux!$BA$1)>0,(X137/INDEX($O137:$X137,1,aux!$BA$1))^(1/($X$3-INDEX($O$3:$X$3,1,aux!$BA$1)))-1,"n.d.") -> n.d. | AK137: =IF(INDEX($O137:$X137,1,aux!$BA$1)>0,(X137-INDEX($O137:$X137,1,aux!$BA$1))/INDEX($O137:$X137,1,aux!$BA$1),"n.d.") -> n.d. | AM137: 0 | CC137: =+IF(ISNA(MATCH('5.1'!A137,AUX_2d_pais!$G$2:$G$40000,0)),0,1) -> 0
A138: 0743 | B138: Macau | C138: 0 | D138: 0 | E138: 0 | F138: 0 | G138: 0 | H138: 0 | I138: 0 | J138: 0 | K138: 0 | L138: 0 | M138: 0 | N138: 0 | O138: 0 | P138: 0 | Q138: 0 | R138: 0 | S138: 0 | T138: 0 | U138: 0 | V138: 0 | W138: 0 | X138: 0 | Y138: 0 | Z138: 0 | AA138: 0 | AC138: =L138-INDEX($C138:$L138,1,aux!$BA$1) -> 0 | AD138: 0 | AE138: =+IF(INDEX($C138:$L138,1,aux!$BA$1)>0,(L138/INDEX($C138:$L138,1,aux!$BA$1))^(1/($L$3-INDEX($C$3:$L$3,1,aux!$BA$1)))-1,"n.d.") -> n.d. | AF138: =IF(INDEX($C138:$L138,1,aux!$BA$1)>0,(L138-INDEX($C138:$L138,1,aux!$BA$1))/INDEX($C138:$L138,1,aux!$BA$1),"n.d.") -> n.d. | AH138: =X138-INDEX($O138:$X138,1,aux!$BA$1) -> 0 | AI138: 0 | AJ138: =+IF(INDEX($O138:$X138,1,aux!$BA$1)>0,(X138/INDEX($O138:$X138,1,aux!$BA$1))^(1/($X$3-INDEX($O$3:$X$3,1,aux!$BA$1)))-1,"n.d.") -> n.d. | AK138: =IF(INDEX($O138:$X138,1,aux!$BA$1)>0,(X138-INDEX($O138:$X138,1,aux!$BA$1))/INDEX($O138:$X138,1,aux!$BA$1),"n.d.") -> n.d. | AM138: 0 | CC138: =+IF(ISNA(MATCH('5.1'!A138,AUX_2d_pais!$G$2:$G$40000,0)),0,1) -> 0
A139: 0096 | B139: Macedónia, Antiga República jugoslava da | C139: 0 | D139: 0 | E139: 0 | F139: 0 | G139: 0 | H139: 0 | I139: 0 | J139: 0 | K139: 0 | L139: 0 | M139: 0 | N139: 0 | O139: 0 | P139: 0 | Q139: 0 | R139: 0 | S139: 0 | T139: 0 | U139: 0 | V139: 0 | W139: 0 | X139: 0 | Y139: 0 | Z139: 0 | AA139: 0 | AC139: =L139-INDEX($C139:$L139,1,aux!$BA$1) -> 0 | AD139: 0 | AE139: =+IF(INDEX($C139:$L139,1,aux!$BA$1)>0,(L139/INDEX($C139:$L139,1,aux!$BA$1))^(1/($L$3-INDEX($C$3:$L$3,1,aux!$BA$1)))-1,"n.d.") -> n.d. | AF139: =IF(INDEX($C139:$L139,1,aux!$BA$1)>0,(L139-INDEX($C139:$L139,1,aux!$BA$1))/INDEX($C139:$L139,1,aux!$BA$1),"n.d.") -> n.d. | AH139: =X139-INDEX($O139:$X139,1,aux!$BA$1) -> 0 | AI139: 0 | AJ139: =+IF(INDEX($O139:$X139,1,aux!$BA$1)>0,(X139/INDEX($O139:$X139,1,aux!$BA$1))^(1/($X$3-INDEX($O$3:$X$3,1,aux!$BA$1)))-1,"n.d.") -> n.d. | AK139: =IF(INDEX($O139:$X139,1,aux!$BA$1)>0,(X139-INDEX($O139:$X139,1,aux!$BA$1))/INDEX($O139:$X139,1,aux!$BA$1),"n.d.") -> n.d. | AM139: 0 | CC139: =+IF(ISNA(MATCH('5.1'!A139,AUX_2d_pais!$G$2:$G$40000,0)),0,1) -> 0
A140: 0370 | B140: Madagáscar | C140: 1224.234 | D140: 2658.65 | E140: 4305.577 | F140: 4468.49 | G140: 19676.369 | H140: 17649.546 | I140: 2973.625 | J140: 6294.652 | K140: 6611.458 | L140: 3964.22 | M140: 6982.6821 | N140: 0.01618703375 | O140: 71.247 | P140: 85.705 | Q140: 176.814 | R140: 449.084 | S140: 604.476 | T140: 381.098 | U140: 223.653 | V140: 219.852 | W140: 174.232 | X140: 152.634 | Y140: 253.8795 | Z140: 0.0002395859028 | AA140: -6728.8026 | AC140: =L140-INDEX($C140:$L140,1,aux!$BA$1) -> 2739.986 | AD140: 0.01881935061 | AE140: =+IF(INDEX($C140:$L140,1,aux!$BA$1)>0,(L140/INDEX($C140:$L140,1,aux!$BA$1))^(1/($L$3-INDEX($C$3:$L$3,1,aux!$BA$1)))-1,"n.d.") -> 0.139460453 | AF140: =IF(INDEX($C140:$L140,1,aux!$BA$1)>0,(L140-INDEX($C140:$L140,1,aux!$BA$1))/INDEX($C140:$L140,1,aux!$BA$1),"n.d.") -> 2.238122777 | AH140: =X140-INDEX($O140:$X140,1,aux!$BA$1) -> 81.387 | AI140: 0.0002509987444 | AJ140: =+IF(INDEX($O140:$X140,1,aux!$BA$1)>0,(X140/INDEX($O140:$X140,1,aux!$BA$1))^(1/($X$3-INDEX($O$3:$X$3,1,aux!$BA$1)))-1,"n.d.") -> 0.08834094192 | AK140: =IF(INDEX($O140:$X140,1,aux!$BA$1)>0,(X140-INDEX($O140:$X140,1,aux!$BA$1))/INDEX($O140:$X140,1,aux!$BA$1),"n.d.") -> 1.142321782 | CC140: =+IF(ISNA(MATCH('5.1'!A140,AUX_2d_pais!$G$2:$G$40000,0)),0,1) -> 1
A141: 0701 | B141: Malásia | C141: 0 | D141: 0 | E141: 0 | F141: 0 | G141: 0 | H141: 0 | I141: 0 | J141: 0 | K141: 0 | L141: 0 | M141: 0 | N141: 0 | O141: 0 | P141: 0 | Q141: 0 | R141: 0 | S141: 0 | T141: 0 | U141: 0 | V141: 0 | W141: 0 | X141: 0 | Y141: 0 | Z141: 0 | AA141: 0 | AC141: =L141-INDEX($C141:$L141,1,aux!$BA$1) -> 0 | AD141: 0 | AE141: =+IF(INDEX($C141:$L141,1,aux!$BA$1)>0,(L141/INDEX($C141:$L141,1,aux!$BA$1))^(1/($L$3-INDEX($C$3:$L$3,1,aux!$BA$1)))-1,"n.d.") -> n.d. | AF141: =IF(INDEX($C141:$L141,1,aux!$BA$1)>0,(L141-INDEX($C141:$L141,1,aux!$BA$1))/INDEX($C141:$L141,1,aux!$BA$1),"n.d.") -> n.d. | AH141: =X141-INDEX($O141:$X141,1,aux!$BA$1) -> 0 | AI141: 0 | AJ141: =+IF(INDEX($O141:$X141,1,aux!$BA$1)>0,(X141/INDEX($O141:$X141,1,aux!$BA$1))^(1/($X$3-INDEX($O$3:$X$3,1,aux!$BA$1)))-1,"n.d.") -> n.d. | AK141: =IF(INDEX($O141:$X141,1,aux!$BA$1)>0,(X141-INDEX($O141:$X141,1,aux!$BA$1))/INDEX($O141:$X141,1,aux!$BA$1),"n.d.") -> n.d. | AM141: 0 | CC141: =+IF(ISNA(MATCH('5.1'!A141,AUX_2d_pais!$G$2:$G$40000,0)),0,1) -> 0
A142: 0386 | B142: Malavi | C142: 7870.677 | D142: 2250.441 | E142: 7918.511 | F142: 11471.308 | G142: 23088.123 | H142: 10210.011 | I142: 22647.858 | J142: 24363.441 | K142: 8784.158 | L142: 1866.604 | M142: 12047.1132 | N142: 0.02792723844 | O142: 2.047 | P142: 27.18 | Q142: 27.59 | R142: 122.671 | S142: 26.802 | T142: 37.042 | U142: 161.309 | V142: 149.321 | W142: 15.5 | X142: 10.36 | Y142: 57.9822 | Z142: 5.471776073e-05 | AA142: -11989.131 | AC142: =L142-INDEX($C142:$L142,1,aux!$BA$1) -> -6004.073 | AD142: -0.0412384424 | AE142: =+IF(INDEX($C142:$L142,1,aux!$BA$1)>0,(L142/INDEX($C142:$L142,1,aux!$BA$1))^(1/($L$3-INDEX($C$3:$L$3,1,aux!$BA$1)))-1,"n.d.") -> -0.1477637337 | AF142: =IF(INDEX($C142:$L142,1,aux!$BA$1)>0,(L142-INDEX($C142:$L142,1,aux!$BA$1))/INDEX($C142:$L142,1,aux!$BA$1),"n.d.") -> -0.7628407315 | AH142: =X142-INDEX($O142:$X142,1,aux!$BA$1) -> 8.313 | AI142: 2.563741829e-05 | AJ142: =+IF(INDEX($O142:$X142,1,aux!$BA$1)>0,(X142/INDEX($O142:$X142,1,aux!$BA$1))^(1/($X$3-INDEX($O$3:$X$3,1,aux!$BA$1)))-1,"n.d.") -> 0.1974271513 | AK142: =IF(INDEX($O142:$X142,1,aux!$BA$1)>0,(X142-INDEX($O142:$X142,1,aux!$BA$1))/INDEX($O142:$X142,1,aux!$BA$1),"n.d.") -> 4.061064973 | CC142: =+IF(ISNA(MATCH('5.1'!A142,AUX_2d_pais!$G$2:$G$40000,0)),0,1) -> 1
A143: 0667 | B143: Maldivas | C143: 0 | D143: 0 | E143: 0 | F143: 0 | G143: 0 | H143: 0 | I143: 0 | J143: 0 | K143: 0 | L143: 0 | M143: 0 | N143: 0 | O143: 0 | P143: 0 | Q143: 0 | R143: 0 | S143: 0 | T143: 0 | U143: 0 | V143: 0 | W143: 0 | X143: 0 | Y143: 0 | Z143: 0 | AA143: 0 | AC143: =L143-INDEX($C143:$L143,1,aux!$BA$1) -> 0 | AD143: 0 | AE143: =+IF(INDEX($C143:$L143,1,aux!$BA$1)>0,(L143/INDEX($C143:$L143,1,aux!$BA$1))^(1/($L$3-INDEX($C$3:$L$3,1,aux!$BA$1)))-1,"n.d.") -> n.d. | AF143: =IF(INDEX($C143:$L143,1,aux!$BA$1)>0,(L143-INDEX($C143:$L143,1,aux!$BA$1))/INDEX($C143:$L143,1,aux!$BA$1),"n.d.") -> n.d. | AH143: =X143-INDEX($O143:$X143,1,aux!$BA$1) -> 0 | AI143: 0 | AJ143: =+IF(INDEX($O143:$X143,1,aux!$BA$1)>0,(X143/INDEX($O143:$X143,1,aux!$BA$1))^(1/($X$3-INDEX($O$3:$X$3,1,aux!$BA$1)))-1,"n.d.") -> n.d. | AK143: =IF(INDEX($O143:$X143,1,aux!$BA$1)>0,(X143-INDEX($O143:$X143,1,aux!$BA$1))/INDEX($O143:$X143,1,aux!$BA$1),"n.d.") -> n.d. | AM143: 0 | CC143: =+IF(ISNA(MATCH('5.1'!A143,AUX_2d_pais!$G$2:$G$40000,0)),0,1) -> 0
A144: 0232 | B144: Mali | C144: 123.671 | D144: 715.829 | E144: 390.452 | F144: 261.332 | G144: 888.44 | H144: 1326.026 | I144: 5958.533 | J144: 5168.138 | K144: 4429.814 | L144: 8796.503 | M144: 2805.8738 | N144: 0.006504488282 | O144: 65.396 | P144: 95.619 | Q144: 76.281 | R144: 125.33 | S144: 444.051 | T144: 1025.688 | U144: 932.908 | V144: 556.307 | W144: 1205.087 | X144: 617.296 | Y144: 514.3963 | Z144: 0.0004854354209 | AA144: -2291.4775 | AC144: =L144-INDEX($C144:$L144,1,aux!$BA$1) -> 8672.832 | AD144: 0.05956857668 | AE144: =+IF(INDEX($C144:$L144,1,aux!$BA$1)>0,(L144/INDEX($C144:$L144,1,aux!$BA$1))^(1/($L$3-INDEX($C$3:$L$3,1,aux!$BA$1)))-1,"n.d.") -> 0.6061365482 | AF144: =IF(INDEX($C144:$L144,1,aux!$BA$1)>0,(L144-INDEX($C144:$L144,1,aux!$BA$1))/INDEX($C144:$L144,1,aux!$BA$1),"n.d.") -> 70.12825966 | AH144: =X144-INDEX($O144:$X144,1,aux!$BA$1) -> 551.9 | AI144: 0.001702067985 | AJ144: =+IF(INDEX($O144:$X144,1,aux!$BA$1)>0,(X144/INDEX($O144:$X144,1,aux!$BA$1))^(1/($X$3-INDEX($O$3:$X$3,1,aux!$BA$1)))-1,"n.d.") -> 0.2832962339 | AK144: =IF(INDEX($O144:$X144,1,aux!$BA$1)>0,(X144-INDEX($O144:$X144,1,aux!$BA$1))/INDEX($O144:$X144,1,aux!$BA$1),"n.d.") -> 8.439354089 | CC144: =+IF(ISNA(MATCH('5.1'!A144,AUX_2d_pais!$G$2:$G$40000,0)),0,1) -> 1
A145: 0046 | B145: Malta | C145: 0 | D145: 0 | E145: 0 | F145: 0 | G145: 0 | H145: 0 | I145: 0 | J145: 0 | K145: 0 | L145: 0 | M145: 0 | N145: 0 | O145: 0 | P145: 0 | Q145: 0 | R145: 0 | S145: 0 | T145: 0 | U145: 0 | V145: 0 | W145: 0 | X145: 0 | Y145: 0 | Z145: 0 | AA145: 0 | AC145: =L145-INDEX($C145:$L145,1,aux!$BA$1) -> 0 | AD145: 0 | AE145: =+IF(INDEX($C145:$L145,1,aux!$BA$1)>0,(L145/INDEX($C145:$L145,1,aux!$BA$1))^(1/($L$3-INDEX($C$3:$L$3,1,aux!$BA$1)))-1,"n.d.") -> n.d. | AF145: =IF(INDEX($C145:$L145,1,aux!$BA$1)>0,(L145-INDEX($C145:$L145,1,aux!$BA$1))/INDEX($C145:$L145,1,aux!$BA$1),"n.d.") -> n.d. | AH145: =X145-INDEX($O145:$X145,1,aux!$BA$1) -> 0 | AI145: 0 | AJ145: =+IF(INDEX($O145:$X145,1,aux!$BA$1)>0,(X145/INDEX($O145:$X145,1,aux!$BA$1))^(1/($X$3-INDEX($O$3:$X$3,1,aux!$BA$1)))-1,"n.d.") -> n.d. | AK145: =IF(INDEX($O145:$X145,1,aux!$BA$1)>0,(X145-INDEX($O145:$X145,1,aux!$BA$1))/INDEX($O145:$X145,1,aux!$BA$1),"n.d.") -> n.d. | AM145: 0 | CC145: =+IF(ISNA(MATCH('5.1'!A145,AUX_2d_pais!$G$2:$G$40000,0)),0,1) -> 0
A146: 0820 | B146: Marianas do Norte, Ilhas | C146: 0 | D146: 0 | E146: 0 | F146: 0 | G146: 0 | H146: 0 | I146: 0 | J146: 0 | K146: 0 | L146: 0 | M146: 0 | N146: 0 | O146: 0 | P146: 0 | Q146: 0 | R146: 0 | S146: 0 | T146: 0 | U146: 0 | V146: 0 | W146: 0 | X146: 0 | Y146: 0 | Z146: 0 | AA146: 0 | AC146: =L146-INDEX($C146:$L146,1,aux!$BA$1) -> 0 | AD146: 0 | AE146: =+IF(INDEX($C146:$L146,1,aux!$BA$1)>0,(L146/INDEX($C146:$L146,1,aux!$BA$1))^(1/($L$3-INDEX($C$3:$L$3,1,aux!$BA$1)))-1,"n.d.") -> n.d. | AF146: =IF(INDEX($C146:$L146,1,aux!$BA$1)>0,(L146-INDEX($C146:$L146,1,aux!$BA$1))/INDEX($C146:$L146,1,aux!$BA$1),"n.d.") -> n.d. | AH146: =X146-INDEX($O146:$X146,1,aux!$BA$1) -> 0 | AI146: 0 | AJ146: =+IF(INDEX($O146:$X146,1,aux!$BA$1)>0,(X146/INDEX($O146:$X146,1,aux!$BA$1))^(1/($X$3-INDEX($O$3:$X$3,1,aux!$BA$1)))-1,"n.d.") -> n.d. | AK146: =IF(INDEX($O146:$X146,1,aux!$BA$1)>0,(X146-INDEX($O146:$X146,1,aux!$BA$1))/INDEX($O146:$X146,1,aux!$BA$1),"n.d.") -> n.d. | AM146: 0 | BO146: =SUM(C146:L146,O146:X146) -> 0 | CC146: =+IF(ISNA(MATCH('5.1'!A146,AUX_2d_pais!$G$2:$G$40000,0)),0,1) -> 0
A147: 0204 | B147: Marrocos | C147: 15072.713 | D147: 22037.469 | E147: 24936.622 | F147: 30555.02 | G147: 48248.953 | H147: 36399.122 | I147: 65363.723 | J147: 60649.668 | K147: 53517.593 | L147: 58055.855 | M147: 41483.6738 | N147: 0.09616614623 | O147: 24563.177 | P147: 59260.166 | Q147: 68758.656 | R147: 86904.798 | S147: 75615.235 | T147: 86016.803 | U147: 79086.426 | V147: 75727.794 | W147: 68813.308 | X147: 92414.169 | Y147: 71716.0532 | Z147: 0.06767838818 | AA147: 30232.3794 | AC147: =L147-INDEX($C147:$L147,1,aux!$BA$1) -> 42983.142 | AD147: 0.2952258951 | AE147: =+IF(INDEX($C147:$L147,1,aux!$BA$1)>0,(L147/INDEX($C147:$L147,1,aux!$BA$1))^(1/($L$3-INDEX($C$3:$L$3,1,aux!$BA$1)))-1,"n.d.") -> 0.1616431421 | AF147: =IF(INDEX($C147:$L147,1,aux!$BA$1)>0,(L147-INDEX($C147:$L147,1,aux!$BA$1))/INDEX($C147:$L147,1,aux!$BA$1),"n.d.") -> 2.851718997 | AH147: =X147-INDEX($O147:$X147,1,aux!$BA$1) -> 67850.992 | AI147: 0.2092534901 | AJ147: =+IF(INDEX($O147:$X147,1,aux!$BA$1)>0,(X147/INDEX($O147:$X147,1,aux!$BA$1))^(1/($X$3-INDEX($O$3:$X$3,1,aux!$BA$1)))-1,"n.d.") -> 0.158615505 | AK147: =IF(INDEX($O147:$X147,1,aux!$BA$1)>0,(X147-INDEX($O147:$X147,1,aux!$BA$1))/INDEX($O147:$X147,1,aux!$BA$1),"n.d.") -> 2.762305218 | CC147: =+IF(ISNA(MATCH('5.1'!A147,AUX_2d_pais!$G$2:$G$40000,0)),0,1) -> 1
A148: 0824 | B148: Marshall, Ilhas | C148: 0 | D148: 0 | E148: 0 | F148: 0 | G148: 0 | H148: 0 | I148: 0 | J148: 0 | K148: 0 | L148: 0 | M148: 0 | N148: 0 | O148: 0 | P148: 0 | Q148: 0 | R148: 0 | S148: 0 | T148: 0 | U148: 0 | V148: 0 | W148: 0 | X148: 0 | Y148: 0 | Z148: 0 | AA148: 0 | AC148: =L148-INDEX($C148:$L148,1,aux!$BA$1) -> 0 | AD148: 0 | AE148: =+IF(INDEX($C148:$L148,1,aux!$BA$1)>0,(L148/INDEX($C148:$L148,1,aux!$BA$1))^(1/($L$3-INDEX($C$3:$L$3,1,aux!$BA$1)))-1,"n.d.") -> n.d. | AF148: =IF(INDEX($C148:$L148,1,aux!$BA$1)>0,(L148-INDEX($C148:$L148,1,aux!$BA$1))/INDEX($C148:$L148,1,aux!$BA$1),"n.d.") -> n.d. | AH148: =X148-INDEX($O148:$X148,1,aux!$BA$1) -> 0 | AI148: 0 | AJ148: =+IF(INDEX($O148:$X148,1,aux!$BA$1)>0,(X148/INDEX($O148:$X148,1,aux!$BA$1))^(1/($X$3-INDEX($O$3:$X$3,1,aux!$BA$1)))-1,"n.d.") -> n.d. | AK148: =IF(INDEX($O148:$X148,1,aux!$BA$1)>0,(X148-INDEX($O148:$X148,1,aux!$BA$1))/INDEX($O148:$X148,1,aux!$BA$1),"n.d.") -> n.d. | AM148: 0 | CC148: =+IF(ISNA(MATCH('5.1'!A148,AUX_2d_pais!$G$2:$G$40000,0)),0,1) -> 0
A149: 0462 | B149: Martinica | C149: 0 | D149: 0 | E149: 0 | F149: 0 | G149: 0 | H149: 0 | I149: 0 | J149: 0 | K149: 0 | L149: 0 | M149: 0 | N149: 0 | O149: 0 | P149: 0 | Q149: 0 | R149: 0 | S149: 0 | T149: 0 | U149: 0 | V149: 0 | W149: 0 | X149: 0 | Y149: 0 | Z149: 0 | AA149: 0 | AC149: =L149-INDEX($C149:$L149,1,aux!$BA$1) -> 0 | AD149: 0 | AE149: =+IF(INDEX($C149:$L149,1,aux!$BA$1)>0,(L149/INDEX($C149:$L149,1,aux!$BA$1))^(1/($L$3-INDEX($C$3:$L$3,1,aux!$BA$1)))-1,"n.d.") -> n.d. | AF149: =IF(INDEX($C149:$L149,1,aux!$BA$1)>0,(L149-INDEX($C149:$L149,1,aux!$BA$1))/INDEX($C149:$L149,1,aux!$BA$1),"n.d.") -> n.d. | AH149: =X149-INDEX($O149:$X149,1,aux!$BA$1) -> 0 | AI149: 0 | AJ149: =+IF(INDEX($O149:$X149,1,aux!$BA$1)>0,(X149/INDEX($O149:$X149,1,aux!$BA$1))^(1/($X$3-INDEX($O$3:$X$3,1,aux!$BA$1)))-1,"n.d.") -> n.d. | AK149: =IF(INDEX($O149:$X149,1,aux!$BA$1)>0,(X149-INDEX($O149:$X149,1,aux!$BA$1))/INDEX($O149:$X149,1,aux!$BA$1),"n.d.") -> n.d. | AM149: 0 | BO149: 0 | CC149: =+IF(ISNA(MATCH('5.1'!A149,AUX_2d_pais!$G$2:$G$40000,0)),0,1) -> 0
A150: 0373 | B150: Maurícias | C150: 18698.568 | D150: 12122.966 | E150: 3597.439 | F150: 4078.724 | G150: 3676.889 | H150: 2855.122 | I150: 5742.28 | J150: 11884.65 | K150: 19980.713 | L150: 12809.047 | M150: 9544.6398 | N150: 0.02212608341 | O150: 452.968 | P150: 630.57 | Q150: 446.141 | R150: 546.552 | S150: 795.254 | T150: 983.833 | U150: 1513.568 | V150: 2209.132 | W150: 1477.15 | X150: 3520.513 | Y150: 1257.5681 | Z150: 0.001186766118 | AA150: -8287.0717 | AC150: =L150-INDEX($C150:$L150,1,aux!$BA$1) -> -5889.521 | AD150: -0.04045165216 | AE150: =+IF(INDEX($C150:$L150,1,aux!$BA$1)>0,(L150/INDEX($C150:$L150,1,aux!$BA$1))^(1/($L$3-INDEX($C$3:$L$3,1,aux!$BA$1)))-1,"n.d.") -> -0.04116167253 | AF150: =IF(INDEX($C150:$L150,1,aux!$BA$1)>0,(L150-INDEX($C150:$L150,1,aux!$BA$1))/INDEX($C150:$L150,1,aux!$BA$1),"n.d.") -> -0.3149717668 | AH150: =X150-INDEX($O150:$X150,1,aux!$BA$1) -> 3067.545 | AI150: 0.009460355383 | AJ150: =+IF(INDEX($O150:$X150,1,aux!$BA$1)>0,(X150/INDEX($O150:$X150,1,aux!$BA$1))^(1/($X$3-INDEX($O$3:$X$3,1,aux!$BA$1)))-1,"n.d.") -> 0.2558816487 | AK150: =IF(INDEX($O150:$X150,1,aux!$BA$1)>0,(X150-INDEX($O150:$X150,1,aux!$BA$1))/INDEX($O150:$X150,1,aux!$BA$1),"n.d.") -> 6.772100899 | CC150: =+IF(ISNA(MATCH('5.1'!A150,AUX_2d_pais!$G$2:$G$40000,0)),0,1) -> 1
A151: 0228 | B151: Mauritânia | C151: 2240.386 | D151: 924.1 | E151: 11303.451 | F151: 15342.133 | G151: 7605.219 | H151: 19817.839 | I151: 8102.328 | J151: 6112.408 | K151: 19361.49 | L151: 20025.787 | M151: 11083.5141 | N151: 0.02569345335 | O151: 46.539 | P151: 109.588 | Q151: 228.113 | R151: 591.895 | S151: 1013.456 | T151: 905.361 | U151: 878.894 | V151: 1069.007 | W151: 1645.912 | X151: 1977.193 | Y151: 846.5958 | Z151: 0.0007989318518 | AA151: -10236.9183 | AC151: =L151-INDEX($C151:$L151,1,aux!$BA$1) -> 17785.401 | AD151: 0.1221574479 | AE151: =+IF(INDEX($C151:$L151,1,aux!$BA$1)>0,(L151/INDEX($C151:$L151,1,aux!$BA$1))^(1/($L$3-INDEX($C$3:$L$3,1,aux!$BA$1)))-1,"n.d.") -> 0.2755465273 | AF151: =IF(INDEX($C151:$L151,1,aux!$BA$1)>0,(L151-INDEX($C151:$L151,1,aux!$BA$1))/INDEX($C151:$L151,1,aux!$BA$1),"n.d.") -> 7.93854318 | AH151: =X151-INDEX($O151:$X151,1,aux!$BA$1) -> 1930.654 | AI151: 0.005954166267 | AJ151: =+IF(INDEX($O151:$X151,1,aux!$BA$1)>0,(X151/INDEX($O151:$X151,1,aux!$BA$1))^(1/($X$3-INDEX($O$3:$X$3,1,aux!$BA$1)))-1,"n.d.") -> 0.5167523223 | AK151: =IF(INDEX($O151:$X151,1,aux!$BA$1)>0,(X151-INDEX($O151:$X151,1,aux!$BA$1))/INDEX($O151:$X151,1,aux!$BA$1),"n.d.") -> 41.48464729 | CC151: =+IF(ISNA(MATCH('5.1'!A151,AUX_2d_pais!$G$2:$G$40000,0)),0,1) -> 1
A152: 0377 | B152: Mayotte | C152: 0 | D152: 0 | E152: 0 | F152: 0 | G152: 0 | H152: 0 | I152: 0 | J152: 0 | K152: 0 | L152: 0 | M152: 0 | N152: 0 | O152: 0 | P152: 0 | Q152: 0 | R152: 0 | S152: 0 | T152: 0 | U152: 0 | V152: 0 | W152: 0 | X152: 0 | Y152: 0 | Z152: 0 | AA152: 0 | AC152: =L152-INDEX($C152:$L152,1,aux!$BA$1) -> 0 | AD152: 0 | AE152: =+IF(INDEX($C152:$L152,1,aux!$BA$1)>0,(L152/INDEX($C152:$L152,1,aux!$BA$1))^(1/($L$3-INDEX($C$3:$L$3,1,aux!$BA$1)))-1,"n.d.") -> n.d. | AF152: =IF(INDEX($C152:$L152,1,aux!$BA$1)>0,(L152-INDEX($C152:$L152,1,aux!$BA$1))/INDEX($C152:$L152,1,aux!$BA$1),"n.d.") -> n.d. | AH152: =X152-INDEX($O152:$X152,1,aux!$BA$1) -> 0 | AI152: 0 | AJ152: =+IF(INDEX($O152:$X152,1,aux!$BA$1)>0,(X152/INDEX($O152:$X152,1,aux!$BA$1))^(1/($X$3-INDEX($O$3:$X$3,1,aux!$BA$1)))-1,"n.d.") -> n.d. | AK152: =IF(INDEX($O152:$X152,1,aux!$BA$1)>0,(X152-INDEX($O152:$X152,1,aux!$BA$1))/INDEX($O152:$X152,1,aux!$BA$1),"n.d.") -> n.d. | AM152: 0 | BO152: 0 | CC152: =+IF(ISNA(MATCH('5.1'!A152,AUX_2d_pais!$G$2:$G$40000,0)),0,1) -> 0
A153: 0023 | B153: Melilha | C153: 0 | D153: 0 | E153: 0 | F153: 0 | G153: 0 | H153: 0 | I153: 0 | J153: 0 | K153: 0 | L153: 0 | M153: 0 | N153: 0 | O153: 0 | P153: 0 | Q153: 0 | R153: 0 | S153: 0 | T153: 0 | U153: 0 | V153: 0 | W153: 0 | X153: 0 | Y153: 0 | Z153: 0 | AA153: 0 | AC153: =L153-INDEX($C153:$L153,1,aux!$BA$1) -> 0 | AD153: 0 | AE153: =+IF(INDEX($C153:$L153,1,aux!$BA$1)>0,(L153/INDEX($C153:$L153,1,aux!$BA$1))^(1/($L$3-INDEX($C$3:$L$3,1,aux!$BA$1)))-1,"n.d.") -> n.d. | AF153: =IF(INDEX($C153:$L153,1,aux!$BA$1)>0,(L153-INDEX($C153:$L153,1,aux!$BA$1))/INDEX($C153:$L153,1,aux!$BA$1),"n.d.") -> n.d. | AH153: =X153-INDEX($O153:$X153,1,aux!$BA$1) -> 0 | AI153: 0 | AJ153: =+IF(INDEX($O153:$X153,1,aux!$BA$1)>0,(X153/INDEX($O153:$X153,1,aux!$BA$1))^(1/($X$3-INDEX($O$3:$X$3,1,aux!$BA$1)))-1,"n.d.") -> n.d. | AK153: =IF(INDEX($O153:$X153,1,aux!$BA$1)>0,(X153-INDEX($O153:$X153,1,aux!$BA$1))/INDEX($O153:$X153,1,aux!$BA$1),"n.d.") -> n.d. | AM153: 0 | CC153: =+IF(ISNA(MATCH('5.1'!A153,AUX_2d_pais!$G$2:$G$40000,0)),0,1) -> 0
A154: 0832 | B154: Menores distantes dos Estados Unidos, lhas | C154: 0 | D154: 0 | E154: 0 | F154: 0 | G154: 0 | H154: 0 | I154: 0 | J154: 0 | K154: 0 | L154: 0 | M154: 0 | N154: 0 | O154: 0 | P154: 0 | Q154: 0 | R154: 0 | S154: 0 | T154: 0 | U154: 0 | V154: 0 | W154: 0 | X154: 0 | Y154: 0 | Z154: 0 | AA154: 0 | AC154: =L154-INDEX($C154:$L154,1,aux!$BA$1) -> 0 | AD154: 0 | AE154: =+IF(INDEX($C154:$L154,1,aux!$BA$1)>0,(L154/INDEX($C154:$L154,1,aux!$BA$1))^(1/($L$3-INDEX($C$3:$L$3,1,aux!$BA$1)))-1,"n.d.") -> n.d. | AF154: =IF(INDEX($C154:$L154,1,aux!$BA$1)>0,(L154-INDEX($C154:$L154,1,aux!$BA$1))/INDEX($C154:$L154,1,aux!$BA$1),"n.d.") -> n.d. | AH154: =X154-INDEX($O154:$X154,1,aux!$BA$1) -> 0 | AI154: 0 | AJ154: =+IF(INDEX($O154:$X154,1,aux!$BA$1)>0,(X154/INDEX($O154:$X154,1,aux!$BA$1))^(1/($X$3-INDEX($O$3:$X$3,1,aux!$BA$1)))-1,"n.d.") -> n.d. | AK154: =IF(INDEX($O154:$X154,1,aux!$BA$1)>0,(X154-INDEX($O154:$X154,1,aux!$BA$1))/INDEX($O154:$X154,1,aux!$BA$1),"n.d.") -> n.d. | AM154: 0 | BO154: 0 | CC154: =+IF(ISNA(MATCH('5.1'!A154,AUX_2d_pais!$G$2:$G$40000,0)),0,1) -> 0
A155: 0412 | B155: México | C155: 0 | D155: 0 | E155: 0 | F155: 0 | G155: 0 | H155: 0 | I155: 0 | J155: 0 | K155: 0 | L155: 0 | M155: 0 | N155: 0 | O155: 0 | P155: 0 | Q155: 0 | R155: 0 | S155: 0 | T155: 0 | U155: 0 | V155: 0 | W155: 0 | X155: 0 | Y155: 0 | Z155: 0 | AA155: 0 | AC155: =L155-INDEX($C155:$L155,1,aux!$BA$1) -> 0 | AD155: 0 | AE155: =+IF(INDEX($C155:$L155,1,aux!$BA$1)>0,(L155/INDEX($C155:$L155,1,aux!$BA$1))^(1/($L$3-INDEX($C$3:$L$3,1,aux!$BA$1)))-1,"n.d.") -> n.d. | AF155: =IF(INDEX($C155:$L155,1,aux!$BA$1)>0,(L155-INDEX($C155:$L155,1,aux!$BA$1))/INDEX($C155:$L155,1,aux!$BA$1),"n.d.") -> n.d. | AH155: =X155-INDEX($O155:$X155,1,aux!$BA$1) -> 0 | AI155: 0 | AJ155: =+IF(INDEX($O155:$X155,1,aux!$BA$1)>0,(X155/INDEX($O155:$X155,1,aux!$BA$1))^(1/($X$3-INDEX($O$3:$X$3,1,aux!$BA$1)))-1,"n.d.") -> n.d. | AK155: =IF(INDEX($O155:$X155,1,aux!$BA$1)>0,(X155-INDEX($O155:$X155,1,aux!$BA$1))/INDEX($O155:$X155,1,aux!$BA$1),"n.d.") -> n.d. | AM155: 0 | CC155: =+IF(ISNA(MATCH('5.1'!A155,AUX_2d_pais!$G$2:$G$40000,0)),0,1) -> 0
A156: 0823 | B156: Micronésia, Estados Federados da | C156: 0 | D156: 0 | E156: 0 | F156: 0 | G156: 0 | H156: 0 | I156: 0 | J156: 0 | K156: 0 | L156: 0 | M156: 0 | N156: 0 | O156: 0 | P156: 0 | Q156: 0 | R156: 0 | S156: 0 | T156: 0 | U156: 0 | V156: 0 | W156: 0 | X156: 0 | Y156: 0 | Z156: 0 | AA156: 0 | AC156: =L156-INDEX($C156:$L156,1,aux!$BA$1) -> 0 | AD156: 0 | AE156: =+IF(INDEX($C156:$L156,1,aux!$BA$1)>0,(L156/INDEX($C156:$L156,1,aux!$BA$1))^(1/($L$3-INDEX($C$3:$L$3,1,aux!$BA$1)))-1,"n.d.") -> n.d. | AF156: =IF(INDEX($C156:$L156,1,aux!$BA$1)>0,(L156-INDEX($C156:$L156,1,aux!$BA$1))/INDEX($C156:$L156,1,aux!$BA$1),"n.d.") -> n.d. | AH156: =X156-INDEX($O156:$X156,1,aux!$BA$1) -> 0 | AI156: 0 | AJ156: =+IF(INDEX($O156:$X156,1,aux!$BA$1)>0,(X156/INDEX($O156:$X156,1,aux!$BA$1))^(1/($X$3-INDEX($O$3:$X$3,1,aux!$BA$1)))-1,"n.d.") -> n.d. | AK156: =IF(INDEX($O156:$X156,1,aux!$BA$1)>0,(X156-INDEX($O156:$X156,1,aux!$BA$1))/INDEX($O156:$X156,1,aux!$BA$1),"n.d.") -> n.d. | AM156: 0 | BO156: 0 | CC156: =+IF(ISNA(MATCH('5.1'!A156,AUX_2d_pais!$G$2:$G$40000,0)),0,1) -> 0
A157: 0366 | B157: Moçambique | C157: 42375.275 | D157: 27070.204 | E157: 41468.095 | F157: 15890.893 | G157: 60771.555 | H157: 34234.178 | I157: 35366.534 | J157: 32632.83 | K157: 40184.384 | L157: 37766.394 | M157: 36776.0342 | N157: 0.08525304436 | O157: 20669.845 | P157: 22484.487 | Q157: 30559.844 | R157: 40944.682 | S157: 46350.234 | T157: 47912.935 | U157: 47676.318 | V157: 36358.191 | W157: 33441.566 | X157: 33586.257 | Y157: 35998.4359 | Z157: 0.03397169825 | AA157: -777.5983 | AC157: =L157-INDEX($C157:$L157,1,aux!$BA$1) -> -4608.881 | AD157: -0.03165569001 | AE157: =+IF(INDEX($C157:$L157,1,aux!$BA$1)>0,(L157/INDEX($C157:$L157,1,aux!$BA$1))^(1/($L$3-INDEX($C$3:$L$3,1,aux!$BA$1)))-1,"n.d.") -> -0.01271243842 | AF157: =IF(INDEX($C157:$L157,1,aux!$BA$1)>0,(L157-INDEX($C157:$L157,1,aux!$BA$1))/INDEX($C157:$L157,1,aux!$BA$1),"n.d.") -> -0.1087634476 | AH157: =X157-INDEX($O157:$X157,1,aux!$BA$1) -> 12916.412 | AI157: 0.03983441084 | AJ157: =+IF(INDEX($O157:$X157,1,aux!$BA$1)>0,(X157/INDEX($O157:$X157,1,aux!$BA$1))^(1/($X$3-INDEX($O$3:$X$3,1,aux!$BA$1)))-1,"n.d.") -> 0.05541905749 | AK157: =IF(INDEX($O157:$X157,1,aux!$BA$1)>0,(X157-INDEX($O157:$X157,1,aux!$BA$1))/INDEX($O157:$X157,1,aux!$BA$1),"n.d.") -> 0.6248915751 | CC157: =+IF(ISNA(MATCH('5.1'!A157,AUX_2d_pais!$G$2:$G$40000,0)),0,1) -> 1
A158: 0074 | B158: Moldava, República de | C158: 0 | D158: 0 | E158: 0 | F158: 0 | G158: 0 | H158: 0 | I158: 0 | J158: 0 | K158: 0 | L158: 0 | M158: 0 | N158: 0 | O158: 0 | P158: 0 | Q158: 0 | R158: 0 | S158: 0 | T158: 0 | U158: 0 | V158: 0 | W158: 0 | X158: 0 | Y158: 0 | Z158: 0 | AA158: 0 | AC158: =L158-INDEX($C158:$L158,1,aux!$BA$1) -> 0 | AD158: 0 | AE158: =+IF(INDEX($C158:$L158,1,aux!$BA$1)>0,(L158/INDEX($C158:$L158,1,aux!$BA$1))^(1/($L$3-INDEX($C$3:$L$3,1,aux!$BA$1)))-1,"n.d.") -> n.d. | AF158: =IF(INDEX($C158:$L158,1,aux!$BA$1)>0,(L158-INDEX($C158:$L158,1,aux!$BA$1))/INDEX($C158:$L158,1,aux!$BA$1),"n.d.") -> n.d. | AH158: =X158-INDEX($O158:$X158,1,aux!$BA$1) -> 0 | AI158: 0 | AJ158: =+IF(INDEX($O158:$X158,1,aux!$BA$1)>0,(X158/INDEX($O158:$X158,1,aux!$BA$1))^(1/($X$3-INDEX($O$3:$X$3,1,aux!$BA$1)))-1,"n.d.") -> n.d. | AK158: =IF(INDEX($O158:$X158,1,aux!$BA$1)>0,(X158-INDEX($O158:$X158,1,aux!$BA$1))/INDEX($O158:$X158,1,aux!$BA$1),"n.d.") -> n.d. | AM158: 0 | CC158: =+IF(ISNA(MATCH('5.1'!A158,AUX_2d_pais!$G$2:$G$40000,0)),0,1) -> 0
A159: 0716 | B159: Mongólia | C159: 0 | D159: 0 | E159: 0 | F159: 0 | G159: 0 | H159: 0 | I159: 0 | J159: 0 | K159: 0 | L159: 0 | M159: 0 | N159: 0 | O159: 0 | P159: 0 | Q159: 0 | R159: 0 | S159: 0 | T159: 0 | U159: 0 | V159: 0 | W159: 0 | X159: 0 | Y159: 0 | Z159: 0 | AA159: 0 | AC159: =L159-INDEX($C159:$L159,1,aux!$BA$1) -> 0 | AD159: 0 | AE159: =+IF(INDEX($C159:$L159,1,aux!$BA$1)>0,(L159/INDEX($C159:$L159,1,aux!$BA$1))^(1/($L$3-INDEX($C$3:$L$3,1,aux!$BA$1)))-1,"n.d.") -> n.d. | AF159: =IF(INDEX($C159:$L159,1,aux!$BA$1)>0,(L159-INDEX($C159:$L159,1,aux!$BA$1))/INDEX($C159:$L159,1,aux!$BA$1),"n.d.") -> n.d. | AH159: =X159-INDEX($O159:$X159,1,aux!$BA$1) -> 0 | AI159: 0 | AJ159: =+IF(INDEX($O159:$X159,1,aux!$BA$1)>0,(X159/INDEX($O159:$X159,1,aux!$BA$1))^(1/($X$3-INDEX($O$3:$X$3,1,aux!$BA$1)))-1,"n.d.") -> n.d. | AK159: =IF(INDEX($O159:$X159,1,aux!$BA$1)>0,(X159-INDEX($O159:$X159,1,aux!$BA$1))/INDEX($O159:$X159,1,aux!$BA$1),"n.d.") -> n.d. | AM159: 0 | BO159: 0 | CC159: =+IF(ISNA(MATCH('5.1'!A159,AUX_2d_pais!$G$2:$G$40000,0)),0,1) -> 0
A160: 0470 | B160: Monserrate | C160: 0 | D160: 0 | E160: 0 | F160: 0 | G160: 0 | H160: 0 | I160: 0 | J160: 0 | K160: 0 | L160: 0 | M160: 0 | N160: 0 | O160: 0 | P160: 0 | Q160: 0 | R160: 0 | S160: 0 | T160: 0 | U160: 0 | V160: 0 | W160: 0 | X160: 0 | Y160: 0 | Z160: 0 | AA160: 0 | AC160: =L160-INDEX($C160:$L160,1,aux!$BA$1) -> 0 | AD160: 0 | AE160: =+IF(INDEX($C160:$L160,1,aux!$BA$1)>0,(L160/INDEX($C160:$L160,1,aux!$BA$1))^(1/($L$3-INDEX($C$3:$L$3,1,aux!$BA$1)))-1,"n.d.") -> n.d. | AF160: =IF(INDEX($C160:$L160,1,aux!$BA$1)>0,(L160-INDEX($C160:$L160,1,aux!$BA$1))/INDEX($C160:$L160,1,aux!$BA$1),"n.d.") -> n.d. | AH160: =X160-INDEX($O160:$X160,1,aux!$BA$1) -> 0 | AI160: 0 | AJ160: =+IF(INDEX($O160:$X160,1,aux!$BA$1)>0,(X160/INDEX($O160:$X160,1,aux!$BA$1))^(1/($X$3-INDEX($O$3:$X$3,1,aux!$BA$1)))-1,"n.d.") -> n.d. | AK160: =IF(INDEX($O160:$X160,1,aux!$BA$1)>0,(X160-INDEX($O160:$X160,1,aux!$BA$1))/INDEX($O160:$X160,1,aux!$BA$1),"n.d.") -> n.d. | AM160: 0 | BO160: 0 | CC160: =+IF(ISNA(MATCH('5.1'!A160,AUX_2d_pais!$G$2:$G$40000,0)),0,1) -> 0
A161: 0097 | B161: Montenegro | C161: 0 | D161: 0 | E161: 0 | F161: 0 | G161: 0 | H161: 0 | I161: 0 | J161: 0 | K161: 0 | L161: 0 | M161: 0 | N161: 0 | O161: 0 | P161: 0 | Q161: 0 | R161: 0 | S161: 0 | T161: 0 | U161: 0 | V161: 0 | W161: 0 | X161: 0 | Y161: 0 | Z161: 0 | AA161: 0 | AC161: =L161-INDEX($C161:$L161,1,aux!$BA$1) -> 0 | AD161: 0 | AE161: =+IF(INDEX($C161:$L161,1,aux!$BA$1)>0,(L161/INDEX($C161:$L161,1,aux!$BA$1))^(1/($L$3-INDEX($C$3:$L$3,1,aux!$BA$1)))-1,"n.d.") -> n.d. | AF161: =IF(INDEX($C161:$L161,1,aux!$BA$1)>0,(L161-INDEX($C161:$L161,1,aux!$BA$1))/INDEX($C161:$L161,1,aux!$BA$1),"n.d.") -> n.d. | AH161: =X161-INDEX($O161:$X161,1,aux!$BA$1) -> 0 | AI161: 0 | AJ161: =+IF(INDEX($O161:$X161,1,aux!$BA$1)>0,(X161/INDEX($O161:$X161,1,aux!$BA$1))^(1/($X$3-INDEX($O$3:$X$3,1,aux!$BA$1)))-1,"n.d.") -> n.d. | AK161: =IF(INDEX($O161:$X161,1,aux!$BA$1)>0,(X161-INDEX($O161:$X161,1,aux!$BA$1))/INDEX($O161:$X161,1,aux!$BA$1),"n.d.") -> n.d. | AM161: 0 | BO161: 0 | CC161: =+IF(ISNA(MATCH('5.1'!A161,AUX_2d_pais!$G$2:$G$40000,0)),0,1) -> 0
A162: 0676 | B162: Myanmar | C162: 0 | D162: 0 | E162: 0 | F162: 0 | G162: 0 | H162: 0 | I162: 0 | J162: 0 | K162: 0 | L162: 0 | M162: 0 | N162: 0 | O162: 0 | P162: 0 | Q162: 0 | R162: 0 | S162: 0 | T162: 0 | U162: 0 | V162: 0 | W162: 0 | X162: 0 | Y162: 0 | Z162: 0 | AA162: 0 | AC162: =L162-INDEX($C162:$L162,1,aux!$BA$1) -> 0 | AD162: 0 | AE162: =+IF(INDEX($C162:$L162,1,aux!$BA$1)>0,(L162/INDEX($C162:$L162,1,aux!$BA$1))^(1/($L$3-INDEX($C$3:$L$3,1,aux!$BA$1)))-1,"n.d.") -> n.d. | AF162: =IF(INDEX($C162:$L162,1,aux!$BA$1)>0,(L162-INDEX($C162:$L162,1,aux!$BA$1))/INDEX($C162:$L162,1,aux!$BA$1),"n.d.") -> n.d. | AH162: =X162-INDEX($O162:$X162,1,aux!$BA$1) -> 0 | AI162: 0 | AJ162: =+IF(INDEX($O162:$X162,1,aux!$BA$1)>0,(X162/INDEX($O162:$X162,1,aux!$BA$1))^(1/($X$3-INDEX($O$3:$X$3,1,aux!$BA$1)))-1,"n.d.") -> n.d. | AK162: =IF(INDEX($O162:$X162,1,aux!$BA$1)>0,(X162-INDEX($O162:$X162,1,aux!$BA$1))/INDEX($O162:$X162,1,aux!$BA$1),"n.d.") -> n.d. | AM162: 0 | CC162: =+IF(ISNA(MATCH('5.1'!A162,AUX_2d_pais!$G$2:$G$40000,0)),0,1) -> 0
A163: 0389 | B163: Namíbia | C163: 16799.327 | D163: 19354.821 | E163: 15518.428 | F163: 12330.015 | G163: 14512.501 | H163: 17172.056 | I163: 25434.863 | J163: 25755.98 | K163: 26201.357 | L163: 24638.754 | M163: 19771.8102 | N163: 0.04583438776 | O163: 1896.479 | P163: 1168.735 | Q163: 870.107 | R163: 1109.321 | S163: 1053.34 | T163: 1043.334 | U163: 647.863 | V163: 298.592 | W163: 462.649 | X163: 970.095 | Y163: 952.0515 | Z163: 0.0008984503205 | AA163: -18819.7587 | AC163: =L163-INDEX($C163:$L163,1,aux!$BA$1) -> 7839.427 | AD163: 0.05384440842 | AE163: =+IF(INDEX($C163:$L163,1,aux!$BA$1)>0,(L163/INDEX($C163:$L163,1,aux!$BA$1))^(1/($L$3-INDEX($C$3:$L$3,1,aux!$BA$1)))-1,"n.d.") -> 0.04347190881 | AF163: =IF(INDEX($C163:$L163,1,aux!$BA$1)>0,(L163-INDEX($C163:$L163,1,aux!$BA$1))/INDEX($C163:$L163,1,aux!$BA$1),"n.d.") -> 0.4666512534 | AH163: =X163-INDEX($O163:$X163,1,aux!$BA$1) -> -926.384 | AI163: -0.00285698233 | AJ163: =+IF(INDEX($O163:$X163,1,aux!$BA$1)>0,(X163/INDEX($O163:$X163,1,aux!$BA$1))^(1/($X$3-INDEX($O$3:$X$3,1,aux!$BA$1)))-1,"n.d.") -> -0.07177811625 | AK163: =IF(INDEX($O163:$X163,1,aux!$BA$1)>0,(X163-INDEX($O163:$X163,1,aux!$BA$1))/INDEX($O163:$X163,1,aux!$BA$1),"n.d.") -> -0.488475749 | CC163: =+IF(ISNA(MATCH('5.1'!A163,AUX_2d_pais!$G$2:$G$40000,0)),0,1) -> 1
A164: 0803 | B164: Nauru | C164: 0 | D164: 0 | E164: 0 | F164: 0 | G164: 0 | H164: 0 | I164: 0 | J164: 0 | K164: 0 | L164: 0 | M164: 0 | N164: 0 | O164: 0 | P164: 0 | Q164: 0 | R164: 0 | S164: 0 | T164: 0 | U164: 0 | V164: 0 | W164: 0 | X164: 0 | Y164: 0 | Z164: 0 | AA164: 0 | AC164: =L164-INDEX($C164:$L164,1,aux!$BA$1) -> 0 | AD164: 0 | AE164: =+IF(INDEX($C164:$L164,1,aux!$BA$1)>0,(L164/INDEX($C164:$L164,1,aux!$BA$1))^(1/($L$3-INDEX($C$3:$L$3,1,aux!$BA$1)))-1,"n.d.") -> n.d. | AF164: =IF(INDEX($C164:$L164,1,aux!$BA$1)>0,(L164-INDEX($C164:$L164,1,aux!$BA$1))/INDEX($C164:$L164,1,aux!$BA$1),"n.d.") -> n.d. | AH164: =X164-INDEX($O164:$X164,1,aux!$BA$1) -> 0 | AI164: 0 | AJ164: =+IF(INDEX($O164:$X164,1,aux!$BA$1)>0,(X164/INDEX($O164:$X164,1,aux!$BA$1))^(1/($X$3-INDEX($O$3:$X$3,1,aux!$BA$1)))-1,"n.d.") -> n.d. | AK164: =IF(INDEX($O164:$X164,1,aux!$BA$1)>0,(X164-INDEX($O164:$X164,1,aux!$BA$1))/INDEX($O164:$X164,1,aux!$BA$1),"n.d.") -> n.d. | AM164: 0 | BO164: 0 | CC164: =+IF(ISNA(MATCH('5.1'!A164,AUX_2d_pais!$G$2:$G$40000,0)),0,1) -> 0
A165: 0672 | B165: Nepal | C165: 0 | D165: 0 | E165: 0 | F165: 0 | G165: 0 | H165: 0 | I165: 0 | J165: 0 | K165: 0 | L165: 0 | M165: 0 | N165: 0 | O165: 0 | P165: 0 | Q165: 0 | R165: 0 | S165: 0 | T165: 0 | U165: 0 | V165: 0 | W165: 0 | X165: 0 | Y165: 0 | Z165: 0 | AA165: 0 | AC165: =L165-INDEX($C165:$L165,1,aux!$BA$1) -> 0 | AD165: =AC165/$AC$252 -> 0 | AE165: =+IF(INDEX($C165:$L165,1,aux!$BA$1)>0,(L165/INDEX($C165:$L165,1,aux!$BA$1))^(1/($L$3-INDEX($C$3:$L$3,1,aux!$BA$1)))-1,"n.d.") -> n.d. | AF165: =IF(INDEX($C165:$L165,1,aux!$BA$1)>0,(L165-INDEX($C165:$L165,1,aux!$BA$1))/INDEX($C165:$L165,1,aux!$BA$1),"n.d.") -> n.d. | AH165: =X165-INDEX($O165:$X165,1,aux!$BA$1) -> 0 | AI165: =AH165/$AH$252 -> 0 | AJ165: =+IF(INDEX($O165:$X165,1,aux!$BA$1)>0,(X165/INDEX($O165:$X165,1,aux!$BA$1))^(1/($X$3-INDEX($O$3:$X$3,1,aux!$BA$1)))-1,"n.d.") -> n.d. | AK165: =IF(INDEX($O165:$X165,1,aux!$BA$1)>0,(X165-INDEX($O165:$X165,1,aux!$BA$1))/INDEX($O165:$X165,1,aux!$BA$1),"n.d.") -> n.d. | AM165: 0 | BO165: 0 | CC165: =+IF(ISNA(MATCH('5.1'!A165,AUX_2d_pais!$G$2:$G$40000,0)),0,1) -> 0
A166: 0432 | B166: Nicarágua | C166: 0 | D166: 0 | E166: 0 | F166: 0 | G166: 0 | H166: 0 | I166: 0 | J166: 0 | K166: 0 | L166: 0 | M166: 0 | N166: 0 | O166: 0 | P166: 0 | Q166: 0 | R166: 0 | S166: 0 | T166: 0 | U166: 0 | V166: 0 | W166: 0 | X166: 0 | Y166: 0 | Z166: 0 | AA166: 0 | AC166: =L166-INDEX($C166:$L166,1,aux!$BA$1) -> 0 | AD166: 0 | AE166: =+IF(INDEX($C166:$L166,1,aux!$BA$1)>0,(L166/INDEX($C166:$L166,1,aux!$BA$1))^(1/($L$3-INDEX($C$3:$L$3,1,aux!$BA$1)))-1,"n.d.") -> n.d. | AF166: =IF(INDEX($C166:$L166,1,aux!$BA$1)>0,(L166-INDEX($C166:$L166,1,aux!$BA$1))/INDEX($C166:$L166,1,aux!$BA$1),"n.d.") -> n.d. | AH166: =X166-INDEX($O166:$X166,1,aux!$BA$1) -> 0 | AI166: 0 | AJ166: =+IF(INDEX($O166:$X166,1,aux!$BA$1)>0,(X166/INDEX($O166:$X166,1,aux!$BA$1))^(1/($X$3-INDEX($O$3:$X$3,1,aux!$BA$1)))-1,"n.d.") -> n.d. | AK166: =IF(INDEX($O166:$X166,1,aux!$BA$1)>0,(X166-INDEX($O166:$X166,1,aux!$BA$1))/INDEX($O166:$X166,1,aux!$BA$1),"n.d.") -> n.d. | AM166: 0 | CC166: =+IF(ISNA(MATCH('5.1'!A166,AUX_2d_pais!$G$2:$G$40000,0)),0,1) -> 0
A167: 0240 | B167: Niger | C167: 0 | D167: 0 | E167: 0 | F167: 29.7 | G167: 362.869 | H167: 0 | I167: 0 | J167: 0 | K167: 0 | L167: 0 | M167: 39.2569 | N167: 9.100410933e-05 | O167: 12.123 | P167: 0 | Q167: 54.402 | R167: 40.271 | S167: 111.877 | T167: 260.743 | U167: 554.533 | V167: 600.402 | W167: 782.056 | X167: 283.674 | Y167: 270.0081 | Z167: 0.0002548064511 | AA167: 230.7512 | AC167: =L167-INDEX($C167:$L167,1,aux!$BA$1) -> 0 | AD167: 0 | AE167: =+IF(INDEX($C167:$L167,1,aux!$BA$1)>0,(L167/INDEX($C167:$L167,1,aux!$BA$1))^(1/($L$3-INDEX($C$3:$L$3,1,aux!$BA$1)))-1,"n.d.") -> n.d. | AF167: =IF(INDEX($C167:$L167,1,aux!$BA$1)>0,(L167-INDEX($C167:$L167,1,aux!$BA$1))/INDEX($C167:$L167,1,aux!$BA$1),"n.d.") -> n.d. | AH167: =X167-INDEX($O167:$X167,1,aux!$BA$1) -> 271.551 | AI167: 0.0008374674094 | AJ167: =+IF(INDEX($O167:$X167,1,aux!$BA$1)>0,(X167/INDEX($O167:$X167,1,aux!$BA$1))^(1/($X$3-INDEX($O$3:$X$3,1,aux!$BA$1)))-1,"n.d.") -> 0.4194966791 | AK167: =IF(INDEX($O167:$X167,1,aux!$BA$1)>0,(X167-INDEX($O167:$X167,1,aux!$BA$1))/INDEX($O167:$X167,1,aux!$BA$1),"n.d.") -> 22.39965355 | CC167: =+IF(ISNA(MATCH('5.1'!A167,AUX_2d_pais!$G$2:$G$40000,0)),0,1) -> 1
A168: 0288 | B168: Nigéria | C168: 2666.287 | D168: 2858.842 | E168: 4030.093 | F168: 4422.306 | G168: 5445.908 | H168: 2350.97 | I168: 2898.111 | J168: 4645.127 | K168: 4201.679 | L168: 5456.633 | M168: 3897.5956 | N168: 0.009035283379 | O168: 1155.074 | P168: 5051.235 | Q168: 11926.516 | R168: 11116.965 | S168: 10468.029 | T168: 14458.72 | U168: 11392.309 | V168: 8288.138 | W168: 6891.394 | X168: 9053.444 | Y168: 8980.1824 | Z168: 0.008474591717 | AA168: 5082.5868 | AC168: =L168-INDEX($C168:$L168,1,aux!$BA$1) -> 2790.346 | AD168: 0.0191652438 | AE168: =+IF(INDEX($C168:$L168,1,aux!$BA$1)>0,(L168/INDEX($C168:$L168,1,aux!$BA$1))^(1/($L$3-INDEX($C$3:$L$3,1,aux!$BA$1)))-1,"n.d.") -> 0.0828231669 | AF168: =IF(INDEX($C168:$L168,1,aux!$BA$1)>0,(L168-INDEX($C168:$L168,1,aux!$BA$1))/INDEX($C168:$L168,1,aux!$BA$1),"n.d.") -> 1.04652875 | AH168: =X168-INDEX($O168:$X168,1,aux!$BA$1) -> 7898.37 | AI168: 0.02435869307 | AJ168: =+IF(INDEX($O168:$X168,1,aux!$BA$1)>0,(X168/INDEX($O168:$X168,1,aux!$BA$1))^(1/($X$3-INDEX($O$3:$X$3,1,aux!$BA$1)))-1,"n.d.") -> 0.2570599827 | AK168: =IF(INDEX($O168:$X168,1,aux!$BA$1)>0,(X168-INDEX($O168:$X168,1,aux!$BA$1))/INDEX($O168:$X168,1,aux!$BA$1),"n.d.") -> 6.83797748 | CC168: =+IF(ISNA(MATCH('5.1'!A168,AUX_2d_pais!$G$2:$G$40000,0)),0,1) -> 1
A169: 0838 | B169: Niue | C169: 0 | D169: 0 | E169: 0 | F169: 0 | G169: 0 | H169: 0 | I169: 0 | J169: 0 | K169: 0 | L169: 0 | M169: 0 | N169: 0 | O169: 0 | P169: 0 | Q169: 0 | R169: 0 | S169: 0 | T169: 0 | U169: 0 | V169: 0 | W169: 0 | X169: 0 | Y169: 0 | Z169: 0 | AA169: 0 | AC169: =L169-INDEX($C169:$L169,1,aux!$BA$1) -> 0 | AD169: 0 | AE169: =+IF(INDEX($C169:$L169,1,aux!$BA$1)>0,(L169/INDEX($C169:$L169,1,aux!$BA$1))^(1/($L$3-INDEX($C$3:$L$3,1,aux!$BA$1)))-1,"n.d.") -> n.d. | AF169: =IF(INDEX($C169:$L169,1,aux!$BA$1)>0,(L169-INDEX($C169:$L169,1,aux!$BA$1))/INDEX($C169:$L169,1,aux!$BA$1),"n.d.") -> n.d. | AH169: =X169-INDEX($O169:$X169,1,aux!$BA$1) -> 0 | AI169: 0 | AJ169: =+IF(INDEX($O169:$X169,1,aux!$BA$1)>0,(X169/INDEX($O169:$X169,1,aux!$BA$1))^(1/($X$3-INDEX($O$3:$X$3,1,aux!$BA$1)))-1,"n.d.") -> n.d. | AK169: =IF(INDEX($O169:$X169,1,aux!$BA$1)>0,(X169-INDEX($O169:$X169,1,aux!$BA$1))/INDEX($O169:$X169,1,aux!$BA$1),"n.d.") -> n.d. | AM169: 0 | BO169: 0 | CC169: =+IF(ISNA(MATCH('5.1'!A169,AUX_2d_pais!$G$2:$G$40000,0)),0,1) -> 0
A170: 0836 | B170: Norfolk, Ilha | C170: 0 | D170: 0 | E170: 0 | F170: 0 | G170: 0 | H170: 0 | I170: 0 | J170: 0 | K170: 0 | L170: 0 | M170: 0 | N170: 0 | O170: 0 | P170: 0 | Q170: 0 | R170: 0 | S170: 0 | T170: 0 | U170: 0 | V170: 0 | W170: 0 | X170: 0 | Y170: 0 | Z170: 0 | AA170: 0 | AC170: =L170-INDEX($C170:$L170,1,aux!$BA$1) -> 0 | AD170: 0 | AE170: =+IF(INDEX($C170:$L170,1,aux!$BA$1)>0,(L170/INDEX($C170:$L170,1,aux!$BA$1))^(1/($L$3-INDEX($C$3:$L$3,1,aux!$BA$1)))-1,"n.d.") -> n.d. | AF170: =IF(INDEX($C170:$L170,1,aux!$BA$1)>0,(L170-INDEX($C170:$L170,1,aux!$BA$1))/INDEX($C170:$L170,1,aux!$BA$1),"n.d.") -> n.d. | AH170: =X170-INDEX($O170:$X170,1,aux!$BA$1) -> 0 | AI170: 0 | AJ170: =+IF(INDEX($O170:$X170,1,aux!$BA$1)>0,(X170/INDEX($O170:$X170,1,aux!$BA$1))^(1/($X$3-INDEX($O$3:$X$3,1,aux!$BA$1)))-1,"n.d.") -> n.d. | AK170: =IF(INDEX($O170:$X170,1,aux!$BA$1)>0,(X170-INDEX($O170:$X170,1,aux!$BA$1))/INDEX($O170:$X170,1,aux!$BA$1),"n.d.") -> n.d. | AM170: 0 | BO170: 0 | CC170: =+IF(ISNA(MATCH('5.1'!A170,AUX_2d_pais!$G$2:$G$40000,0)),0,1) -> 0
A171: 0028 | B171: Noruega | C171: 0 | D171: 0 | E171: 0 | F171: 0 | G171: 0 | H171: 0 | I171: 0 | J171: 0 | K171: 0 | L171: 0 | M171: 0 | N171: 0 | O171: 0 | P171: 0 | Q171: 0 | R171: 0 | S171: 0 | T171: 0 | U171: 0 | V171: 0 | W171: 0 | X171: 0 | Y171: 0 | Z171: 0 | AA171: 0 | AC171: =L171-INDEX($C171:$L171,1,aux!$BA$1) -> 0 | AD171: 0 | AE171: =+IF(INDEX($C171:$L171,1,aux!$BA$1)>0,(L171/INDEX($C171:$L171,1,aux!$BA$1))^(1/($L$3-INDEX($C$3:$L$3,1,aux!$BA$1)))-1,"n.d.") -> n.d. | AF171: =IF(INDEX($C171:$L171,1,aux!$BA$1)>0,(L171-INDEX($C171:$L171,1,aux!$BA$1))/INDEX($C171:$L171,1,aux!$BA$1),"n.d.") -> n.d. | AH171: =X171-INDEX($O171:$X171,1,aux!$BA$1) -> 0 | AI171: 0 | AJ171: =+IF(INDEX($O171:$X171,1,aux!$BA$1)>0,(X171/INDEX($O171:$X171,1,aux!$BA$1))^(1/($X$3-INDEX($O$3:$X$3,1,aux!$BA$1)))-1,"n.d.") -> n.d. | AK171: =IF(INDEX($O171:$X171,1,aux!$BA$1)>0,(X171-INDEX($O171:$X171,1,aux!$BA$1))/INDEX($O171:$X171,1,aux!$BA$1),"n.d.") -> n.d. | AM171: 0 | CC171: =+IF(ISNA(MATCH('5.1'!A171,AUX_2d_pais!$G$2:$G$40000,0)),0,1) -> 0
A172: 0809 | B172: Nova Caledónia | C172: 0 | D172: 0 | E172: 0 | F172: 0 | G172: 0 | H172: 0 | I172: 0 | J172: 0 | K172: 0 | L172: 0 | M172: 0 | N172: 0 | O172: 0 | P172: 0 | Q172: 0 | R172: 0 | S172: 0 | T172: 0 | U172: 0 | V172: 0 | W172: 0 | X172: 0 | Y172: 0 | Z172: 0 | AA172: 0 | AC172: =L172-INDEX($C172:$L172,1,aux!$BA$1) -> 0 | AD172: 0 | AE172: =+IF(INDEX($C172:$L172,1,aux!$BA$1)>0,(L172/INDEX($C172:$L172,1,aux!$BA$1))^(1/($L$3-INDEX($C$3:$L$3,1,aux!$BA$1)))-1,"n.d.") -> n.d. | AF172: =IF(INDEX($C172:$L172,1,aux!$BA$1)>0,(L172-INDEX($C172:$L172,1,aux!$BA$1))/INDEX($C172:$L172,1,aux!$BA$1),"n.d.") -> n.d. | AH172: =X172-INDEX($O172:$X172,1,aux!$BA$1) -> 0 | AI172: 0 | AJ172: =+IF(INDEX($O172:$X172,1,aux!$BA$1)>0,(X172/INDEX($O172:$X172,1,aux!$BA$1))^(1/($X$3-INDEX($O$3:$X$3,1,aux!$BA$1)))-1,"n.d.") -> n.d. | AK172: =IF(INDEX($O172:$X172,1,aux!$BA$1)>0,(X172-INDEX($O172:$X172,1,aux!$BA$1))/INDEX($O172:$X172,1,aux!$BA$1),"n.d.") -> n.d. | AM172: 0 | CC172: =+IF(ISNA(MATCH('5.1'!A172,AUX_2d_pais!$G$2:$G$40000,0)),0,1) -> 0
A173: 0804 | B173: Nova Zelânda | C173: 0 | D173: 0 | E173: 0 | F173: 0 | G173: 0 | H173: 0 | I173: 0 | J173: 0 | K173: 0 | L173: 0 | M173: 0 | N173: 0 | O173: 0 | P173: 0 | Q173: 0 | R173: 0 | S173: 0 | T173: 0 | U173: 0 | V173: 0 | W173: 0 | X173: 0 | Y173: 0 | Z173: 0 | AA173: 0 | AC173: =L173-INDEX($C173:$L173,1,aux!$BA$1) -> 0 | AD173: 0 | AE173: =+IF(INDEX($C173:$L173,1,aux!$BA$1)>0,(L173/INDEX($C173:$L173,1,aux!$BA$1))^(1/($L$3-INDEX($C$3:$L$3,1,aux!$BA$1)))-1,"n.d.") -> n.d. | AF173: =IF(INDEX($C173:$L173,1,aux!$BA$1)>0,(L173-INDEX($C173:$L173,1,aux!$BA$1))/INDEX($C173:$L173,1,aux!$BA$1),"n.d.") -> n.d. | AH173: =X173-INDEX($O173:$X173,1,aux!$BA$1) -> 0 | AI173: 0 | AJ173: =+IF(INDEX($O173:$X173,1,aux!$BA$1)>0,(X173/INDEX($O173:$X173,1,aux!$BA$1))^(1/($X$3-INDEX($O$3:$X$3,1,aux!$BA$1)))-1,"n.d.") -> n.d. | AK173: =IF(INDEX($O173:$X173,1,aux!$BA$1)>0,(X173-INDEX($O173:$X173,1,aux!$BA$1))/INDEX($O173:$X173,1,aux!$BA$1),"n.d.") -> n.d. | AM173: 0 | CC173: =+IF(ISNA(MATCH('5.1'!A173,AUX_2d_pais!$G$2:$G$40000,0)),0,1) -> 0
A174: 0357 | B174: Oceano Indico, Território Britânico do | C174: 0 | D174: 0 | E174: 0 | F174: 0 | G174: 0 | H174: 0 | I174: 0 | J174: 0 | K174: 0 | L174: 0 | M174: 0 | N174: 0 | O174: 0 | P174: 0 | Q174: 0 | R174: 0 | S174: 0 | T174: 0 | U174: 0 | V174: 0 | W174: 0 | X174: 0 | Y174: 0 | Z174: 0 | AA174: 0 | AC174: =L174-INDEX($C174:$L174,1,aux!$BA$1) -> 0 | AD174: 0 | AE174: =+IF(INDEX($C174:$L174,1,aux!$BA$1)>0,(L174/INDEX($C174:$L174,1,aux!$BA$1))^(1/($L$3-INDEX($C$3:$L$3,1,aux!$BA$1)))-1,"n.d.") -> n.d. | AF174: =IF(INDEX($C174:$L174,1,aux!$BA$1)>0,(L174-INDEX($C174:$L174,1,aux!$BA$1))/INDEX($C174:$L174,1,aux!$BA$1),"n.d.") -> n.d. | AH174: =X174-INDEX($O174:$X174,1,aux!$BA$1) -> 0 | AI174: 0 | AJ174: =+IF(INDEX($O174:$X174,1,aux!$BA$1)>0,(X174/INDEX($O174:$X174,1,aux!$BA$1))^(1/($X$3-INDEX($O$3:$X$3,1,aux!$BA$1)))-1,"n.d.") -> n.d. | AK174: =IF(INDEX($O174:$X174,1,aux!$BA$1)>0,(X174-INDEX($O174:$X174,1,aux!$BA$1))/INDEX($O174:$X174,1,aux!$BA$1),"n.d.") -> n.d. | AM174: 0 | BO174: 0 | CC174: =+IF(ISNA(MATCH('5.1'!A174,AUX_2d_pais!$G$2:$G$40000,0)),0,1) -> 0
A175: 0649 | B175: Omã | C175: 0 | D175: 0 | E175: 0 | F175: 0 | G175: 0 | H175: 0 | I175: 0 | J175: 0 | K175: 0 | L175: 0 | M175: 0 | N175: 0 | O175: 0 | P175: 0 | Q175: 0 | R175: 0 | S175: 0 | T175: 0 | U175: 0 | V175: 0 | W175: 0 | X175: 0 | Y175: 0 | Z175: 0 | AA175: 0 | AC175: =L175-INDEX($C175:$L175,1,aux!$BA$1) -> 0 | AD175: 0 | AE175: =+IF(INDEX($C175:$L175,1,aux!$BA$1)>0,(L175/INDEX($C175:$L175,1,aux!$BA$1))^(1/($L$3-INDEX($C$3:$L$3,1,aux!$BA$1)))-1,"n.d.") -> n.d. | AF175: =IF(INDEX($C175:$L175,1,aux!$BA$1)>0,(L175-INDEX($C175:$L175,1,aux!$BA$1))/INDEX($C175:$L175,1,aux!$BA$1),"n.d.") -> n.d. | AH175: =X175-INDEX($O175:$X175,1,aux!$BA$1) -> 0 | AI175: 0 | AJ175: =+IF(INDEX($O175:$X175,1,aux!$BA$1)>0,(X175/INDEX($O175:$X175,1,aux!$BA$1))^(1/($X$3-INDEX($O$3:$X$3,1,aux!$BA$1)))-1,"n.d.") -> n.d. | AK175: =IF(INDEX($O175:$X175,1,aux!$BA$1)>0,(X175-INDEX($O175:$X175,1,aux!$BA$1))/INDEX($O175:$X175,1,aux!$BA$1),"n.d.") -> n.d. | AM175: 0 | CC175: =+IF(ISNA(MATCH('5.1'!A175,AUX_2d_pais!$G$2:$G$40000,0)),0,1) -> 0
A176: 0003 | B176: Países Baixos | C176: 0 | D176: 0 | E176: 0 | F176: 0 | G176: 0 | H176: 0 | I176: 0 | J176: 0 | K176: 0 | L176: 0 | M176: 0 | N176: 0 | O176: 0 | P176: 0 | Q176: 0 | R176: 0 | S176: 0 | T176: 0 | U176: 0 | V176: 0 | W176: 0 | X176: 0 | Y176: 0 | Z176: 0 | AA176: 0 | AC176: =L176-INDEX($C176:$L176,1,aux!$BA$1) -> 0 | AD176: 0 | AE176: =+IF(INDEX($C176:$L176,1,aux!$BA$1)>0,(L176/INDEX($C176:$L176,1,aux!$BA$1))^(1/($L$3-INDEX($C$3:$L$3,1,aux!$BA$1)))-1,"n.d.") -> n.d. | AF176: =IF(INDEX($C176:$L176,1,aux!$BA$1)>0,(L176-INDEX($C176:$L176,1,aux!$BA$1))/INDEX($C176:$L176,1,aux!$BA$1),"n.d.") -> n.d. | AH176: =X176-INDEX($O176:$X176,1,aux!$BA$1) -> 0 | AI176: 0 | AJ176: =+IF(INDEX($O176:$X176,1,aux!$BA$1)>0,(X176/INDEX($O176:$X176,1,aux!$BA$1))^(1/($X$3-INDEX($O$3:$X$3,1,aux!$BA$1)))-1,"n.d.") -> n.d. | AK176: =IF(INDEX($O176:$X176,1,aux!$BA$1)>0,(X176-INDEX($O176:$X176,1,aux!$BA$1))/INDEX($O176:$X176,1,aux!$BA$1),"n.d.") -> n.d. | AM176: 0 | CC176: =+IF(ISNA(MATCH('5.1'!A176,AUX_2d_pais!$G$2:$G$40000,0)),0,1) -> 0
A177: 0825 | B177: Palau | C177: 0 | D177: 0 | E177: 0 | F177: 0 | G177: 0 | H177: 0 | I177: 0 | J177: 0 | K177: 0 | L177: 0 | M177: 0 | N177: 0 | O177: 0 | P177: 0 | Q177: 0 | R177: 0 | S177: 0 | T177: 0 | U177: 0 | V177: 0 | W177: 0 | X177: 0 | Y177: 0 | Z177: 0 | AA177: 0 | AC177: =L177-INDEX($C177:$L177,1,aux!$BA$1) -> 0 | AD177: 0 | AE177: =+IF(INDEX($C177:$L177,1,aux!$BA$1)>0,(L177/INDEX($C177:$L177,1,aux!$BA$1))^(1/($L$3-INDEX($C$3:$L$3,1,aux!$BA$1)))-1,"n.d.") -> n.d. | AF177: =IF(INDEX($C177:$L177,1,aux!$BA$1)>0,(L177-INDEX($C177:$L177,1,aux!$BA$1))/INDEX($C177:$L177,1,aux!$BA$1),"n.d.") -> n.d. | AH177: =X177-INDEX($O177:$X177,1,aux!$BA$1) -> 0 | AI177: 0 | AJ177: =+IF(INDEX($O177:$X177,1,aux!$BA$1)>0,(X177/INDEX($O177:$X177,1,aux!$BA$1))^(1/($X$3-INDEX($O$3:$X$3,1,aux!$BA$1)))-1,"n.d.") -> n.d. | AK177: =IF(INDEX($O177:$X177,1,aux!$BA$1)>0,(X177-INDEX($O177:$X177,1,aux!$BA$1))/INDEX($O177:$X177,1,aux!$BA$1),"n.d.") -> n.d. | AM177: 0 | BO177: 0 | CC177: =+IF(ISNA(MATCH('5.1'!A177,AUX_2d_pais!$G$2:$G$40000,0)),0,1) -> 0
A178: 0442 | B178: Panamá | C178: 0 | D178: 0 | E178: 0 | F178: 0 | G178: 0 | H178: 0 | I178: 0 | J178: 0 | K178: 0 | L178: 0 | M178: 0 | N178: 0 | O178: 0 | P178: 0 | Q178: 0 | R178: 0 | S178: 0 | T178: 0 | U178: 0 | V178: 0 | W178: 0 | X178: 0 | Y178: 0 | Z178: 0 | AA178: 0 | AC178: =L178-INDEX($C178:$L178,1,aux!$BA$1) -> 0 | AD178: 0 | AE178: =+IF(INDEX($C178:$L178,1,aux!$BA$1)>0,(L178/INDEX($C178:$L178,1,aux!$BA$1))^(1/($L$3-INDEX($C$3:$L$3,1,aux!$BA$1)))-1,"n.d.") -> n.d. | AF178: =IF(INDEX($C178:$L178,1,aux!$BA$1)>0,(L178-INDEX($C178:$L178,1,aux!$BA$1))/INDEX($C178:$L178,1,aux!$BA$1),"n.d.") -> n.d. | AH178: =X178-INDEX($O178:$X178,1,aux!$BA$1) -> 0 | AI178: 0 | AJ178: =+IF(INDEX($O178:$X178,1,aux!$BA$1)>0,(X178/INDEX($O178:$X178,1,aux!$BA$1))^(1/($X$3-INDEX($O$3:$X$3,1,aux!$BA$1)))-1,"n.d.") -> n.d. | AK178: =IF(INDEX($O178:$X178,1,aux!$BA$1)>0,(X178-INDEX($O178:$X178,1,aux!$BA$1))/INDEX($O178:$X178,1,aux!$BA$1),"n.d.") -> n.d. | AM178: 0 | CC178: =+IF(ISNA(MATCH('5.1'!A178,AUX_2d_pais!$G$2:$G$40000,0)),0,1) -> 0
A179: 0801 | B179: Papuásia-Nova Guiné | C179: 0 | D179: 0 | E179: 0 | F179: 0 | G179: 0 | H179: 0 | I179: 0 | J179: 0 | K179: 0 | L179: 0 | M179: 0 | N179: 0 | O179: 0 | P179: 0 | Q179: 0 | R179: 0 | S179: 0 | T179: 0 | U179: 0 | V179: 0 | W179: 0 | X179: 0 | Y179: 0 | Z179: 0 | AA179: 0 | AC179: =L179-INDEX($C179:$L179,1,aux!$BA$1) -> 0 | AD179: 0 | AE179: =+IF(INDEX($C179:$L179,1,aux!$BA$1)>0,(L179/INDEX($C179:$L179,1,aux!$BA$1))^(1/($L$3-INDEX($C$3:$L$3,1,aux!$BA$1)))-1,"n.d.") -> n.d. | AF179: =IF(INDEX($C179:$L179,1,aux!$BA$1)>0,(L179-INDEX($C179:$L179,1,aux!$BA$1))/INDEX($C179:$L179,1,aux!$BA$1),"n.d.") -> n.d. | AH179: =X179-INDEX($O179:$X179,1,aux!$BA$1) -> 0 | AI179: 0 | AJ179: =+IF(INDEX($O179:$X179,1,aux!$BA$1)>0,(X179/INDEX($O179:$X179,1,aux!$BA$1))^(1/($X$3-INDEX($O$3:$X$3,1,aux!$BA$1)))-1,"n.d.") -> n.d. | AK179: =IF(INDEX($O179:$X179,1,aux!$BA$1)>0,(X179-INDEX($O179:$X179,1,aux!$BA$1))/INDEX($O179:$X179,1,aux!$BA$1),"n.d.") -> n.d. | AM179: 0 | BO179: 0 | CC179: =+IF(ISNA(MATCH('5.1'!A179,AUX_2d_pais!$G$2:$G$40000,0)),0,1) -> 0
A180: 0662 | B180: Paquistão | C180: 0 | D180: 0 | E180: 0 | F180: 0 | G180: 0 | H180: 0 | I180: 0 | J180: 0 | K180: 0 | L180: 0 | M180: 0 | N180: 0 | O180: 0 | P180: 0 | Q180: 0 | R180: 0 | S180: 0 | T180: 0 | U180: 0 | V180: 0 | W180: 0 | X180: 0 | Y180: 0 | Z180: 0 | AA180: 0 | AC180: =L180-INDEX($C180:$L180,1,aux!$BA$1) -> 0 | AD180: 0 | AE180: =+IF(INDEX($C180:$L180,1,aux!$BA$1)>0,(L180/INDEX($C180:$L180,1,aux!$BA$1))^(1/($L$3-INDEX($C$3:$L$3,1,aux!$BA$1)))-1,"n.d.") -> n.d. | AF180: =IF(INDEX($C180:$L180,1,aux!$BA$1)>0,(L180-INDEX($C180:$L180,1,aux!$BA$1))/INDEX($C180:$L180,1,aux!$BA$1),"n.d.") -> n.d. | AH180: =X180-INDEX($O180:$X180,1,aux!$BA$1) -> 0 | AI180: 0 | AJ180: =+IF(INDEX($O180:$X180,1,aux!$BA$1)>0,(X180/INDEX($O180:$X180,1,aux!$BA$1))^(1/($X$3-INDEX($O$3:$X$3,1,aux!$BA$1)))-1,"n.d.") -> n.d. | AK180: =IF(INDEX($O180:$X180,1,aux!$BA$1)>0,(X180-INDEX($O180:$X180,1,aux!$BA$1))/INDEX($O180:$X180,1,aux!$BA$1),"n.d.") -> n.d. | AM180: 0 | CC180: =+IF(ISNA(MATCH('5.1'!A180,AUX_2d_pais!$G$2:$G$40000,0)),0,1) -> 0
A181: 0520 | B181: Paraguai | C181: 0 | D181: 0 | E181: 0 | F181: 0 | G181: 0 | H181: 0 | I181: 0 | J181: 0 | K181: 0 | L181: 0 | M181: 0 | N181: 0 | O181: 0 | P181: 0 | Q181: 0 | R181: 0 | S181: 0 | T181: 0 | U181: 0 | V181: 0 | W181: 0 | X181: 0 | Y181: 0 | Z181: 0 | AA181: 0 | AC181: =L181-INDEX($C181:$L181,1,aux!$BA$1) -> 0 | AD181: 0 | AE181: =+IF(INDEX($C181:$L181,1,aux!$BA$1)>0,(L181/INDEX($C181:$L181,1,aux!$BA$1))^(1/($L$3-INDEX($C$3:$L$3,1,aux!$BA$1)))-1,"n.d.") -> n.d. | AF181: =IF(INDEX($C181:$L181,1,aux!$BA$1)>0,(L181-INDEX($C181:$L181,1,aux!$BA$1))/INDEX($C181:$L181,1,aux!$BA$1),"n.d.") -> n.d. | AH181: =X181-INDEX($O181:$X181,1,aux!$BA$1) -> 0 | AI181: 0 | AJ181: =+IF(INDEX($O181:$X181,1,aux!$BA$1)>0,(X181/INDEX($O181:$X181,1,aux!$BA$1))^(1/($X$3-INDEX($O$3:$X$3,1,aux!$BA$1)))-1,"n.d.") -> n.d. | AK181: =IF(INDEX($O181:$X181,1,aux!$BA$1)>0,(X181-INDEX($O181:$X181,1,aux!$BA$1))/INDEX($O181:$X181,1,aux!$BA$1),"n.d.") -> n.d. | AM181: 0 | CC181: =+IF(ISNA(MATCH('5.1'!A181,AUX_2d_pais!$G$2:$G$40000,0)),0,1) -> 0
A182: 0504 | B182: Peru | C182: 0 | D182: 0 | E182: 0 | F182: 0 | G182: 0 | H182: 0 | I182: 0 | J182: 0 | K182: 0 | L182: 0 | M182: 0 | N182: 0 | O182: 0 | P182: 0 | Q182: 0 | R182: 0 | S182: 0 | T182: 0 | U182: 0 | V182: 0 | W182: 0 | X182: 0 | Y182: 0 | Z182: 0 | AA182: 0 | AC182: =L182-INDEX($C182:$L182,1,aux!$BA$1) -> 0 | AD182: 0 | AE182: =+IF(INDEX($C182:$L182,1,aux!$BA$1)>0,(L182/INDEX($C182:$L182,1,aux!$BA$1))^(1/($L$3-INDEX($C$3:$L$3,1,aux!$BA$1)))-1,"n.d.") -> n.d. | AF182: =IF(INDEX($C182:$L182,1,aux!$BA$1)>0,(L182-INDEX($C182:$L182,1,aux!$BA$1))/INDEX($C182:$L182,1,aux!$BA$1),"n.d.") -> n.d. | AH182: =X182-INDEX($O182:$X182,1,aux!$BA$1) -> 0 | AI182: 0 | AJ182: =+IF(INDEX($O182:$X182,1,aux!$BA$1)>0,(X182/INDEX($O182:$X182,1,aux!$BA$1))^(1/($X$3-INDEX($O$3:$X$3,1,aux!$BA$1)))-1,"n.d.") -> n.d. | AK182: =IF(INDEX($O182:$X182,1,aux!$BA$1)>0,(X182-INDEX($O182:$X182,1,aux!$BA$1))/INDEX($O182:$X182,1,aux!$BA$1),"n.d.") -> n.d. | AM182: 0 | CC182: =+IF(ISNA(MATCH('5.1'!A182,AUX_2d_pais!$G$2:$G$40000,0)),0,1) -> 0
A183: 0813 | B183: Pitcairn | C183: 0 | D183: 0 | E183: 0 | F183: 0 | G183: 0 | H183: 0 | I183: 0 | J183: 0 | K183: 0 | L183: 0 | M183: 0 | N183: 0 | O183: 0 | P183: 0 | Q183: 0 | R183: 0 | S183: 0 | T183: 0 | U183: 0 | V183: 0 | W183: 0 | X183: 0 | Y183: 0 | Z183: 0 | AA183: 0 | AC183: =L183-INDEX($C183:$L183,1,aux!$BA$1) -> 0 | AD183: 0 | AE183: =+IF(INDEX($C183:$L183,1,aux!$BA$1)>0,(L183/INDEX($C183:$L183,1,aux!$BA$1))^(1/($L$3-INDEX($C$3:$L$3,1,aux!$BA$1)))-1,"n.d.") -> n.d. | AF183: =IF(INDEX($C183:$L183,1,aux!$BA$1)>0,(L183-INDEX($C183:$L183,1,aux!$BA$1))/INDEX($C183:$L183,1,aux!$BA$1),"n.d.") -> n.d. | AH183: =X183-INDEX($O183:$X183,1,aux!$BA$1) -> 0 | AI183: 0 | AJ183: =+IF(INDEX($O183:$X183,1,aux!$BA$1)>0,(X183/INDEX($O183:$X183,1,aux!$BA$1))^(1/($X$3-INDEX($O$3:$X$3,1,aux!$BA$1)))-1,"n.d.") -> n.d. | AK183: =IF(INDEX($O183:$X183,1,aux!$BA$1)>0,(X183-INDEX($O183:$X183,1,aux!$BA$1))/INDEX($O183:$X183,1,aux!$BA$1),"n.d.") -> n.d. | AM183: 0 | BO183: 0 | CC183: =+IF(ISNA(MATCH('5.1'!A183,AUX_2d_pais!$G$2:$G$40000,0)),0,1) -> 0
A184: 0822 | B184: Polinésia Francesa | C184: 0 | D184: 0 | E184: 0 | F184: 0 | G184: 0 | H184: 0 | I184: 0 | J184: 0 | K184: 0 | L184: 0 | M184: 0 | N184: 0 | O184: 0 | P184: 0 | Q184: 0 | R184: 0 | S184: 0 | T184: 0 | U184: 0 | V184: 0 | W184: 0 | X184: 0 | Y184: 0 | Z184: 0 | AA184: 0 | AC184: =L184-INDEX($C184:$L184,1,aux!$BA$1) -> 0 | AD184: 0 | AE184: =+IF(INDEX($C184:$L184,1,aux!$BA$1)>0,(L184/INDEX($C184:$L184,1,aux!$BA$1))^(1/($L$3-INDEX($C$3:$L$3,1,aux!$BA$1)))-1,"n.d.") -> n.d. | AF184: =IF(INDEX($C184:$L184,1,aux!$BA$1)>0,(L184-INDEX($C184:$L184,1,aux!$BA$1))/INDEX($C184:$L184,1,aux!$BA$1),"n.d.") -> n.d. | AH184: =X184-INDEX($O184:$X184,1,aux!$BA$1) -> 0 | AI184: 0 | AJ184: =+IF(INDEX($O184:$X184,1,aux!$BA$1)>0,(X184/INDEX($O184:$X184,1,aux!$BA$1))^(1/($X$3-INDEX($O$3:$X$3,1,aux!$BA$1)))-1,"n.d.") -> n.d. | AK184: =IF(INDEX($O184:$X184,1,aux!$BA$1)>0,(X184-INDEX($O184:$X184,1,aux!$BA$1))/INDEX($O184:$X184,1,aux!$BA$1),"n.d.") -> n.d. | AM184: 0 | CC184: =+IF(ISNA(MATCH('5.1'!A184,AUX_2d_pais!$G$2:$G$40000,0)),0,1) -> 0
A185: 0060 | B185: Polónia | C185: 0 | D185: 0 | E185: 0 | F185: 0 | G185: 0 | H185: 0 | I185: 0 | J185: 0 | K185: 0 | L185: 0 | M185: 0 | N185: 0 | O185: 0 | P185: 0 | Q185: 0 | R185: 0 | S185: 0 | T185: 0 | U185: 0 | V185: 0 | W185: 0 | X185: 0 | Y185: 0 | Z185: 0 | AA185: 0 | AC185: =L185-INDEX($C185:$L185,1,aux!$BA$1) -> 0 | AD185: 0 | AE185: =+IF(INDEX($C185:$L185,1,aux!$BA$1)>0,(L185/INDEX($C185:$L185,1,aux!$BA$1))^(1/($L$3-INDEX($C$3:$L$3,1,aux!$BA$1)))-1,"n.d.") -> n.d. | AF185: =IF(INDEX($C185:$L185,1,aux!$BA$1)>0,(L185-INDEX($C185:$L185,1,aux!$BA$1))/INDEX($C185:$L185,1,aux!$BA$1),"n.d.") -> n.d. | AH185: =X185-INDEX($O185:$X185,1,aux!$BA$1) -> 0 | AI185: 0 | AJ185: =+IF(INDEX($O185:$X185,1,aux!$BA$1)>0,(X185/INDEX($O185:$X185,1,aux!$BA$1))^(1/($X$3-INDEX($O$3:$X$3,1,aux!$BA$1)))-1,"n.d.") -> n.d. | AK185: =IF(INDEX($O185:$X185,1,aux!$BA$1)>0,(X185-INDEX($O185:$X185,1,aux!$BA$1))/INDEX($O185:$X185,1,aux!$BA$1),"n.d.") -> n.d. | AM185: 0 | CC185: =+IF(ISNA(MATCH('5.1'!A185,AUX_2d_pais!$G$2:$G$40000,0)),0,1) -> 0
A186: 0346 | B186: Quénia | C186: 3646.036 | D186: 3816.075 | E186: 4281.679 | F186: 3664.098 | G186: 3864.201 | H186: 4062.388 | I186: 4089.5 | J186: 5559.069 | K186: 4721.322 | L186: 4657.47 | M186: 4236.1838 | N186: 0.009820187882 | O186: 911.437 | P186: 1326.008 | Q186: 2460.562 | R186: 1686.224 | S186: 3832.375 | T186: 2204.215 | U186: 1981.461 | V186: 1551.387 | W186: 1724.376 | X186: 4846.754 | Y186: 2252.4799 | Z186: 0.002125663673 | AA186: -1983.7039 | AC186: =L186-INDEX($C186:$L186,1,aux!$BA$1) -> 1011.434 | AD186: 0.006946944642 | AE186: =+IF(INDEX($C186:$L186,1,aux!$BA$1)>0,(L186/INDEX($C186:$L186,1,aux!$BA$1))^(1/($L$3-INDEX($C$3:$L$3,1,aux!$BA$1)))-1,"n.d.") -> 0.02757693132 | AF186: =IF(INDEX($C186:$L186,1,aux!$BA$1)>0,(L186-INDEX($C186:$L186,1,aux!$BA$1))/INDEX($C186:$L186,1,aux!$BA$1),"n.d.") -> 0.2774064765 | AH186: =X186-INDEX($O186:$X186,1,aux!$BA$1) -> 3935.317 | AI186: 0.01213657741 | AJ186: =+IF(INDEX($O186:$X186,1,aux!$BA$1)>0,(X186/INDEX($O186:$X186,1,aux!$BA$1))^(1/($X$3-INDEX($O$3:$X$3,1,aux!$BA$1)))-1,"n.d.") -> 0.2040264729 | AK186: =IF(INDEX($O186:$X186,1,aux!$BA$1)>0,(X186-INDEX($O186:$X186,1,aux!$BA$1))/INDEX($O186:$X186,1,aux!$BA$1),"n.d.") -> 4.317705996 | CC186: =+IF(ISNA(MATCH('5.1'!A186,AUX_2d_pais!$G$2:$G$40000,0)),0,1) -> 1
A187: 0083 | B187: Quirguizistão | C187: 0 | D187: 0 | E187: 0 | F187: 0 | G187: 0 | H187: 0 | I187: 0 | J187: 0 | K187: 0 | L187: 0 | M187: 0 | N187: 0 | O187: 0 | P187: 0 | Q187: 0 | R187: 0 | S187: 0 | T187: 0 | U187: 0 | V187: 0 | W187: 0 | X187: 0 | Y187: 0 | Z187: 0 | AA187: 0 | AC187: =L187-INDEX($C187:$L187,1,aux!$BA$1) -> 0 | AD187: 0 | AE187: =+IF(INDEX($C187:$L187,1,aux!$BA$1)>0,(L187/INDEX($C187:$L187,1,aux!$BA$1))^(1/($L$3-INDEX($C$3:$L$3,1,aux!$BA$1)))-1,"n.d.") -> n.d. | AF187: =IF(INDEX($C187:$L187,1,aux!$BA$1)>0,(L187-INDEX($C187:$L187,1,aux!$BA$1))/INDEX($C187:$L187,1,aux!$BA$1),"n.d.") -> n.d. | AH187: =X187-INDEX($O187:$X187,1,aux!$BA$1) -> 0 | AI187: 0 | AJ187: =+IF(INDEX($O187:$X187,1,aux!$BA$1)>0,(X187/INDEX($O187:$X187,1,aux!$BA$1))^(1/($X$3-INDEX($O$3:$X$3,1,aux!$BA$1)))-1,"n.d.") -> n.d. | AK187: =IF(INDEX($O187:$X187,1,aux!$BA$1)>0,(X187-INDEX($O187:$X187,1,aux!$BA$1))/INDEX($O187:$X187,1,aux!$BA$1),"n.d.") -> n.d. | AM187: 0 | CC187: =+IF(ISNA(MATCH('5.1'!A187,AUX_2d_pais!$G$2:$G$40000,0)),0,1) -> 0
A188: 0890 | B188: Região Polar | C188: 0 | D188: 0 | E188: 0 | F188: 0 | G188: 0 | H188: 0 | I188: 0 | J188: 0 | K188: 0 | L188: 0 | M188: 0 | N188: 0 | O188: 0 | P188: 0 | Q188: 0 | R188: 0 | S188: 0 | T188: 0 | U188: 0 | V188: 0 | W188: 0 | X188: 0 | Y188: 0 | Z188: 0 | AA188: 0 | AC188: =L188-INDEX($C188:$L188,1,aux!$BA$1) -> 0 | AD188: 0 | AE188: =+IF(INDEX($C188:$L188,1,aux!$BA$1)>0,(L188/INDEX($C188:$L188,1,aux!$BA$1))^(1/($L$3-INDEX($C$3:$L$3,1,aux!$BA$1)))-1,"n.d.") -> n.d. | AF188: =IF(INDEX($C188:$L188,1,aux!$BA$1)>0,(L188-INDEX($C188:$L188,1,aux!$BA$1))/INDEX($C188:$L188,1,aux!$BA$1),"n.d.") -> n.d. | AH188: =X188-INDEX($O188:$X188,1,aux!$BA$1) -> 0 | AI188: 0 | AJ188: =+IF(INDEX($O188:$X188,1,aux!$BA$1)>0,(X188/INDEX($O188:$X188,1,aux!$BA$1))^(1/($X$3-INDEX($O$3:$X$3,1,aux!$BA$1)))-1,"n.d.") -> n.d. | AK188: =IF(INDEX($O188:$X188,1,aux!$BA$1)>0,(X188-INDEX($O188:$X188,1,aux!$BA$1))/INDEX($O188:$X188,1,aux!$BA$1),"n.d.") -> n.d. | AM188: 0 | BO188: 0 | CC188: =+IF(ISNA(MATCH('5.1'!A188,AUX_2d_pais!$G$2:$G$40000,0)),0,1) -> 0
A189: 0006 | B189: Reino Unido | C189: 0 | D189: 0 | E189: 0 | F189: 0 | G189: 0 | H189: 0 | I189: 0 | J189: 0 | K189: 0 | L189: 0 | M189: 0 | N189: 0 | O189: 0 | P189: 0 | Q189: 0 | R189: 0 | S189: 0 | T189: 0 | U189: 0 | V189: 0 | W189: 0 | X189: 0 | Y189: 0 | Z189: 0 | AA189: 0 | AC189: =L189-INDEX($C189:$L189,1,aux!$BA$1) -> 0 | AD189: 0 | AE189: =+IF(INDEX($C189:$L189,1,aux!$BA$1)>0,(L189/INDEX($C189:$L189,1,aux!$BA$1))^(1/($L$3-INDEX($C$3:$L$3,1,aux!$BA$1)))-1,"n.d.") -> n.d. | AF189: =IF(INDEX($C189:$L189,1,aux!$BA$1)>0,(L189-INDEX($C189:$L189,1,aux!$BA$1))/INDEX($C189:$L189,1,aux!$BA$1),"n.d.") -> n.d. | AH189: =X189-INDEX($O189:$X189,1,aux!$BA$1) -> 0 | AI189: 0 | AJ189: =+IF(INDEX($O189:$X189,1,aux!$BA$1)>0,(X189/INDEX($O189:$X189,1,aux!$BA$1))^(1/($X$3-INDEX($O$3:$X$3,1,aux!$BA$1)))-1,"n.d.") -> n.d. | AK189: =IF(INDEX($O189:$X189,1,aux!$BA$1)>0,(X189-INDEX($O189:$X189,1,aux!$BA$1))/INDEX($O189:$X189,1,aux!$BA$1),"n.d.") -> n.d. | AM189: 0 | CC189: =+IF(ISNA(MATCH('5.1'!A189,AUX_2d_pais!$G$2:$G$40000,0)),0,1) -> 0
A190: 0372 | B190: Reunião, Ilha da | C190: 0 | D190: 0 | E190: 0 | F190: 0 | G190: 0 | H190: 0 | I190: 0 | J190: 0 | K190: 0 | L190: 0 | M190: 0 | N190: 0 | O190: 0 | P190: 0 | Q190: 0 | R190: 0 | S190: 0 | T190: 0 | U190: 0 | V190: 0 | W190: 0 | X190: 0 | Y190: 0 | Z190: 0 | AA190: 0 | AC190: =L190-INDEX($C190:$L190,1,aux!$BA$1) -> 0 | AD190: 0 | AE190: =+IF(INDEX($C190:$L190,1,aux!$BA$1)>0,(L190/INDEX($C190:$L190,1,aux!$BA$1))^(1/($L$3-INDEX($C$3:$L$3,1,aux!$BA$1)))-1,"n.d.") -> n.d. | AF190: =IF(INDEX($C190:$L190,1,aux!$BA$1)>0,(L190-INDEX($C190:$L190,1,aux!$BA$1))/INDEX($C190:$L190,1,aux!$BA$1),"n.d.") -> n.d. | AH190: =X190-INDEX($O190:$X190,1,aux!$BA$1) -> 0 | AI190: 0 | AJ190: =+IF(INDEX($O190:$X190,1,aux!$BA$1)>0,(X190/INDEX($O190:$X190,1,aux!$BA$1))^(1/($X$3-INDEX($O$3:$X$3,1,aux!$BA$1)))-1,"n.d.") -> n.d. | AK190: =IF(INDEX($O190:$X190,1,aux!$BA$1)>0,(X190-INDEX($O190:$X190,1,aux!$BA$1))/INDEX($O190:$X190,1,aux!$BA$1),"n.d.") -> n.d. | AM190: 0 | BO190: 0 | CC190: =+IF(ISNA(MATCH('5.1'!A190,AUX_2d_pais!$G$2:$G$40000,0)),0,1) -> 0
A191: 0066 | B191: Roménia | C191: 0 | D191: 0 | E191: 0 | F191: 0 | G191: 0 | H191: 0 | I191: 0 | J191: 0 | K191: 0 | L191: 0 | M191: 0 | N191: 0 | O191: 0 | P191: 0 | Q191: 0 | R191: 0 | S191: 0 | T191: 0 | U191: 0 | V191: 0 | W191: 0 | X191: 0 | Y191: 0 | Z191: 0 | AA191: 0 | AC191: =L191-INDEX($C191:$L191,1,aux!$BA$1) -> 0 | AD191: 0 | AE191: =+IF(INDEX($C191:$L191,1,aux!$BA$1)>0,(L191/INDEX($C191:$L191,1,aux!$BA$1))^(1/($L$3-INDEX($C$3:$L$3,1,aux!$BA$1)))-1,"n.d.") -> n.d. | AF191: =IF(INDEX($C191:$L191,1,aux!$BA$1)>0,(L191-INDEX($C191:$L191,1,aux!$BA$1))/INDEX($C191:$L191,1,aux!$BA$1),"n.d.") -> n.d. | AH191: =X191-INDEX($O191:$X191,1,aux!$BA$1) -> 0 | AI191: 0 | AJ191: =+IF(INDEX($O191:$X191,1,aux!$BA$1)>0,(X191/INDEX($O191:$X191,1,aux!$BA$1))^(1/($X$3-INDEX($O$3:$X$3,1,aux!$BA$1)))-1,"n.d.") -> n.d. | AK191: =IF(INDEX($O191:$X191,1,aux!$BA$1)>0,(X191-INDEX($O191:$X191,1,aux!$BA$1))/INDEX($O191:$X191,1,aux!$BA$1),"n.d.") -> n.d. | AM191: 0 | CC191: =+IF(ISNA(MATCH('5.1'!A191,AUX_2d_pais!$G$2:$G$40000,0)),0,1) -> 0
A192: 0324 | B192: Ruanda | C192: 265.655 | D192: 875.701 | E192: 184.57 | F192: 0 | G192: 0 | H192: 0 | I192: 314.975 | J192: 0 | K192: 234.818 | L192: 0 | M192: 187.5719 | N192: 0.0004348232717 | O192: 0.122 | P192: 0 | Q192: 0 | R192: 33.215 | S192: 0.188 | T192: 0 | U192: 27.122 | V192: 0.21 | W192: 192.537 | X192: 1785.885 | Y192: 203.9279 | Z192: 0.0001924466136 | AA192: 16.356 | AC192: =L192-INDEX($C192:$L192,1,aux!$BA$1) -> -265.655 | AD192: -0.001824627785 | AE192: =+IF(INDEX($C192:$L192,1,aux!$BA$1)>0,(L192/INDEX($C192:$L192,1,aux!$BA$1))^(1/($L$3-INDEX($C$3:$L$3,1,aux!$BA$1)))-1,"n.d.") -> -1 | AF192: =IF(INDEX($C192:$L192,1,aux!$BA$1)>0,(L192-INDEX($C192:$L192,1,aux!$BA$1))/INDEX($C192:$L192,1,aux!$BA$1),"n.d.") -> -1 | AH192: =X192-INDEX($O192:$X192,1,aux!$BA$1) -> 1785.763 | AI192: 0.005507320222 | AJ192: =+IF(INDEX($O192:$X192,1,aux!$BA$1)>0,(X192/INDEX($O192:$X192,1,aux!$BA$1))^(1/($X$3-INDEX($O$3:$X$3,1,aux!$BA$1)))-1,"n.d.") -> 1.902903699 | AK192: =IF(INDEX($O192:$X192,1,aux!$BA$1)>0,(X192-INDEX($O192:$X192,1,aux!$BA$1))/INDEX($O192:$X192,1,aux!$BA$1),"n.d.") -> 14637.40164 | BO192: 3914.998 | CC192: =+IF(ISNA(MATCH('5.1'!A192,AUX_2d_pais!$G$2:$G$40000,0)),0,1) -> 1
A193: 0075 | B193: Rússia, Federação da | C193: 0 | D193: 0 | E193: 0 | F193: 0 | G193: 0 | H193: 0 | I193: 0 | J193: 0 | K193: 0 | L193: 0 | M193: 0 | N193: 0 | O193: 0 | P193: 0 | Q193: 0 | R193: 0 | S193: 0 | T193: 0 | U193: 0 | V193: 0 | W193: 0 | X193: 0 | Y193: 0 | Z193: 0 | AA193: 0 | AC193: =L193-INDEX($C193:$L193,1,aux!$BA$1) -> 0 | AD193: 0 | AE193: =+IF(INDEX($C193:$L193,1,aux!$BA$1)>0,(L193/INDEX($C193:$L193,1,aux!$BA$1))^(1/($L$3-INDEX($C$3:$L$3,1,aux!$BA$1)))-1,"n.d.") -> n.d. | AF193: =IF(INDEX($C193:$L193,1,aux!$BA$1)>0,(L193-INDEX($C193:$L193,1,aux!$BA$1))/INDEX($C193:$L193,1,aux!$BA$1),"n.d.") -> n.d. | AH193: =X193-INDEX($O193:$X193,1,aux!$BA$1) -> 0 | AI193: 0 | AJ193: =+IF(INDEX($O193:$X193,1,aux!$BA$1)>0,(X193/INDEX($O193:$X193,1,aux!$BA$1))^(1/($X$3-INDEX($O$3:$X$3,1,aux!$BA$1)))-1,"n.d.") -> n.d. | AK193: =IF(INDEX($O193:$X193,1,aux!$BA$1)>0,(X193-INDEX($O193:$X193,1,aux!$BA$1))/INDEX($O193:$X193,1,aux!$BA$1),"n.d.") -> n.d. | AM193: 0 | CC193: =+IF(ISNA(MATCH('5.1'!A193,AUX_2d_pais!$G$2:$G$40000,0)),0,1) -> 0
A194: 0806 | B194: Salomão, Ilhas | C194: 0 | D194: 0 | E194: 0 | F194: 0 | G194: 0 | H194: 0 | I194: 0 | J194: 0 | K194: 0 | L194: 0 | M194: 0 | N194: 0 | O194: 0 | P194: 0 | Q194: 0 | R194: 0 | S194: 0 | T194: 0 | U194: 0 | V194: 0 | W194: 0 | X194: 0 | Y194: 0 | Z194: 0 | AA194: 0 | AC194: =L194-INDEX($C194:$L194,1,aux!$BA$1) -> 0 | AD194: 0 | AE194: =+IF(INDEX($C194:$L194,1,aux!$BA$1)>0,(L194/INDEX($C194:$L194,1,aux!$BA$1))^(1/($L$3-INDEX($C$3:$L$3,1,aux!$BA$1)))-1,"n.d.") -> n.d. | AF194: =IF(INDEX($C194:$L194,1,aux!$BA$1)>0,(L194-INDEX($C194:$L194,1,aux!$BA$1))/INDEX($C194:$L194,1,aux!$BA$1),"n.d.") -> n.d. | AH194: =X194-INDEX($O194:$X194,1,aux!$BA$1) -> 0 | AI194: 0 | AJ194: =+IF(INDEX($O194:$X194,1,aux!$BA$1)>0,(X194/INDEX($O194:$X194,1,aux!$BA$1))^(1/($X$3-INDEX($O$3:$X$3,1,aux!$BA$1)))-1,"n.d.") -> n.d. | AK194: =IF(INDEX($O194:$X194,1,aux!$BA$1)>0,(X194-INDEX($O194:$X194,1,aux!$BA$1))/INDEX($O194:$X194,1,aux!$BA$1),"n.d.") -> n.d. | AM194: 0 | BO194: 0 | CC194: =+IF(ISNA(MATCH('5.1'!A194,AUX_2d_pais!$G$2:$G$40000,0)),0,1) -> 0
A195: 0819 | B195: Samoa | C195: 0 | D195: 0 | E195: 0 | F195: 0 | G195: 0 | H195: 0 | I195: 0 | J195: 0 | K195: 0 | L195: 0 | M195: 0 | N195: 0 | O195: 0 | P195: 0 | Q195: 0 | R195: 0 | S195: 0 | T195: 0 | U195: 0 | V195: 0 | W195: 0 | X195: 0 | Y195: 0 | Z195: 0 | AA195: 0 | AC195: =L195-INDEX($C195:$L195,1,aux!$BA$1) -> 0 | AD195: 0 | AE195: =+IF(INDEX($C195:$L195,1,aux!$BA$1)>0,(L195/INDEX($C195:$L195,1,aux!$BA$1))^(1/($L$3-INDEX($C$3:$L$3,1,aux!$BA$1)))-1,"n.d.") -> n.d. | AF195: =IF(INDEX($C195:$L195,1,aux!$BA$1)>0,(L195-INDEX($C195:$L195,1,aux!$BA$1))/INDEX($C195:$L195,1,aux!$BA$1),"n.d.") -> n.d. | AH195: =X195-INDEX($O195:$X195,1,aux!$BA$1) -> 0 | AI195: 0 | AJ195: =+IF(INDEX($O195:$X195,1,aux!$BA$1)>0,(X195/INDEX($O195:$X195,1,aux!$BA$1))^(1/($X$3-INDEX($O$3:$X$3,1,aux!$BA$1)))-1,"n.d.") -> n.d. | AK195: =IF(INDEX($O195:$X195,1,aux!$BA$1)>0,(X195-INDEX($O195:$X195,1,aux!$BA$1))/INDEX($O195:$X195,1,aux!$BA$1),"n.d.") -> n.d. | AM195: 0 | BO195: 0 | CC195: =+IF(ISNA(MATCH('5.1'!A195,AUX_2d_pais!$G$2:$G$40000,0)),0,1) -> 0
A196: 0830 | B196: Samoa Americana | C196: 0 | D196: 0 | E196: 0 | F196: 0 | G196: 0 | H196: 0 | I196: 0 | J196: 0 | K196: 0 | L196: 0 | M196: 0 | N196: 0 | O196: 0 | P196: 0 | Q196: 0 | R196: 0 | S196: 0 | T196: 0 | U196: 0 | V196: 0 | W196: 0 | X196: 0 | Y196: 0 | Z196: 0 | AA196: 0 | AC196: =L196-INDEX($C196:$L196,1,aux!$BA$1) -> 0 | AD196: 0 | AE196: =+IF(INDEX($C196:$L196,1,aux!$BA$1)>0,(L196/INDEX($C196:$L196,1,aux!$BA$1))^(1/($L$3-INDEX($C$3:$L$3,1,aux!$BA$1)))-1,"n.d.") -> n.d. | AF196: =IF(INDEX($C196:$L196,1,aux!$BA$1)>0,(L196-INDEX($C196:$L196,1,aux!$BA$1))/INDEX($C196:$L196,1,aux!$BA$1),"n.d.") -> n.d. | AH196: =X196-INDEX($O196:$X196,1,aux!$BA$1) -> 0 | AI196: 0 | AJ196: =+IF(INDEX($O196:$X196,1,aux!$BA$1)>0,(X196/INDEX($O196:$X196,1,aux!$BA$1))^(1/($X$3-INDEX($O$3:$X$3,1,aux!$BA$1)))-1,"n.d.") -> n.d. | AK196: =IF(INDEX($O196:$X196,1,aux!$BA$1)>0,(X196-INDEX($O196:$X196,1,aux!$BA$1))/INDEX($O196:$X196,1,aux!$BA$1),"n.d.") -> n.d. | AM196: =SUM(A196:AA196) -> 0 | BO196: =SUM(C196:L196,O196:X196) -> 0 | CC196: =+IF(ISNA(MATCH('5.1'!A196,AUX_2d_pais!$G$2:$G$40000,0)),0,1) -> 0
A197: 0329 | B197: Santa Helena | C197: 0 | D197: 0 | E197: 0 | F197: 0 | G197: 0 | H197: 0 | I197: 0 | J197: 0 | K197: 0 | L197: 0 | M197: 0 | N197: 0 | O197: 0 | P197: 0 | Q197: 0 | R197: 0 | S197: 0 | T197: 0 | U197: 0 | V197: 0 | W197: 0 | X197: 0 | Y197: 0 | Z197: 0 | AA197: 0 | AC197: =L197-INDEX($C197:$L197,1,aux!$BA$1) -> 0 | AD197: 0 | AE197: =+IF(INDEX($C197:$L197,1,aux!$BA$1)>0,(L197/INDEX($C197:$L197,1,aux!$BA$1))^(1/($L$3-INDEX($C$3:$L$3,1,aux!$BA$1)))-1,"n.d.") -> n.d. | AF197: =IF(INDEX($C197:$L197,1,aux!$BA$1)>0,(L197-INDEX($C197:$L197,1,aux!$BA$1))/INDEX($C197:$L197,1,aux!$BA$1),"n.d.") -> n.d. | AH197: =X197-INDEX($O197:$X197,1,aux!$BA$1) -> 0 | AI197: 0 | AJ197: =+IF(INDEX($O197:$X197,1,aux!$BA$1)>0,(X197/INDEX($O197:$X197,1,aux!$BA$1))^(1/($X$3-INDEX($O$3:$X$3,1,aux!$BA$1)))-1,"n.d.") -> n.d. | AK197: =IF(INDEX($O197:$X197,1,aux!$BA$1)>0,(X197-INDEX($O197:$X197,1,aux!$BA$1))/INDEX($O197:$X197,1,aux!$BA$1),"n.d.") -> n.d. | AM197: 0 | BO197: 0 | CC197: =+IF(ISNA(MATCH('5.1'!A197,AUX_2d_pais!$G$2:$G$40000,0)),0,1) -> 0
A198: 0465 | B198: Santa Lúcia | C198: 0 | D198: 0 | E198: 0 | F198: 0 | G198: 0 | H198: 0 | I198: 0 | J198: 0 | K198: 0 | L198: 0 | M198: 0 | N198: 0 | O198: 0 | P198: 0 | Q198: 0 | R198: 0 | S198: 0 | T198: 0 | U198: 0 | V198: 0 | W198: 0 | X198: 0 | Y198: 0 | Z198: 0 | AA198: 0 | AC198: =L198-INDEX($C198:$L198,1,aux!$BA$1) -> 0 | AD198: 0 | AE198: =+IF(INDEX($C198:$L198,1,aux!$BA$1)>0,(L198/INDEX($C198:$L198,1,aux!$BA$1))^(1/($L$3-INDEX($C$3:$L$3,1,aux!$BA$1)))-1,"n.d.") -> n.d. | AF198: =IF(INDEX($C198:$L198,1,aux!$BA$1)>0,(L198-INDEX($C198:$L198,1,aux!$BA$1))/INDEX($C198:$L198,1,aux!$BA$1),"n.d.") -> n.d. | AH198: =X198-INDEX($O198:$X198,1,aux!$BA$1) -> 0 | AI198: 0 | AJ198: =+IF(INDEX($O198:$X198,1,aux!$BA$1)>0,(X198/INDEX($O198:$X198,1,aux!$BA$1))^(1/($X$3-INDEX($O$3:$X$3,1,aux!$BA$1)))-1,"n.d.") -> n.d. | AK198: =IF(INDEX($O198:$X198,1,aux!$BA$1)>0,(X198-INDEX($O198:$X198,1,aux!$BA$1))/INDEX($O198:$X198,1,aux!$BA$1),"n.d.") -> n.d. | AM198: 0 | BO198: 0 | CC198: =+IF(ISNA(MATCH('5.1'!A198,AUX_2d_pais!$G$2:$G$40000,0)),0,1) -> 0
A199: 0045 | B199: Santa Sé (Cidade Estado do Vaticano) | C199: 0 | D199: 0 | E199: 0 | F199: 0 | G199: 0 | H199: 0 | I199: 0 | J199: 0 | K199: 0 | L199: 0 | M199: 0 | N199: 0 | O199: 0 | P199: 0 | Q199: 0 | R199: 0 | S199: 0 | T199: 0 | U199: 0 | V199: 0 | W199: 0 | X199: 0 | Y199: 0 | Z199: 0 | AA199: 0 | AC199: =L199-INDEX($C199:$L199,1,aux!$BA$1) -> 0 | AD199: 0 | AE199: =+IF(INDEX($C199:$L199,1,aux!$BA$1)>0,(L199/INDEX($C199:$L199,1,aux!$BA$1))^(1/($L$3-INDEX($C$3:$L$3,1,aux!$BA$1)))-1,"n.d.") -> n.d. | AF199: =IF(INDEX($C199:$L199,1,aux!$BA$1)>0,(L199-INDEX($C199:$L199,1,aux!$BA$1))/INDEX($C199:$L199,1,aux!$BA$1),"n.d.") -> n.d. | AH199: =X199-INDEX($O199:$X199,1,aux!$BA$1) -> 0 | AI199: 0 | AJ199: =+IF(INDEX($O199:$X199,1,aux!$BA$1)>0,(X199/INDEX($O199:$X199,1,aux!$BA$1))^(1/($X$3-INDEX($O$3:$X$3,1,aux!$BA$1)))-1,"n.d.") -> n.d. | AK199: =IF(INDEX($O199:$X199,1,aux!$BA$1)>0,(X199-INDEX($O199:$X199,1,aux!$BA$1))/INDEX($O199:$X199,1,aux!$BA$1),"n.d.") -> n.d. | AM199: 0 | BO199: 0 | CC199: =+IF(ISNA(MATCH('5.1'!A199,AUX_2d_pais!$G$2:$G$40000,0)),0,1) -> 0
A200: 0466 | B200: São Bartolomeu | C200: 0 | D200: 0 | E200: 0 | F200: 0 | G200: 0 | H200: 0 | I200: 0 | J200: 0 | K200: 0 | L200: 0 | M200: 0 | N200: 0 | O200: 0 | P200: 0 | Q200: 0 | R200: 0 | S200: 0 | T200: 0 | U200: 0 | V200: 0 | W200: 0 | X200: 0 | Y200: 0 | Z200: 0 | AA200: 0 | AC200: =L200-INDEX($C200:$L200,1,aux!$BA$1) -> 0 | AD200: 0 | AE200: =+IF(INDEX($C200:$L200,1,aux!$BA$1)>0,(L200/INDEX($C200:$L200,1,aux!$BA$1))^(1/($L$3-INDEX($C$3:$L$3,1,aux!$BA$1)))-1,"n.d.") -> n.d. | AF200: =IF(INDEX($C200:$L200,1,aux!$BA$1)>0,(L200-INDEX($C200:$L200,1,aux!$BA$1))/INDEX($C200:$L200,1,aux!$BA$1),"n.d.") -> n.d. | AH200: =X200-INDEX($O200:$X200,1,aux!$BA$1) -> 0 | AI200: 0 | AJ200: =+IF(INDEX($O200:$X200,1,aux!$BA$1)>0,(X200/INDEX($O200:$X200,1,aux!$BA$1))^(1/($X$3-INDEX($O$3:$X$3,1,aux!$BA$1)))-1,"n.d.") -> n.d. | AK200: =IF(INDEX($O200:$X200,1,aux!$BA$1)>0,(X200-INDEX($O200:$X200,1,aux!$BA$1))/INDEX($O200:$X200,1,aux!$BA$1),"n.d.") -> n.d. | AM200: 0 | CC200: =+IF(ISNA(MATCH('5.1'!A200,AUX_2d_pais!$G$2:$G$40000,0)),0,1) -> 0
... 54 more rows

Sheet 5.1_var
A1: ="Principais contributos por país para a variação das trocas comerciais PT-África_x000D_ no período " & INDEX('5.2'!P3:X3,1,aux!BA1) & "-2018 Agroalimentar, Mar & Florestas (valores em milhares de euros)" -> Principais contributos por país para a variação das trocas comerciais PT-África no período 2009-2018 Agroalimentar, Mar & Florestas (valores em milhares de euros)
E5: aumento das importações | J5: aumento das exportações
E17: redução das importações | J17: redução das exportações
A28: Fonte: GPP a partir de dados INE/Comércio Internacional (2017 provisórios; 2018 preliminares) | H28: ='3'!Y116 -> 2019-11-28T12:41:20.420
A29: Cód. NC | B29: Descritivo | C29: ="Variação das Importações " & INDEX('5.2'!C3:L3,1,aux!BA1) & "-"& '5.2'!L3&"" -> Variação das Importações 2009-2018 | F29: Cód. NC | G29: Descritivo | H29: ="Variação das Exportações " & INDEX('5.2'!P3:X3,1,aux!BA1) & "-"& '5.2'!Y3 &"" -> Variação das Exportações 2009-2018
C30: variação total em valor | D30: % do aumento/ redução total | H30: variação total em valor | I30: % do aumento/ redução total
A31: =IF(C31>0,aux!CY6,"") -> 0388 | B31: =IF(C31>0,aux!CZ6,"") -> África do Sul | C31: =IF(aux!DA6>0,aux!DA6,0) -> 124423.331 | D31: =IF(SUM($C$31:$C$41)<>0,C31/SUM($C$31:$C$41),0) -> 0.4487509659 | F31: =IF(H31>0,aux!DD6,"") -> 0204 | G31: =IF(H31>0,aux!DE6,"") -> Marrocos | H31: =IF(aux!DF6>0,aux!DF6,0) -> 67850.992 | I31: =IF(SUM($H$31:$H$41)<>0,H31/SUM($H$31:$H$41),0) -> 0.1939751801
A32: =IF(C32>0,aux!CY7,"") -> 0204 | B32: =IF(C32>0,aux!CZ7,"") -> Marrocos | C32: =IF(aux!DA7>0,aux!DA7,0) -> 42983.142 | D32: =IF(SUM($C$31:$C$41)<>0,C32/SUM($C$31:$C$41),0) -> 0.1550249968 | F32: =IF(H32>0,aux!DD7,"") -> 0220 | G32: =IF(H32>0,aux!DE7,"") -> Egito | H32: =IF(aux!DF7>0,aux!DF7,0) -> 64688.93 | I32: =IF(SUM($H$31:$H$41)<>0,H32/SUM($H$31:$H$41),0) -> 0.1849353484
A33: =IF(C33>0,aux!CY8,"") -> 0228 | B33: =IF(C33>0,aux!CZ8,"") -> Mauritânia | C33: =IF(aux!DA8>0,aux!DA8,0) -> 17785.401 | D33: 0.06414565349 | F33: =IF(H33>0,aux!DD8,"") -> 0208 | G33: =IF(H33>0,aux!DE8,"") -> Argélia | H33: =IF(aux!DF8>0,aux!DF8,0) -> 56208.838 | I33: 0.160692116
A34: =IF(C34>0,aux!CY9,"") -> 0272 | B34: =IF(C34>0,aux!CZ9,"") -> Costa do Marfim | C34: =IF(aux!DA9>0,aux!DA9,0) -> 12262.046 | D34: 0.04422486476 | F34: =IF(H34>0,aux!DD9,"") -> 0247 | G34: =IF(H34>0,aux!DE9,"") -> Cabo Verde | H34: =IF(aux!DF9>0,aux!DF9,0) -> 25689.504 | I34: 0.0734422006
A35: =IF(C35>0,aux!CY10,"") -> 0212 | B35: =IF(C35>0,aux!CZ10,"") -> Tunísia | C35: =IF(aux!DA10>0,aux!DA10,0) -> 8825.948 | D35: 0.03183207408 | F35: =IF(H35>0,aux!DD10,"") -> 0257 | G35: =IF(H35>0,aux!DE10,"") -> Guiné-Bissau | H35: =IF(aux!DF10>0,aux!DF10,0) -> 15713.561 | I35: 0.04492256834
A36: =IF(C36>0,aux!CY11,"") -> 0232 | B36: =IF(C36>0,aux!CZ11,"") -> Mali | C36: =IF(aux!DA11>0,aux!DA11,0) -> 8672.832 | D36: 0.0312798388 | F36: =IF(H36>0,aux!DD11,"") -> 0311 | G36: =IF(H36>0,aux!DE11,"") -> São Tomé e Príncipe | H36: =IF(aux!DF11>0,aux!DF11,0) -> 15091.353 | I36: 0.04314377476
A37: =IF(C37>0,aux!CY12,"") -> 0350 | B37: =IF(C37>0,aux!CZ12,"") -> Uganda | C37: =IF(aux!DA12>0,aux!DA12,0) -> 8556.73 | D37: 0.03086109993 | F37: =IF(H37>0,aux!DD12,"") -> 0366 | G37: =IF(H37>0,aux!DE12,"") -> Moçambique | H37: =IF(aux!DF12>0,aux!DF12,0) -> 12916.412 | I37: 0.03692596483
A38: =IF(C38>0,aux!CY13,"") -> 0330 | B38: =IF(C38>0,aux!CZ13,"") -> Angola | C38: =IF(aux!DA13>0,aux!DA13,0) -> 8464.452 | D38: 0.03052828581 | F38: =IF(H38>0,aux!DD13,"") -> 0388 | G38: =IF(H38>0,aux!DE13,"") -> África do Sul | H38: =IF(aux!DF13>0,aux!DF13,0) -> 11827.422 | I38: 0.03381271585
A39: =IF(C39>0,aux!CY14,"") -> 0389 | B39: =IF(C39>0,aux!CZ14,"") -> Namíbia | C39: =IF(aux!DA14>0,aux!DA14,0) -> 7839.427 | D39: 0.02827404161 | F39: =IF(H39>0,aux!DD14,"") -> 0212 | G39: =IF(H39>0,aux!DE14,"") -> Tunísia | H39: =IF(aux!DF14>0,aux!DF14,0) -> 9719.803 | I39: 0.02778736879
A40: =IF(C40>0,aux!CY15,"") -> 0352 | B40: =IF(C40>0,aux!CZ15,"") -> Tanzânia, República Unida da | C40: =IF(aux!DA15>0,aux!DA15,0) -> 7788.945 | D40: 0.02809197088 | F40: =IF(H40>0,aux!DD15,"") -> 0288 | G40: =IF(H40>0,aux!DE15,"") -> Nigéria | H40: =IF(aux!DF15>0,aux!DF15,0) -> 7898.37 | I40: 0.02258018193
B41: Outros contributos para o aumento das importações | C41: =SUMIF(aux!DA16:DA252,">0") -> 29663.625 | D41: 0.106986208 | G41: Outros contributos para o aumento das exportações | H41: =SUMIF(aux!DF16:DF252,">0") -> 62186.948 | I41: 0.1777825804
B42: Outros contributos para a redução das importações | C42: =SUMIF(aux!DA6:DA242,"<0") -> -10523.155 | D42: =IF(SUM($C$42:$C$52)<>0,C42/SUM($C$42:$C$52),0) -> 0.07991957974 | G42: Outros contributos para a redução das exportações | H42: =SUMIF(aux!DF6:DF242,"<0") -> 0 | I42: =IF(SUM($H$42:$H$52)<>0,H42/SUM($H$42:$H$52),0) -> 0
A43: =IF(C43<>0,aux!CY243,"") -> 0366 | B43: =IF(C43<0,aux!CZ243,"") -> Moçambique | C43: =IF(aux!DA243<0,aux!DA243,0) -> -4608.881 | D43: =IF(SUM($C$42:$C$52)<>0,C43/SUM($C$42:$C$52),0) -> 0.03500279456 | F43: =IF(H43<>0,aux!DD243,"") ->  | G43: =IF(H43<>0,aux!DE243,"") ->  | H43: =IF(aux!DF243<0,aux!DF243,0) -> 0 | I43: =IF(SUM($H$42:$H$52)<>0,H43/SUM($H$42:$H$52),0) -> 0
A44: =IF(C44<>0,aux!CY244,"") -> 0373 | B44: =IF(C44<0,aux!CZ244,"") -> Maurícias | C44: =IF(aux!DA244<0,aux!DA244,0) -> -5889.521 | D44: 0.04472879504 | F44: =IF(H44<>0,aux!DD244,"") ->  | G44: =IF(H44<>0,aux!DE244,"") ->  | H44: =IF(aux!DF244<0,aux!DF244,0) -> 0 | I44: 0
A45: =IF(C45<>0,aux!CY245,"") -> 0386 | B45: =IF(C45<0,aux!CZ245,"") -> Malavi | C45: =IF(aux!DA245<0,aux!DA245,0) -> -6004.073 | D45: 0.04559877631 | F45: =IF(H45<>0,aux!DD245,"") ->  | G45: =IF(H45<>0,aux!DE245,"") ->  | H45: =IF(aux!DF245<0,aux!DF245,0) -> 0 | I45: 0
A46: =IF(C46<>0,aux!CY246,"") -> 0334 | B46: =IF(C46<0,aux!CZ246,"") -> Etiópia | C46: =IF(aux!DA246<0,aux!DA246,0) -> -7275.25 | D46: 0.05525290871 | F46: =IF(H46<>0,aux!DD246,"") ->  | G46: =IF(H46<>0,aux!DE246,"") ->  | H46: =IF(aux!DF246<0,aux!DF246,0) -> 0 | I46: 0
A47: =IF(C47<>0,aux!CY247,"") -> 0318 | B47: =IF(C47<0,aux!CZ247,"") -> Congo | C47: =IF(aux!DA247<0,aux!DA247,0) -> -8485.215 | D47: 0.06444215797 | F47: =IF(H47<>0,aux!DD247,"") ->  | G47: =IF(H47<>0,aux!DE247,"") ->  | H47: =IF(aux!DF247<0,aux!DF247,0) -> 0 | I47: 0
A48: =IF(C48<>0,aux!CY248,"") -> 0284 | B48: =IF(C48<0,aux!CZ248,"") -> Benim | C48: =IF(aux!DA248<0,aux!DA248,0) -> -9511.089 | D48: 0.07223330225 | F48: =IF(H48<>0,aux!DD248,"") ->  | G48: =IF(H48<>0,aux!DE248,"") ->  | H48: =IF(aux!DF248<0,aux!DF248,0) -> 0 | I48: 0
A49: =IF(C49<>0,aux!CY249,"") -> 0322 | B49: =IF(C49<0,aux!CZ249,"") -> Congo, República Democrática do | C49: =IF(aux!DA249<0,aux!DA249,0) -> -13284.782 | D49: 0.1008931442 | F49: =IF(H49<>0,aux!DD249,"") -> 0252 | G49: =IF(H49<>0,aux!DE249,"") -> Gâmbia | H49: =IF(aux!DF249<0,aux!DF249,0) -> -80.461 | I49: 0.003150451369
A50: =IF(C50<>0,aux!CY250,"") -> 0393 | B50: =IF(C50<0,aux!CZ250,"") -> Suazilândia | C50: =IF(aux!DA250<0,aux!DA250,0) -> -15040.186 | D50: 0.1142248066 | F50: =IF(H50<>0,aux!DD250,"") -> 0338 | G50: =IF(H50<>0,aux!DE250,"") -> Jibuti | H50: =IF(aux!DF250<0,aux!DF250,0) -> -427.031 | I50: 0.01672040366
A51: =IF(C51<>0,aux!CY251,"") -> 0382 | B51: =IF(C51<0,aux!CZ251,"") -> Zimbabwe | C51: =IF(aux!DA251<0,aux!DA251,0) -> -22611.411 | D51: 0.171725539 | F51: =IF(H51<>0,aux!DD251,"") -> 0389 | G51: =IF(H51<>0,aux!DE251,"") -> Namíbia | H51: =IF(aux!DF251<0,aux!DF251,0) -> -926.384 | I51: 0.03627257605
A52: =IF(C52<>0,aux!CY252,"") -> 0378 | B52: =IF(C52<0,aux!CZ252,"") -> Zâmbia | C52: =IF(aux!DA252<0,aux!DA252,0) -> -28438.238 | D52: 0.2159781957 | F52: =IF(H52<>0,aux!DD252,"") -> 0330 | G52: =IF(H52<>0,aux!DE252,"") -> Angola | H52: =IF(aux!DF252<0,aux!DF252,0) -> -24105.639 | I52: 0.9438565689
A53: TOTAL | C53: =SUM(C31:C52) -> 145594.078 | F53: TOTAL | H53: =SUM(H31:H52) -> 324252.618

Sheet 5.1A
A1: Trocas comerciais Portugal-África (2009-2018) por país em milhares de euros | C1: Produtos agrícolas e agroalimentares
A2: Cód. País | B2: País | C2: Importações | O2: Exportações | AA2: Saldo período (exp-imp) | AB2: Evolução das importações | AC2: =+"Variação das Importações " & INDEX(C3:K3,1,aux!$BA$1) & "-"& L3 &"" -> Variação das Importações 2009-2018 | AG2: Evolução das exportações | AH2: ="Variação das Exportações " & INDEX(O3:W3,1,aux!BA1) & "-"& X3 &"" -> Variação das Exportações 2009-2018
C3: 2009 | D3: 2010 | E3: 2011 | F3: 2012 | G3: 2013 | H3: 2014 | I3: 2015 | J3: 2016 | K3: 2017 | L3: 2018 | M3: média período | N3: % Total | O3: 2009 | P3: 2010 | Q3: 2011 | R3: 2012 | S3: 2013 | T3: 2014 | U3: 2015 | V3: 2016 | W3: 2017 | X3: 2018 | Y3: média período | Z3: % Total | AC3: variação total em valor | AD3: % no total de variação | AE3: taxa de variação média anual | AF3: taxa de variação total | AH3: variação total em valor | AI3: % no total de variação | AJ3: taxa de variação média anual | AK3: taxa de variação total | CC3: filtro
A4: 0660 | B4: Afeganistão | C4: 0 | D4: 0 | E4: 0 | F4: 0 | G4: 0 | H4: 0 | I4: 0 | J4: 0 | K4: 0 | L4: 0 | M4: 0 | N4: 0 | O4: 0 | P4: 0 | Q4: 0 | R4: 0 | S4: 0 | T4: 0 | U4: 0 | V4: 0 | W4: 0 | X4: 0 | Y4: 0 | Z4: 0 | AA4: 0 | AC4: =L4-INDEX($C4:$L4,1,aux!$BA$1) -> 0 | AD4: =AC4/$AC$252 -> 0 | AE4: =+IF(INDEX($C4:$L4,1,aux!$BA$1)>0,(L4/INDEX($C4:$L4,1,aux!$BA$1))^(1/($L$3-INDEX($C$3:$L$3,1,aux!$BA$1)))-1,"n.d.") -> n.d. | AF4: =IF(INDEX($C4:$L4,1,aux!$BA$1)>0,(L4-INDEX($C4:$L4,1,aux!$BA$1))/INDEX($C4:$L4,1,aux!$BA$1),"n.d.") -> n.d. | AH4: =X4-INDEX($O4:$X4,1,aux!$BA$1) -> 0 | AI4: =AH4/$AH$252 -> 0 | AJ4: =+IF(INDEX($O4:$X4,1,aux!$BA$1)>0,(X4/INDEX($O4:$X4,1,aux!$BA$1))^(1/($X$3-INDEX($O$3:$X$3,1,aux!$BA$1)))-1,"n.d.") -> n.d. | AK4: =IF(INDEX($O4:$X4,1,aux!$BA$1)>0,(X4-INDEX($O4:$X4,1,aux!$BA$1))/INDEX($O4:$X4,1,aux!$BA$1),"n.d.") -> n.d. | AM4: =SUM(A4:AA4) -> 0 | CC4: =+IF(ISNA(MATCH('5.1'!A4,AUX_2d_pais!$G$2:$G$40000,0)),0,1) -> 0
A5: 0388 | B5: África do Sul | C5: 15400.085 | D5: 40581.087 | E5: 36819.645 | F5: 35319.847 | G5: 37246.913 | H5: 47445.036 | I5: 55368.133 | J5: 64094.19 | K5: 93558.929 | L5: 115213.62 | M5: 54104.7485 | N5: 0.2297316331 | O5: 8972.366 | P5: 7612.911 | Q5: 10431.808 | R5: 10083.849 | S5: 35594.762 | T5: 20697.407 | U5: 12427.155 | V5: 13862.752 | W5: 23879.863 | X5: 15501.594 | Y5: 15906.4467 | Z5: 0.02175072309 | AA5: -38198.3018 | AC5: =L5-INDEX($C5:$L5,1,aux!$BA$1) -> 99813.535 | AD5: 4.002258403 | AE5: =+IF(INDEX($C5:$L5,1,aux!$BA$1)>0,(L5/INDEX($C5:$L5,1,aux!$BA$1))^(1/($L$3-INDEX($C$3:$L$3,1,aux!$BA$1)))-1,"n.d.") -> 0.2505727673 | AF5: =IF(INDEX($C5:$L5,1,aux!$BA$1)>0,(L5-INDEX($C5:$L5,1,aux!$BA$1))/INDEX($C5:$L5,1,aux!$BA$1),"n.d.") -> 6.481362603 | AH5: =X5-INDEX($O5:$X5,1,aux!$BA$1) -> 6529.228 | AI5: 0.06827548372 | AJ5: =+IF(INDEX($O5:$X5,1,aux!$BA$1)>0,(X5/INDEX($O5:$X5,1,aux!$BA$1))^(1/($X$3-INDEX($O$3:$X$3,1,aux!$BA$1)))-1,"n.d.") -> 0.0626383526 | AK5: =IF(INDEX($O5:$X5,1,aux!$BA$1)>0,(X5-INDEX($O5:$X5,1,aux!$BA$1))/INDEX($O5:$X5,1,aux!$BA$1),"n.d.") -> 0.727704153 | CC5: =+IF(ISNA(MATCH('5.1'!A5,AUX_2d_pais!$G$2:$G$40000,0)),0,1) -> 1
A6: 0070 | B6: Albânia | C6: 0 | D6: 0 | E6: 0 | F6: 0 | G6: 0 | H6: 0 | I6: 0 | J6: 0 | K6: 0 | L6: 0 | M6: 0 | N6: 0 | O6: 0 | P6: 0 | Q6: 0 | R6: 0 | S6: 0 | T6: 0 | U6: 0 | V6: 0 | W6: 0 | X6: 0 | Y6: 0 | Z6: 0 | AA6: 0 | AC6: =L6-INDEX($C6:$L6,1,aux!$BA$1) -> 0 | AD6: 0 | AE6: =+IF(INDEX($C6:$L6,1,aux!$BA$1)>0,(L6/INDEX($C6:$L6,1,aux!$BA$1))^(1/($L$3-INDEX($C$3:$L$3,1,aux!$BA$1)))-1,"n.d.") -> n.d. | AF6: =IF(INDEX($C6:$L6,1,aux!$BA$1)>0,(L6-INDEX($C6:$L6,1,aux!$BA$1))/INDEX($C6:$L6,1,aux!$BA$1),"n.d.") -> n.d. | AH6: =X6-INDEX($O6:$X6,1,aux!$BA$1) -> 0 | AI6: 0 | AJ6: =+IF(INDEX($O6:$X6,1,aux!$BA$1)>0,(X6/INDEX($O6:$X6,1,aux!$BA$1))^(1/($X$3-INDEX($O$3:$X$3,1,aux!$BA$1)))-1,"n.d.") -> n.d. | AK6: =IF(INDEX($O6:$X6,1,aux!$BA$1)>0,(X6-INDEX($O6:$X6,1,aux!$BA$1))/INDEX($O6:$X6,1,aux!$BA$1),"n.d.") -> n.d. | AM6: 0 | CC6: =+IF(ISNA(MATCH('5.1'!A6,AUX_2d_pais!$G$2:$G$40000,0)),0,1) -> 0
A7: 0004 | B7: Alemanha | C7: 0 | D7: 0 | E7: 0 | F7: 0 | G7: 0 | H7: 0 | I7: 0 | J7: 0 | K7: 0 | L7: 0 | M7: 0 | N7: 0 | O7: 0 | P7: 0 | Q7: 0 | R7: 0 | S7: 0 | T7: 0 | U7: 0 | V7: 0 | W7: 0 | X7: 0 | Y7: 0 | Z7: 0 | AA7: 0 | AC7: =L7-INDEX($C7:$L7,1,aux!$BA$1) -> 0 | AD7: 0 | AE7: =+IF(INDEX($C7:$L7,1,aux!$BA$1)>0,(L7/INDEX($C7:$L7,1,aux!$BA$1))^(1/($L$3-INDEX($C$3:$L$3,1,aux!$BA$1)))-1,"n.d.") -> n.d. | AF7: =IF(INDEX($C7:$L7,1,aux!$BA$1)>0,(L7-INDEX($C7:$L7,1,aux!$BA$1))/INDEX($C7:$L7,1,aux!$BA$1),"n.d.") -> n.d. | AH7: =X7-INDEX($O7:$X7,1,aux!$BA$1) -> 0 | AI7: 0 | AJ7: =+IF(INDEX($O7:$X7,1,aux!$BA$1)>0,(X7/INDEX($O7:$X7,1,aux!$BA$1))^(1/($X$3-INDEX($O$3:$X$3,1,aux!$BA$1)))-1,"n.d.") -> n.d. | AK7: =IF(INDEX($O7:$X7,1,aux!$BA$1)>0,(X7-INDEX($O7:$X7,1,aux!$BA$1))/INDEX($O7:$X7,1,aux!$BA$1),"n.d.") -> n.d. | AM7: 0 | CC7: =+IF(ISNA(MATCH('5.1'!A7,AUX_2d_pais!$G$2:$G$40000,0)),0,1) -> 0
A8: 0043 | B8: Andorra | C8: 0 | D8: 0 | E8: 0 | F8: 0 | G8: 0 | H8: 0 | I8: 0 | J8: 0 | K8: 0 | L8: 0 | M8: 0 | N8: 0 | O8: 0 | P8: 0 | Q8: 0 | R8: 0 | S8: 0 | T8: 0 | U8: 0 | V8: 0 | W8: 0 | X8: 0 | Y8: 0 | Z8: 0 | AA8: 0 | AC8: =L8-INDEX($C8:$L8,1,aux!$BA$1) -> 0 | AD8: 0 | AE8: =+IF(INDEX($C8:$L8,1,aux!$BA$1)>0,(L8/INDEX($C8:$L8,1,aux!$BA$1))^(1/($L$3-INDEX($C$3:$L$3,1,aux!$BA$1)))-1,"n.d.") -> n.d. | AF8: =IF(INDEX($C8:$L8,1,aux!$BA$1)>0,(L8-INDEX($C8:$L8,1,aux!$BA$1))/INDEX($C8:$L8,1,aux!$BA$1),"n.d.") -> n.d. | AH8: =X8-INDEX($O8:$X8,1,aux!$BA$1) -> 0 | AI8: 0 | AJ8: =+IF(INDEX($O8:$X8,1,aux!$BA$1)>0,(X8/INDEX($O8:$X8,1,aux!$BA$1))^(1/($X$3-INDEX($O$3:$X$3,1,aux!$BA$1)))-1,"n.d.") -> n.d. | AK8: =IF(INDEX($O8:$X8,1,aux!$BA$1)>0,(X8-INDEX($O8:$X8,1,aux!$BA$1))/INDEX($O8:$X8,1,aux!$BA$1),"n.d.") -> n.d. | AM8: 0 | CC8: =+IF(ISNA(MATCH('5.1'!A8,AUX_2d_pais!$G$2:$G$40000,0)),0,1) -> 0
A9: 0330 | B9: Angola | C9: 523.687 | D9: 424.506 | E9: 484.559 | F9: 836.134 | G9: 438.308 | H9: 655.822 | I9: 1723.645 | J9: 549.181 | K9: 1862.253 | L9: 2770.573 | M9: 1026.8668 | N9: 0.004360130922 | O9: 391268.748 | P9: 411863.273 | Q9: 585144.886 | R9: 643349.358 | S9: 678931.402 | T9: 727341.365 | U9: 515869.71 | V9: 413455.182 | W9: 465986.251 | X9: 372012.803 | Y9: 520522.2978 | Z9: 0.7117703015 | AA9: 519495.431 | AC9: =L9-INDEX($C9:$L9,1,aux!$BA$1) -> 2246.886 | AD9: 0.09009417785 | AE9: =+IF(INDEX($C9:$L9,1,aux!$BA$1)>0,(L9/INDEX($C9:$L9,1,aux!$BA$1))^(1/($L$3-INDEX($C$3:$L$3,1,aux!$BA$1)))-1,"n.d.") -> 0.2033408082 | AF9: =IF(INDEX($C9:$L9,1,aux!$BA$1)>0,(L9-INDEX($C9:$L9,1,aux!$BA$1))/INDEX($C9:$L9,1,aux!$BA$1),"n.d.") -> 4.290513226 | AH9: =X9-INDEX($O9:$X9,1,aux!$BA$1) -> -19255.945 | AI9: -0.2013574897 | AJ9: =+IF(INDEX($O9:$X9,1,aux!$BA$1)>0,(X9/INDEX($O9:$X9,1,aux!$BA$1))^(1/($X$3-INDEX($O$3:$X$3,1,aux!$BA$1)))-1,"n.d.") -> -0.005591684516 | AK9: =IF(INDEX($O9:$X9,1,aux!$BA$1)>0,(X9-INDEX($O9:$X9,1,aux!$BA$1))/INDEX($O9:$X9,1,aux!$BA$1),"n.d.") -> -0.04921411459 | CC9: =+IF(ISNA(MATCH('5.1'!A9,AUX_2d_pais!$G$2:$G$40000,0)),0,1) -> 1
A10: 0446 | B10: Anguila | C10: 0 | D10: 0 | E10: 0 | F10: 0 | G10: 0 | H10: 0 | I10: 0 | J10: 0 | K10: 0 | L10: 0 | M10: 0 | N10: 0 | O10: 0 | P10: 0 | Q10: 0 | R10: 0 | S10: 0 | T10: 0 | U10: 0 | V10: 0 | W10: 0 | X10: 0 | Y10: 0 | Z10: 0 | AA10: 0 | AC10: =L10-INDEX($C10:$L10,1,aux!$BA$1) -> 0 | AD10: 0 | AE10: =+IF(INDEX($C10:$L10,1,aux!$BA$1)>0,(L10/INDEX($C10:$L10,1,aux!$BA$1))^(1/($L$3-INDEX($C$3:$L$3,1,aux!$BA$1)))-1,"n.d.") -> n.d. | AF10: =IF(INDEX($C10:$L10,1,aux!$BA$1)>0,(L10-INDEX($C10:$L10,1,aux!$BA$1))/INDEX($C10:$L10,1,aux!$BA$1),"n.d.") -> n.d. | AH10: =X10-INDEX($O10:$X10,1,aux!$BA$1) -> 0 | AI10: 0 | AJ10: =+IF(INDEX($O10:$X10,1,aux!$BA$1)>0,(X10/INDEX($O10:$X10,1,aux!$BA$1))^(1/($X$3-INDEX($O$3:$X$3,1,aux!$BA$1)))-1,"n.d.") -> n.d. | AK10: =IF(INDEX($O10:$X10,1,aux!$BA$1)>0,(X10-INDEX($O10:$X10,1,aux!$BA$1))/INDEX($O10:$X10,1,aux!$BA$1),"n.d.") -> n.d. | AM10: 0 | CC10: =+IF(ISNA(MATCH('5.1'!A10,AUX_2d_pais!$G$2:$G$40000,0)),0,1) -> 0
A11: 0891 | B11: Antárctica | C11: 0 | D11: 0 | E11: 0 | F11: 0 | G11: 0 | H11: 0 | I11: 0 | J11: 0 | K11: 0 | L11: 0 | M11: 0 | N11: 0 | O11: 0 | P11: 0 | Q11: 0 | R11: 0 | S11: 0 | T11: 0 | U11: 0 | V11: 0 | W11: 0 | X11: 0 | Y11: 0 | Z11: 0 | AA11: 0 | AC11: =L11-INDEX($C11:$L11,1,aux!$BA$1) -> 0 | AD11: 0 | AE11: =+IF(INDEX($C11:$L11,1,aux!$BA$1)>0,(L11/INDEX($C11:$L11,1,aux!$BA$1))^(1/($L$3-INDEX($C$3:$L$3,1,aux!$BA$1)))-1,"n.d.") -> n.d. | AF11: =IF(INDEX($C11:$L11,1,aux!$BA$1)>0,(L11-INDEX($C11:$L11,1,aux!$BA$1))/INDEX($C11:$L11,1,aux!$BA$1),"n.d.") -> n.d. | AH11: =X11-INDEX($O11:$X11,1,aux!$BA$1) -> 0 | AI11: 0 | AJ11: =+IF(INDEX($O11:$X11,1,aux!$BA$1)>0,(X11/INDEX($O11:$X11,1,aux!$BA$1))^(1/($X$3-INDEX($O$3:$X$3,1,aux!$BA$1)))-1,"n.d.") -> n.d. | AK11: =IF(INDEX($O11:$X11,1,aux!$BA$1)>0,(X11-INDEX($O11:$X11,1,aux!$BA$1))/INDEX($O11:$X11,1,aux!$BA$1),"n.d.") -> n.d. | AM11: 0 | CC11: =+IF(ISNA(MATCH('5.1'!A11,AUX_2d_pais!$G$2:$G$40000,0)),0,1) -> 0
A12: 0459 | B12: Antígua e Barbuda | C12: 0 | D12: 0 | E12: 0 | F12: 0 | G12: 0 | H12: 0 | I12: 0 | J12: 0 | K12: 0 | L12: 0 | M12: 0 | N12: 0 | O12: 0 | P12: 0 | Q12: 0 | R12: 0 | S12: 0 | T12: 0 | U12: 0 | V12: 0 | W12: 0 | X12: 0 | Y12: 0 | Z12: 0 | AA12: 0 | AC12: =L12-INDEX($C12:$L12,1,aux!$BA$1) -> 0 | AD12: 0 | AE12: =+IF(INDEX($C12:$L12,1,aux!$BA$1)>0,(L12/INDEX($C12:$L12,1,aux!$BA$1))^(1/($L$3-INDEX($C$3:$L$3,1,aux!$BA$1)))-1,"n.d.") -> n.d. | AF12: =IF(INDEX($C12:$L12,1,aux!$BA$1)>0,(L12-INDEX($C12:$L12,1,aux!$BA$1))/INDEX($C12:$L12,1,aux!$BA$1),"n.d.") -> n.d. | AH12: =X12-INDEX($O12:$X12,1,aux!$BA$1) -> 0 | AI12: 0 | AJ12: =+IF(INDEX($O12:$X12,1,aux!$BA$1)>0,(X12/INDEX($O12:$X12,1,aux!$BA$1))^(1/($X$3-INDEX($O$3:$X$3,1,aux!$BA$1)))-1,"n.d.") -> n.d. | AK12: =IF(INDEX($O12:$X12,1,aux!$BA$1)>0,(X12-INDEX($O12:$X12,1,aux!$BA$1))/INDEX($O12:$X12,1,aux!$BA$1),"n.d.") -> n.d. | AM12: 0 | CC12: =+IF(ISNA(MATCH('5.1'!A12,AUX_2d_pais!$G$2:$G$40000,0)),0,1) -> 0
A13: 0478 | B13: Antilhas Holandesas | C13: 0 | D13: 0 | E13: 0 | F13: 0 | G13: 0 | H13: 0 | I13: 0 | J13: 0 | K13: 0 | L13: 0 | M13: 0 | N13: 0 | O13: 0 | P13: 0 | Q13: 0 | R13: 0 | S13: 0 | T13: 0 | U13: 0 | V13: 0 | W13: 0 | X13: 0 | Y13: 0 | Z13: 0 | AA13: 0 | AC13: =L13-INDEX($C13:$L13,1,aux!$BA$1) -> 0 | AD13: 0 | AE13: =+IF(INDEX($C13:$L13,1,aux!$BA$1)>0,(L13/INDEX($C13:$L13,1,aux!$BA$1))^(1/($L$3-INDEX($C$3:$L$3,1,aux!$BA$1)))-1,"n.d.") -> n.d. | AF13: =IF(INDEX($C13:$L13,1,aux!$BA$1)>0,(L13-INDEX($C13:$L13,1,aux!$BA$1))/INDEX($C13:$L13,1,aux!$BA$1),"n.d.") -> n.d. | AH13: =X13-INDEX($O13:$X13,1,aux!$BA$1) -> 0 | AI13: 0 | AJ13: =+IF(INDEX($O13:$X13,1,aux!$BA$1)>0,(X13/INDEX($O13:$X13,1,aux!$BA$1))^(1/($X$3-INDEX($O$3:$X$3,1,aux!$BA$1)))-1,"n.d.") -> n.d. | AK13: =IF(INDEX($O13:$X13,1,aux!$BA$1)>0,(X13-INDEX($O13:$X13,1,aux!$BA$1))/INDEX($O13:$X13,1,aux!$BA$1),"n.d.") -> n.d. | AM13: 0 | CC13: =+IF(ISNA(MATCH('5.1'!A13,AUX_2d_pais!$G$2:$G$40000,0)),0,1) -> 0
A14: 0632 | B14: Arábia Saudita | C14: 0 | D14: 0 | E14: 0 | F14: 0 | G14: 0 | H14: 0 | I14: 0 | J14: 0 | K14: 0 | L14: 0 | M14: 0 | N14: 0 | O14: 0 | P14: 0 | Q14: 0 | R14: 0 | S14: 0 | T14: 0 | U14: 0 | V14: 0 | W14: 0 | X14: 0 | Y14: 0 | Z14: 0 | AA14: 0 | AC14: =L14-INDEX($C14:$L14,1,aux!$BA$1) -> 0 | AD14: 0 | AE14: =+IF(INDEX($C14:$L14,1,aux!$BA$1)>0,(L14/INDEX($C14:$L14,1,aux!$BA$1))^(1/($L$3-INDEX($C$3:$L$3,1,aux!$BA$1)))-1,"n.d.") -> n.d. | AF14: =IF(INDEX($C14:$L14,1,aux!$BA$1)>0,(L14-INDEX($C14:$L14,1,aux!$BA$1))/INDEX($C14:$L14,1,aux!$BA$1),"n.d.") -> n.d. | AH14: =X14-INDEX($O14:$X14,1,aux!$BA$1) -> 0 | AI14: 0 | AJ14: =+IF(INDEX($O14:$X14,1,aux!$BA$1)>0,(X14/INDEX($O14:$X14,1,aux!$BA$1))^(1/($X$3-INDEX($O$3:$X$3,1,aux!$BA$1)))-1,"n.d.") -> n.d. | AK14: =IF(INDEX($O14:$X14,1,aux!$BA$1)>0,(X14-INDEX($O14:$X14,1,aux!$BA$1))/INDEX($O14:$X14,1,aux!$BA$1),"n.d.") -> n.d. | AM14: 0 | CC14: =+IF(ISNA(MATCH('5.1'!A14,AUX_2d_pais!$G$2:$G$40000,0)),0,1) -> 0
A15: 0208 | B15: Argélia | C15: 123.09 | D15: 951.171 | E15: 2401.197 | F15: 0 | G15: 0 | H15: 0 | I15: 0 | J15: 58.2 | K15: 15.777 | L15: 3.123 | M15: 355.2558 | N15: 0.001508434978 | O15: 10446.95 | P15: 17519.977 | Q15: 14081.733 | R15: 5675.964 | S15: 17819.811 | T15: 21338.83 | U15: 15444.615 | V15: 22395.184 | W15: 19641.048 | X15: 18184.202 | Y15: 16254.8314 | Z15: 0.02222710976 | AA15: 15899.5756 | AC15: =L15-INDEX($C15:$L15,1,aux!$BA$1) -> -119.967 | AD15: -0.004810358974 | AE15: =+IF(INDEX($C15:$L15,1,aux!$BA$1)>0,(L15/INDEX($C15:$L15,1,aux!$BA$1))^(1/($L$3-INDEX($C$3:$L$3,1,aux!$BA$1)))-1,"n.d.") -> -0.335177869 | AF15: =IF(INDEX($C15:$L15,1,aux!$BA$1)>0,(L15-INDEX($C15:$L15,1,aux!$BA$1))/INDEX($C15:$L15,1,aux!$BA$1),"n.d.") -> -0.9746283207 | AH15: =X15-INDEX($O15:$X15,1,aux!$BA$1) -> 7737.252 | AI15: 0.08090766979 | AJ15: =+IF(INDEX($O15:$X15,1,aux!$BA$1)>0,(X15/INDEX($O15:$X15,1,aux!$BA$1))^(1/($X$3-INDEX($O$3:$X$3,1,aux!$BA$1)))-1,"n.d.") -> 0.06351830706 | AK15: =IF(INDEX($O15:$X15,1,aux!$BA$1)>0,(X15-INDEX($O15:$X15,1,aux!$BA$1))/INDEX($O15:$X15,1,aux!$BA$1),"n.d.") -> 0.7406230527 | CC15: =+IF(ISNA(MATCH('5.1'!A15,AUX_2d_pais!$G$2:$G$40000,0)),0,1) -> 1
A16: 0528 | B16: Argentina | C16: 0 | D16: 0 | E16: 0 | F16: 0 | G16: 0 | H16: 0 | I16: 0 | J16: 0 | K16: 0 | L16: 0 | M16: 0 | N16: 0 | O16: 0 | P16: 0 | Q16: 0 | R16: 0 | S16: 0 | T16: 0 | U16: 0 | V16: 0 | W16: 0 | X16: 0 | Y16: 0 | Z16: 0 | AA16: 0 | AC16: =L16-INDEX($C16:$L16,1,aux!$BA$1) -> 0 | AD16: 0 | AE16: =+IF(INDEX($C16:$L16,1,aux!$BA$1)>0,(L16/INDEX($C16:$L16,1,aux!$BA$1))^(1/($L$3-INDEX($C$3:$L$3,1,aux!$BA$1)))-1,"n.d.") -> n.d. | AF16: =IF(INDEX($C16:$L16,1,aux!$BA$1)>0,(L16-INDEX($C16:$L16,1,aux!$BA$1))/INDEX($C16:$L16,1,aux!$BA$1),"n.d.") -> n.d. | AH16: =X16-INDEX($O16:$X16,1,aux!$BA$1) -> 0 | AI16: 0 | AJ16: =+IF(INDEX($O16:$X16,1,aux!$BA$1)>0,(X16/INDEX($O16:$X16,1,aux!$BA$1))^(1/($X$3-INDEX($O$3:$X$3,1,aux!$BA$1)))-1,"n.d.") -> n.d. | AK16: =IF(INDEX($O16:$X16,1,aux!$BA$1)>0,(X16-INDEX($O16:$X16,1,aux!$BA$1))/INDEX($O16:$X16,1,aux!$BA$1),"n.d.") -> n.d. | AM16: 0 | CC16: =+IF(ISNA(MATCH('5.1'!A16,AUX_2d_pais!$G$2:$G$40000,0)),0,1) -> 0
A17: 0077 | B17: Arménia | C17: 0 | D17: 0 | E17: 0 | F17: 0 | G17: 0 | H17: 0 | I17: 0 | J17: 0 | K17: 0 | L17: 0 | M17: 0 | N17: 0 | O17: 0 | P17: 0 | Q17: 0 | R17: 0 | S17: 0 | T17: 0 | U17: 0 | V17: 0 | W17: 0 | X17: 0 | Y17: 0 | Z17: 0 | AA17: 0 | AC17: =L17-INDEX($C17:$L17,1,aux!$BA$1) -> 0 | AD17: 0 | AE17: =+IF(INDEX($C17:$L17,1,aux!$BA$1)>0,(L17/INDEX($C17:$L17,1,aux!$BA$1))^(1/($L$3-INDEX($C$3:$L$3,1,aux!$BA$1)))-1,"n.d.") -> n.d. | AF17: =IF(INDEX($C17:$L17,1,aux!$BA$1)>0,(L17-INDEX($C17:$L17,1,aux!$BA$1))/INDEX($C17:$L17,1,aux!$BA$1),"n.d.") -> n.d. | AH17: =X17-INDEX($O17:$X17,1,aux!$BA$1) -> 0 | AI17: 0 | AJ17: =+IF(INDEX($O17:$X17,1,aux!$BA$1)>0,(X17/INDEX($O17:$X17,1,aux!$BA$1))^(1/($X$3-INDEX($O$3:$X$3,1,aux!$BA$1)))-1,"n.d.") -> n.d. | AK17: =IF(INDEX($O17:$X17,1,aux!$BA$1)>0,(X17-INDEX($O17:$X17,1,aux!$BA$1))/INDEX($O17:$X17,1,aux!$BA$1),"n.d.") -> n.d. | AM17: 0 | CC17: =+IF(ISNA(MATCH('5.1'!A17,AUX_2d_pais!$G$2:$G$40000,0)),0,1) -> 0
A18: 0474 | B18: Aruba | C18: 0 | D18: 0 | E18: 0 | F18: 0 | G18: 0 | H18: 0 | I18: 0 | J18: 0 | K18: 0 | L18: 0 | M18: 0 | N18: 0 | O18: 0 | P18: 0 | Q18: 0 | R18: 0 | S18: 0 | T18: 0 | U18: 0 | V18: 0 | W18: 0 | X18: 0 | Y18: 0 | Z18: 0 | AA18: 0 | AC18: =L18-INDEX($C18:$L18,1,aux!$BA$1) -> 0 | AD18: 0 | AE18: =+IF(INDEX($C18:$L18,1,aux!$BA$1)>0,(L18/INDEX($C18:$L18,1,aux!$BA$1))^(1/($L$3-INDEX($C$3:$L$3,1,aux!$BA$1)))-1,"n.d.") -> n.d. | AF18: =IF(INDEX($C18:$L18,1,aux!$BA$1)>0,(L18-INDEX($C18:$L18,1,aux!$BA$1))/INDEX($C18:$L18,1,aux!$BA$1),"n.d.") -> n.d. | AH18: =X18-INDEX($O18:$X18,1,aux!$BA$1) -> 0 | AI18: 0 | AJ18: =+IF(INDEX($O18:$X18,1,aux!$BA$1)>0,(X18/INDEX($O18:$X18,1,aux!$BA$1))^(1/($X$3-INDEX($O$3:$X$3,1,aux!$BA$1)))-1,"n.d.") -> n.d. | AK18: =IF(INDEX($O18:$X18,1,aux!$BA$1)>0,(X18-INDEX($O18:$X18,1,aux!$BA$1))/INDEX($O18:$X18,1,aux!$BA$1),"n.d.") -> n.d. | AM18: 0 | CC18: =+IF(ISNA(MATCH('5.1'!A18,AUX_2d_pais!$G$2:$G$40000,0)),0,1) -> 0
A19: 0800 | B19: Austrália | C19: 0 | D19: 0 | E19: 0 | F19: 0 | G19: 0 | H19: 0 | I19: 0 | J19: 0 | K19: 0 | L19: 0 | M19: 0 | N19: 0 | O19: 0 | P19: 0 | Q19: 0 | R19: 0 | S19: 0 | T19: 0 | U19: 0 | V19: 0 | W19: 0 | X19: 0 | Y19: 0 | Z19: 0 | AA19: 0 | AC19: =L19-INDEX($C19:$L19,1,aux!$BA$1) -> 0 | AD19: 0 | AE19: =+IF(INDEX($C19:$L19,1,aux!$BA$1)>0,(L19/INDEX($C19:$L19,1,aux!$BA$1))^(1/($L$3-INDEX($C$3:$L$3,1,aux!$BA$1)))-1,"n.d.") -> n.d. | AF19: =IF(INDEX($C19:$L19,1,aux!$BA$1)>0,(L19-INDEX($C19:$L19,1,aux!$BA$1))/INDEX($C19:$L19,1,aux!$BA$1),"n.d.") -> n.d. | AH19: =X19-INDEX($O19:$X19,1,aux!$BA$1) -> 0 | AI19: 0 | AJ19: =+IF(INDEX($O19:$X19,1,aux!$BA$1)>0,(X19/INDEX($O19:$X19,1,aux!$BA$1))^(1/($X$3-INDEX($O$3:$X$3,1,aux!$BA$1)))-1,"n.d.") -> n.d. | AK19: =IF(INDEX($O19:$X19,1,aux!$BA$1)>0,(X19-INDEX($O19:$X19,1,aux!$BA$1))/INDEX($O19:$X19,1,aux!$BA$1),"n.d.") -> n.d. | AM19: 0 | CC19: =+IF(ISNA(MATCH('5.1'!A19,AUX_2d_pais!$G$2:$G$40000,0)),0,1) -> 0
A20: 0038 | B20: Áustria | C20: 0 | D20: 0 | E20: 0 | F20: 0 | G20: 0 | H20: 0 | I20: 0 | J20: 0 | K20: 0 | L20: 0 | M20: 0 | N20: 0 | O20: 0 | P20: 0 | Q20: 0 | R20: 0 | S20: 0 | T20: 0 | U20: 0 | V20: 0 | W20: 0 | X20: 0 | Y20: 0 | Z20: 0 | AA20: 0 | AC20: =L20-INDEX($C20:$L20,1,aux!$BA$1) -> 0 | AD20: 0 | AE20: =+IF(INDEX($C20:$L20,1,aux!$BA$1)>0,(L20/INDEX($C20:$L20,1,aux!$BA$1))^(1/($L$3-INDEX($C$3:$L$3,1,aux!$BA$1)))-1,"n.d.") -> n.d. | AF20: =IF(INDEX($C20:$L20,1,aux!$BA$1)>0,(L20-INDEX($C20:$L20,1,aux!$BA$1))/INDEX($C20:$L20,1,aux!$BA$1),"n.d.") -> n.d. | AH20: =X20-INDEX($O20:$X20,1,aux!$BA$1) -> 0 | AI20: 0 | AJ20: =+IF(INDEX($O20:$X20,1,aux!$BA$1)>0,(X20/INDEX($O20:$X20,1,aux!$BA$1))^(1/($X$3-INDEX($O$3:$X$3,1,aux!$BA$1)))-1,"n.d.") -> n.d. | AK20: =IF(INDEX($O20:$X20,1,aux!$BA$1)>0,(X20-INDEX($O20:$X20,1,aux!$BA$1))/INDEX($O20:$X20,1,aux!$BA$1),"n.d.") -> n.d. | AM20: 0 | CC20: =+IF(ISNA(MATCH('5.1'!A20,AUX_2d_pais!$G$2:$G$40000,0)),0,1) -> 0
A21: 0078 | B21: Azerbaijão | C21: 0 | D21: 0 | E21: 0 | F21: 0 | G21: 0 | H21: 0 | I21: 0 | J21: 0 | K21: 0 | L21: 0 | M21: 0 | N21: 0 | O21: 0 | P21: 0 | Q21: 0 | R21: 0 | S21: 0 | T21: 0 | U21: 0 | V21: 0 | W21: 0 | X21: 0 | Y21: 0 | Z21: 0 | AA21: 0 | AC21: =L21-INDEX($C21:$L21,1,aux!$BA$1) -> 0 | AD21: 0 | AE21: =+IF(INDEX($C21:$L21,1,aux!$BA$1)>0,(L21/INDEX($C21:$L21,1,aux!$BA$1))^(1/($L$3-INDEX($C$3:$L$3,1,aux!$BA$1)))-1,"n.d.") -> n.d. | AF21: =IF(INDEX($C21:$L21,1,aux!$BA$1)>0,(L21-INDEX($C21:$L21,1,aux!$BA$1))/INDEX($C21:$L21,1,aux!$BA$1),"n.d.") -> n.d. | AH21: =X21-INDEX($O21:$X21,1,aux!$BA$1) -> 0 | AI21: 0 | AJ21: =+IF(INDEX($O21:$X21,1,aux!$BA$1)>0,(X21/INDEX($O21:$X21,1,aux!$BA$1))^(1/($X$3-INDEX($O$3:$X$3,1,aux!$BA$1)))-1,"n.d.") -> n.d. | AK21: =IF(INDEX($O21:$X21,1,aux!$BA$1)>0,(X21-INDEX($O21:$X21,1,aux!$BA$1))/INDEX($O21:$X21,1,aux!$BA$1),"n.d.") -> n.d. | AM21: 0 | CC21: =+IF(ISNA(MATCH('5.1'!A21,AUX_2d_pais!$G$2:$G$40000,0)),0,1) -> 0
A22: 0453 | B22: Bahamas | C22: 0 | D22: 0 | E22: 0 | F22: 0 | G22: 0 | H22: 0 | I22: 0 | J22: 0 | K22: 0 | L22: 0 | M22: 0 | N22: 0 | O22: 0 | P22: 0 | Q22: 0 | R22: 0 | S22: 0 | T22: 0 | U22: 0 | V22: 0 | W22: 0 | X22: 0 | Y22: 0 | Z22: 0 | AA22: 0 | AC22: =L22-INDEX($C22:$L22,1,aux!$BA$1) -> 0 | AD22: 0 | AE22: =+IF(INDEX($C22:$L22,1,aux!$BA$1)>0,(L22/INDEX($C22:$L22,1,aux!$BA$1))^(1/($L$3-INDEX($C$3:$L$3,1,aux!$BA$1)))-1,"n.d.") -> n.d. | AF22: =IF(INDEX($C22:$L22,1,aux!$BA$1)>0,(L22-INDEX($C22:$L22,1,aux!$BA$1))/INDEX($C22:$L22,1,aux!$BA$1),"n.d.") -> n.d. | AH22: =X22-INDEX($O22:$X22,1,aux!$BA$1) -> 0 | AI22: 0 | AJ22: =+IF(INDEX($O22:$X22,1,aux!$BA$1)>0,(X22/INDEX($O22:$X22,1,aux!$BA$1))^(1/($X$3-INDEX($O$3:$X$3,1,aux!$BA$1)))-1,"n.d.") -> n.d. | AK22: =IF(INDEX($O22:$X22,1,aux!$BA$1)>0,(X22-INDEX($O22:$X22,1,aux!$BA$1))/INDEX($O22:$X22,1,aux!$BA$1),"n.d.") -> n.d. | AM22: 0 | CC22: =+IF(ISNA(MATCH('5.1'!A22,AUX_2d_pais!$G$2:$G$40000,0)),0,1) -> 0
A23: 0666 | B23: Bangladesh | C23: 0 | D23: 0 | E23: 0 | F23: 0 | G23: 0 | H23: 0 | I23: 0 | J23: 0 | K23: 0 | L23: 0 | M23: 0 | N23: 0 | O23: 0 | P23: 0 | Q23: 0 | R23: 0 | S23: 0 | T23: 0 | U23: 0 | V23: 0 | W23: 0 | X23: 0 | Y23: 0 | Z23: 0 | AA23: 0 | AC23: =L23-INDEX($C23:$L23,1,aux!$BA$1) -> 0 | AD23: 0 | AE23: =+IF(INDEX($C23:$L23,1,aux!$BA$1)>0,(L23/INDEX($C23:$L23,1,aux!$BA$1))^(1/($L$3-INDEX($C$3:$L$3,1,aux!$BA$1)))-1,"n.d.") -> n.d. | AF23: =IF(INDEX($C23:$L23,1,aux!$BA$1)>0,(L23-INDEX($C23:$L23,1,aux!$BA$1))/INDEX($C23:$L23,1,aux!$BA$1),"n.d.") -> n.d. | AH23: =X23-INDEX($O23:$X23,1,aux!$BA$1) -> 0 | AI23: 0 | AJ23: =+IF(INDEX($O23:$X23,1,aux!$BA$1)>0,(X23/INDEX($O23:$X23,1,aux!$BA$1))^(1/($X$3-INDEX($O$3:$X$3,1,aux!$BA$1)))-1,"n.d.") -> n.d. | AK23: =IF(INDEX($O23:$X23,1,aux!$BA$1)>0,(X23-INDEX($O23:$X23,1,aux!$BA$1))/INDEX($O23:$X23,1,aux!$BA$1),"n.d.") -> n.d. | AM23: 0 | CC23: =+IF(ISNA(MATCH('5.1'!A23,AUX_2d_pais!$G$2:$G$40000,0)),0,1) -> 0
A24: 0469 | B24: Barbados | C24: 0 | D24: 0 | E24: 0 | F24: 0 | G24: 0 | H24: 0 | I24: 0 | J24: 0 | K24: 0 | L24: 0 | M24: 0 | N24: 0 | O24: 0 | P24: 0 | Q24: 0 | R24: 0 | S24: 0 | T24: 0 | U24: 0 | V24: 0 | W24: 0 | X24: 0 | Y24: 0 | Z24: 0 | AA24: 0 | AC24: =L24-INDEX($C24:$L24,1,aux!$BA$1) -> 0 | AD24: 0 | AE24: =+IF(INDEX($C24:$L24,1,aux!$BA$1)>0,(L24/INDEX($C24:$L24,1,aux!$BA$1))^(1/($L$3-INDEX($C$3:$L$3,1,aux!$BA$1)))-1,"n.d.") -> n.d. | AF24: =IF(INDEX($C24:$L24,1,aux!$BA$1)>0,(L24-INDEX($C24:$L24,1,aux!$BA$1))/INDEX($C24:$L24,1,aux!$BA$1),"n.d.") -> n.d. | AH24: =X24-INDEX($O24:$X24,1,aux!$BA$1) -> 0 | AI24: 0 | AJ24: =+IF(INDEX($O24:$X24,1,aux!$BA$1)>0,(X24/INDEX($O24:$X24,1,aux!$BA$1))^(1/($X$3-INDEX($O$3:$X$3,1,aux!$BA$1)))-1,"n.d.") -> n.d. | AK24: =IF(INDEX($O24:$X24,1,aux!$BA$1)>0,(X24-INDEX($O24:$X24,1,aux!$BA$1))/INDEX($O24:$X24,1,aux!$BA$1),"n.d.") -> n.d. | AM24: 0 | CC24: =+IF(ISNA(MATCH('5.1'!A24,AUX_2d_pais!$G$2:$G$40000,0)),0,1) -> 0
A25: 0640 | B25: Barém | C25: 0 | D25: 0 | E25: 0 | F25: 0 | G25: 0 | H25: 0 | I25: 0 | J25: 0 | K25: 0 | L25: 0 | M25: 0 | N25: 0 | O25: 0 | P25: 0 | Q25: 0 | R25: 0 | S25: 0 | T25: 0 | U25: 0 | V25: 0 | W25: 0 | X25: 0 | Y25: 0 | Z25: 0 | AA25: 0 | AC25: =L25-INDEX($C25:$L25,1,aux!$BA$1) -> 0 | AD25: 0 | AE25: =+IF(INDEX($C25:$L25,1,aux!$BA$1)>0,(L25/INDEX($C25:$L25,1,aux!$BA$1))^(1/($L$3-INDEX($C$3:$L$3,1,aux!$BA$1)))-1,"n.d.") -> n.d. | AF25: =IF(INDEX($C25:$L25,1,aux!$BA$1)>0,(L25-INDEX($C25:$L25,1,aux!$BA$1))/INDEX($C25:$L25,1,aux!$BA$1),"n.d.") -> n.d. | AH25: =X25-INDEX($O25:$X25,1,aux!$BA$1) -> 0 | AI25: 0 | AJ25: =+IF(INDEX($O25:$X25,1,aux!$BA$1)>0,(X25/INDEX($O25:$X25,1,aux!$BA$1))^(1/($X$3-INDEX($O$3:$X$3,1,aux!$BA$1)))-1,"n.d.") -> n.d. | AK25: =IF(INDEX($O25:$X25,1,aux!$BA$1)>0,(X25-INDEX($O25:$X25,1,aux!$BA$1))/INDEX($O25:$X25,1,aux!$BA$1),"n.d.") -> n.d. | AM25: 0 | CC25: =+IF(ISNA(MATCH('5.1'!A25,AUX_2d_pais!$G$2:$G$40000,0)),0,1) -> 0
A26: 0073 | B26: Belarus | C26: 0 | D26: 0 | E26: 0 | F26: 0 | G26: 0 | H26: 0 | I26: 0 | J26: 0 | K26: 0 | L26: 0 | M26: 0 | N26: 0 | O26: 0 | P26: 0 | Q26: 0 | R26: 0 | S26: 0 | T26: 0 | U26: 0 | V26: 0 | W26: 0 | X26: 0 | Y26: 0 | Z26: 0 | AA26: 0 | AC26: =L26-INDEX($C26:$L26,1,aux!$BA$1) -> 0 | AD26: 0 | AE26: =+IF(INDEX($C26:$L26,1,aux!$BA$1)>0,(L26/INDEX($C26:$L26,1,aux!$BA$1))^(1/($L$3-INDEX($C$3:$L$3,1,aux!$BA$1)))-1,"n.d.") -> n.d. | AF26: =IF(INDEX($C26:$L26,1,aux!$BA$1)>0,(L26-INDEX($C26:$L26,1,aux!$BA$1))/INDEX($C26:$L26,1,aux!$BA$1),"n.d.") -> n.d. | AH26: =X26-INDEX($O26:$X26,1,aux!$BA$1) -> 0 | AI26: 0 | AJ26: =+IF(INDEX($O26:$X26,1,aux!$BA$1)>0,(X26/INDEX($O26:$X26,1,aux!$BA$1))^(1/($X$3-INDEX($O$3:$X$3,1,aux!$BA$1)))-1,"n.d.") -> n.d. | AK26: =IF(INDEX($O26:$X26,1,aux!$BA$1)>0,(X26-INDEX($O26:$X26,1,aux!$BA$1))/INDEX($O26:$X26,1,aux!$BA$1),"n.d.") -> n.d. | AM26: 0 | CC26: =+IF(ISNA(MATCH('5.1'!A26,AUX_2d_pais!$G$2:$G$40000,0)),0,1) -> 0
A27: 0017 | B27: Bélgica | C27: 0 | D27: 0 | E27: 0 | F27: 0 | G27: 0 | H27: 0 | I27: 0 | J27: 0 | K27: 0 | L27: 0 | M27: 0 | N27: 0 | O27: 0 | P27: 0 | Q27: 0 | R27: 0 | S27: 0 | T27: 0 | U27: 0 | V27: 0 | W27: 0 | X27: 0 | Y27: 0 | Z27: 0 | AA27: 0 | AC27: =L27-INDEX($C27:$L27,1,aux!$BA$1) -> 0 | AD27: 0 | AE27: =+IF(INDEX($C27:$L27,1,aux!$BA$1)>0,(L27/INDEX($C27:$L27,1,aux!$BA$1))^(1/($L$3-INDEX($C$3:$L$3,1,aux!$BA$1)))-1,"n.d.") -> n.d. | AF27: =IF(INDEX($C27:$L27,1,aux!$BA$1)>0,(L27-INDEX($C27:$L27,1,aux!$BA$1))/INDEX($C27:$L27,1,aux!$BA$1),"n.d.") -> n.d. | AH27: =X27-INDEX($O27:$X27,1,aux!$BA$1) -> 0 | AI27: 0 | AJ27: =+IF(INDEX($O27:$X27,1,aux!$BA$1)>0,(X27/INDEX($O27:$X27,1,aux!$BA$1))^(1/($X$3-INDEX($O$3:$X$3,1,aux!$BA$1)))-1,"n.d.") -> n.d. | AK27: =IF(INDEX($O27:$X27,1,aux!$BA$1)>0,(X27-INDEX($O27:$X27,1,aux!$BA$1))/INDEX($O27:$X27,1,aux!$BA$1),"n.d.") -> n.d. | AM27: 0 | CC27: =+IF(ISNA(MATCH('5.1'!A27,AUX_2d_pais!$G$2:$G$40000,0)),0,1) -> 0
A28: 0421 | B28: Belize | C28: 0 | D28: 0 | E28: 0 | F28: 0 | G28: 0 | H28: 0 | I28: 0 | J28: 0 | K28: 0 | L28: 0 | M28: 0 | N28: 0 | O28: 0 | P28: 0 | Q28: 0 | R28: 0 | S28: 0 | T28: 0 | U28: 0 | V28: 0 | W28: 0 | X28: 0 | Y28: 0 | Z28: 0 | AA28: 0 | AC28: =L28-INDEX($C28:$L28,1,aux!$BA$1) -> 0 | AD28: 0 | AE28: =+IF(INDEX($C28:$L28,1,aux!$BA$1)>0,(L28/INDEX($C28:$L28,1,aux!$BA$1))^(1/($L$3-INDEX($C$3:$L$3,1,aux!$BA$1)))-1,"n.d.") -> n.d. | AF28: =IF(INDEX($C28:$L28,1,aux!$BA$1)>0,(L28-INDEX($C28:$L28,1,aux!$BA$1))/INDEX($C28:$L28,1,aux!$BA$1),"n.d.") -> n.d. | AH28: =X28-INDEX($O28:$X28,1,aux!$BA$1) -> 0 | AI28: 0 | AJ28: =+IF(INDEX($O28:$X28,1,aux!$BA$1)>0,(X28/INDEX($O28:$X28,1,aux!$BA$1))^(1/($X$3-INDEX($O$3:$X$3,1,aux!$BA$1)))-1,"n.d.") -> n.d. | AK28: =IF(INDEX($O28:$X28,1,aux!$BA$1)>0,(X28-INDEX($O28:$X28,1,aux!$BA$1))/INDEX($O28:$X28,1,aux!$BA$1),"n.d.") -> n.d. | AM28: 0 | CC28: =+IF(ISNA(MATCH('5.1'!A28,AUX_2d_pais!$G$2:$G$40000,0)),0,1) -> 0
A29: 0284 | B29: Benim | C29: 10373.986 | D29: 7623.169 | E29: 2906.401 | F29: 7334.942 | G29: 2539.356 | H29: 3473.422 | I29: 3282.67 | J29: 1303.332 | K29: 1150.272 | L29: 883.122 | M29: 4087.0672 | N29: 0.0173539042 | O29: 340.367 | P29: 278.756 | Q29: 545.744 | R29: 771.087 | S29: 926.281 | T29: 745.755 | U29: 1623.494 | V29: 781.585 | W29: 995.658 | X29: 443.943 | Y29: 745.267 | Z29: 0.00101908971 | AA29: -3341.8002 | AC29: =L29-INDEX($C29:$L29,1,aux!$BA$1) -> -9490.864 | AD29: -0.3805585104 | AE29: =+IF(INDEX($C29:$L29,1,aux!$BA$1)>0,(L29/INDEX($C29:$L29,1,aux!$BA$1))^(1/($L$3-INDEX($C$3:$L$3,1,aux!$BA$1)))-1,"n.d.") -> -0.239464572 | AF29: =IF(INDEX($C29:$L29,1,aux!$BA$1)>0,(L29-INDEX($C29:$L29,1,aux!$BA$1))/INDEX($C29:$L29,1,aux!$BA$1),"n.d.") -> -0.9148714872 | AH29: =X29-INDEX($O29:$X29,1,aux!$BA$1) -> 103.576 | AI29: 0.001083083866 | AJ29: =+IF(INDEX($O29:$X29,1,aux!$BA$1)>0,(X29/INDEX($O29:$X29,1,aux!$BA$1))^(1/($X$3-INDEX($O$3:$X$3,1,aux!$BA$1)))-1,"n.d.") -> 0.02995908789 | AK29: =IF(INDEX($O29:$X29,1,aux!$BA$1)>0,(X29-INDEX($O29:$X29,1,aux!$BA$1))/INDEX($O29:$X29,1,aux!$BA$1),"n.d.") -> 0.3043068218 | CC29: =+IF(ISNA(MATCH('5.1'!A29,AUX_2d_pais!$G$2:$G$40000,0)),0,1) -> 1
A30: 0413 | B30: Bermudas | C30: 0 | D30: 0 | E30: 0 | F30: 0 | G30: 0 | H30: 0 | I30: 0 | J30: 0 | K30: 0 | L30: 0 | M30: 0 | N30: 0 | O30: 0 | P30: 0 | Q30: 0 | R30: 0 | S30: 0 | T30: 0 | U30: 0 | V30: 0 | W30: 0 | X30: 0 | Y30: 0 | Z30: 0 | AA30: 0 | AC30: =L30-INDEX($C30:$L30,1,aux!$BA$1) -> 0 | AD30: 0 | AE30: =+IF(INDEX($C30:$L30,1,aux!$BA$1)>0,(L30/INDEX($C30:$L30,1,aux!$BA$1))^(1/($L$3-INDEX($C$3:$L$3,1,aux!$BA$1)))-1,"n.d.") -> n.d. | AF30: =IF(INDEX($C30:$L30,1,aux!$BA$1)>0,(L30-INDEX($C30:$L30,1,aux!$BA$1))/INDEX($C30:$L30,1,aux!$BA$1),"n.d.") -> n.d. | AH30: =X30-INDEX($O30:$X30,1,aux!$BA$1) -> 0 | AI30: 0 | AJ30: =+IF(INDEX($O30:$X30,1,aux!$BA$1)>0,(X30/INDEX($O30:$X30,1,aux!$BA$1))^(1/($X$3-INDEX($O$3:$X$3,1,aux!$BA$1)))-1,"n.d.") -> n.d. | AK30: =IF(INDEX($O30:$X30,1,aux!$BA$1)>0,(X30-INDEX($O30:$X30,1,aux!$BA$1))/INDEX($O30:$X30,1,aux!$BA$1),"n.d.") -> n.d. | AM30: 0 | CC30: =+IF(ISNA(MATCH('5.1'!A30,AUX_2d_pais!$G$2:$G$40000,0)),0,1) -> 0
A31: 0516 | B31: Bolívia | C31: 0 | D31: 0 | E31: 0 | F31: 0 | G31: 0 | H31: 0 | I31: 0 | J31: 0 | K31: 0 | L31: 0 | M31: 0 | N31: 0 | O31: 0 | P31: 0 | Q31: 0 | R31: 0 | S31: 0 | T31: 0 | U31: 0 | V31: 0 | W31: 0 | X31: 0 | Y31: 0 | Z31: 0 | AA31: 0 | AC31: =L31-INDEX($C31:$L31,1,aux!$BA$1) -> 0 | AD31: 0 | AE31: =+IF(INDEX($C31:$L31,1,aux!$BA$1)>0,(L31/INDEX($C31:$L31,1,aux!$BA$1))^(1/($L$3-INDEX($C$3:$L$3,1,aux!$BA$1)))-1,"n.d.") -> n.d. | AF31: =IF(INDEX($C31:$L31,1,aux!$BA$1)>0,(L31-INDEX($C31:$L31,1,aux!$BA$1))/INDEX($C31:$L31,1,aux!$BA$1),"n.d.") -> n.d. | AH31: =X31-INDEX($O31:$X31,1,aux!$BA$1) -> 0 | AI31: 0 | AJ31: =+IF(INDEX($O31:$X31,1,aux!$BA$1)>0,(X31/INDEX($O31:$X31,1,aux!$BA$1))^(1/($X$3-INDEX($O$3:$X$3,1,aux!$BA$1)))-1,"n.d.") -> n.d. | AK31: =IF(INDEX($O31:$X31,1,aux!$BA$1)>0,(X31-INDEX($O31:$X31,1,aux!$BA$1))/INDEX($O31:$X31,1,aux!$BA$1),"n.d.") -> n.d. | AM31: 0 | CC31: =+IF(ISNA(MATCH('5.1'!A31,AUX_2d_pais!$G$2:$G$40000,0)),0,1) -> 0
A32: 0477 | B32: Bonaire, Santo Eustáquio e Saba | C32: 0 | D32: 0 | E32: 0 | F32: 0 | G32: 0 | H32: 0 | I32: 0 | J32: 0 | K32: 0 | L32: 0 | M32: 0 | N32: 0 | O32: 0 | P32: 0 | Q32: 0 | R32: 0 | S32: 0 | T32: 0 | U32: 0 | V32: 0 | W32: 0 | X32: 0 | Y32: 0 | Z32: 0 | AA32: 0 | AC32: =L32-INDEX($C32:$L32,1,aux!$BA$1) -> 0 | AD32: 0 | AE32: =+IF(INDEX($C32:$L32,1,aux!$BA$1)>0,(L32/INDEX($C32:$L32,1,aux!$BA$1))^(1/($L$3-INDEX($C$3:$L$3,1,aux!$BA$1)))-1,"n.d.") -> n.d. | AF32: =IF(INDEX($C32:$L32,1,aux!$BA$1)>0,(L32-INDEX($C32:$L32,1,aux!$BA$1))/INDEX($C32:$L32,1,aux!$BA$1),"n.d.") -> n.d. | AH32: =X32-INDEX($O32:$X32,1,aux!$BA$1) -> 0 | AI32: 0 | AJ32: =+IF(INDEX($O32:$X32,1,aux!$BA$1)>0,(X32/INDEX($O32:$X32,1,aux!$BA$1))^(1/($X$3-INDEX($O$3:$X$3,1,aux!$BA$1)))-1,"n.d.") -> n.d. | AK32: =IF(INDEX($O32:$X32,1,aux!$BA$1)>0,(X32-INDEX($O32:$X32,1,aux!$BA$1))/INDEX($O32:$X32,1,aux!$BA$1),"n.d.") -> n.d. | AM32: 0 | CC32: =+IF(ISNA(MATCH('5.1'!A32,AUX_2d_pais!$G$2:$G$40000,0)),0,1) -> 0
A33: 0093 | B33: Bósnia-Herzegovina | C33: 0 | D33: 0 | E33: 0 | F33: 0 | G33: 0 | H33: 0 | I33: 0 | J33: 0 | K33: 0 | L33: 0 | M33: 0 | N33: 0 | O33: 0 | P33: 0 | Q33: 0 | R33: 0 | S33: 0 | T33: 0 | U33: 0 | V33: 0 | W33: 0 | X33: 0 | Y33: 0 | Z33: 0 | AA33: 0 | AC33: =L33-INDEX($C33:$L33,1,aux!$BA$1) -> 0 | AD33: 0 | AE33: =+IF(INDEX($C33:$L33,1,aux!$BA$1)>0,(L33/INDEX($C33:$L33,1,aux!$BA$1))^(1/($L$3-INDEX($C$3:$L$3,1,aux!$BA$1)))-1,"n.d.") -> n.d. | AF33: =IF(INDEX($C33:$L33,1,aux!$BA$1)>0,(L33-INDEX($C33:$L33,1,aux!$BA$1))/INDEX($C33:$L33,1,aux!$BA$1),"n.d.") -> n.d. | AH33: =X33-INDEX($O33:$X33,1,aux!$BA$1) -> 0 | AI33: 0 | AJ33: =+IF(INDEX($O33:$X33,1,aux!$BA$1)>0,(X33/INDEX($O33:$X33,1,aux!$BA$1))^(1/($X$3-INDEX($O$3:$X$3,1,aux!$BA$1)))-1,"n.d.") -> n.d. | AK33: =IF(INDEX($O33:$X33,1,aux!$BA$1)>0,(X33-INDEX($O33:$X33,1,aux!$BA$1))/INDEX($O33:$X33,1,aux!$BA$1),"n.d.") -> n.d. | AM33: 0 | CC33: =+IF(ISNA(MATCH('5.1'!A33,AUX_2d_pais!$G$2:$G$40000,0)),0,1) -> 0
